Workbook

Sheet Intro_SM_Health_LZV
A1: 1 | B1: Template für die Berechnung der Langzeitverpflichtungen (LZV) für den SST | D1: 2024
B3: Version 31.01.2024
B6: Name der Versicherungsgesellschaft
B8: Sparte
B10: Kontaktperson
B12: E-Mail
B14: SST-Währung
B19: Bemerkungen
B21: ="Dieses Template dient der Berechnung der Langzeitverpflichtungen im Zuge des SST "&sst_input_current_year&". Das Berechnungs-Template der Langzeitverpflichtungen (LZV) richtet sich an SST-pflichtige Versicherungsunternehmen, welche die Krankenversicherung betreiben." -> Dieses Template dient der Berechnung der Langzeitverpflichtungen im Zuge des SST 2024. Das Berechnungs-Template der Langzeitverpflichtungen (LZV) richtet sich an SST-pflichtige Versicherungsunternehmen, welche die Krankenversicherung betreiben.
B22: Es gelten einheitliche Vorgaben für gewisse Parameter, Details sind der Technischen Beschreibung für das SST-Standardmodell Krankenversicherung zu entnehmen. Ein Benutzerhandbuch zum Berechnungs-Template LZV wird auf Anfrage (E-Mail) zur Verfügung gestellt.
B23: Die folgenden Farben werden der Sparte Krankenversicherungen zugeordnet:
B25: Kranken | C25: Tabellenblätter, die vom Versicherungsunternehmen auszufüllen sind.
B26: Informationen | C26: Tabellenblätter mit Informationen und Parametern. Diese Tabellenblätter sind in der Regel nicht zu ändern.
B28: Eingabe | C28: Eingabefelder: In diesen Feldern sind versicherungsspezifische Angaben erwartet.
B30: Es wird die folgende Vorzeichenkonvention verwendet
B31: - LZV < 0: es besteht ein Guthaben;
B32: - LZV > 0: es besteht ein Bedarf.

Sheet Update
A1: 2 | B1: Aktualisierungsliste
B5: Nr. | C5: Datum | D5: Tabellenblatt | E5: Zelle | F5: Bemerkung
B6: 1 | C6: 2018-10-31 | D6: Alle Blätter | F6: Erste Version
B7: 2 | C7: 2019-01-31 | D7: Inputparam | E7: Zeilen 8 bis 11 | F7: Aktualisierung der Risikofreien Zero-Coupon-Raten per 31.12.2018
B8: 3 | C8: 2019-01-31 | D8: HE_LZV_Resultat | F8: Anpassung der Makros
B9: 4 | C9: 2019-05-15 | D9: HE_Berechnung | E9: Spalte F | F9: Anpassung der Glättung der Leistungen pro Vertrag
B10: 5 | C10: 2019-05-20 | D10: HE_Input_1 bis HE_Input_3 | F10: Aufteilung der Produktegruppe 1 in die Untergruppen Halbprivat (HE_Input_1), Privat (HE_Input_2) und Flex (HE_Input_3)
B11: 6 | C11: 2019-05-20 | D11: HE_Input_1 bis HE_Input_7 | E11: Spalte X und Y | F11: Erweiterung zweier Spalten mit den geglätteten Leistungen pro Vertrag und Geschlecht inkl. Grafiken (zu Analysezwecken)
B12: 7 | C12: 2019-08-09 | D12: HE_Inputparam_VWK | F12: Neues Blatt
B13: 8 | C13: 2019-08-29 | D13: HE_Input_1 bis HE_Input_7 | F13: Erweiterung der Datenabfrage durch Anzahl Verträge und Leistungen je Alter für das Vorjahr, Vorjahr-1 und Vorjahr-2
B14: 9 | C14: 2019-08-30 | D14: HE_Input_Produkte | F14: Zusätzlicher Input: Zuordnung der Produkte zu den Produktegruppen
B15: 10 | C15: 2020-01-31 | D15: Inputparam | E15: Zeilen 8 bis 11 | F15: Aktualisierung der risikofreien Zero-Coupon-Raten per 31.12.2019
B16: 11 | C16: 2020-01-31 | D16: HE_Input_Produkte | E16: Zelle B17 | F16: Verweis auf EHP anstelle FIRST
B17: 12 | C17: 2020-01-31 | D17: HE_Inputparam_VWK | E17: Zelle B6, Zellen B13 - B17 | F17: Aktualisierung Kontonummer auf EHP, Löschen der Verweise auf veraltete SAI
B18: 13 | C18: 2020-07-09 | D18: HE_Input_1 bis HE_Input_7 | E18: Zeile 13 | F18: Anpassung der Überschriften: die Leistungen des Jahres 2020 fliessen im SST 2021 nicht ein.
B19: 14 | C19: 2020-07-09 | D19: HE_Input_1 bis HE_Input_7 | E19: Spalte Y bis AD | F19: Anpassung der Formeln, da die Leistungen auf das Jahr 2021 hochgerechnet werden müssen (die Inflation wirkt einmal mehr).
B20: 15 | C20: 2020-10-19 | D20: qx_m_w | E20: Spalte C und D | F20: Aktualisierung der Periodentafel getrennt nach Geschlecht
B21: 16 | C21: 2020-10-19 | D21: Korrekturvektor_Inflation | E21: Zeile 7 sowie Zeile 8 | F21: Aktualisierung der Inflationsannahmen
B22: 17 | C22: 2021-01-31 | D22: Inputparam | E22: Zeilen 8 bis 11 | F22: Aktualisierung der risikofreien Zero-Coupon-Raten per 31.12.2020
B23: 18 | C23: 2021-10-12 | D23: Intro_SM_Health_LZV | E23: Zeile 22 | F23: Hinweise zu einem Benutzerhandbuch, welches auf Anfrage zur Verfügung gestellt wird.
B24: 19 | C24: 2021-10-12 | D24: Korrekturvektor_Inflation | E24: Zeile 7 | F24: Anpassung der Überschriften: die Werte des Jahres 2020 fliessen nicht ein.
B25: 20 | C25: 2021-10-12 | D25: HE_Inputparam_VWK | E25: Zeilen 5, 11, 24, 37, 44, 51, 58, 65 | F25: Anpassung der Überschriften: es fliessen die Werte der Jahre 2021, 2020 und 2019 ein.
B26: 21 | C26: 2021-10-12 | D26: HE_Input_1 bis HE_Input_7 | E26: Zeile 13 | F26: Anpassung der Überschriften: die Werte des Jahres 2020 fliessen nicht ein.
B27: 22 | C27: 2021-10-12 | D27: HE_Input_1 bis HE_Input_7 | E27: Spalten Y bis AD | F27: Anpassung der Formeln (das Jahr 2020 fliesst nicht ein, Berücksichtigung der Null-Inflation ausserhalb Produktegruppe 3)
B28: 23 | C28: 2022-01-31 | D28: qx_m_w | E28: Zeile 5 | F28: Hinweis, dass im SST 2022 kein Update der Sterblichkeiten erfolgt, d.h. Sterblichkeiten im SST 2022 identisch zu denen im SST 2021.
B29: 24 | C29: 2022-01-31 | D29: Inputparam | E29: Zeilen 8 bis 11 | F29: Aktualisierung der risikofreien Zero-Coupon-Raten per 31.12.2021
B30: 25 | C30: 2022-10-31 | D30: list_of_sheets | E30: D8 | F30: Textliche Anpassung des Titels von Blatt qx_m_w
B31: 26 | C31: 2022-10-31 | D31: Inputparam | E31: Zeilen 8 bis 11 | F31: Löschen der risikofreien Zero-Coupon-Raten per 31.12.2021
B32: 27 | C32: 2022-10-31 | D32: qx_m_w | E32: Zeilen 1 bis 117 | F32: Neue Methodik: die Sterblichkeiten orientieren sich neu am Mittelwert der letzten fünf BfS-Periodentafeln.
B33: 28 | C33: 2022-10-31 | D33: Korrekturvektor_Inflation | E33: Zeile 7 | F33: Anpassung der Überschriften: die Werte des Jahres 2020 fliessen nicht ein.
B34: 29 | C34: 2022-10-31 | D34: HE_Inputparam_VWK | E34: Zeilen 5, 11, 24, 37, 44, 51, 58, 65 | F34: Anpassung der Überschriften: es fliessen die Werte der Jahre 2022, 2021 und 2020 ein.
B35: 30 | C35: 2022-10-31 | D35: HE_Input_1 bis HE_Input_7 | E35: Zeile 13 | F35: Anpassung der Überschriften: die Werte des Jahres 2020 fliessen nicht ein.
B36: 31 | C36: 2022-10-31 | D36: HE_Input_5 | E36: Spalten AA bis AB | F36: Anpassung der Formeln (das Jahr 2020 fliesst nicht ein sowie Berücksichtigung der Inflation der Produktegruppe 3)
B37: 32 | C37: 2022-10-31 | D37: HE_Berechnungshilfe | E37: Zellen C6 und C7 | F37: Löschen der Faktoren des Basisfalls Sterblichkeit (Aktualisierung erfolgt im Januar 2023 zusammen mit Blatt qx_m_w)
B38: 33 | C38: 2023-01-31 | D38: Inputparam | E38: Zeilen 8 bis 11 | F38: Aktualisierung der risikofreien Zero-Coupon-Raten per 31.12.2022
B39: 34 | C39: 2023-01-31 | D39: qx_m_w | E39: Zeilen 5 bis 117 | F39: Aktualisierung der Sterblichkeiten
B40: 35 | C40: 2023-01-31 | D40: HE_Berechnungshilfe | E40: Zellen C6 und C7 | F40: Aktualisierung der Faktoren des Basisfalls Sterblichkeit
B41: 36 | C41: 2023-10-31 | D41: Inputparam | E41: Zeilen 8 bis 11 | F41: Löschen der risikofreien Zero-Coupon-Raten per 31.12.2022. Die Werte für den SST 2024 werden im Januar 2024 veröffentlicht.
B42: 37 | C42: 2023-10-31 | D42: qx_m_w | E42: Zeilen 18 bis 117 | F42: Löschen der im SST 2023 verwendeten Sterblichkeiten. Die Sterblichkeiten für den SST 2024 werden Ende Januar 2024 veröffentlicht.
B43: 38 | C43: 2023-10-31 | D43: Korrekturvektor_Inflation | E43: Zeile 7 | F43: Anpassung der Überschriften: im SST 2024 fliessen die Werte für die Jahre 2023, 2022 und 2021 ein.
B44: 39 | C44: 2023-10-31 | D44: Korrekturvektor_Inflation | E44: Zeile 8 | F44: Löschen der im SST 2023 verwendeten Werte. Die Inflationsannahmen für den SST 2024 werden Ende Januar 2024 veröffentlicht.
B45: 40 | C45: 2023-10-31 | D45: HE_Inputparam_VWK | E45: Zeilen 5, 11, 24, 37, 44, 51, 58, 65 | F45: Anpassung der Überschriften: im SST 2024 fliessen die Werte der Jahre 2023, 2022 und 2021 ein.
B46: 41 | C46: 2023-10-31 | D46: HE_Input_1 bis HE_Input_7 | E46: Zeile 13 | F46: Anpassung der Überschriften: im SST 2024 fliessen die Werte der Jahre 2023, 2022 und 2021 ein.
B47: 42 | C47: 2023-10-31 | D47: HE_Input_5 | E47: Spalten AC bis AD | F47: Anpassung der Formeln (neu fliesst das Jahr 2021 ein sowie Berücksichtigung der Inflation der Produktegruppe 3)
B48: 43 | C48: 2024-01-31 | D48: Inputparam | E48: Zeilen 8 bis 11 | F48: Aktualisierung der risikofreien Zero-Coupon-Raten per 31.12.2023
B49: 44 | C49: 2024-01-31 | D49: qx_m_w | E49: Zeilen 18 bis 117 | F49: Aktualisierung der Sterblichkeiten
B50: 45 | C50: 2024-01-31 | D50: Korrekturvektor_Inflation | E50: Zeile 8 | F50: Aktualisierung der Inflationsannahmen

Sheet list_of_sheets
A1: 3 | B1: Liste der Arbeitsblätter
B3: Nr | C3: Name of Sheet | D3: Titel
B4: 1 | C4: Intro_SM_Health_LZV | D4: Einführung
B5: 2 | C5: Update | D5: Aktualisierungsliste
B6: 3 | C6: list_of_sheets | D6: Liste der Arbeitsblätter
B7: 4 | C7: Inputparam | D7: Parameter
B8: 5 | C8: qx_m_w | D8: Sterblichkeiten: Verwendete Tafeln getrennt nach Geschlecht
B9: 6 | C9: sx_m_w | D9: Stornoprofile getrennt nach Geschlecht
B10: 7 | C10: Korrekturvektor_Inflation | D10: Korrekturvektoren Inflation pro Produktegruppe
B11: 8 | C11: HE_Input_Produkte | D11: Zuordnung der Produkte zu den Produktegruppen
B12: 9 | C12: HE_Inputparam_VWK | D12: Input für Verwaltungskosten
B13: 10 | C13: HE_Input_1 | D13: Produktegruppe 1 (Halbprivat): Inputdaten
B14: 11 | C14: HE_Input_2 | D14: Produktegruppe 1 (Privat): Inputdaten
B15: 12 | C15: HE_Input_3 | D15: Produktegruppe 1 (Flex): Inputdaten
B16: 13 | C16: HE_Input_4 | D16: Produktegruppe 2: Inputdaten
B17: 14 | C17: HE_Input_5 | D17: Produktegruppe 3: Inputdaten
B18: 15 | C18: HE_Input_6 | D18: Produktegruppe 4: Inputdaten
B19: 16 | C19: HE_Input_7 | D19: Produktegruppe 5: Inputdaten
B20: 17 | C20: HE_Inputdata_pxy | D20: Bestimmung der Überlebenswahrscheinlichkeiten
B21: 18 | C21: HE_Inputdata_sx_m_w | D21: Stornoprofile und Auswahlmenge
B22: 19 | C22: HE_Berechnung | D22: Rechenkern: Berechnung der Langzeitverpflichtungen und Cashflows
B23: 20 | C23: HE_LZV_Resultat | D23: Individuelle Parameterwahl: Langzeitverpflichtungen Resultat (ohne Anwendung des Prämien-Caps)
B24: 21 | C24: HE_Cashflow_Resultat | D24: Individuelle Parameterwahl: Cashflow Resultat (ohne Anwendung des Prämien-Caps)
B25: 22 | C25: HE_Berechnungshilfe | D25: Berechnungshilfe für die Cashflows und LZV des Basisfalls und der Auslenkungen
B26: 23 | C26: HE_Cashflow_Auslenkung_0 | D26: Aufteilung des Cashflows für den Basisfall
B27: 24 | C27: HE_Cashflow_Auslenkung_1o | D27: Aufteilung des Cashflows für Auslenkung 1 (Sterblichkeit) nach oben
B28: 25 | C28: HE_Cashflow_Auslenkung_1u | D28: Aufteilung des Cashflows für Auslenkung 1 (Sterblichkeit) nach unten
B29: 26 | C29: HE_Cashflow_Auslenkung_2o | D29: Aufteilung des Cashflows für Auslenkung 2 (Storno) nach oben
B30: 27 | C30: HE_Cashflow_Auslenkung_2u | D30: Aufteilung des Cashflows für Auslenkung 2 (Storno) nach unten
B31: 28 | C31: HE_Cashflow_Auslenkung_3o | D31: Aufteilung des Cashflows für Auslenkung 3 (Verwaltungskosten) nach oben
B32: 29 | C32: HE_Cashflow_Auslenkung_3u | D32: Aufteilung des Cashflows für Auslenkung 3 (Verwaltungskosten) nach unten
B33: 30 | C33: HE_Cashflow_Auslenkung_4o | D33: Aufteilung des Cashflows für Auslenkung 4 (Leistungen) nach oben
B34: 31 | C34: HE_Basisfall_Resultat | D34: Basisfall Resultat: Cashflows ohne Anwendung des Prämien-Caps
B35: 32 | C35: HE_Auslenkung_Resultat | D35: Auslenkung 1 bis 4 Resultat: LZV in Abhängigkeit des Risikofaktors

Sheet Inputparam
A1: 4 | B1: Parameter
B4: ="Risikofreie Zero-Coupon-Raten z(t) per 31.12."& current_year-1 &" in Prozent" -> Risikofreie Zero-Coupon-Raten z(t) per 31.12.2023 in Prozent
B5: Quelle: Für CHF: FINMA-Berechnungen basierend auf SNB Daten. Alle anderen Währungen: FINMA-Berechnungen basierend auf Bloomberg Daten.
B7: Maturität [Jahre] | C7: 1 | D7: =1+C7 -> 2 | E7: 3 | F7: 4 | G7: 5 | H7: 6 | I7: 7 | J7: 8 | K7: 9 | L7: 10 | M7: 11 | N7: 12 | O7: 13 | P7: 14 | Q7: 15 | R7: 16 | S7: 17 | T7: 18 | U7: 19 | V7: 20 | W7: 21 | X7: 22 | Y7: 23 | Z7: 24 | AA7: 25 | AB7: 26 | AC7: 27 | AD7: 28 | AE7: 29 | AF7: 30 | AG7: 31 | AH7: 32 | AI7: 33 | AJ7: 34 | AK7: 35 | AL7: 36 | AM7: 37 | AN7: 38 | AO7: 39 | AP7: 40 | AQ7: 41 | AR7: 42 | AS7: 43 | AT7: 44 | AU7: 45 | AV7: 46 | AW7: 47 | AX7: 48 | AY7: 49 | AZ7: 50
B8: CHF | C8: 1.255290667 | D8: 0.9924402445 | E8: 0.8429421456 | F8: 0.7601194003 | G8: 0.7144809452 | H8: 0.6891551085 | I8: 0.6747664123 | J8: 0.6661146459 | K8: 0.6602931569 | L8: 0.6556662059 | M8: 0.6488133172 | N8: 0.6411186898 | O8: 0.6345323754 | P8: 0.6303983997 | Q8: 0.6296739371 | R8: 0.6327701678 | S8: 0.6388972425 | T8: 0.6472155159 | U8: 0.6570978263 | V8: 0.6680720555 | W8: 0.6797807167 | X8: 0.691952048 | Y8: 0.7043790281 | Z8: 0.7169039431 | AA8: 0.7294069044 | AB8: 0.7417972158 | AC8: 0.7540068234 | AD8: 0.7659853042 | AE8: 0.7776960041 | AF8: 0.7891130419 | AG8: 0.8002189712 | AH8: 0.8110029473 | AI8: 0.8214592836 | AJ8: 0.8315863099 | AK8: 0.8413854671 | AL8: 0.8508605877 | AM8: 0.8600173225 | AN8: 0.8688626841 | AO8: 0.8774046818 | AP8: 0.8856520314 | AQ8: 0.8936139239 | AR8: 0.901299841 | AS8: 0.9087194102 | AT8: 0.9158822897 | AU8: 0.9227980786 | AV8: 0.9294762471 | AW8: 0.9359260836 | AX8: 0.9421566539 | AY8: 0.948176772 | AZ8: 0.9539949792
B9: EUR | C9: 3.164 | D9: 2.501 | E9: 2.245 | F9: 2.151 | G9: 2.124 | H9: 2.123 | I9: 2.132 | J9: 2.15 | K9: 2.169 | L9: 2.193 | M9: 2.216618962 | N9: 2.23712829 | O9: 2.253495142 | P9: 2.26497405 | Q9: 2.271 | R9: 2.271275936 | S9: 2.266115263 | T9: 2.255865303 | U9: 2.240770741 | V9: 2.221 | W9: 2.196988506 | X9: 2.170288602 | Y9: 2.142410694 | Z9: 2.114546883 | AA9: 2.087639366 | AB9: 2.062435055 | AC9: 2.039529566 | AD9: 2.019402972 | AE9: 2.002449124 | AF9: 1.989 | AG9: 1.979184938 | AH9: 1.972511448 | AI9: 1.968429296 | AJ9: 1.966483545 | AK9: 1.966296877 | AL9: 1.967555503 | AM9: 1.969997863 | AN9: 1.9734055 | AO9: 1.977595666 | AP9: 1.982415295 | AQ9: 1.987736066 | AR9: 1.993450346 | AS9: 1.999467839 | AT9: 2.005712816 | AU9: 2.012121805 | AV9: 2.018641669 | AW9: 2.025228001 | AX9: 2.03184377 | AY9: 2.038458196 | AZ9: 2.045045785
B10: USD | C10: 4.7559 | D10: 4.051764513 | E10: 3.727719323 | F10: 3.577894161 | G10: 3.506057394 | H10: 3.473988959 | I10: 3.457266092 | J10: 3.451431908 | K10: 3.453550412 | L10: 3.459324885 | M10: 3.468418037 | N10: 3.47891891 | O10: 3.488871049 | P10: 3.496818803 | Q10: 3.501623822 | R10: 3.502592109 | S10: 3.500027147 | T10: 3.494338844 | U10: 3.485816162 | V10: 3.474655925 | W10: 3.46099615 | X10: 3.444965324 | Y10: 3.426649542 | Z10: 3.4060895 | AA10: 3.383288925 | AB10: 3.358221242 | AC10: 3.330834998 | AD10: 3.301058432 | AE10: 3.268803459 | AF10: 3.233969312 | AG10: 3.19661827 | AH10: 3.157445774 | AI10: 3.117187586 | AJ10: 3.076454825 | AK10: 3.035752369 | AL10: 2.995495011 | AM10: 2.956021593 | AN10: 2.917607326 | AO10: 2.88047451 | AP10: 2.844801819 | AQ10: 2.810732341 | AR10: 2.778380523 | AS10: 2.747838174 | AT10: 2.719179659 | AU10: 2.692466422 | AV10: 2.667750926 | AW10: 2.64508015 | AX10: 2.624498708 | AY10: 2.6060517 | AZ10: 2.58978738
B11: GBP | C11: 4.7265 | D11: 4.013520657 | E11: 3.667658126 | F11: 3.469754514 | G11: 3.348479942 | H11: 3.279745351 | I11: 3.24867879 | J11: 3.242079205 | K11: 3.25191444 | L11: 3.272866084 | M11: 3.297475747 | N11: 3.322357141 | O11: 3.345794722 | P11: 3.366539875 | Q11: 3.383637518 | R11: 3.396599645 | S11: 3.406062471 | T11: 3.412751334 | U11: 3.417225739 | V11: 3.419921383 | W11: 3.421107451 | X11: 3.420713127 | Y11: 3.418593741 | Z11: 3.414606711 | AA11: 3.408608993 | AB11: 3.400455289 | AC11: 3.389996916 | AD11: 3.37708121 | AE11: 3.361551451 | AF11: 3.343247259 | AG11: 3.322163349 | AH11: 3.298882532 | AI11: 3.27403789 | AJ11: 3.248161009 | AK11: 3.22169715 | AL11: 3.195018353 | AM11: 3.168434763 | AN11: 3.142204414 | AO11: 3.116541686 | AP11: 3.091624606 | AQ11: 3.067601163 | AR11: 3.044594765 | AS11: 3.022708973 | AT11: 3.002031607 | AU11: 2.982638336 | AV11: 2.96459583 | AW11: 2.947964557 | AX11: 2.932801289 | AY11: 2.919161395 | AZ11: 2.907100972
B14: Diskontfaktoren | C14: Diskontfunktion P(t) = (1+z(t)/100)^(-t)
B16: Maturität [Jahre] | C16: 1 | D16: =1+C16 -> 2 | E16: 3 | F16: 4 | G16: 5 | H16: 6 | I16: 7 | J16: 8 | K16: 9 | L16: 10 | M16: 11 | N16: 12 | O16: 13 | P16: 14 | Q16: 15 | R16: 16 | S16: 17 | T16: 18 | U16: 19 | V16: 20 | W16: 21 | X16: 22 | Y16: 23 | Z16: 24 | AA16: 25 | AB16: 26 | AC16: 27 | AD16: 28 | AE16: 29 | AF16: 30 | AG16: 31 | AH16: 32 | AI16: 33 | AJ16: 34 | AK16: 35 | AL16: 36 | AM16: 37 | AN16: 38 | AO16: 39 | AP16: 40 | AQ16: 41 | AR16: 42 | AS16: 43 | AT16: 44 | AU16: 45 | AV16: 46 | AW16: 47 | AX16: 48 | AY16: 49 | AZ16: 50
B17: CHF | C17: =(1+C8/100)^(-C$7) -> 0.9876027153 | D17: 0.9804428144 | E17: 0.9751321518 | F17: 0.9701643373 | G17: 0.9650290918 | H17: 0.9596300078 | I17: 0.9540158402 | J17: 0.9482733519 | K17: 0.9424889826 | L17: 0.9367371056 | M17: 0.9313324892 | N17: 0.926178154 | O17: 0.9210613797 | P17: 0.9157803295 | Q17: 0.9101417103 | R17: 0.9040015055 | S17: 0.8973879253 | T17: 0.8903653343 | U17: 0.8829910747 | V17: 0.8753162155 | W17: 0.8673862225 | X17: 0.8592415562 | Y17: 0.8509182067 | Z17: 0.842448171 | AA17: 0.8338598808 | AB17: 0.8251785828 | AC17: 0.8164266803 | AD17: 0.8076240374 | AE17: 0.7987882512 | AF17: 0.7899348949 | AG17: 0.7810777351 | AH17: 0.7722289255 | AI17: 0.7633991811 | AJ17: 0.7545979323 | AK17: 0.7458334639 | AL17: 0.7371130386 | AM17: 0.7284430075 | AN17: 0.7198289087 | AO17: 0.7112755557 | AP17: 0.7027871162 | AQ17: 0.6943671823 | AR17: 0.6860188334 | AS17: 0.6777446925 | AT17: 0.6695469764 | AU17: 0.6614275403 | AV17: 0.6533879179 | AW17: 0.6454293573 | AX17: 0.6375528528 | AY17: 0.6297591733 | AZ17: 0.6220488879
B18: EUR | C18: 0.9693303866 | D18: 0.9517958245 | E18: 0.9355645604 | F18: 0.9183949988 | G18: 0.900245409 | H18: 0.8815736773 | I18: 0.8627145926 | J18: 0.8435154318 | K18: 0.8243805109 | L18: 0.8049863463 | M18: 0.7857119749 | N18: 0.7668250533 | O18: 0.7484863748 | P18: 0.7308415419 | Q18: 0.7140234298 | R18: 0.698137895 | S18: 0.6832192566 | T18: 0.669286236 | U18: 0.6563595669 | V18: 0.6444622683 | W18: 0.6335777738 | X18: 0.6235314404 | Y18: 0.6141290175 | Z18: 0.605197674 | AA18: 0.5965831227 | AB18: 0.5881470609 | AC18: 0.5797648906 | AD18: 0.5713236805 | AE18: 0.5627203419 | AF18: 0.5538599897 | AG18: 0.5446811756 | AH18: 0.5352298214 | AI18: 0.5255704323 | AJ18: 0.5157591735 | AK18: 0.5058448653 | AL18: 0.4958698617 | AM18: 0.4858708258 | AN18: 0.4758794132 | AO18: 0.4659228761 | AP18: 0.4560245949 | AQ18: 0.4462045489 | AR18: 0.4364797295 | AS18: 0.4268645066 | AT18: 0.4173709501 | AU18: 0.4080091144 | AV18: 0.398787289 | AW18: 0.3897122189 | AX18: 0.3807893 | AY18: 0.3720227498 | AZ18: 0.3634157593
B19: USD | C19: 0.9546001705 | D19: 0.9236365304 | E19: 0.8960154798 | F19: 0.8688237644 | G19: 0.8417268254 | H19: 0.8147283906 | I19: 0.7882664008 | J19: 0.7622684588 | K19: 0.7367012421 | L19: 0.7117108697 | M19: 0.6872489742 | N19: 0.6634029622 | O19: 0.6402986102 | P19: 0.6180476873 | Q19: 0.5967501661 | R19: 0.5764748676 | S19: 0.5572012949 | T19: 0.538891458 | U19: 0.5215119277 | V19: 0.5050334931 | W19: 0.4894296013 | X19: 0.4746725484 | Y19: 0.460737444 | Z19: 0.447603265 | AA19: 0.4352526202 | AB19: 0.423671555 | AC19: 0.4128493933 | AD19: 0.4027786129 | AE19: 0.3934547513 | AF19: 0.3848763416 | AG19: 0.3770253575 | AH19: 0.3698123679 | AI19: 0.3631407899 | AJ19: 0.356925776 | AK19: 0.3510927541 | AL19: 0.3455761388 | AM19: 0.3403181918 | AN19: 0.3352680145 | AO19: 0.3303806569 | AP19: 0.3256163282 | AQ19: 0.320939697 | AR19: 0.3163192703 | AS19: 0.3117268416 | AT19: 0.3071369989 | AU19: 0.3025266858 | AV19: 0.297874809 | AW19: 0.2931618853 | AX19: 0.2883697236 | AY19: 0.2834811371 | AZ19: 0.2784796814
B20: GBP | C20: 0.9548681566 | D20: 0.9243158636 | E20: 0.8975737366 | F20: 0.8724616078 | G20: 0.8481634104 | H20: 0.8239655406 | I20: 0.7994816116 | J20: 0.7747223085 | K20: 0.7497508803 | L20: 0.7246656911 | M20: 0.6998632706 | N20: 0.6755668575 | O20: 0.6519187605 | P20: 0.6290429462 | Q20: 0.607047774 | R20: 0.5860030752 | S20: 0.5658717054 | T20: 0.5465958485 | U20: 0.5281231662 | V20: 0.5104061916 | W20: 0.4934090794 | X20: 0.4771274271 | Y20: 0.461563603 | Z20: 0.4467193536 | AA20: 0.4325960945 | AB20: 0.419195173 | AC20: 0.4065181083 | AD20: 0.3945668123 | AE20: 0.3833437936 | AF20: 0.3728523497 | AG20: 0.363079547 | AH20: 0.3539484789 | AI20: 0.345375713 | AJ20: 0.3372880459 | AK20: 0.3296212196 | AL20: 0.3223187912 | AM20: 0.3153311394 | AN20: 0.3086145887 | AO20: 0.3021306388 | AP20: 0.2958452859 | AQ20: 0.2897284234 | AR20: 0.2837533137 | AS20: 0.2778961221 | AT20: 0.2721355038 | AU20: 0.2664522387 | AV20: 0.2608289073 | AW20: 0.255249603 | AX20: 0.2496996749 | AY20: 0.2441654987 | AZ20: 0.2386342707

Sheet qx_m_w
A1: 5 | B1: Sterblichkeiten: Verwendete Tafeln getrennt nach Geschlecht
B4: Die Sterblichkeiten orientieren sich am Mittelwert über die fünf letzten Periodentafeln des Bundesamtes für Statistik (BfS), jeweils getrennt nach Geschlecht.
B5: Die Sterblichkeiten für den SST 2024 werden Ende Januar 2024 veröffentlicht.
B6: Quelle:
B7: https://www.bfs.admin.ch/asset/de/su-d-01.04.02.02.04
B8: https://www.bfs.admin.ch/asset/de/su-d-01.04.02.02.05
B9: Bemerkungen
B10: Tafel endet bei Alter 99, ab Alter 100 auf 1 gesetzt.
B11: Annahme: jeder Geburtsjahrgang hat dieselbe Sterblichkeit.
B12: Ein im Jahre 2030 achtzigjährige(r) Mann (Frau) (Geburtsjahr 1950) hat also dieselbe Sterblichkeit wie ein(e) achtizgjährige(r) im Jahre 2040 (Geburtsjahr 1960).
C16: Sterbetafel | D16: Sterbetafel
B17: Alter | C17: Männer | D17: Frauen
B18: 0 | C18: 0.003710254009 | D18: 0.003157580726
B19: 1 | C19: 0.0002058300061 | D19: 0.0001950061702
B20: 2 | C20: 0.0001278139893 | D20: 0.0001168894433
B21: 3 | C21: 0.0001143859017 | D21: 0.0001013881745
B22: 4 | C22: 9.830352359e-05 | D22: 8.610285751e-05
B23: 5 | C23: 8.258695929e-05 | D23: 7.246805394e-05
B24: 6 | C24: 6.935230344e-05 | D24: 6.169226392e-05
B25: 7 | C25: 5.949854928e-05 | D25: 5.413711935e-05
B26: 8 | C26: 5.313442311e-05 | D26: 4.962925672e-05
B27: 9 | C27: 5.012237653e-05 | D27: 4.784633377e-05
B28: 10 | C28: 5.050979569e-05 | D28: 4.855697455e-05
B29: 11 | C29: 5.49227038e-05 | D29: 5.178991799e-05
B30: 12 | C30: 6.522397723e-05 | D30: 5.815744276e-05
B31: 13 | C31: 8.534734243e-05 | D31: 6.93298626e-05
B32: 14 | C32: 0.0001196174297 | D32: 8.679270358e-05
B33: 15 | C33: 0.000170481603 | D33: 0.0001095943062
B34: 16 | C34: 0.0002327768124 | D34: 0.0001317538852
B35: 17 | C35: 0.0002989974217 | D35: 0.0001488132217
B36: 18 | C36: 0.0003613079568 | D36: 0.0001595485828
B37: 19 | C37: 0.0004107203966 | D37: 0.0001646812864
B38: 20 | C38: 0.000439384853 | D38: 0.0001657008448
B39: 21 | C39: 0.0004487365142 | D39: 0.0001643311535
B40: 22 | C40: 0.0004457128415 | D40: 0.0001623257636
B41: 23 | C41: 0.0004381758525 | D41: 0.0001612233404
B42: 24 | C42: 0.0004320469892 | D42: 0.0001620800888
B43: 25 | C43: 0.0004281559891 | D43: 0.0001648678561
B44: 26 | C44: 0.0004263810379 | D44: 0.0001694528706
B45: 27 | C45: 0.0004267897271 | D45: 0.0001758271159
B46: 28 | C46: 0.000429570464 | D46: 0.0001840543402
B47: 29 | C47: 0.0004349886483 | D47: 0.000194226333
B48: 30 | C48: 0.0004433607202 | D48: 0.0002064258091
B49: 31 | C49: 0.0004550417421 | D49: 0.0002206943811
B50: 32 | C50: 0.0004704240873 | D50: 0.0002370065393
B51: 33 | C51: 0.0004899466519 | D51: 0.0002552537365
B52: 34 | C52: 0.000514061058 | D52: 0.0002753229742
B53: 35 | C53: 0.0005430926246 | D53: 0.0002973954005
B54: 36 | C54: 0.0005774094697 | D54: 0.0003218078699
B55: 37 | C55: 0.0006174709469 | D55: 0.0003489784087
B56: 38 | C56: 0.0006638218417 | D56: 0.0003793950681
B57: 39 | C57: 0.00071708683 | D57: 0.0004136054553
B58: 40 | C58: 0.0007779643667 | D58: 0.0004522078675
B59: 41 | C59: 0.0008472193648 | D59: 0.0004958460536
B60: 42 | C60: 0.0009256742717 | D60: 0.0005452116444
B61: 43 | C61: 0.001014198514 | D61: 0.0006010616284
B62: 44 | C62: 0.00111376115 | D62: 0.0006642213229
B63: 45 | C63: 0.001225664347 | D63: 0.000735501701
B64: 46 | C64: 0.00135144096 | D64: 0.0008158034717
B65: 47 | C65: 0.00149281401 | D65: 0.0009061311203
B66: 48 | C66: 0.001651707768 | D66: 0.00100755542
B67: 49 | C67: 0.001830257638 | D67: 0.00112115901
B68: 50 | C68: 0.002030818593 | D68: 0.001247963519
B69: 51 | C69: 0.002255972236 | D69: 0.001388839955
B70: 52 | C70: 0.002508532974 | D70: 0.001544409198
B71: 53 | C71: 0.002791554556 | D71: 0.001714946661
B72: 54 | C72: 0.003108277513 | D72: 0.001900573919
B73: 55 | C73: 0.003461905637 | D73: 0.002102254367
B74: 56 | C74: 0.003855684045 | D74: 0.002321446061
B75: 57 | C75: 0.004292886794 | D75: 0.002559933387
B76: 58 | C76: 0.004776733765 | D76: 0.002819856586
B77: 59 | C77: 0.005310286767 | D77: 0.003103739322
B78: 60 | C78: 0.005896323936 | D78: 0.003414518219
B79: 61 | C79: 0.006537192772 | D79: 0.00375557972
B80: 62 | C80: 0.007234643947 | D80: 0.004130811484
B81: 63 | C81: 0.00798965029 | D81: 0.004544678072
B82: 64 | C82: 0.008803474858 | D82: 0.005002326143
B83: 65 | C83: 0.009682248062 | D83: 0.005509735209
B84: 66 | C84: 0.01063498704 | D84: 0.006073950229
B85: 67 | C85: 0.01167293278 | D85: 0.00670329224
B86: 68 | C86: 0.01280999983 | D86: 0.007407596862
B87: 69 | C87: 0.01406333352 | D87: 0.008198505024
B88: 70 | C88: 0.01545401013 | D88: 0.009089819992
B89: 71 | C89: 0.01700792707 | D89: 0.01009794917
B90: 72 | C90: 0.01875694485 | D90: 0.01124245513
B91: 73 | C91: 0.02074036403 | D91: 0.01254674843
B92: 74 | C92: 0.0230042326 | D92: 0.01403894251
B93: 75 | C93: 0.02559362539 | D93: 0.01575288043
B94: 76 | C94: 0.02855837389 | D94: 0.01772954582
B95: 77 | C95: 0.03195627271 | D95: 0.02001877686
B96: 78 | C96: 0.03585432476 | D96: 0.02268140715
B97: 79 | C97: 0.04033018256 | D97: 0.02579198692
B98: 80 | C98: 0.04547382023 | D98: 0.02944225948
B99: 81 | C99: 0.05138947995 | D99: 0.03374562613
B100: 82 | C100: 0.05819794857 | D100: 0.0388429127
B101: 83 | C101: 0.06603923687 | D101: 0.04490986035
B102: 84 | C102: 0.075068469 | D102: 0.05215121983
B103: 85 | C103: 0.08542952079 | D103: 0.06074561909
B104: 86 | C104: 0.09726235291 | D104: 0.07085932048
B105: 87 | C105: 0.1107025499 | D105: 0.08264439924
B106: 88 | C106: 0.1258733119 | D106: 0.09622017464
B107: 89 | C107: 0.1428754771 | D107: 0.1116493358
B108: 90 | C108: 0.1617757261 | D108: 0.1289092853
B109: 91 | C109: 0.1825934216 | D109: 0.1478603573
B110: 92 | C110: 0.2052869127 | D110: 0.1682140191
B111: 93 | C111: 0.2297405746 | D111: 0.1895057865
B112: 94 | C112: 0.2557457585 | D112: 0.2111941059
B113: 95 | C113: 0.2829518275 | D113: 0.2330981299
B114: 96 | C114: 0.3108492267 | D114: 0.2552243221
B115: 97 | C115: 0.3387610423 | D115: 0.2776837178
B116: 98 | C116: 0.3658556705 | D116: 0.3007009165
B117: 99 | C117: 0.3911987694 | D117: 0.3246265252
B118: 100 | C118: 1 | D118: 1
B119: 101 | C119: 1 | D119: 1
B120: 102 | C120: 1 | D120: 1
B121: 103 | C121: 1 | D121: 1
B122: 104 | C122: 1 | D122: 1
B123: 105 | C123: 1 | D123: 1
B124: 106 | C124: 1 | D124: 1
B125: 107 | C125: 1 | D125: 1
B126: 108 | C126: 1 | D126: 1
B127: 109 | C127: 1 | D127: 1
B128: 110 | C128: 1 | D128: 1

Sheet sx_m_w
A1: 6 | B1: Stornoprofile getrennt nach Geschlecht
B4: Stornoprofile Männer | H4: Stornoprofile Frauen
C5: Produktegruppe | H5: Produktegruppe
C6: Stationäre Produkte: Halbprivat, Privat, Flex | D6: Übrige Stationäre Produkte: Allgemein, Spitaltaggeld usw. | E6: Ambulante Produkte | F6: Langzeitpflege | G6: Einzeltagegeld | H6: Stationäre Produkte: Halbprivat, Privat, Flex | I6: Übrige Stationäre Produkte: Allgemein, Spitaltaggeld usw. | J6: Ambulante Produkte | K6: Langzeitpflege | L6: Einzeltagegeld
B7: Alter | C7: 1 | D7: 2 | E7: 3 | F7: 4 | G7: 5 | H7: 1 | I7: 2 | J7: 3 | K7: 4 | L7: 5
B8: 0 | C8: =C9 -> 0.06480385915 | D8: 0.1121176768 | E8: 0.06232350896 | F8: 0.2647092692 | G8: 0.1298006096 | H8: 0.06189465856 | I8: 0.10991843 | J8: 0.06119281258 | K8: 0.3793467399 | L8: 0.1112754111
B9: 1 | C9: 0.06480385915 | D9: 0.1121176768 | E9: 0.06232350896 | F9: 0.2647092692 | G9: =G10 -> 0.1298006096 | H9: 0.06189465856 | I9: 0.10991843 | J9: 0.06119281258 | K9: 0.3793467399 | L9: =L10 -> 0.1112754111
B10: 2 | C10: 0.07416805164 | D10: 0.100732258 | E10: 0.06215296042 | F10: 0.1912213551 | G10: 0.1298006096 | H10: 0.07249149327 | I10: 0.09964541679 | J10: 0.06233372694 | K10: 0.2053370894 | L10: 0.1112754111
B11: 3 | C11: 0.08201523897 | D11: 0.09651909893 | E11: 0.06599403006 | F11: 0.1603454644 | G11: 0.1298006096 | H11: 0.08180925968 | I11: 0.09654828478 | J11: 0.0667319934 | K11: 0.1345697349 | L11: 0.1112754111
B12: 4 | C12: 0.08692378067 | D12: 0.09466386325 | E12: 0.06981150336 | F12: 0.151497443 | G12: 0.1298006096 | H12: 0.08796952561 | I12: 0.09553455089 | J12: 0.0705939939 | K12: 0.1204071178 | L12: 0.1112754111
B13: 5 | C13: 0.08852601395 | D13: 0.0924077771 | E13: 0.07144137547 | F13: 0.1510836669 | G13: 0.1298006096 | H13: 0.09038870554 | I13: 0.09373190041 | J13: 0.07196674436 | K13: 0.1311117947 | L13: 0.1112754111
B14: 6 | C14: 0.08719137099 | D14: 0.08853954175 | E14: 0.07012263581 | F14: 0.1509855168 | G14: 0.1298006096 | H14: 0.08939456872 | I14: 0.08993207685 | J14: 0.07026440171 | K14: 0.1467755333 | L14: 0.1112754111
B15: 7 | C15: 0.08374956745 | D15: 0.08294532538 | E15: 0.06608201881 | F15: 0.1472054939 | G15: 0.1298006096 | H15: 0.08589102611 | I15: 0.08409900425 | J15: 0.06584947609 | K15: 0.1565614885 | L15: 0.1112754111
B16: 8 | C16: 0.07925386217 | D16: 0.07621683407 | E16: 0.06017172066 | F16: 0.1386749774 | G16: 0.1298006096 | H16: 0.08107119623 | I16: 0.07694114169 | J16: 0.0596687481 | K16: 0.1562594614 | L16: 0.1112754111
B17: 9 | C17: 0.07478438806 | D17: 0.06931746186 | E17: 0.05356008212 | F17: 0.1262236242 | G17: 0.1298006096 | H17: 0.07617875004 | I17: 0.06954807025 | J17: 0.0529438911 | K17: 0.146154238 | L17: 0.1112754111
B18: 10 | C18: 0.07129155418 | D18: 0.06330651994 | E18: 0.0474752374 | F18: 0.1117104104 | G18: 0.1298006096 | H18: 0.07231753461 | I18: 0.06309131214 | J18: 0.04691679867 | K18: 0.1292070101 | L18: 0.1112754111
B19: 11 | C19: 0.06947951913 | D19: 0.05912154501 | E19: 0.04300172914 | F19: 0.09731631459 | G19: 0.1298006096 | H19: 0.07030947579 | I19: 0.05858938227 | J19: 0.04264961706 | K19: 0.1095498773 | L19: 0.1112754111
B20: 12 | C20: 0.0697297355 | D20: 0.05741868673 | E20: 0.04093008937 | F20: 0.08499864285 | G20: 0.1298006096 | H20: 0.07060075974 | I20: 0.05673707203 | J20: 0.04087948281 | K20: 0.09129343015 | L20: 0.1112754111
B21: 13 | C21: 0.07206456559 | D21: 0.05847117435 | E21: 0.04165938659 | F21: 0.07610699589 | G21: 0.1298006096 | H21: 0.07321629348 | I21: 0.05779896551 | J21: 0.04192796541 | K21: 0.07764741471 | L21: 0.1112754111
B22: 14 | C22: 0.07615096839 | D22: 0.06212586238 | E22: 0.04515273892 | F22: 0.07116087781 | G22: 0.1298006096 | H22: 0.07776244424 | I22: 0.06156718785 | J22: 0.04566521502 | K22: 0.07035447822 | L22: 0.1112754111
B23: 15 | C23: 0.08134425767 | D23: 0.06781785552 | E23: 0.05094579325 | F23: 0.06978894679 | G23: 0.1298006096 | H23: 0.0834780578 | I23: 0.06738338613 | J23: 0.05152881533 | K23: 0.06943699621 | L23: 0.1112754111
B24: 16 | C24: 0.0867719313 | D24: 0.07464321259 | E24: 0.05820817051 | F24: 0.07082990764 | G24: 0.1298006096 | H24: 0.08933375574 | I24: 0.07422494238 | J24: 0.05859734145 | K24: 0.07325698087 | L24: 0.1112754111
B25: 17 | C25: 0.09145757186 | D25: 0.0814897297 | E25: 0.06585787697 | F25: 0.07259504618 | G25: 0.1273807085 | H25: 0.09417951161 | I25: 0.08085541899 | J25: 0.06571862292 | K25: 0.07888907061 | L25: 0.1539028468
B26: 18 | C26: 0.0944848183 | D26: 0.08722580247 | E26: 0.07272868162 | F26: 0.07329240549 | G26: 0.132127892 | H26: 0.09694050601 | I26: 0.08603923648 | J26: 0.07169271176 | K26: 0.08280660099 | L26: 0.1910353769
B27: 19 | C27: 0.09520140896 | D27: 0.09094736741 | E27: 0.07779045959 | F27: 0.07161260396 | G27: 0.1410693276 | H27: 0.09686126058 | I27: 0.08882058346 | J27: 0.07550955568 | K27: 0.08188075688 | L27: 0.2222267376
B28: 20 | C28: 0.09346329567 | D28: 0.09228292247 | E28: 0.08042250163 | F28: 0.0674762953 | G28: 0.1518621097 | H28: 0.09379805094 | I28: 0.08886655904 | J28: 0.07664137629 | K28: 0.07469280589 | L28: 0.2472848843
B29: 21 | C29: 0.08991882916 | D29: 0.09175662664 | E29: 0.08073978971 | F29: 0.06294327024 | G29: 0.16271886 | H29: 0.08855959856 | I29: 0.08687454745 | J29: 0.07538975241 | K29: 0.06315941315 | L29: 0.2662343972
B30: 22 | C30: 0.08633301558 | D30: 0.09120947877 | E30: 0.07997223858 | F30: 0.06328320025 | G30: 0.1723372791 | H30: 0.08329604145 | I30: 0.08504382504 | J30: 0.07328740852 | K30: 0.05447103724 | L30: 0.2792810855
B31: 23 | C31: 0.0859518443 | D31: 0.09427857545 | E31: 0.08089690347 | F31: 0.07820802297 | G31: 0.1798336509 | H31: 0.08193618392 | I31: 0.08761139954 | J31: 0.07355470824 | K31: 0.06334340755 | L31: 0.2867787907
B32: 24 | C32: 0.09390668688 | D32: 0.106934448 | E32: 0.08832315381 | F32: 0.1232659696 | G32: 0.1846803 | H32: 0.09067302516 | I32: 0.1014520817 | J32: 0.08161085286 | K32: 0.1145820828 | L32: 0.2891983893
B33: 25 | C33: 0.1176587672 | D33: 0.1380764788 | E33: 0.1096308131 | F33: 0.221397234 | G33: 0.1866470002 | H33: 0.1184975667 | I33: 0.1367427892 | J33: 0.1056397851 | K33: 0.2459600909 | L33: 0.2870989944
B34: 26 | C34: 0.1086411884 | D34: 0.1241330088 | E34: 0.1021763175 | F34: 0.1147906164 | G34: 0.1857463367 | H34: 0.0991987441 | I34: 0.1156664175 | J34: 0.09090723558 | K34: 0.09923724924 | L34: 0.2811013561
B35: 27 | C35: 0.1051142028 | D35: 0.1203015632 | E35: 0.09886873364 | F35: 0.1108091937 | G35: 0.1821830199 | H35: 0.09580796795 | I35: 0.1117908655 | J35: 0.08773690733 | K35: 0.09606230833 | L35: 0.2718634614
B36: 28 | C36: 0.101655631 | D36: 0.1165414477 | E36: 0.09562341372 | F36: 0.1069148448 | G36: 0.1763071518 | H36: 0.09248877732 | I36: 0.1079937033 | J36: 0.08463143252 | K36: 0.09295563963 | L36: 0.2600583329
B37: 29 | C37: 0.09826547308 | D37: 0.1128526625 | E37: 0.09244035775 | F37: 0.1031075697 | G37: 0.1685714448 | H37: 0.08924117218 | I37: 0.1042749311 | J37: 0.08159081116 | K37: 0.08991724315 | L37: 0.2463540271
B38: 30 | C38: 0.09494372894 | D38: 0.1092352075 | E38: 0.08931956571 | F38: 0.09938736837 | G38: 0.1594923928 | H38: 0.08606515256 | I38: 0.1006345487 | J38: 0.07861504326 | K38: 0.08694711887 | L38: 0.2313958307
B39: 31 | C39: 0.09169039863 | D39: 0.1056890828 | E39: 0.08626103761 | F39: 0.0957542409 | G39: 0.1496153949 | H39: 0.08296071844 | I39: 0.09707255621 | J39: 0.0757041288 | K39: 0.08404526681 | L39: 0.2157906572
B40: 32 | C40: 0.08850548214 | D40: 0.1022142882 | E40: 0.08326477345 | F40: 0.09220818725 | G40: 0.1394838312 | H40: 0.07992786984 | I40: 0.09358895361 | J40: 0.07285806778 | K40: 0.08121168695 | L40: 0.2000936418
B41: 33 | C41: 0.08538897947 | D41: 0.09881082384 | E41: 0.08033077323 | F41: 0.08874920742 | G41: 0.1296120913 | H41: 0.07696660673 | I41: 0.09018374088 | J41: 0.07007686022 | K41: 0.07844637931 | L41: 0.1847969357
B42: 34 | C42: 0.08234089062 | D42: 0.09547868971 | E42: 0.07745903695 | F42: 0.0853773014 | G42: 0.120462555 | H42: 0.07407692914 | I42: 0.08685691804 | J42: 0.0673605061 | K42: 0.07574934388 | L42: 0.1703206993
B43: 35 | C43: 0.0793612156 | D43: 0.09221788578 | E43: 0.07464956461 | F43: 0.0820924692 | G43: 0.112426525 | H43: 0.07125883705 | I43: 0.08360848508 | J43: 0.06470900544 | K43: 0.07312058066 | L43: 0.1570062947
B44: 36 | C44: 0.0764499544 | D44: 0.08902841208 | E44: 0.0719023562 | F44: 0.07889471082 | G44: 0.1058091133 | H44: 0.06851233048 | I44: 0.080438442 | J44: 0.06212235822 | K44: 0.07056008965 | L44: 0.145111677
B45: 37 | C45: 0.07360710702 | D45: 0.08591026858 | E45: 0.06921741173 | F45: 0.07578402626 | G45: 0.100818078 | H45: 0.0658374094 | I45: 0.07734678881 | J45: 0.05960056444 | K45: 0.06806787086 | L45: 0.1348089848
B46: 38 | C46: 0.07083267347 | D46: 0.0828634553 | E46: 0.06659473121 | F46: 0.07276041551 | G46: 0.09755661445 | H46: 0.06323407384 | I46: 0.07433352549 | J46: 0.05714362412 | K46: 0.06564392427 | L46: 0.1261843303
B47: 39 | C47: 0.06812665374 | D47: 0.07988797224 | E47: 0.06403431462 | F47: 0.06982387857 | G47: 0.09602009742 | H47: 0.06070232378 | I47: 0.07139865206 | J47: 0.05475153724 | K47: 0.0632882499 | L47: 0.1192397872
B48: 40 | C48: 0.06548904783 | D48: 0.07698381939 | E48: 0.06153616196 | F48: 0.06697441546 | G48: 0.09609677633 | H48: 0.05824215923 | I48: 0.06854216851 | J48: 0.05242430382 | K48: 0.06100084773 | L48: 0.1138975792
B49: 41 | C49: 0.06291985574 | D49: 0.07415099675 | E49: 0.05910027325 | F49: 0.06421202616 | G49: 0.09757242266 | H49: 0.05585358019 | I49: 0.06576407484 | J49: 0.05016192384 | K49: 0.05878171778 | L49: 0.1100064663
B50: 42 | C50: 0.06041907748 | D50: 0.07138950433 | E50: 0.05672664848 | F50: 0.06153671068 | G50: 0.1001389298 | H50: 0.05353658666 | I50: 0.06306437105 | J50: 0.04796439731 | K50: 0.05663086004 | L50: 0.1073503311
B51: 43 | C51: 0.05798671304 | D51: 0.06869934213 | E51: 0.05441528764 | F51: 0.05894846901 | G51: 0.1034068651 | H51: 0.05129117863 | I51: 0.06044305714 | J51: 0.04583172422 | K51: 0.05454827451 | L51: 0.1056589637
B52: 44 | C52: 0.05562276243 | D52: 0.06608051013 | E52: 0.05216619074 | F52: 0.05644730117 | G52: 0.1069219747 | H52: 0.04911735611 | I52: 0.05790013312 | J52: 0.04376390459 | K52: 0.05253396119 | L52: 0.1046210458
B53: 45 | C53: 0.05332722564 | D53: 0.06353300835 | E53: 0.04997935778 | F53: 0.05403320713 | G53: 0.1101856405 | H53: 0.0470151191 | I53: 0.05543559897 | J53: 0.0417609384 | K53: 0.05058792008 | L53: 0.1038993337
B54: 46 | C54: 0.05110010267 | D54: 0.06105683679 | E54: 0.04785478876 | F54: 0.05170618692 | G54: 0.1126792892 | H54: 0.04498446759 | I54: 0.05304945471 | J54: 0.03982282566 | K54: 0.04871015118 | L54: 0.1031480408
B55: 47 | C55: 0.04894139352 | D55: 0.05865199544 | E55: 0.04579248368 | F55: 0.04946624052 | G55: 0.1138927545 | H55: 0.04302540159 | I55: 0.05074170033 | J55: 0.03794956637 | K55: 0.0469006545 | L55: 0.1020324189
B56: 48 | C56: 0.0468510982 | D56: 0.0563184843 | E56: 0.04379244253 | F56: 0.04731336794 | G56: 0.1133565911 | H56: 0.0411379211 | I56: 0.04851233584 | J56: 0.03614116053 | K56: 0.04515943002 | L56: 0.1002505385
B57: 49 | C57: 0.0448292167 | D57: 0.05405630338 | E57: 0.04185466533 | F57: 0.04524756918 | G57: 0.110678341 | H57: 0.03932202612 | I57: 0.04636136122 | J57: 0.03439760813 | K57: 0.04348647776 | L57: 0.09755726828
B58: 50 | C58: 0.04287574903 | D58: 0.05186545268 | E58: 0.03997915206 | F58: 0.04326884423 | G58: 0.1055827526 | H58: 0.03757771665 | I58: 0.04428877649 | J58: 0.03271890918 | K58: 0.04188179771 | L58: 0.09379045374
B59: 51 | C59: 0.04099069517 | D59: 0.04974593218 | E59: 0.03816590273 | F59: 0.0413771931 | G59: 0.09795595236 | H59: 0.03590499268 | I59: 0.04229458163 | J59: 0.03110506369 | K59: 0.04034538986 | L59: 0.08889929488
B60: 52 | C60: 0.03917405514 | D60: 0.04769774191 | E60: 0.03641491734 | F60: 0.03957261578 | G60: 0.08789356779 | H60: 0.03430385422 | I60: 0.04037877666 | J60: 0.02955607164 | K60: 0.03887725423 | L60: 0.08297492288
B61: 53 | C61: 0.03742582894 | D61: 0.04572088184 | E61: 0.03472619589 | F61: 0.03785511229 | G61: 0.07575280409 | H61: 0.03277430127 | I61: 0.03854136157 | J61: 0.02807193303 | K61: 0.03747739081 | L61: 0.07628317592
B62: 54 | C62: 0.03574601655 | D62: 0.04381535199 | E62: 0.03309973838 | F62: 0.03622468261 | G62: 0.06220847241 | H62: 0.03131633382 | I62: 0.03678233637 | J62: 0.02665264788 | K62: 0.03614579961 | L62: 0.06929957406
B63: 55 | C63: 0.03413461799 | D63: 0.04198115236 | E63: 0.0315355448 | F63: 0.03468132674 | G63: 0.04831297075 | H63: 0.02992995188 | I63: 0.03510170104 | J63: 0.02529821617 | K63: 0.03488248061 | L63: 0.06274649325
B64: 56 | C64: 0.03259163326 | D64: 0.04021828294 | E64: 0.03003361517 | F64: 0.03322504469 | G64: 0.03556021719 | H64: 0.02861515545 | I64: 0.0334994556 | J64: 0.02400863791 | K64: 0.03368743382 | L64: 0.05763253832
B65: 57 | C65: 0.03111706234 | D65: 0.03852674373 | E65: 0.02859394947 | F65: 0.03185583646 | G65: 0.02595353555 | H65: 0.02737194453 | I65: 0.03197560003 | J65: 0.0227839131 | K65: 0.03256065925 | L65: 0.05529411517
B66: 58 | C66: 0.02971090525 | D66: 0.03690653474 | E66: 0.02721654771 | F66: 0.03057370205 | G66: 0.02207749339 | H66: 0.02620031911 | I66: 0.03053013435 | J66: 0.02162404174 | K66: 0.03150215688 | L66: 0.05743920194
B67: 59 | C67: 0.02837316198 | D67: 0.03535765596 | E67: 0.02590140989 | F67: 0.02937864145 | G67: 0.02717369244 | H67: 0.0251002792 | I67: 0.02916305855 | J67: 0.02052902383 | K67: 0.03051192673 | L67: 0.06619331934
B68: 60 | C68: 0.02710383254 | D68: 0.0338801074 | E68: 0.024648536 | F68: 0.02827065468 | G68: 0.04522051141 | H68: 0.0240718248 | I68: 0.02787437264 | J68: 0.01949885936 | K68: 0.02958996879 | L68: 0.08414769996
B69: 61 | C69: 0.02590291692 | D69: 0.03247388905 | E69: 0.02345792606 | F69: 0.02724974171 | G69: 0.08101680112 | H69: 0.02311495591 | I69: 0.0266640766 | J69: 0.01853354834 | K69: 0.02873628306 | L69: 0.1144096568
B70: 62 | C70: 0.02477041512 | D70: 0.03113900092 | E70: 0.02232958006 | F70: 0.02631590257 | G70: 0.1402695321 | H70: 0.02222967252 | I70: 0.02553217045 | J70: 0.01763309078 | K70: 0.02795086954 | L70: 0.1606551507
B71: 63 | C71: 0.02370632714 | D71: 0.029875443 | E71: 0.02126349799 | F71: 0.02546913724 | G71: 0.2296853947 | H71: 0.02141597465 | I71: 0.02447865418 | J71: 0.01679748665 | K71: 0.02723372823 | L71: 0.227183557
B72: 64 | C72: 0.02271065299 | D72: 0.02868321529 | E72: 0.02025967986 | F72: 0.02470944572 | G72: 0.3570663511 | H72: 0.02067386227 | I72: 0.02350352778 | J72: 0.01602673598 | K72: 0.02658485913 | L72: 0.3189746314
B73: 65 | C73: 0.02178339266 | D73: 0.0275623178 | E73: 0.01931812567 | F73: 0.02403682803 | G73: 0.7271874581 | H73: 0.02000333541 | I73: 0.02260679128 | J73: 0.01532083875 | K73: 0.02600426225 | L73: 0.4037258446
B74: 66 | C74: 0.02092454616 | D74: 0.02651275052 | E74: 0.01843883542 | F74: 0.02345128415 | G74: 0.7817499665 | H74: 0.01940439405 | I74: 0.02178844465 | J74: 0.01467979498 | K74: 0.02549193757 | L74: 0.5229806757
B75: 67 | C75: 0.02013411347 | D75: 0.02553451346 | E75: 0.0176218091 | F75: 0.02295281409 | G75: 0.8363124749 | H75: 0.0188770382 | I75: 0.0210484879 | J75: 0.01410360465 | K75: 0.02504788511 | L75: 0.6422355067
B76: 68 | C76: 0.01941209461 | D76: 0.02462760661 | E76: 0.01686704673 | F76: 0.02254141784 | G76: 0.8908749833 | H76: 0.01842126786 | I76: 0.02038692104 | J76: 0.01359226777 | K76: 0.02467210485 | L76: 0.7614903378
B77: 69 | C77: 0.01875848958 | D77: 0.02379202998 | E77: 0.01617454829 | F77: 0.02221709541 | G77: 0.9454374916 | H77: 0.01803708303 | I77: 0.01980374406 | J77: 0.01314578433 | K77: 0.02436459681 | L77: 0.8807451689
B78: 70 | C78: 0.01817329836 | D78: 0.02302778356 | E78: 0.01554431379 | F78: 0.0219798468 | G78: 1 | H78: 0.0177244837 | I78: 0.01929895696 | J78: 0.01276415435 | K78: 0.02412536098 | L78: 1
B79: 71 | C79: 0.01765652097 | D79: 0.02233486735 | E79: 0.01497634323 | F79: 0.02182967201 | G79: 1 | H79: 0.01748346988 | I79: 0.01887255974 | J79: 0.01244737781 | K79: 0.02395439736 | L79: 1
B80: 72 | C80: 0.01720815741 | D80: 0.02171328136 | E80: 0.01447063661 | F80: 0.02176657103 | G80: 1 | H80: 0.01731404157 | I80: 0.0185245524 | J80: 0.01219545472 | K80: 0.02385170595 | L80: 1
B81: 73 | C81: 0.01682820766 | D81: 0.02116302558 | E81: 0.01402719393 | F81: 0.02179054387 | G81: 1 | H81: 0.01721619877 | I81: 0.01825493495 | J81: 0.01200838508 | K81: 0.02381728676 | L81: 1
B82: 74 | C82: 0.01651667174 | D82: 0.02068410002 | E82: 0.01364601519 | F82: 0.02190159052 | G82: 1 | H82: 0.01718994147 | I82: 0.01806370738 | J82: 0.01188616889 | K82: 0.02385113977 | L82: 1
B83: 75 | C83: 0.01627354964 | D83: 0.02027650467 | E83: 0.01332710038 | F83: 0.02209971099 | G83: 1 | H83: 0.01723526968 | I83: 0.01795086968 | J83: 0.01182880615 | K83: 0.02395326499 | L83: 1
B84: 76 | C84: 0.01609884137 | D84: 0.01994023954 | E84: 0.01307044951 | F84: 0.02238490528 | G84: 1 | H84: 0.0173521834 | I84: 0.01791642188 | J84: 0.01183629685 | K84: 0.02412366243 | L84: 1
B85: 77 | C85: 0.01599254692 | D85: 0.01967530462 | E85: 0.01287606258 | F85: 0.02275717339 | G85: 1 | H85: 0.01754068262 | I85: 0.01796036395 | J85: 0.011908641 | K85: 0.02436233208 | L85: 1
B86: 78 | C86: 0.01595466629 | D86: 0.01948169991 | E86: 0.01274393959 | F86: 0.02321651531 | G86: 1 | H86: 0.01780076736 | I86: 0.0180826959 | J86: 0.0120458386 | K86: 0.02466927394 | L86: 1
B87: 79 | C87: 0.01598519948 | D87: 0.01935942542 | E87: 0.01267408054 | F87: 0.02376293105 | G87: 1 | H87: 0.0181324376 | I87: 0.01828341774 | J87: 0.01224788965 | K87: 0.025044488 | L87: 1
B88: 80 | C88: 0.0160841465 | D88: 0.01930848115 | E88: 0.01266648543 | F88: 0.02439642061 | G88: 1 | H88: 0.01853569334 | I88: 0.01856252945 | J88: 0.01251479414 | K88: 0.02548797428 | L88: 1
B89: 81 | C89: 0.01625150734 | D89: 0.01932886709 | E89: 0.01272115425 | F89: 0.02511698398 | G89: 1 | H89: 0.0190105346 | I89: 0.01892003105 | J89: 0.01284655209 | K89: 0.02599973278 | L89: 1
B90: 82 | C90: 0.01648728201 | D90: 0.01942058324 | E90: 0.01283808702 | F90: 0.02592462117 | G90: 1 | H90: 0.01955696136 | I90: 0.01935592253 | J90: 0.01324316348 | K90: 0.02657976348 | L90: 1
B91: 83 | C91: 0.01679147049 | D91: 0.01958362961 | E91: 0.01301728372 | F91: 0.02681933217 | G91: 1 | H91: 0.02017497363 | I91: 0.0198702039 | J91: 0.01370462832 | K91: 0.02722806639 | L91: 1
B92: 84 | C92: 0.01716407281 | D92: 0.01981800619 | E92: 0.01325874436 | F92: 0.027801117 | G92: 1 | H92: 0.02086457141 | I92: 0.02046287514 | J92: 0.01423094661 | K92: 0.02794464152 | L92: 1
B93: 85 | C93: 0.01760508894 | D93: 0.02012371298 | E93: 0.01356246894 | F93: 0.02886997564 | G93: 1 | H93: 0.02162575469 | I93: 0.02113393627 | J93: 0.01482211835 | K93: 0.02872948885 | L93: 1
B94: 86 | C94: 0.0181145189 | D94: 0.02050074999 | E94: 0.01392845745 | F94: 0.03002590809 | G94: 1 | H94: 0.02245852348 | I94: 0.02188338727 | J94: 0.01547814353 | K94: 0.0295826084 | L94: 1
B95: 87 | C95: 0.01869236268 | D95: 0.02094911722 | E95: 0.01435670991 | F95: 0.03126891437 | G95: 1 | H95: 0.02336287778 | I95: 0.02271122816 | J95: 0.01619902216 | K95: 0.03050400016 | L95: 1
B96: 88 | C96: 0.01933862028 | D96: 0.02146881465 | E96: 0.0148472263 | F96: 0.03259899446 | G96: 1 | H96: 0.02433881759 | I96: 0.02361745893 | J96: 0.01698475424 | K96: 0.03149366413 | L96: 1
B97: 89 | C97: 0.0200532917 | D97: 0.02205984231 | E97: 0.01540000664 | F97: 0.03401614836 | G97: 1 | H97: 0.0253863429 | I97: 0.02460207959 | J97: 0.01783533977 | K97: 0.03255160031 | L97: 1
B98: 90 | C98: 0.02083637695 | D98: 0.02272220017 | E98: 0.01601505091 | F98: 0.03552037609 | G98: 1 | H98: 0.02650545373 | I98: 0.02566509012 | J98: 0.01875077875 | K98: 0.0336778087 | L98: 1
B99: 91 | C99: 0.02168787603 | D99: 0.02345588826 | E99: 0.01669235912 | F99: 0.03711167763 | G99: 1 | H99: 0.02769615006 | I99: 0.02680649054 | J99: 0.01973107117 | K99: 0.0348722893 | L99: 1
B100: 92 | C100: 0.02260778892 | D100: 0.02426090655 | E100: 0.01743193126 | F100: 0.03879005299 | G100: 1 | H100: 0.02895843189 | I100: 0.02802628083 | J100: 0.02077621705 | K100: 0.03613504211 | L100: 1
B101: 93 | C101: 0.02359611564 | D101: 0.02513725506 | E101: 0.01823376735 | F101: 0.04055550216 | G101: 1 | H101: 0.03029229924 | I101: 0.02932446101 | J101: 0.02188621637 | K101: 0.03746606714 | L101: 1
B102: 94 | C102: 0.02465285618 | D102: 0.02608493379 | E102: 0.01909786738 | F102: 0.04240802515 | G102: 1 | H102: 0.03169775209 | I102: 0.03070103107 | J102: 0.02306106914 | K102: 0.03886536437 | L102: 1
B103: 95 | C103: 0.02577801055 | D103: 0.02710394273 | E103: 0.02002423134 | F103: 0.04434762196 | G103: 1 | H103: 0.03317479045 | I103: 0.03215599102 | J103: 0.02430077536 | K103: 0.04033293382 | L103: 1
B104: 96 | C104: 0.02697157874 | D104: 0.02819428188 | E104: 0.02101285924 | F104: 0.04637429258 | G104: 1 | H104: 0.03472341431 | I104: 0.03368934084 | J104: 0.02560533502 | K104: 0.04186877548 | L104: 1
B105: 97 | C105: 0.02823356075 | D105: 0.02935595125 | E105: 0.02206375108 | F105: 0.04848803703 | G105: 1 | H105: 0.03634362369 | I105: 0.03530108055 | J105: 0.02697474813 | K105: 0.04347288935 | L105: 1
B106: 98 | C106: 0.02956395658 | D106: 0.03058895083 | E106: 0.02317690686 | F106: 0.05068885528 | G106: 1 | H106: 0.03803541857 | I106: 0.03699121014 | J106: 0.0284090147 | K106: 0.04514527543 | L106: 1
B107: 99 | C107: 0.03096276624 | D107: 0.03189328063 | E107: 0.02435232658 | F107: 0.05297674736 | G107: 1 | H107: 0.03979879896 | I107: 0.03875972961 | J107: 0.02990813471 | K107: 0.04688593372 | L107: 1
B108: 100 | C108: 1 | D108: 1 | E108: 1 | F108: 1 | G108: 1 | H108: 1 | I108: 1 | J108: 1 | K108: 1 | L108: 1
B109: 101 | C109: 1 | D109: 1 | E109: 1 | F109: 1 | G109: 1 | H109: 1 | I109: 1 | J109: 1 | K109: 1 | L109: 1
B110: 102 | C110: 1 | D110: 1 | E110: 1 | F110: 1 | G110: 1 | H110: 1 | I110: 1 | J110: 1 | K110: 1 | L110: 1
B111: 103 | C111: 1 | D111: 1 | E111: 1 | F111: 1 | G111: 1 | H111: 1 | I111: 1 | J111: 1 | K111: 1 | L111: 1
B112: 104 | C112: 1 | D112: 1 | E112: 1 | F112: 1 | G112: 1 | H112: 1 | I112: 1 | J112: 1 | K112: 1 | L112: 1
B113: 105 | C113: 1 | D113: 1 | E113: 1 | F113: 1 | G113: 1 | H113: 1 | I113: 1 | J113: 1 | K113: 1 | L113: 1
B114: 106 | C114: 1 | D114: 1 | E114: 1 | F114: 1 | G114: 1 | H114: 1 | I114: 1 | J114: 1 | K114: 1 | L114: 1
B115: 107 | C115: 1 | D115: 1 | E115: 1 | F115: 1 | G115: 1 | H115: 1 | I115: 1 | J115: 1 | K115: 1 | L115: 1
B116: 108 | C116: 1 | D116: 1 | E116: 1 | F116: 1 | G116: 1 | H116: 1 | I116: 1 | J116: 1 | K116: 1 | L116: 1
B117: 109 | C117: 1 | D117: 1 | E117: 1 | F117: 1 | G117: 1 | H117: 1 | I117: 1 | J117: 1 | K117: 1 | L117: 1
B118: 110 | C118: 1 | D118: 1 | E118: 1 | F118: 1 | G118: 1 | H118: 1 | I118: 1 | J118: 1 | K118: 1 | L118: 1
B119: 111 | C119: 1 | D119: 1 | E119: 1 | F119: 1 | G119: 1 | H119: 1 | I119: 1 | J119: 1 | K119: 1 | L119: 1
B120: 112 | C120: 1 | D120: 1 | E120: 1 | F120: 1 | G120: 1 | H120: 1 | I120: 1 | J120: 1 | K120: 1 | L120: 1
B121: 113 | C121: 1 | D121: 1 | E121: 1 | F121: 1 | G121: 1 | H121: 1 | I121: 1 | J121: 1 | K121: 1 | L121: 1
B122: 114 | C122: 1 | D122: 1 | E122: 1 | F122: 1 | G122: 1 | H122: 1 | I122: 1 | J122: 1 | K122: 1 | L122: 1
B123: 115 | C123: 1 | D123: 1 | E123: 1 | F123: 1 | G123: 1 | H123: 1 | I123: 1 | J123: 1 | K123: 1 | L123: 1
B124: 116 | C124: 1 | D124: 1 | E124: 1 | F124: 1 | G124: 1 | H124: 1 | I124: 1 | J124: 1 | K124: 1 | L124: 1
B125: 117 | C125: 1 | D125: 1 | E125: 1 | F125: 1 | G125: 1 | H125: 1 | I125: 1 | J125: 1 | K125: 1 | L125: 1
B126: 118 | C126: 1 | D126: 1 | E126: 1 | F126: 1 | G126: 1 | H126: 1 | I126: 1 | J126: 1 | K126: 1 | L126: 1
B127: 119 | C127: 1 | D127: 1 | E127: 1 | F127: 1 | G127: 1 | H127: 1 | I127: 1 | J127: 1 | K127: 1 | L127: 1
B128: 120 | C128: 1 | D128: 1 | E128: 1 | F128: 1 | G128: 1 | H128: 1 | I128: 1 | J128: 1 | K128: 1 | L128: 1
B129: 121 | C129: 1 | D129: 1 | E129: 1 | F129: 1 | G129: 1 | H129: 1 | I129: 1 | J129: 1 | K129: 1 | L129: 1
B130: 122 | C130: 1 | D130: 1 | E130: 1 | F130: 1 | G130: 1 | H130: 1 | I130: 1 | J130: 1 | K130: 1 | L130: 1
B131: 123 | C131: 1 | D131: 1 | E131: 1 | F131: 1 | G131: 1 | H131: 1 | I131: 1 | J131: 1 | K131: 1 | L131: 1
B132: 124 | C132: 1 | D132: 1 | E132: 1 | F132: 1 | G132: 1 | H132: 1 | I132: 1 | J132: 1 | K132: 1 | L132: 1
B133: 125 | C133: 1 | D133: 1 | E133: 1 | F133: 1 | G133: 1 | H133: 1 | I133: 1 | J133: 1 | K133: 1 | L133: 1
B134: 126 | C134: 1 | D134: 1 | E134: 1 | F134: 1 | G134: 1 | H134: 1 | I134: 1 | J134: 1 | K134: 1 | L134: 1
B135: 127 | C135: 1 | D135: 1 | E135: 1 | F135: 1 | G135: 1 | H135: 1 | I135: 1 | J135: 1 | K135: 1 | L135: 1
B136: 128 | C136: 1 | D136: 1 | E136: 1 | F136: 1 | G136: 1 | H136: 1 | I136: 1 | J136: 1 | K136: 1 | L136: 1
B137: 129 | C137: 1 | D137: 1 | E137: 1 | F137: 1 | G137: 1 | H137: 1 | I137: 1 | J137: 1 | K137: 1 | L137: 1
B138: 130 | C138: 1 | D138: 1 | E138: 1 | F138: 1 | G138: 1 | H138: 1 | I138: 1 | J138: 1 | K138: 1 | L138: 1

Sheet Korrekturvektor_Inflation
A1: 7 | B1: Korrekturvektoren Inflation pro Produktegruppe
B4: Korrekturvektor Inflation (p.a.) | E4: Korrekturvektor Inflation (p.a.) | H4: Korrekturvektor Inflation (p.a.) | K4: Korrekturvektor Inflation (p.a.) | N4: Korrekturvektor Inflation (p.a.)
B5: Produktegruppe 1 | E5: Produktegruppe 2 | H5: Produktegruppe 3 | K5: Produktegruppe 4 | N5: Produktegruppe 5
B6: Stationäre Produkte: Halbprivat, Privat, Flex | E6: Übrige Stationäre Produkte: Allgemein, Spitaltaggeld usw. | H6: Ambulante Produkte | K6: Langzeitpflege | N6: Einzeltagegeld
B7: Jahr 2023 | C7: Jahr 2022 | D7: Jahr 2021 | E7: Jahr 2023 | F7: Jahr 2022 | G7: Jahr 2021 | H7: Jahr 2023 | I7: Jahr 2022 | J7: Jahr 2021 | K7: Jahr 2023 | L7: Jahr 2022 | M7: Jahr 2021 | N7: Jahr 2023 | O7: Jahr 2022 | P7: Jahr 2021
B8: 0 | C8: 0 | D8: 0 | E8: 0 | F8: 0 | G8: 0 | H8: 0.03 | I8: 0.03 | J8: 0.03 | K8: 0 | L8: 0 | M8: 0 | N8: 0 | O8: 0 | P8: 0

Sheet HE_Input_Produkte
A1: 8 | B1: Zuordnung der Produkte zu den Produktegruppen
B5: Stand
B7: Produktgruppen | C7: Produktegruppenschlüsselung
B8: Stationäre Produkte: Halbprivat | C8: 1
B9: Stationäre Produkte: Privat | C9: 2
B10: Stationäre Produkte: Flex | C10: 3
B11: Übrige Stationäre Produkte: Allgemein, Spitaltaggeld usw. | C11: 4
B12: Ambulante Produkte | C12: 5
B13: Langzeitpflege | C13: 6
B14: Einzeltagegeld | C14: 7
B17: Produktname gemäss EHP/FIRST | C17: Zuordnung des Produktes zum Produktegruppenschlüssel

Sheet HE_Inputparam_VWK
A1: 9 | B1: Input für Verwaltungskosten
B5: Schritt 1: Verwaltungsaufwendungen, auf die fünf Produktegruppen abgegrenzt | C5: 2021 | D5: 2022 | E5: 2023
B6: 315200100 Verwaltungsaufwendungen
B7: Verwaltungsaufwendungen, die nicht PG1 bis PG5 zuzuordnen sind
B8: Bereinigte Verwaltungsaufwendungen der PG1 bis PG5, vermindert um 5% | C8: =0.95*MAX((C6-C7),0) -> 0 | D8: =0.95*MAX((D6-D7),0) -> 0 | E8: =0.95*MAX((E6-E7),0) -> 0
B11: Schritt 2: Informationen zum Bestand - auf die fünf Produktegruppen abgegrenzt und gegliedert | C11: 2021 | D11: 2022 | E11: 2023
B12: Risikobestand total der fünf PG | C12: =SUM(C13:C17) -> 0 | D12: =SUM(D13:D17) -> 0 | E12: =SUM(E13:E17) -> 0
B13: Risikobestand PG1
B14: Risikobestand PG2
B15: Risikobestand PG3
B16: Risikobestand PG4
B17: Risikobestand PG5
B18: Anteil an Gesamt von PG1 | C18: =IFERROR(C13/C$12,0) -> 0 | D18: 0 | E18: 0
B19: Anteil an Gesamt von PG2 | C19: 0 | D19: 0 | E19: 0
B20: Anteil an Gesamt von PG3 | C20: 0 | D20: 0 | E20: 0
B21: Anteil an Gesamt von PG4 | C21: 0 | D21: 0 | E21: 0
B22: Anteil an Gesamt von PG5 | C22: 0 | D22: 0 | E22: 0
B24: Schritt 3: Informationen zu den Leistungen - auf die fünf Produktegruppen abgegrenzt und gegliedert | C24: 2021 | D24: 2022 | E24: 2023
B25: Leistungen total der fünf PG | C25: =SUM(C26:C30) -> 0 | D25: =SUM(D26:D30) -> 0 | E25: =SUM(E26:E30) -> 0
B26: Leistungen PG1
B27: Leistungen PG2
B28: Leistungen PG3
B29: Leistungen PG4
B30: Leistungen PG5
B31: Anteil an Gesamt von PG1 | C31: =IFERROR(C26/C$25,0) -> 0 | D31: 0 | E31: 0
B32: Anteil an Gesamt von PG2 | C32: 0 | D32: 0 | E32: 0
B33: Anteil an Gesamt von PG3 | C33: 0 | D33: 0 | E33: 0
B34: Anteil an Gesamt von PG4 | C34: 0 | D34: 0 | E34: 0
B35: Anteil an Gesamt von PG5 | C35: 0 | D35: 0 | E35: 0
B37: Den einzelnen PG zugeordnete bereinigte Verwaltungsaufwendungen - gewichtet nach Risikobestand (Schritt 4) | C37: 2021 | D37: 2022 | E37: 2023
B38: Bereinigte Verwaltungskosten PG1 | C38: =C$8*C18 -> 0 | D38: =D$8*D18 -> 0 | E38: 0
B39: Bereinigte Verwaltungskosten PG2 | C39: =C$8*C19 -> 0 | D39: 0 | E39: 0
B40: Bereinigte Verwaltungskosten PG3 | C40: 0 | D40: 0 | E40: 0
B41: Bereinigte Verwaltungskosten PG4 | C41: 0 | D41: 0 | E41: 0
B42: Bereinigte Verwaltungskosten PG5 | C42: 0 | D42: 0 | E42: 0
B44: Den einzelnen PG zugeordnete bereinigte Verwaltungsaufwendungen - gewichtet nach Leistungen (Schritt 4) | C44: 2021 | D44: 2022 | E44: 2023
B45: Bereinigte Verwaltungskosten PG1 | C45: =C$8*C31 -> 0 | D45: =D$8*D31 -> 0 | E45: 0
B46: Bereinigte Verwaltungskosten PG2 | C46: =C$8*C32 -> 0 | D46: 0 | E46: 0
B47: Bereinigte Verwaltungskosten PG3 | C47: 0 | D47: 0 | E47: 0
B48: Bereinigte Verwaltungskosten PG4 | C48: 0 | D48: 0 | E48: 0
B49: Bereinigte Verwaltungskosten PG5 | C49: 0 | D49: 0 | E49: 0
B51: Schritt 4: Best Estimate der bereinigten Verwaltungskosten nach Produktegruppe | C51: 2021 | D51: 2022 | E51: 2023
B52: Bereinigte Verwaltungskosten PG1 | C52: =AVERAGE(C38,C45) -> 0 | D52: =AVERAGE(D38,D45) -> 0 | E52: 0
B53: Bereinigte Verwaltungskosten PG2 | C53: =AVERAGE(C39,C46) -> 0 | D53: 0 | E53: 0
B54: Bereinigte Verwaltungskosten PG3 | C54: 0 | D54: 0 | E54: 0
B55: Bereinigte Verwaltungskosten PG4 | C55: 0 | D55: 0 | E55: 0
B56: Bereinigte Verwaltungskosten PG5 | C56: 0 | D56: 0 | E56: 0
B58: Schritt 5: Prämien je Produktegruppe | C58: 2021 | D58: 2022 | E58: 2023
B59: Prämienvolumen PG1
B60: Prämienvolumen PG2
B61: Prämienvolumen PG3
B62: Prämienvolumen PG4
B63: Prämienvolumen PG5
B65: Kostensätze je Produktegruppe | C65: 2021 | D65: 2022 | E65: 2023
B66: Produktegruppe 1 | C66: =IF(C59<>0, C52/C59, 0) -> 0 | D66: 0 | E66: 0
B67: Produktegruppe 2 | C67: 0 | D67: 0 | E67: 0
B68: Produktegruppe 3 | C68: 0 | D68: 0 | E68: 0
B69: Produktegruppe 4 | C69: 0 | D69: 0 | E69: 0
B70: Produktegruppe 5 | C70: 0 | D70: 0 | E70: 0
B72: Kostensatz pro Produktegruppe für die Projektion der LZV
B73: Produktegruppe 1 | C73: =IFERROR(AVERAGE(C66:E66),0) -> 0
B74: Produktegruppe 2 | C74: =IFERROR(AVERAGE(C67:E67),0) -> 0
B75: Produktegruppe 3 | C75: =IFERROR(AVERAGE(C68:E68),0) -> 0
B76: Produktegruppe 4 | C76: =IFERROR(AVERAGE(C69:E69),0) -> 0
B77: Produktegruppe 5 | C77: =IFERROR(AVERAGE(C70:E70),0) -> 0

Sheet HE_Input_1
A1: 10 | B1: Produktegruppe 1 (Halbprivat): Inputdaten
B5: SST-Stichtag | C5: ="01.01."& current_year -> 01.01.2024
B7: Verwaltungskosten (%) | C7: =HE_Inputparam_VWK!C73 -> 0
S10: Leistungen | T10: 1
B12: Produktegruppe 1 - Stationäre Produkte: Halbprivat | AJ12: Für Analysezwecke
B13: Effektivalter | C13: Anzahl Verträge je Alter per 01.01.2024 (Aktuelles Jahr) | E13: Prämien pro Vertrag und je Alter nach Behandlungsjahr (Aktuelles Jahr) | G13: Anzahl Verträge je Alter per 31.12. 2023 (Vorjahr) | I13: Anzahl Verträge je Alter per 31.12. 2022 (Vorjahr-1) | K13: Anzahl Verträge je Alter per 31.12. 2021 (Vorjahr-2) | M13: Leistungen je Alter nach Behandlungsjahr 2023 (Vorjahr) | O13: Leistungen je Alter nach Behandlungsjahr 2022 (Vorjahr-1) | Q13: Leistungen je Alter nach Behandlungsjahr 2021 (Vorjahr-2) | S13: Leistungen pro Vertrag und je Alter nach Behandlungsjahr 2023 (Vorjahr) | U13: Leistungen pro Vertrag und je Alter nach Behandlungsjahr 2022 (Vorjahr-1) | W13: Leistungen pro Vertrag und je Alter nach Behandlungsjahr 2021 (Vorjahr-2) | Y13: Inflationierte Leistungen pro Vertrag und je Alter nach Behandlungsjahr 2023 (Vorjahr) | AA13: Inflationierte Leistungen pro Vertrag und je Alter nach Behandlungsjahr 2022 (Vorjahr-1) | AC13: Inflationierte Leistungen pro Vertrag und je Alter nach Behandlungsjahr 2021 (Vorjahr-2) | AE13: Leistungen pro Vertrag und je Alter | AG13: Prämien pro Vertrag und je Alter (Aktuelles Jahr) | AJ13: Leistungen pro Vertrag und je Alter (geglättet)
C14: Total (positive Werte) | E14: (positiv, CHF) | G14: (positiv, CHF) | I14: (positiv, CHF) | K14: (positiv, CHF) | M14: (positiv, CHF) | O14: (positiv, CHF) | Q14: (positiv, CHF) | S14: (positiv, CHF) | U14: (positiv, CHF) | W14: (positiv, CHF) | Y14: (positiv, CHF) | AA14: (positiv, CHF) | AC14: (positiv, CHF) | AE14: (positiv, CHF) | AG14: (positiv, CHF) | AJ14: (positiv, CHF)
C15: Männer | D15: Frauen | E15: Männer | F15: Frauen | G15: Männer | H15: Frauen | I15: Männer | J15: Frauen | K15: Männer | L15: Frauen | M15: Männer | N15: Frauen | O15: Männer | P15: Frauen | Q15: Männer | R15: Frauen | S15: Männer | T15: Frauen | U15: Männer | V15: Frauen | W15: Männer | X15: Frauen | Y15: Männer | Z15: Frauen | AA15: Männer | AB15: Frauen | AC15: Männer | AD15: Frauen | AE15: Männer | AF15: Frauen | AG15: Männer | AH15: Frauen | AJ15: Männer | AK15: Frauen
C16: =SUM(_MP1) -> 0 | D16: =SUM(_FP1) -> 0 | E16: =IF(C16=0,0,SUMPRODUCT(E17:E117,_MP1)/C16) -> 0 | F16: =IF(D16=0,0,SUMPRODUCT(F17:F117,_FP1)/D16) -> 0 | G16: =SUM(G17:G117) -> 0 | H16: 0 | I16: 0 | J16: 0 | K16: 0 | L16: 0 | M16: 0 | N16: 0 | O16: 0 | P16: 0 | Q16: 0 | R16: 0
B17: 0 | S17: =IFERROR(M17/G17,0) -> 0 | T17: 0 | U17: 0 | V17: 0 | W17: 0 | X17: 0 | Y17: =IF(S17=0,0,S17) -> 0 | Z17: 0 | AA17: 0 | AB17: 0 | AC17: 0 | AD17: 0 | AE17: =IFERROR((G17*Y17+I17*AA17+K17*AC17)/(G17+I17+K17), 0)*nur_L -> 0 | AF17: =IFERROR((H17*Z17+J17*AB17+L17*AD17)/(H17+J17+L17), 0)*nur_L -> 0 | AG17: =IF(E17="",0,E17) -> 0 | AH17: =IF(F17="",0,F17) -> 0 | AJ17: =IFERROR(AVERAGE(AE17,AE18),0) -> 0 | AK17: =IFERROR(AVERAGE(AF17,AF18),0) -> 0
B18: 1 | S18: =IFERROR(M18/G18,0) -> 0 | T18: =IFERROR(N18/H18,0) -> 0 | U18: =IFERROR(O18/I18,0) -> 0 | V18: =IFERROR(P18/J18,0) -> 0 | W18: =IFERROR(Q18/K18,0) -> 0 | X18: =IFERROR(R18/L18,0) -> 0 | Y18: =IF(S18=0,0,S18) -> 0 | Z18: =IF(T18=0,0,T18) -> 0 | AA18: =IF(U18=0,0,U18) -> 0 | AB18: =IF(V18=0,0,V18) -> 0 | AC18: =IF(W18=0,0,W18) -> 0 | AD18: =IF(X18=0,0,X18) -> 0 | AE18: 0 | AF18: 0 | AG18: 0 | AH18: 0 | AJ18: =IFERROR(AVERAGE(AE17:AE19),0) -> 0 | AK18: =IFERROR(AVERAGE(AF17:AF19),0) -> 0
B19: 2 | S19: 0 | T19: 0 | U19: 0 | V19: 0 | W19: 0 | X19: 0 | Y19: 0 | Z19: 0 | AA19: 0 | AB19: 0 | AC19: 0 | AD19: 0 | AE19: 0 | AF19: 0 | AG19: 0 | AH19: 0 | AJ19: =IFERROR(AVERAGE(AE18:AE20),0) -> 0 | AK19: 0
B20: 3 | S20: 0 | T20: 0 | U20: 0 | V20: 0 | W20: 0 | X20: 0 | Y20: 0 | Z20: 0 | AA20: 0 | AB20: 0 | AC20: 0 | AD20: 0 | AE20: 0 | AF20: 0 | AG20: 0 | AH20: 0 | AJ20: 0 | AK20: 0
B21: 4 | S21: 0 | T21: 0 | U21: 0 | V21: 0 | W21: 0 | X21: 0 | Y21: 0 | Z21: 0 | AA21: 0 | AB21: 0 | AC21: 0 | AD21: 0 | AE21: 0 | AF21: 0 | AG21: 0 | AH21: 0 | AJ21: 0 | AK21: 0
B22: 5 | S22: 0 | T22: 0 | U22: 0 | V22: 0 | W22: 0 | X22: 0 | Y22: 0 | Z22: 0 | AA22: 0 | AB22: 0 | AC22: 0 | AD22: 0 | AE22: 0 | AF22: 0 | AG22: 0 | AH22: 0 | AJ22: 0 | AK22: 0
B23: 6 | S23: 0 | T23: 0 | U23: 0 | V23: 0 | W23: 0 | X23: 0 | Y23: 0 | Z23: 0 | AA23: 0 | AB23: 0 | AC23: 0 | AD23: 0 | AE23: 0 | AF23: 0 | AG23: 0 | AH23: 0 | AJ23: 0 | AK23: 0
B24: 7 | S24: 0 | T24: 0 | U24: 0 | V24: 0 | W24: 0 | X24: 0 | Y24: 0 | Z24: 0 | AA24: 0 | AB24: 0 | AC24: 0 | AD24: 0 | AE24: 0 | AF24: 0 | AG24: 0 | AH24: 0 | AJ24: 0 | AK24: 0
B25: 8 | S25: 0 | T25: 0 | U25: 0 | V25: 0 | W25: 0 | X25: 0 | Y25: 0 | Z25: 0 | AA25: 0 | AB25: 0 | AC25: 0 | AD25: 0 | AE25: 0 | AF25: 0 | AG25: 0 | AH25: 0 | AJ25: 0 | AK25: 0
B26: 9 | S26: 0 | T26: 0 | U26: 0 | V26: 0 | W26: 0 | X26: 0 | Y26: 0 | Z26: 0 | AA26: 0 | AB26: 0 | AC26: 0 | AD26: 0 | AE26: 0 | AF26: 0 | AG26: 0 | AH26: 0 | AJ26: 0 | AK26: 0
B27: 10 | S27: 0 | T27: 0 | U27: 0 | V27: 0 | W27: 0 | X27: 0 | Y27: 0 | Z27: 0 | AA27: 0 | AB27: 0 | AC27: 0 | AD27: 0 | AE27: 0 | AF27: 0 | AG27: 0 | AH27: 0 | AJ27: 0 | AK27: 0
B28: 11 | S28: 0 | T28: 0 | U28: 0 | V28: 0 | W28: 0 | X28: 0 | Y28: 0 | Z28: 0 | AA28: 0 | AB28: 0 | AC28: 0 | AD28: 0 | AE28: 0 | AF28: 0 | AG28: 0 | AH28: 0 | AJ28: 0 | AK28: 0
B29: 12 | S29: 0 | T29: 0 | U29: 0 | V29: 0 | W29: 0 | X29: 0 | Y29: 0 | Z29: 0 | AA29: 0 | AB29: 0 | AC29: 0 | AD29: 0 | AE29: 0 | AF29: 0 | AG29: 0 | AH29: 0 | AJ29: 0 | AK29: 0
B30: 13 | S30: 0 | T30: 0 | U30: 0 | V30: 0 | W30: 0 | X30: 0 | Y30: 0 | Z30: 0 | AA30: 0 | AB30: 0 | AC30: 0 | AD30: 0 | AE30: 0 | AF30: 0 | AG30: 0 | AH30: 0 | AJ30: 0 | AK30: 0
B31: 14 | S31: 0 | T31: 0 | U31: 0 | V31: 0 | W31: 0 | X31: 0 | Y31: 0 | Z31: 0 | AA31: 0 | AB31: 0 | AC31: 0 | AD31: 0 | AE31: 0 | AF31: 0 | AG31: 0 | AH31: 0 | AJ31: 0 | AK31: 0
B32: 15 | S32: 0 | T32: 0 | U32: 0 | V32: 0 | W32: 0 | X32: 0 | Y32: 0 | Z32: 0 | AA32: 0 | AB32: 0 | AC32: 0 | AD32: 0 | AE32: 0 | AF32: 0 | AG32: 0 | AH32: 0 | AJ32: 0 | AK32: 0
B33: 16 | S33: 0 | T33: 0 | U33: 0 | V33: 0 | W33: 0 | X33: 0 | Y33: 0 | Z33: 0 | AA33: 0 | AB33: 0 | AC33: 0 | AD33: 0 | AE33: 0 | AF33: 0 | AG33: 0 | AH33: 0 | AJ33: 0 | AK33: 0
B34: 17 | S34: 0 | T34: 0 | U34: 0 | V34: 0 | W34: 0 | X34: 0 | Y34: 0 | Z34: 0 | AA34: 0 | AB34: 0 | AC34: 0 | AD34: 0 | AE34: 0 | AF34: 0 | AG34: 0 | AH34: 0 | AJ34: 0 | AK34: 0
B35: 18 | S35: 0 | T35: 0 | U35: 0 | V35: 0 | W35: 0 | X35: 0 | Y35: 0 | Z35: 0 | AA35: 0 | AB35: 0 | AC35: 0 | AD35: 0 | AE35: 0 | AF35: 0 | AG35: 0 | AH35: 0 | AJ35: 0 | AK35: 0
B36: 19 | S36: 0 | T36: 0 | U36: 0 | V36: 0 | W36: 0 | X36: 0 | Y36: 0 | Z36: 0 | AA36: 0 | AB36: 0 | AC36: 0 | AD36: 0 | AE36: 0 | AF36: 0 | AG36: 0 | AH36: 0 | AJ36: 0 | AK36: 0
B37: 20 | S37: 0 | T37: 0 | U37: 0 | V37: 0 | W37: 0 | X37: 0 | Y37: 0 | Z37: 0 | AA37: 0 | AB37: 0 | AC37: 0 | AD37: 0 | AE37: 0 | AF37: 0 | AG37: 0 | AH37: 0 | AJ37: 0 | AK37: 0
B38: 21 | S38: 0 | T38: 0 | U38: 0 | V38: 0 | W38: 0 | X38: 0 | Y38: 0 | Z38: 0 | AA38: 0 | AB38: 0 | AC38: 0 | AD38: 0 | AE38: 0 | AF38: 0 | AG38: 0 | AH38: 0 | AJ38: 0 | AK38: 0
B39: 22 | S39: 0 | T39: 0 | U39: 0 | V39: 0 | W39: 0 | X39: 0 | Y39: 0 | Z39: 0 | AA39: 0 | AB39: 0 | AC39: 0 | AD39: 0 | AE39: 0 | AF39: 0 | AG39: 0 | AH39: 0 | AJ39: 0 | AK39: 0
B40: 23 | S40: 0 | T40: 0 | U40: 0 | V40: 0 | W40: 0 | X40: 0 | Y40: 0 | Z40: 0 | AA40: 0 | AB40: 0 | AC40: 0 | AD40: 0 | AE40: 0 | AF40: 0 | AG40: 0 | AH40: 0 | AJ40: 0 | AK40: 0
B41: 24 | S41: 0 | T41: 0 | U41: 0 | V41: 0 | W41: 0 | X41: 0 | Y41: 0 | Z41: 0 | AA41: 0 | AB41: 0 | AC41: 0 | AD41: 0 | AE41: 0 | AF41: 0 | AG41: 0 | AH41: 0 | AJ41: 0 | AK41: 0
B42: 25 | S42: 0 | T42: 0 | U42: 0 | V42: 0 | W42: 0 | X42: 0 | Y42: 0 | Z42: 0 | AA42: 0 | AB42: 0 | AC42: 0 | AD42: 0 | AE42: 0 | AF42: 0 | AG42: 0 | AH42: 0 | AJ42: 0 | AK42: 0
B43: 26 | S43: 0 | T43: 0 | U43: 0 | V43: 0 | W43: 0 | X43: 0 | Y43: 0 | Z43: 0 | AA43: 0 | AB43: 0 | AC43: 0 | AD43: 0 | AE43: 0 | AF43: 0 | AG43: 0 | AH43: 0 | AJ43: 0 | AK43: 0
B44: 27 | S44: 0 | T44: 0 | U44: 0 | V44: 0 | W44: 0 | X44: 0 | Y44: 0 | Z44: 0 | AA44: 0 | AB44: 0 | AC44: 0 | AD44: 0 | AE44: 0 | AF44: 0 | AG44: 0 | AH44: 0 | AJ44: 0 | AK44: 0
B45: 28 | S45: 0 | T45: 0 | U45: 0 | V45: 0 | W45: 0 | X45: 0 | Y45: 0 | Z45: 0 | AA45: 0 | AB45: 0 | AC45: 0 | AD45: 0 | AE45: 0 | AF45: 0 | AG45: 0 | AH45: 0 | AJ45: 0 | AK45: 0
B46: 29 | S46: 0 | T46: 0 | U46: 0 | V46: 0 | W46: 0 | X46: 0 | Y46: 0 | Z46: 0 | AA46: 0 | AB46: 0 | AC46: 0 | AD46: 0 | AE46: 0 | AF46: 0 | AG46: 0 | AH46: 0 | AJ46: 0 | AK46: 0
B47: 30 | S47: 0 | T47: 0 | U47: 0 | V47: 0 | W47: 0 | X47: 0 | Y47: 0 | Z47: 0 | AA47: 0 | AB47: 0 | AC47: 0 | AD47: 0 | AE47: 0 | AF47: 0 | AG47: 0 | AH47: 0 | AJ47: 0 | AK47: 0
B48: 31 | S48: 0 | T48: 0 | U48: 0 | V48: 0 | W48: 0 | X48: 0 | Y48: 0 | Z48: 0 | AA48: 0 | AB48: 0 | AC48: 0 | AD48: 0 | AE48: 0 | AF48: 0 | AG48: 0 | AH48: 0 | AJ48: 0 | AK48: 0
B49: 32 | S49: 0 | T49: 0 | U49: 0 | V49: 0 | W49: 0 | X49: 0 | Y49: 0 | Z49: 0 | AA49: 0 | AB49: 0 | AC49: 0 | AD49: 0 | AE49: =IFERROR((G49*Y49+I49*AA49+K49*AC49)/(G49+I49+K49), 0)*nur_L -> 0 | AF49: =IFERROR((H49*Z49+J49*AB49+L49*AD49)/(H49+J49+L49), 0)*nur_L -> 0 | AG49: =IF(E49="",0,E49) -> 0 | AH49: =IF(F49="",0,F49) -> 0 | AJ49: 0 | AK49: 0
B50: 33 | S50: 0 | T50: 0 | U50: 0 | V50: 0 | W50: 0 | X50: 0 | Y50: 0 | Z50: 0 | AA50: 0 | AB50: 0 | AC50: 0 | AD50: 0 | AE50: 0 | AF50: 0 | AG50: 0 | AH50: 0 | AJ50: 0 | AK50: 0
B51: 34 | S51: 0 | T51: 0 | U51: 0 | V51: 0 | W51: 0 | X51: 0 | Y51: 0 | Z51: 0 | AA51: 0 | AB51: 0 | AC51: 0 | AD51: 0 | AE51: 0 | AF51: 0 | AG51: 0 | AH51: 0 | AJ51: 0 | AK51: 0
B52: 35 | S52: 0 | T52: 0 | U52: 0 | V52: 0 | W52: 0 | X52: 0 | Y52: 0 | Z52: 0 | AA52: 0 | AB52: 0 | AC52: 0 | AD52: 0 | AE52: 0 | AF52: 0 | AG52: 0 | AH52: 0 | AJ52: 0 | AK52: 0
B53: 36 | S53: 0 | T53: 0 | U53: 0 | V53: 0 | W53: 0 | X53: 0 | Y53: 0 | Z53: 0 | AA53: 0 | AB53: 0 | AC53: 0 | AD53: 0 | AE53: 0 | AF53: 0 | AG53: 0 | AH53: 0 | AJ53: 0 | AK53: 0
B54: 37 | S54: 0 | T54: 0 | U54: 0 | V54: 0 | W54: 0 | X54: 0 | Y54: 0 | Z54: 0 | AA54: 0 | AB54: 0 | AC54: 0 | AD54: 0 | AE54: 0 | AF54: 0 | AG54: 0 | AH54: 0 | AJ54: 0 | AK54: 0
B55: 38 | S55: 0 | T55: 0 | U55: 0 | V55: 0 | W55: 0 | X55: 0 | Y55: 0 | Z55: 0 | AA55: 0 | AB55: 0 | AC55: 0 | AD55: 0 | AE55: 0 | AF55: 0 | AG55: 0 | AH55: 0 | AJ55: 0 | AK55: 0
B56: 39 | S56: 0 | T56: 0 | U56: 0 | V56: 0 | W56: 0 | X56: 0 | Y56: 0 | Z56: 0 | AA56: 0 | AB56: 0 | AC56: 0 | AD56: 0 | AE56: 0 | AF56: 0 | AG56: 0 | AH56: 0 | AJ56: 0 | AK56: 0
B57: 40 | S57: 0 | T57: 0 | U57: 0 | V57: 0 | W57: 0 | X57: 0 | Y57: 0 | Z57: 0 | AA57: 0 | AB57: 0 | AC57: 0 | AD57: 0 | AE57: 0 | AF57: 0 | AG57: 0 | AH57: 0 | AJ57: 0 | AK57: 0
B58: 41 | S58: 0 | T58: 0 | U58: 0 | V58: 0 | W58: 0 | X58: 0 | Y58: 0 | Z58: 0 | AA58: 0 | AB58: 0 | AC58: 0 | AD58: 0 | AE58: 0 | AF58: 0 | AG58: 0 | AH58: 0 | AJ58: 0 | AK58: 0
B59: 42 | S59: 0 | T59: 0 | U59: 0 | V59: 0 | W59: 0 | X59: 0 | Y59: 0 | Z59: 0 | AA59: 0 | AB59: 0 | AC59: 0 | AD59: 0 | AE59: 0 | AF59: 0 | AG59: 0 | AH59: 0 | AJ59: 0 | AK59: 0
B60: 43 | S60: 0 | T60: 0 | U60: 0 | V60: 0 | W60: 0 | X60: 0 | Y60: 0 | Z60: 0 | AA60: 0 | AB60: 0 | AC60: 0 | AD60: 0 | AE60: 0 | AF60: 0 | AG60: 0 | AH60: 0 | AJ60: 0 | AK60: 0
B61: 44 | S61: 0 | T61: 0 | U61: 0 | V61: 0 | W61: 0 | X61: 0 | Y61: 0 | Z61: 0 | AA61: 0 | AB61: 0 | AC61: 0 | AD61: 0 | AE61: 0 | AF61: 0 | AG61: 0 | AH61: 0 | AJ61: 0 | AK61: 0
B62: 45 | S62: 0 | T62: 0 | U62: 0 | V62: 0 | W62: 0 | X62: 0 | Y62: 0 | Z62: 0 | AA62: 0 | AB62: 0 | AC62: 0 | AD62: 0 | AE62: 0 | AF62: 0 | AG62: 0 | AH62: 0 | AJ62: 0 | AK62: 0
B63: 46 | S63: 0 | T63: 0 | U63: 0 | V63: 0 | W63: 0 | X63: 0 | Y63: 0 | Z63: 0 | AA63: 0 | AB63: 0 | AC63: 0 | AD63: 0 | AE63: 0 | AF63: 0 | AG63: 0 | AH63: 0 | AJ63: 0 | AK63: 0
B64: 47 | S64: 0 | T64: 0 | U64: 0 | V64: 0 | W64: 0 | X64: 0 | Y64: 0 | Z64: 0 | AA64: 0 | AB64: 0 | AC64: 0 | AD64: 0 | AE64: 0 | AF64: 0 | AG64: 0 | AH64: 0 | AJ64: 0 | AK64: 0
B65: 48 | S65: 0 | T65: 0 | U65: 0 | V65: 0 | W65: 0 | X65: 0 | Y65: 0 | Z65: 0 | AA65: 0 | AB65: 0 | AC65: 0 | AD65: 0 | AE65: 0 | AF65: 0 | AG65: 0 | AH65: 0 | AJ65: 0 | AK65: 0
B66: 49 | S66: 0 | T66: 0 | U66: 0 | V66: 0 | W66: 0 | X66: 0 | Y66: 0 | Z66: 0 | AA66: 0 | AB66: 0 | AC66: 0 | AD66: 0 | AE66: 0 | AF66: 0 | AG66: 0 | AH66: 0 | AJ66: 0 | AK66: 0
B67: 50 | S67: 0 | T67: 0 | U67: 0 | V67: 0 | W67: 0 | X67: 0 | Y67: 0 | Z67: 0 | AA67: 0 | AB67: 0 | AC67: 0 | AD67: 0 | AE67: 0 | AF67: 0 | AG67: 0 | AH67: 0 | AJ67: 0 | AK67: 0
B68: 51 | S68: 0 | T68: 0 | U68: 0 | V68: 0 | W68: 0 | X68: 0 | Y68: 0 | Z68: 0 | AA68: 0 | AB68: 0 | AC68: 0 | AD68: 0 | AE68: 0 | AF68: 0 | AG68: 0 | AH68: 0 | AJ68: 0 | AK68: 0
B69: 52 | S69: 0 | T69: 0 | U69: 0 | V69: 0 | W69: 0 | X69: 0 | Y69: 0 | Z69: 0 | AA69: 0 | AB69: 0 | AC69: 0 | AD69: 0 | AE69: 0 | AF69: 0 | AG69: 0 | AH69: 0 | AJ69: 0 | AK69: 0
B70: 53 | S70: 0 | T70: 0 | U70: 0 | V70: 0 | W70: 0 | X70: 0 | Y70: 0 | Z70: 0 | AA70: 0 | AB70: 0 | AC70: 0 | AD70: 0 | AE70: 0 | AF70: 0 | AG70: 0 | AH70: 0 | AJ70: 0 | AK70: 0
B71: 54 | S71: 0 | T71: 0 | U71: 0 | V71: 0 | W71: 0 | X71: 0 | Y71: 0 | Z71: 0 | AA71: 0 | AB71: 0 | AC71: 0 | AD71: 0 | AE71: 0 | AF71: 0 | AG71: 0 | AH71: 0 | AJ71: 0 | AK71: 0
B72: 55 | S72: 0 | T72: 0 | U72: 0 | V72: 0 | W72: 0 | X72: 0 | Y72: 0 | Z72: 0 | AA72: 0 | AB72: 0 | AC72: 0 | AD72: 0 | AE72: 0 | AF72: 0 | AG72: 0 | AH72: 0 | AJ72: 0 | AK72: 0
B73: 56 | S73: 0 | T73: 0 | U73: 0 | V73: 0 | W73: 0 | X73: 0 | Y73: 0 | Z73: 0 | AA73: 0 | AB73: 0 | AC73: 0 | AD73: 0 | AE73: 0 | AF73: 0 | AG73: 0 | AH73: 0 | AJ73: 0 | AK73: 0
B74: 57 | S74: 0 | T74: 0 | U74: 0 | V74: 0 | W74: 0 | X74: 0 | Y74: 0 | Z74: 0 | AA74: 0 | AB74: 0 | AC74: 0 | AD74: 0 | AE74: 0 | AF74: 0 | AG74: 0 | AH74: 0 | AJ74: 0 | AK74: 0
B75: 58 | S75: 0 | T75: 0 | U75: 0 | V75: 0 | W75: 0 | X75: 0 | Y75: 0 | Z75: 0 | AA75: 0 | AB75: 0 | AC75: 0 | AD75: 0 | AE75: 0 | AF75: 0 | AG75: 0 | AH75: 0 | AJ75: 0 | AK75: 0
B76: 59 | S76: 0 | T76: 0 | U76: 0 | V76: 0 | W76: 0 | X76: 0 | Y76: 0 | Z76: 0 | AA76: 0 | AB76: 0 | AC76: 0 | AD76: 0 | AE76: 0 | AF76: 0 | AG76: 0 | AH76: 0 | AJ76: 0 | AK76: 0
B77: 60 | S77: 0 | T77: 0 | U77: 0 | V77: 0 | W77: 0 | X77: 0 | Y77: 0 | Z77: 0 | AA77: 0 | AB77: 0 | AC77: 0 | AD77: 0 | AE77: 0 | AF77: 0 | AG77: 0 | AH77: 0 | AJ77: 0 | AK77: 0
B78: 61 | S78: 0 | T78: 0 | U78: 0 | V78: 0 | W78: 0 | X78: 0 | Y78: 0 | Z78: 0 | AA78: 0 | AB78: 0 | AC78: 0 | AD78: 0 | AE78: 0 | AF78: 0 | AG78: 0 | AH78: 0 | AJ78: 0 | AK78: 0
B79: 62 | S79: 0 | T79: 0 | U79: 0 | V79: 0 | W79: 0 | X79: 0 | Y79: 0 | Z79: 0 | AA79: 0 | AB79: 0 | AC79: 0 | AD79: 0 | AE79: 0 | AF79: 0 | AG79: 0 | AH79: 0 | AJ79: 0 | AK79: 0
B80: 63 | S80: 0 | T80: 0 | U80: 0 | V80: 0 | W80: 0 | X80: 0 | Y80: 0 | Z80: 0 | AA80: 0 | AB80: 0 | AC80: 0 | AD80: 0 | AE80: 0 | AF80: 0 | AG80: 0 | AH80: 0 | AJ80: 0 | AK80: 0
B81: 64 | S81: 0 | T81: 0 | U81: 0 | V81: 0 | W81: 0 | X81: 0 | Y81: 0 | Z81: 0 | AA81: 0 | AB81: 0 | AC81: 0 | AD81: 0 | AE81: =IFERROR((G81*Y81+I81*AA81+K81*AC81)/(G81+I81+K81), 0)*nur_L -> 0 | AF81: =IFERROR((H81*Z81+J81*AB81+L81*AD81)/(H81+J81+L81), 0)*nur_L -> 0 | AG81: =IF(E81="",0,E81) -> 0 | AH81: =IF(F81="",0,F81) -> 0 | AJ81: 0 | AK81: 0
B82: 65 | S82: =IFERROR(M82/G82,0) -> 0 | T82: =IFERROR(N82/H82,0) -> 0 | U82: =IFERROR(O82/I82,0) -> 0 | V82: =IFERROR(P82/J82,0) -> 0 | W82: =IFERROR(Q82/K82,0) -> 0 | X82: =IFERROR(R82/L82,0) -> 0 | Y82: =IF(S82=0,0,S82) -> 0 | Z82: =IF(T82=0,0,T82) -> 0 | AA82: =IF(U82=0,0,U82) -> 0 | AB82: =IF(V82=0,0,V82) -> 0 | AC82: =IF(W82=0,0,W82) -> 0 | AD82: =IF(X82=0,0,X82) -> 0 | AE82: 0 | AF82: 0 | AG82: 0 | AH82: 0 | AJ82: 0 | AK82: 0
B83: 66 | S83: 0 | T83: 0 | U83: 0 | V83: 0 | W83: 0 | X83: 0 | Y83: 0 | Z83: 0 | AA83: 0 | AB83: 0 | AC83: 0 | AD83: 0 | AE83: 0 | AF83: 0 | AG83: 0 | AH83: 0 | AJ83: =IFERROR(AVERAGE(AE82:AE84),0) -> 0 | AK83: 0
B84: 67 | S84: 0 | T84: 0 | U84: 0 | V84: 0 | W84: 0 | X84: 0 | Y84: 0 | Z84: 0 | AA84: 0 | AB84: 0 | AC84: 0 | AD84: 0 | AE84: 0 | AF84: 0 | AG84: 0 | AH84: 0 | AJ84: 0 | AK84: 0
B85: 68 | S85: 0 | T85: 0 | U85: 0 | V85: 0 | W85: 0 | X85: 0 | Y85: 0 | Z85: 0 | AA85: 0 | AB85: 0 | AC85: 0 | AD85: 0 | AE85: 0 | AF85: 0 | AG85: 0 | AH85: 0 | AJ85: 0 | AK85: 0
B86: 69 | S86: 0 | T86: 0 | U86: 0 | V86: 0 | W86: 0 | X86: 0 | Y86: 0 | Z86: 0 | AA86: 0 | AB86: 0 | AC86: 0 | AD86: 0 | AE86: 0 | AF86: 0 | AG86: 0 | AH86: 0 | AJ86: 0 | AK86: 0
B87: 70 | S87: 0 | T87: 0 | U87: 0 | V87: 0 | W87: 0 | X87: 0 | Y87: 0 | Z87: 0 | AA87: 0 | AB87: 0 | AC87: 0 | AD87: 0 | AE87: 0 | AF87: 0 | AG87: 0 | AH87: 0 | AJ87: 0 | AK87: 0
B88: 71 | S88: 0 | T88: 0 | U88: 0 | V88: 0 | W88: 0 | X88: 0 | Y88: 0 | Z88: 0 | AA88: 0 | AB88: 0 | AC88: 0 | AD88: 0 | AE88: 0 | AF88: 0 | AG88: 0 | AH88: 0 | AJ88: 0 | AK88: 0
B89: 72 | S89: 0 | T89: 0 | U89: 0 | V89: 0 | W89: 0 | X89: 0 | Y89: 0 | Z89: 0 | AA89: 0 | AB89: 0 | AC89: 0 | AD89: 0 | AE89: 0 | AF89: 0 | AG89: 0 | AH89: 0 | AJ89: 0 | AK89: 0
B90: 73 | S90: 0 | T90: 0 | U90: 0 | V90: 0 | W90: 0 | X90: 0 | Y90: 0 | Z90: 0 | AA90: 0 | AB90: 0 | AC90: 0 | AD90: 0 | AE90: 0 | AF90: 0 | AG90: 0 | AH90: 0 | AJ90: 0 | AK90: 0
B91: 74 | S91: 0 | T91: 0 | U91: 0 | V91: 0 | W91: 0 | X91: 0 | Y91: 0 | Z91: 0 | AA91: 0 | AB91: 0 | AC91: 0 | AD91: 0 | AE91: 0 | AF91: 0 | AG91: 0 | AH91: 0 | AJ91: 0 | AK91: 0
B92: 75 | S92: 0 | T92: 0 | U92: 0 | V92: 0 | W92: 0 | X92: 0 | Y92: 0 | Z92: 0 | AA92: 0 | AB92: 0 | AC92: 0 | AD92: 0 | AE92: 0 | AF92: 0 | AG92: 0 | AH92: 0 | AJ92: 0 | AK92: 0
B93: 76 | S93: 0 | T93: 0 | U93: 0 | V93: 0 | W93: 0 | X93: 0 | Y93: 0 | Z93: 0 | AA93: 0 | AB93: 0 | AC93: 0 | AD93: 0 | AE93: 0 | AF93: 0 | AG93: 0 | AH93: 0 | AJ93: 0 | AK93: 0
B94: 77 | S94: 0 | T94: 0 | U94: 0 | V94: 0 | W94: 0 | X94: 0 | Y94: 0 | Z94: 0 | AA94: 0 | AB94: 0 | AC94: 0 | AD94: 0 | AE94: 0 | AF94: 0 | AG94: 0 | AH94: 0 | AJ94: 0 | AK94: 0
B95: 78 | S95: 0 | T95: 0 | U95: 0 | V95: 0 | W95: 0 | X95: 0 | Y95: 0 | Z95: 0 | AA95: 0 | AB95: 0 | AC95: 0 | AD95: 0 | AE95: 0 | AF95: 0 | AG95: 0 | AH95: 0 | AJ95: 0 | AK95: 0
B96: 79 | S96: 0 | T96: 0 | U96: 0 | V96: 0 | W96: 0 | X96: 0 | Y96: 0 | Z96: 0 | AA96: 0 | AB96: 0 | AC96: 0 | AD96: 0 | AE96: 0 | AF96: 0 | AG96: 0 | AH96: 0 | AJ96: 0 | AK96: 0
B97: 80 | S97: 0 | T97: 0 | U97: 0 | V97: 0 | W97: 0 | X97: 0 | Y97: 0 | Z97: 0 | AA97: 0 | AB97: 0 | AC97: 0 | AD97: 0 | AE97: 0 | AF97: 0 | AG97: 0 | AH97: 0 | AJ97: 0 | AK97: 0
B98: 81 | S98: 0 | T98: 0 | U98: 0 | V98: 0 | W98: 0 | X98: 0 | Y98: 0 | Z98: 0 | AA98: 0 | AB98: 0 | AC98: 0 | AD98: 0 | AE98: 0 | AF98: 0 | AG98: 0 | AH98: 0 | AJ98: 0 | AK98: 0
B99: 82 | S99: 0 | T99: 0 | U99: 0 | V99: 0 | W99: 0 | X99: 0 | Y99: 0 | Z99: 0 | AA99: 0 | AB99: 0 | AC99: 0 | AD99: 0 | AE99: 0 | AF99: 0 | AG99: 0 | AH99: 0 | AJ99: 0 | AK99: 0
B100: 83 | S100: 0 | T100: 0 | U100: 0 | V100: 0 | W100: 0 | X100: 0 | Y100: 0 | Z100: 0 | AA100: 0 | AB100: 0 | AC100: 0 | AD100: 0 | AE100: 0 | AF100: 0 | AG100: 0 | AH100: 0 | AJ100: 0 | AK100: 0
B101: 84 | S101: 0 | T101: 0 | U101: 0 | V101: 0 | W101: 0 | X101: 0 | Y101: 0 | Z101: 0 | AA101: 0 | AB101: 0 | AC101: 0 | AD101: 0 | AE101: 0 | AF101: 0 | AG101: 0 | AH101: 0 | AJ101: 0 | AK101: 0
B102: 85 | S102: 0 | T102: 0 | U102: 0 | V102: 0 | W102: 0 | X102: 0 | Y102: 0 | Z102: 0 | AA102: 0 | AB102: 0 | AC102: 0 | AD102: 0 | AE102: 0 | AF102: 0 | AG102: 0 | AH102: 0 | AJ102: 0 | AK102: 0
B103: 86 | S103: 0 | T103: 0 | U103: 0 | V103: 0 | W103: 0 | X103: 0 | Y103: 0 | Z103: 0 | AA103: 0 | AB103: 0 | AC103: 0 | AD103: 0 | AE103: 0 | AF103: 0 | AG103: 0 | AH103: 0 | AJ103: 0 | AK103: 0
B104: 87 | S104: 0 | T104: 0 | U104: 0 | V104: 0 | W104: 0 | X104: 0 | Y104: 0 | Z104: 0 | AA104: 0 | AB104: 0 | AC104: 0 | AD104: 0 | AE104: 0 | AF104: 0 | AG104: 0 | AH104: 0 | AJ104: 0 | AK104: 0
B105: 88 | S105: 0 | T105: 0 | U105: 0 | V105: 0 | W105: 0 | X105: 0 | Y105: 0 | Z105: 0 | AA105: 0 | AB105: 0 | AC105: 0 | AD105: 0 | AE105: 0 | AF105: 0 | AG105: 0 | AH105: 0 | AJ105: 0 | AK105: 0
B106: 89 | S106: 0 | T106: 0 | U106: 0 | V106: 0 | W106: 0 | X106: 0 | Y106: 0 | Z106: 0 | AA106: 0 | AB106: 0 | AC106: 0 | AD106: 0 | AE106: 0 | AF106: 0 | AG106: 0 | AH106: 0 | AJ106: 0 | AK106: 0
B107: 90 | S107: 0 | T107: 0 | U107: 0 | V107: 0 | W107: 0 | X107: 0 | Y107: 0 | Z107: 0 | AA107: 0 | AB107: 0 | AC107: 0 | AD107: 0 | AE107: 0 | AF107: 0 | AG107: 0 | AH107: 0 | AJ107: 0 | AK107: 0
B108: 91 | S108: 0 | T108: 0 | U108: 0 | V108: 0 | W108: 0 | X108: 0 | Y108: 0 | Z108: 0 | AA108: 0 | AB108: 0 | AC108: 0 | AD108: 0 | AE108: 0 | AF108: 0 | AG108: 0 | AH108: 0 | AJ108: =IFERROR(SUMPRODUCT(C$108:C$117,AE$108:AE$117)/SUM(C$108:C$117),0) -> 0 | AK108: =IFERROR(SUMPRODUCT(D$108:D$117,AF$108:AF$117)/SUM(D$108:D$117),0) -> 0
B109: 92 | S109: 0 | T109: 0 | U109: 0 | V109: 0 | W109: 0 | X109: 0 | Y109: 0 | Z109: 0 | AA109: 0 | AB109: 0 | AC109: 0 | AD109: 0 | AE109: 0 | AF109: 0 | AG109: 0 | AH109: 0 | AJ109: 0 | AK109: 0
B110: 93 | S110: 0 | T110: 0 | U110: 0 | V110: 0 | W110: 0 | X110: 0 | Y110: 0 | Z110: 0 | AA110: 0 | AB110: 0 | AC110: 0 | AD110: 0 | AE110: 0 | AF110: 0 | AG110: 0 | AH110: 0 | AJ110: 0 | AK110: 0
B111: 94 | S111: 0 | T111: 0 | U111: 0 | V111: 0 | W111: 0 | X111: 0 | Y111: 0 | Z111: 0 | AA111: 0 | AB111: 0 | AC111: 0 | AD111: 0 | AE111: 0 | AF111: 0 | AG111: 0 | AH111: 0 | AJ111: 0 | AK111: 0
B112: 95 | S112: 0 | T112: 0 | U112: 0 | V112: 0 | W112: 0 | X112: 0 | Y112: 0 | Z112: 0 | AA112: 0 | AB112: 0 | AC112: 0 | AD112: 0 | AE112: 0 | AF112: 0 | AG112: 0 | AH112: 0 | AJ112: 0 | AK112: 0
B113: 96 | S113: 0 | T113: 0 | U113: 0 | V113: 0 | W113: 0 | X113: 0 | Y113: 0 | Z113: 0 | AA113: 0 | AB113: 0 | AC113: 0 | AD113: 0 | AE113: 0 | AF113: 0 | AG113: 0 | AH113: 0 | AJ113: 0 | AK113: 0
B114: 97 | S114: 0 | T114: 0 | U114: 0 | V114: 0 | W114: 0 | X114: 0 | Y114: 0 | Z114: 0 | AA114: 0 | AB114: 0 | AC114: 0 | AD114: 0 | AE114: 0 | AF114: 0 | AG114: 0 | AH114: 0 | AJ114: 0 | AK114: 0
B115: 98 | S115: 0 | T115: 0 | U115: 0 | V115: 0 | W115: 0 | X115: 0 | Y115: 0 | Z115: 0 | AA115: 0 | AB115: 0 | AC115: 0 | AD115: 0 | AE115: 0 | AF115: 0 | AG115: 0 | AH115: 0 | AJ115: 0 | AK115: 0
B116: 99 | S116: 0 | T116: 0 | U116: 0 | V116: 0 | W116: 0 | X116: 0 | Y116: 0 | Z116: 0 | AA116: 0 | AB116: 0 | AC116: 0 | AD116: 0 | AE116: 0 | AF116: 0 | AG116: 0 | AH116: 0 | AJ116: 0 | AK116: 0
B117: 100 | S117: 0 | T117: 0 | U117: 0 | V117: 0 | W117: 0 | X117: 0 | Y117: 0 | Z117: 0 | AA117: 0 | AB117: 0 | AC117: 0 | AD117: 0 | AE117: 0 | AF117: 0 | AG117: 0 | AH117: 0 | AJ117: 0 | AK117: 0

Sheet HE_Input_2
A1: 11 | B1: Produktegruppe 1 (Privat): Inputdaten
B5: SST-Stichtag | C5: ="01.01."& current_year -> 01.01.2024
B7: Verwaltungskosten (%) | C7: =HE_Inputparam_VWK!C73 -> 0
B12: Produktegruppe 1 - Stationäre Produkte: Privat | AJ12: Für Analysezwecke
B13: Effektivalter | C13: Anzahl Verträge je Alter per 01.01.2024 (Aktuelles Jahr) | E13: Prämien pro Vertrag und je Alter nach Behandlungsjahr (Aktuelles Jahr) | G13: Anzahl Verträge je Alter per 31.12. 2023 (Vorjahr) | I13: Anzahl Verträge je Alter per 31.12. 2022 (Vorjahr-1) | K13: Anzahl Verträge je Alter per 31.12. 2021 (Vorjahr-2) | M13: Leistungen je Alter nach Behandlungsjahr 2023 (Vorjahr) | O13: Leistungen je Alter nach Behandlungsjahr 2022 (Vorjahr-1) | Q13: Leistungen je Alter nach Behandlungsjahr 2021 (Vorjahr-2) | S13: Leistungen pro Vertrag und je Alter nach Behandlungsjahr 2023 (Vorjahr) | U13: Leistungen pro Vertrag und je Alter nach Behandlungsjahr 2022 (Vorjahr-1) | W13: Leistungen pro Vertrag und je Alter nach Behandlungsjahr 2021 (Vorjahr-2) | Y13: Inflationierte Leistungen pro Vertrag und je Alter nach Behandlungsjahr 2023 (Vorjahr) | AA13: Inflationierte Leistungen pro Vertrag und je Alter nach Behandlungsjahr 2022 (Vorjahr-1) | AC13: Inflationierte Leistungen pro Vertrag und je Alter nach Behandlungsjahr 2021 (Vorjahr-2) | AE13: Leistungen pro Vertrag und je Alter | AG13: Prämien pro Vertrag und je Alter (Aktuelles Jahr) | AJ13: Leistungen pro Vertrag und je Alter (geglättet)
C14: Total (positive Werte) | E14: (positiv, CHF) | G14: (positiv, CHF) | I14: (positiv, CHF) | K14: (positiv, CHF) | M14: (positiv, CHF) | O14: (positiv, CHF) | Q14: (positiv, CHF) | S14: (positiv, CHF) | U14: (positiv, CHF) | W14: (positiv, CHF) | Y14: (positiv, CHF) | AA14: (positiv, CHF) | AC14: (positiv, CHF) | AE14: (positiv, CHF) | AG14: (positiv, CHF) | AJ14: (positiv, CHF)
C15: Männer | D15: Frauen | E15: Männer | F15: Frauen | G15: Männer | H15: Frauen | I15: Männer | J15: Frauen | K15: Männer | L15: Frauen | M15: Männer | N15: Frauen | O15: Männer | P15: Frauen | Q15: Männer | R15: Frauen | S15: Männer | T15: Frauen | U15: Männer | V15: Frauen | W15: Männer | X15: Frauen | Y15: Männer | Z15: Frauen | AA15: Männer | AB15: Frauen | AC15: Männer | AD15: Frauen | AE15: Männer | AF15: Frauen | AG15: Männer | AH15: Frauen | AJ15: Männer | AK15: Frauen
C16: =SUM(_MP2) -> 0 | D16: =SUM(_FP2) -> 0 | E16: =IF(C16=0,0,SUMPRODUCT(E17:E117,_MP2)/C16) -> 0 | F16: =IF(D16=0,0,SUMPRODUCT(F17:F117,_FP2)/D16) -> 0 | G16: =SUM(G17:G117) -> 0 | H16: 0 | I16: 0 | J16: 0 | K16: 0 | L16: 0 | M16: 0 | N16: 0 | O16: 0 | P16: 0 | Q16: 0 | R16: 0
B17: 0 | S17: =IFERROR(M17/G17,0) -> 0 | T17: 0 | U17: 0 | V17: 0 | W17: 0 | X17: 0 | Y17: =IF(S17=0,0,S17) -> 0 | Z17: 0 | AA17: 0 | AB17: 0 | AC17: 0 | AD17: 0 | AE17: =IFERROR((G17*Y17+I17*AA17+K17*AC17)/(G17+I17+K17), 0)*nur_L -> 0 | AF17: =IFERROR((H17*Z17+J17*AB17+L17*AD17)/(H17+J17+L17), 0)*nur_L -> 0 | AG17: =IF(E17="",0,E17) -> 0 | AH17: =IF(F17="",0,F17) -> 0 | AJ17: =IFERROR(AVERAGE(AE17,AE18),0) -> 0 | AK17: =IFERROR(AVERAGE(AF17,AF18),0) -> 0
B18: 1 | S18: =IFERROR(M18/G18,0) -> 0 | T18: =IFERROR(N18/H18,0) -> 0 | U18: =IFERROR(O18/I18,0) -> 0 | V18: =IFERROR(P18/J18,0) -> 0 | W18: =IFERROR(Q18/K18,0) -> 0 | X18: =IFERROR(R18/L18,0) -> 0 | Y18: 0 | Z18: 0 | AA18: 0 | AB18: 0 | AC18: 0 | AD18: 0 | AE18: 0 | AF18: 0 | AG18: 0 | AH18: 0 | AJ18: =IFERROR(AVERAGE(AE17:AE19),0) -> 0 | AK18: =IFERROR(AVERAGE(AF17:AF19),0) -> 0
B19: 2 | S19: 0 | T19: 0 | U19: 0 | V19: 0 | W19: 0 | X19: 0 | Y19: 0 | Z19: 0 | AA19: 0 | AB19: 0 | AC19: 0 | AD19: 0 | AE19: 0 | AF19: 0 | AG19: 0 | AH19: 0 | AJ19: =IFERROR(AVERAGE(AE18:AE20),0) -> 0 | AK19: 0
B20: 3 | S20: 0 | T20: 0 | U20: 0 | V20: 0 | W20: 0 | X20: 0 | Y20: 0 | Z20: 0 | AA20: 0 | AB20: 0 | AC20: 0 | AD20: 0 | AE20: 0 | AF20: 0 | AG20: 0 | AH20: 0 | AJ20: 0 | AK20: 0
B21: 4 | S21: 0 | T21: 0 | U21: 0 | V21: 0 | W21: 0 | X21: 0 | Y21: 0 | Z21: 0 | AA21: 0 | AB21: 0 | AC21: 0 | AD21: 0 | AE21: 0 | AF21: 0 | AG21: 0 | AH21: 0 | AJ21: 0 | AK21: 0
B22: 5 | S22: 0 | T22: 0 | U22: 0 | V22: 0 | W22: 0 | X22: 0 | Y22: 0 | Z22: 0 | AA22: 0 | AB22: 0 | AC22: 0 | AD22: 0 | AE22: 0 | AF22: 0 | AG22: 0 | AH22: 0 | AJ22: 0 | AK22: 0
B23: 6 | S23: 0 | T23: 0 | U23: 0 | V23: 0 | W23: 0 | X23: 0 | Y23: 0 | Z23: 0 | AA23: 0 | AB23: 0 | AC23: 0 | AD23: 0 | AE23: 0 | AF23: 0 | AG23: 0 | AH23: 0 | AJ23: 0 | AK23: 0
B24: 7 | S24: 0 | T24: 0 | U24: 0 | V24: 0 | W24: 0 | X24: 0 | Y24: 0 | Z24: 0 | AA24: 0 | AB24: 0 | AC24: 0 | AD24: 0 | AE24: 0 | AF24: 0 | AG24: 0 | AH24: 0 | AJ24: 0 | AK24: 0
B25: 8 | S25: 0 | T25: 0 | U25: 0 | V25: 0 | W25: 0 | X25: 0 | Y25: 0 | Z25: 0 | AA25: 0 | AB25: 0 | AC25: 0 | AD25: 0 | AE25: 0 | AF25: 0 | AG25: 0 | AH25: 0 | AJ25: 0 | AK25: 0
B26: 9 | S26: 0 | T26: 0 | U26: 0 | V26: 0 | W26: 0 | X26: 0 | Y26: 0 | Z26: 0 | AA26: 0 | AB26: 0 | AC26: 0 | AD26: 0 | AE26: 0 | AF26: 0 | AG26: 0 | AH26: 0 | AJ26: 0 | AK26: 0
B27: 10 | S27: 0 | T27: 0 | U27: 0 | V27: 0 | W27: 0 | X27: 0 | Y27: 0 | Z27: 0 | AA27: 0 | AB27: 0 | AC27: 0 | AD27: 0 | AE27: 0 | AF27: 0 | AG27: 0 | AH27: 0 | AJ27: 0 | AK27: 0
B28: 11 | S28: 0 | T28: 0 | U28: 0 | V28: 0 | W28: 0 | X28: 0 | Y28: 0 | Z28: 0 | AA28: 0 | AB28: 0 | AC28: 0 | AD28: 0 | AE28: 0 | AF28: 0 | AG28: 0 | AH28: 0 | AJ28: 0 | AK28: 0
B29: 12 | S29: 0 | T29: 0 | U29: 0 | V29: 0 | W29: 0 | X29: 0 | Y29: 0 | Z29: 0 | AA29: 0 | AB29: 0 | AC29: 0 | AD29: 0 | AE29: 0 | AF29: 0 | AG29: 0 | AH29: 0 | AJ29: 0 | AK29: 0
B30: 13 | S30: 0 | T30: 0 | U30: 0 | V30: 0 | W30: 0 | X30: 0 | Y30: 0 | Z30: 0 | AA30: 0 | AB30: 0 | AC30: 0 | AD30: 0 | AE30: 0 | AF30: 0 | AG30: 0 | AH30: 0 | AJ30: 0 | AK30: 0
B31: 14 | S31: 0 | T31: 0 | U31: 0 | V31: 0 | W31: 0 | X31: 0 | Y31: 0 | Z31: 0 | AA31: 0 | AB31: 0 | AC31: 0 | AD31: 0 | AE31: 0 | AF31: 0 | AG31: 0 | AH31: 0 | AJ31: 0 | AK31: 0
B32: 15 | S32: 0 | T32: 0 | U32: 0 | V32: 0 | W32: 0 | X32: 0 | Y32: 0 | Z32: 0 | AA32: 0 | AB32: 0 | AC32: 0 | AD32: 0 | AE32: 0 | AF32: 0 | AG32: 0 | AH32: 0 | AJ32: 0 | AK32: 0
B33: 16 | S33: 0 | T33: 0 | U33: 0 | V33: 0 | W33: 0 | X33: 0 | Y33: =IF(S33=0,0,S33) -> 0 | Z33: 0 | AA33: 0 | AB33: 0 | AC33: 0 | AD33: 0 | AE33: 0 | AF33: 0 | AG33: 0 | AH33: 0 | AJ33: 0 | AK33: 0
B34: 17 | S34: 0 | T34: 0 | U34: 0 | V34: 0 | W34: 0 | X34: 0 | Y34: 0 | Z34: 0 | AA34: 0 | AB34: 0 | AC34: 0 | AD34: 0 | AE34: 0 | AF34: 0 | AG34: 0 | AH34: 0 | AJ34: 0 | AK34: 0
B35: 18 | S35: 0 | T35: 0 | U35: 0 | V35: 0 | W35: 0 | X35: 0 | Y35: 0 | Z35: 0 | AA35: 0 | AB35: 0 | AC35: 0 | AD35: 0 | AE35: 0 | AF35: 0 | AG35: 0 | AH35: 0 | AJ35: 0 | AK35: 0
B36: 19 | S36: 0 | T36: 0 | U36: 0 | V36: 0 | W36: 0 | X36: 0 | Y36: 0 | Z36: 0 | AA36: 0 | AB36: 0 | AC36: 0 | AD36: 0 | AE36: 0 | AF36: 0 | AG36: 0 | AH36: 0 | AJ36: 0 | AK36: 0
B37: 20 | S37: 0 | T37: 0 | U37: 0 | V37: 0 | W37: 0 | X37: 0 | Y37: 0 | Z37: 0 | AA37: 0 | AB37: 0 | AC37: 0 | AD37: 0 | AE37: 0 | AF37: 0 | AG37: 0 | AH37: 0 | AJ37: 0 | AK37: 0
B38: 21 | S38: 0 | T38: 0 | U38: 0 | V38: 0 | W38: 0 | X38: 0 | Y38: 0 | Z38: 0 | AA38: 0 | AB38: 0 | AC38: 0 | AD38: 0 | AE38: 0 | AF38: 0 | AG38: 0 | AH38: 0 | AJ38: 0 | AK38: 0
B39: 22 | S39: 0 | T39: 0 | U39: 0 | V39: 0 | W39: 0 | X39: 0 | Y39: 0 | Z39: 0 | AA39: 0 | AB39: 0 | AC39: 0 | AD39: 0 | AE39: 0 | AF39: 0 | AG39: 0 | AH39: 0 | AJ39: 0 | AK39: 0
B40: 23 | S40: 0 | T40: 0 | U40: 0 | V40: 0 | W40: 0 | X40: 0 | Y40: 0 | Z40: 0 | AA40: 0 | AB40: 0 | AC40: 0 | AD40: 0 | AE40: 0 | AF40: 0 | AG40: 0 | AH40: 0 | AJ40: 0 | AK40: 0
B41: 24 | S41: 0 | T41: 0 | U41: 0 | V41: 0 | W41: 0 | X41: 0 | Y41: 0 | Z41: 0 | AA41: 0 | AB41: 0 | AC41: 0 | AD41: 0 | AE41: 0 | AF41: 0 | AG41: 0 | AH41: 0 | AJ41: 0 | AK41: 0
B42: 25 | S42: 0 | T42: 0 | U42: 0 | V42: 0 | W42: 0 | X42: 0 | Y42: 0 | Z42: 0 | AA42: 0 | AB42: 0 | AC42: 0 | AD42: 0 | AE42: 0 | AF42: 0 | AG42: 0 | AH42: 0 | AJ42: 0 | AK42: 0
B43: 26 | S43: 0 | T43: 0 | U43: 0 | V43: 0 | W43: 0 | X43: 0 | Y43: 0 | Z43: 0 | AA43: 0 | AB43: 0 | AC43: 0 | AD43: 0 | AE43: 0 | AF43: 0 | AG43: 0 | AH43: 0 | AJ43: 0 | AK43: 0
B44: 27 | S44: 0 | T44: 0 | U44: 0 | V44: 0 | W44: 0 | X44: 0 | Y44: 0 | Z44: 0 | AA44: 0 | AB44: 0 | AC44: 0 | AD44: 0 | AE44: 0 | AF44: 0 | AG44: 0 | AH44: 0 | AJ44: 0 | AK44: 0
B45: 28 | S45: 0 | T45: 0 | U45: 0 | V45: 0 | W45: 0 | X45: 0 | Y45: 0 | Z45: 0 | AA45: 0 | AB45: 0 | AC45: 0 | AD45: 0 | AE45: 0 | AF45: 0 | AG45: 0 | AH45: 0 | AJ45: 0 | AK45: 0
B46: 29 | S46: 0 | T46: 0 | U46: 0 | V46: 0 | W46: 0 | X46: 0 | Y46: 0 | Z46: 0 | AA46: 0 | AB46: 0 | AC46: 0 | AD46: 0 | AE46: 0 | AF46: 0 | AG46: 0 | AH46: 0 | AJ46: 0 | AK46: 0
B47: 30 | S47: 0 | T47: 0 | U47: 0 | V47: 0 | W47: 0 | X47: 0 | Y47: 0 | Z47: 0 | AA47: 0 | AB47: 0 | AC47: 0 | AD47: 0 | AE47: 0 | AF47: 0 | AG47: 0 | AH47: 0 | AJ47: 0 | AK47: 0
B48: 31 | S48: 0 | T48: 0 | U48: 0 | V48: 0 | W48: 0 | X48: 0 | Y48: 0 | Z48: 0 | AA48: 0 | AB48: 0 | AC48: 0 | AD48: 0 | AE48: 0 | AF48: 0 | AG48: 0 | AH48: 0 | AJ48: 0 | AK48: 0
B49: 32 | S49: 0 | T49: 0 | U49: 0 | V49: 0 | W49: 0 | X49: 0 | Y49: 0 | Z49: 0 | AA49: 0 | AB49: 0 | AC49: 0 | AD49: 0 | AE49: =IFERROR((G49*Y49+I49*AA49+K49*AC49)/(G49+I49+K49), 0)*nur_L -> 0 | AF49: =IFERROR((H49*Z49+J49*AB49+L49*AD49)/(H49+J49+L49), 0)*nur_L -> 0 | AG49: =IF(E49="",0,E49) -> 0 | AH49: =IF(F49="",0,F49) -> 0 | AJ49: 0 | AK49: 0
B50: 33 | S50: 0 | T50: 0 | U50: 0 | V50: 0 | W50: 0 | X50: 0 | Y50: 0 | Z50: 0 | AA50: 0 | AB50: 0 | AC50: 0 | AD50: 0 | AE50: 0 | AF50: 0 | AG50: 0 | AH50: 0 | AJ50: 0 | AK50: 0
B51: 34 | S51: 0 | T51: 0 | U51: 0 | V51: 0 | W51: 0 | X51: 0 | Y51: 0 | Z51: 0 | AA51: 0 | AB51: 0 | AC51: 0 | AD51: 0 | AE51: 0 | AF51: 0 | AG51: 0 | AH51: 0 | AJ51: 0 | AK51: 0
B52: 35 | S52: 0 | T52: 0 | U52: 0 | V52: 0 | W52: 0 | X52: 0 | Y52: 0 | Z52: 0 | AA52: 0 | AB52: 0 | AC52: 0 | AD52: 0 | AE52: 0 | AF52: 0 | AG52: 0 | AH52: 0 | AJ52: 0 | AK52: 0
B53: 36 | S53: 0 | T53: 0 | U53: 0 | V53: 0 | W53: 0 | X53: 0 | Y53: 0 | Z53: 0 | AA53: 0 | AB53: 0 | AC53: 0 | AD53: 0 | AE53: 0 | AF53: 0 | AG53: 0 | AH53: 0 | AJ53: 0 | AK53: 0
B54: 37 | S54: 0 | T54: 0 | U54: 0 | V54: 0 | W54: 0 | X54: 0 | Y54: 0 | Z54: 0 | AA54: 0 | AB54: 0 | AC54: 0 | AD54: 0 | AE54: 0 | AF54: 0 | AG54: 0 | AH54: 0 | AJ54: 0 | AK54: 0
B55: 38 | S55: 0 | T55: 0 | U55: 0 | V55: 0 | W55: 0 | X55: 0 | Y55: 0 | Z55: 0 | AA55: 0 | AB55: 0 | AC55: 0 | AD55: 0 | AE55: 0 | AF55: 0 | AG55: 0 | AH55: 0 | AJ55: 0 | AK55: 0
B56: 39 | S56: 0 | T56: 0 | U56: 0 | V56: 0 | W56: 0 | X56: 0 | Y56: 0 | Z56: 0 | AA56: 0 | AB56: 0 | AC56: 0 | AD56: 0 | AE56: 0 | AF56: 0 | AG56: 0 | AH56: 0 | AJ56: 0 | AK56: 0
B57: 40 | S57: 0 | T57: 0 | U57: 0 | V57: 0 | W57: 0 | X57: 0 | Y57: 0 | Z57: 0 | AA57: 0 | AB57: 0 | AC57: 0 | AD57: 0 | AE57: 0 | AF57: 0 | AG57: 0 | AH57: 0 | AJ57: 0 | AK57: 0
B58: 41 | S58: 0 | T58: 0 | U58: 0 | V58: 0 | W58: 0 | X58: 0 | Y58: 0 | Z58: 0 | AA58: 0 | AB58: 0 | AC58: 0 | AD58: 0 | AE58: 0 | AF58: 0 | AG58: 0 | AH58: 0 | AJ58: 0 | AK58: 0
B59: 42 | S59: 0 | T59: 0 | U59: 0 | V59: 0 | W59: 0 | X59: 0 | Y59: 0 | Z59: 0 | AA59: 0 | AB59: 0 | AC59: 0 | AD59: 0 | AE59: 0 | AF59: 0 | AG59: 0 | AH59: 0 | AJ59: 0 | AK59: 0
B60: 43 | S60: 0 | T60: 0 | U60: 0 | V60: 0 | W60: 0 | X60: 0 | Y60: 0 | Z60: 0 | AA60: 0 | AB60: 0 | AC60: 0 | AD60: 0 | AE60: 0 | AF60: 0 | AG60: 0 | AH60: 0 | AJ60: 0 | AK60: 0
B61: 44 | S61: 0 | T61: 0 | U61: 0 | V61: 0 | W61: 0 | X61: 0 | Y61: 0 | Z61: 0 | AA61: 0 | AB61: 0 | AC61: 0 | AD61: 0 | AE61: 0 | AF61: 0 | AG61: 0 | AH61: 0 | AJ61: 0 | AK61: 0
B62: 45 | S62: 0 | T62: 0 | U62: 0 | V62: 0 | W62: 0 | X62: 0 | Y62: 0 | Z62: 0 | AA62: 0 | AB62: 0 | AC62: 0 | AD62: 0 | AE62: 0 | AF62: 0 | AG62: 0 | AH62: 0 | AJ62: 0 | AK62: 0
B63: 46 | S63: 0 | T63: 0 | U63: 0 | V63: 0 | W63: 0 | X63: 0 | Y63: 0 | Z63: 0 | AA63: 0 | AB63: 0 | AC63: 0 | AD63: 0 | AE63: 0 | AF63: 0 | AG63: 0 | AH63: 0 | AJ63: 0 | AK63: 0
B64: 47 | S64: 0 | T64: 0 | U64: 0 | V64: 0 | W64: 0 | X64: 0 | Y64: 0 | Z64: 0 | AA64: 0 | AB64: 0 | AC64: 0 | AD64: 0 | AE64: 0 | AF64: 0 | AG64: 0 | AH64: 0 | AJ64: 0 | AK64: 0
B65: 48 | S65: 0 | T65: 0 | U65: 0 | V65: 0 | W65: 0 | X65: 0 | Y65: 0 | Z65: 0 | AA65: 0 | AB65: 0 | AC65: 0 | AD65: 0 | AE65: 0 | AF65: 0 | AG65: 0 | AH65: 0 | AJ65: 0 | AK65: 0
B66: 49 | S66: 0 | T66: 0 | U66: 0 | V66: 0 | W66: 0 | X66: 0 | Y66: 0 | Z66: 0 | AA66: 0 | AB66: 0 | AC66: 0 | AD66: 0 | AE66: 0 | AF66: 0 | AG66: 0 | AH66: 0 | AJ66: 0 | AK66: 0
B67: 50 | S67: 0 | T67: 0 | U67: 0 | V67: 0 | W67: 0 | X67: 0 | Y67: 0 | Z67: 0 | AA67: 0 | AB67: 0 | AC67: 0 | AD67: 0 | AE67: 0 | AF67: 0 | AG67: 0 | AH67: 0 | AJ67: 0 | AK67: 0
B68: 51 | S68: 0 | T68: 0 | U68: 0 | V68: 0 | W68: 0 | X68: 0 | Y68: 0 | Z68: 0 | AA68: 0 | AB68: 0 | AC68: 0 | AD68: 0 | AE68: 0 | AF68: 0 | AG68: 0 | AH68: 0 | AJ68: 0 | AK68: 0
B69: 52 | S69: 0 | T69: 0 | U69: 0 | V69: 0 | W69: 0 | X69: 0 | Y69: 0 | Z69: 0 | AA69: 0 | AB69: 0 | AC69: 0 | AD69: 0 | AE69: 0 | AF69: 0 | AG69: 0 | AH69: 0 | AJ69: 0 | AK69: 0
B70: 53 | S70: 0 | T70: 0 | U70: 0 | V70: 0 | W70: 0 | X70: 0 | Y70: 0 | Z70: 0 | AA70: 0 | AB70: 0 | AC70: 0 | AD70: 0 | AE70: 0 | AF70: 0 | AG70: 0 | AH70: 0 | AJ70: 0 | AK70: 0
B71: 54 | S71: 0 | T71: 0 | U71: 0 | V71: 0 | W71: 0 | X71: 0 | Y71: 0 | Z71: 0 | AA71: 0 | AB71: 0 | AC71: 0 | AD71: 0 | AE71: 0 | AF71: 0 | AG71: 0 | AH71: 0 | AJ71: 0 | AK71: 0
B72: 55 | S72: 0 | T72: 0 | U72: 0 | V72: 0 | W72: 0 | X72: 0 | Y72: 0 | Z72: 0 | AA72: 0 | AB72: 0 | AC72: 0 | AD72: 0 | AE72: 0 | AF72: 0 | AG72: 0 | AH72: 0 | AJ72: 0 | AK72: 0
B73: 56 | S73: 0 | T73: 0 | U73: 0 | V73: 0 | W73: 0 | X73: 0 | Y73: 0 | Z73: 0 | AA73: 0 | AB73: 0 | AC73: 0 | AD73: 0 | AE73: 0 | AF73: 0 | AG73: 0 | AH73: 0 | AJ73: 0 | AK73: 0
B74: 57 | S74: 0 | T74: 0 | U74: 0 | V74: 0 | W74: 0 | X74: 0 | Y74: 0 | Z74: 0 | AA74: 0 | AB74: 0 | AC74: 0 | AD74: 0 | AE74: 0 | AF74: 0 | AG74: 0 | AH74: 0 | AJ74: 0 | AK74: 0
B75: 58 | S75: 0 | T75: 0 | U75: 0 | V75: 0 | W75: 0 | X75: 0 | Y75: 0 | Z75: 0 | AA75: 0 | AB75: =IF(V75=0,0,V75) -> 0 | AC75: 0 | AD75: 0 | AE75: 0 | AF75: 0 | AG75: 0 | AH75: 0 | AJ75: 0 | AK75: 0
B76: 59 | S76: 0 | T76: 0 | U76: 0 | V76: 0 | W76: 0 | X76: 0 | Y76: =IF(S76=0,0,S76) -> 0 | Z76: 0 | AA76: 0 | AB76: 0 | AC76: 0 | AD76: 0 | AE76: 0 | AF76: 0 | AG76: 0 | AH76: 0 | AJ76: 0 | AK76: 0
B77: 60 | S77: 0 | T77: 0 | U77: 0 | V77: 0 | W77: 0 | X77: 0 | Y77: 0 | Z77: 0 | AA77: 0 | AB77: 0 | AC77: 0 | AD77: 0 | AE77: 0 | AF77: 0 | AG77: 0 | AH77: 0 | AJ77: 0 | AK77: 0
B78: 61 | S78: 0 | T78: 0 | U78: 0 | V78: 0 | W78: 0 | X78: 0 | Y78: 0 | Z78: 0 | AA78: 0 | AB78: 0 | AC78: 0 | AD78: 0 | AE78: 0 | AF78: 0 | AG78: 0 | AH78: 0 | AJ78: 0 | AK78: 0
B79: 62 | S79: 0 | T79: 0 | U79: 0 | V79: 0 | W79: 0 | X79: 0 | Y79: 0 | Z79: 0 | AA79: 0 | AB79: 0 | AC79: 0 | AD79: 0 | AE79: 0 | AF79: 0 | AG79: 0 | AH79: 0 | AJ79: 0 | AK79: 0
B80: 63 | S80: 0 | T80: 0 | U80: 0 | V80: 0 | W80: 0 | X80: 0 | Y80: 0 | Z80: 0 | AA80: 0 | AB80: 0 | AC80: 0 | AD80: 0 | AE80: 0 | AF80: 0 | AG80: 0 | AH80: 0 | AJ80: 0 | AK80: 0
B81: 64 | S81: 0 | T81: 0 | U81: 0 | V81: 0 | W81: 0 | X81: 0 | Y81: 0 | Z81: 0 | AA81: 0 | AB81: 0 | AC81: 0 | AD81: 0 | AE81: =IFERROR((G81*Y81+I81*AA81+K81*AC81)/(G81+I81+K81), 0)*nur_L -> 0 | AF81: =IFERROR((H81*Z81+J81*AB81+L81*AD81)/(H81+J81+L81), 0)*nur_L -> 0 | AG81: =IF(E81="",0,E81) -> 0 | AH81: =IF(F81="",0,F81) -> 0 | AJ81: 0 | AK81: 0
B82: 65 | S82: =IFERROR(M82/G82,0) -> 0 | T82: =IFERROR(N82/H82,0) -> 0 | U82: =IFERROR(O82/I82,0) -> 0 | V82: =IFERROR(P82/J82,0) -> 0 | W82: =IFERROR(Q82/K82,0) -> 0 | X82: =IFERROR(R82/L82,0) -> 0 | Y82: 0 | Z82: 0 | AA82: 0 | AB82: 0 | AC82: 0 | AD82: 0 | AE82: 0 | AF82: 0 | AG82: 0 | AH82: 0 | AJ82: 0 | AK82: 0
B83: 66 | S83: 0 | T83: 0 | U83: 0 | V83: 0 | W83: 0 | X83: 0 | Y83: 0 | Z83: 0 | AA83: 0 | AB83: 0 | AC83: 0 | AD83: 0 | AE83: 0 | AF83: 0 | AG83: 0 | AH83: 0 | AJ83: =IFERROR(AVERAGE(AE82:AE84),0) -> 0 | AK83: 0
B84: 67 | S84: 0 | T84: 0 | U84: 0 | V84: 0 | W84: 0 | X84: 0 | Y84: 0 | Z84: 0 | AA84: 0 | AB84: 0 | AC84: 0 | AD84: 0 | AE84: 0 | AF84: 0 | AG84: 0 | AH84: 0 | AJ84: 0 | AK84: 0
B85: 68 | S85: 0 | T85: 0 | U85: 0 | V85: 0 | W85: 0 | X85: 0 | Y85: 0 | Z85: 0 | AA85: 0 | AB85: 0 | AC85: 0 | AD85: 0 | AE85: 0 | AF85: 0 | AG85: 0 | AH85: 0 | AJ85: 0 | AK85: 0
B86: 69 | S86: 0 | T86: 0 | U86: 0 | V86: 0 | W86: 0 | X86: 0 | Y86: 0 | Z86: 0 | AA86: 0 | AB86: 0 | AC86: 0 | AD86: 0 | AE86: 0 | AF86: 0 | AG86: 0 | AH86: 0 | AJ86: 0 | AK86: 0
B87: 70 | S87: 0 | T87: 0 | U87: 0 | V87: 0 | W87: 0 | X87: 0 | Y87: 0 | Z87: 0 | AA87: 0 | AB87: 0 | AC87: 0 | AD87: 0 | AE87: 0 | AF87: 0 | AG87: 0 | AH87: 0 | AJ87: 0 | AK87: 0
B88: 71 | S88: 0 | T88: 0 | U88: 0 | V88: 0 | W88: 0 | X88: 0 | Y88: 0 | Z88: 0 | AA88: 0 | AB88: 0 | AC88: 0 | AD88: 0 | AE88: 0 | AF88: 0 | AG88: 0 | AH88: 0 | AJ88: 0 | AK88: 0
B89: 72 | S89: 0 | T89: 0 | U89: 0 | V89: 0 | W89: 0 | X89: 0 | Y89: 0 | Z89: 0 | AA89: 0 | AB89: 0 | AC89: 0 | AD89: 0 | AE89: 0 | AF89: 0 | AG89: 0 | AH89: 0 | AJ89: 0 | AK89: 0
B90: 73 | S90: 0 | T90: 0 | U90: 0 | V90: 0 | W90: 0 | X90: 0 | Y90: 0 | Z90: 0 | AA90: 0 | AB90: 0 | AC90: 0 | AD90: 0 | AE90: 0 | AF90: 0 | AG90: 0 | AH90: 0 | AJ90: 0 | AK90: 0
B91: 74 | S91: 0 | T91: 0 | U91: 0 | V91: 0 | W91: 0 | X91: 0 | Y91: 0 | Z91: 0 | AA91: 0 | AB91: 0 | AC91: 0 | AD91: 0 | AE91: 0 | AF91: 0 | AG91: 0 | AH91: 0 | AJ91: 0 | AK91: 0
B92: 75 | S92: 0 | T92: 0 | U92: 0 | V92: 0 | W92: 0 | X92: 0 | Y92: 0 | Z92: 0 | AA92: 0 | AB92: 0 | AC92: 0 | AD92: 0 | AE92: 0 | AF92: 0 | AG92: 0 | AH92: 0 | AJ92: 0 | AK92: 0
B93: 76 | S93: 0 | T93: 0 | U93: 0 | V93: 0 | W93: 0 | X93: 0 | Y93: 0 | Z93: 0 | AA93: 0 | AB93: 0 | AC93: 0 | AD93: 0 | AE93: 0 | AF93: 0 | AG93: 0 | AH93: 0 | AJ93: 0 | AK93: 0
B94: 77 | S94: 0 | T94: 0 | U94: 0 | V94: 0 | W94: 0 | X94: 0 | Y94: 0 | Z94: 0 | AA94: 0 | AB94: 0 | AC94: 0 | AD94: 0 | AE94: 0 | AF94: 0 | AG94: 0 | AH94: 0 | AJ94: 0 | AK94: 0
B95: 78 | S95: 0 | T95: 0 | U95: 0 | V95: 0 | W95: 0 | X95: 0 | Y95: 0 | Z95: 0 | AA95: 0 | AB95: 0 | AC95: 0 | AD95: 0 | AE95: 0 | AF95: 0 | AG95: 0 | AH95: 0 | AJ95: 0 | AK95: 0
B96: 79 | S96: 0 | T96: 0 | U96: 0 | V96: 0 | W96: 0 | X96: 0 | Y96: 0 | Z96: 0 | AA96: 0 | AB96: 0 | AC96: 0 | AD96: 0 | AE96: 0 | AF96: 0 | AG96: 0 | AH96: 0 | AJ96: 0 | AK96: 0
B97: 80 | S97: 0 | T97: 0 | U97: 0 | V97: 0 | W97: 0 | X97: 0 | Y97: 0 | Z97: 0 | AA97: 0 | AB97: 0 | AC97: 0 | AD97: 0 | AE97: 0 | AF97: 0 | AG97: 0 | AH97: 0 | AJ97: 0 | AK97: 0
B98: 81 | S98: 0 | T98: 0 | U98: 0 | V98: 0 | W98: 0 | X98: 0 | Y98: 0 | Z98: 0 | AA98: 0 | AB98: 0 | AC98: 0 | AD98: 0 | AE98: 0 | AF98: 0 | AG98: 0 | AH98: 0 | AJ98: 0 | AK98: 0
B99: 82 | S99: 0 | T99: 0 | U99: 0 | V99: 0 | W99: 0 | X99: 0 | Y99: 0 | Z99: 0 | AA99: 0 | AB99: 0 | AC99: 0 | AD99: 0 | AE99: 0 | AF99: 0 | AG99: 0 | AH99: 0 | AJ99: 0 | AK99: 0
B100: 83 | S100: 0 | T100: 0 | U100: 0 | V100: 0 | W100: 0 | X100: 0 | Y100: 0 | Z100: 0 | AA100: 0 | AB100: 0 | AC100: 0 | AD100: 0 | AE100: 0 | AF100: 0 | AG100: 0 | AH100: 0 | AJ100: 0 | AK100: 0
B101: 84 | S101: 0 | T101: 0 | U101: 0 | V101: 0 | W101: 0 | X101: 0 | Y101: 0 | Z101: 0 | AA101: 0 | AB101: 0 | AC101: 0 | AD101: 0 | AE101: 0 | AF101: 0 | AG101: 0 | AH101: 0 | AJ101: 0 | AK101: 0
B102: 85 | S102: 0 | T102: 0 | U102: 0 | V102: 0 | W102: 0 | X102: 0 | Y102: 0 | Z102: 0 | AA102: 0 | AB102: 0 | AC102: 0 | AD102: 0 | AE102: 0 | AF102: 0 | AG102: 0 | AH102: 0 | AJ102: 0 | AK102: 0
B103: 86 | S103: 0 | T103: 0 | U103: 0 | V103: 0 | W103: 0 | X103: 0 | Y103: 0 | Z103: 0 | AA103: 0 | AB103: 0 | AC103: 0 | AD103: 0 | AE103: 0 | AF103: 0 | AG103: 0 | AH103: 0 | AJ103: 0 | AK103: 0
B104: 87 | S104: 0 | T104: 0 | U104: 0 | V104: 0 | W104: 0 | X104: 0 | Y104: 0 | Z104: 0 | AA104: 0 | AB104: 0 | AC104: 0 | AD104: 0 | AE104: 0 | AF104: 0 | AG104: 0 | AH104: 0 | AJ104: 0 | AK104: 0
B105: 88 | S105: 0 | T105: 0 | U105: 0 | V105: 0 | W105: 0 | X105: 0 | Y105: 0 | Z105: 0 | AA105: 0 | AB105: 0 | AC105: 0 | AD105: 0 | AE105: 0 | AF105: 0 | AG105: 0 | AH105: 0 | AJ105: 0 | AK105: 0
B106: 89 | S106: 0 | T106: 0 | U106: 0 | V106: 0 | W106: 0 | X106: 0 | Y106: 0 | Z106: 0 | AA106: 0 | AB106: 0 | AC106: 0 | AD106: 0 | AE106: 0 | AF106: 0 | AG106: 0 | AH106: 0 | AJ106: 0 | AK106: 0
B107: 90 | S107: 0 | T107: 0 | U107: 0 | V107: 0 | W107: 0 | X107: 0 | Y107: 0 | Z107: 0 | AA107: 0 | AB107: 0 | AC107: 0 | AD107: 0 | AE107: 0 | AF107: 0 | AG107: 0 | AH107: 0 | AJ107: 0 | AK107: 0
B108: 91 | S108: 0 | T108: 0 | U108: 0 | V108: 0 | W108: 0 | X108: 0 | Y108: 0 | Z108: 0 | AA108: 0 | AB108: 0 | AC108: 0 | AD108: 0 | AE108: 0 | AF108: 0 | AG108: 0 | AH108: 0 | AJ108: =IFERROR(SUMPRODUCT(C$108:C$117,AE$108:AE$117)/SUM(C$108:C$117),0) -> 0 | AK108: =IFERROR(SUMPRODUCT(D$108:D$117,AF$108:AF$117)/SUM(D$108:D$117),0) -> 0
B109: 92 | S109: 0 | T109: 0 | U109: 0 | V109: 0 | W109: 0 | X109: 0 | Y109: 0 | Z109: 0 | AA109: 0 | AB109: 0 | AC109: 0 | AD109: 0 | AE109: 0 | AF109: 0 | AG109: 0 | AH109: 0 | AJ109: 0 | AK109: 0
B110: 93 | S110: 0 | T110: 0 | U110: 0 | V110: 0 | W110: 0 | X110: 0 | Y110: 0 | Z110: 0 | AA110: 0 | AB110: 0 | AC110: 0 | AD110: 0 | AE110: 0 | AF110: 0 | AG110: 0 | AH110: 0 | AJ110: 0 | AK110: 0
B111: 94 | S111: 0 | T111: 0 | U111: 0 | V111: 0 | W111: 0 | X111: 0 | Y111: 0 | Z111: 0 | AA111: 0 | AB111: 0 | AC111: 0 | AD111: 0 | AE111: 0 | AF111: 0 | AG111: 0 | AH111: 0 | AJ111: 0 | AK111: 0
B112: 95 | S112: 0 | T112: 0 | U112: 0 | V112: 0 | W112: 0 | X112: 0 | Y112: 0 | Z112: 0 | AA112: 0 | AB112: 0 | AC112: 0 | AD112: 0 | AE112: 0 | AF112: 0 | AG112: 0 | AH112: 0 | AJ112: 0 | AK112: 0
B113: 96 | S113: 0 | T113: 0 | U113: 0 | V113: 0 | W113: 0 | X113: 0 | Y113: 0 | Z113: 0 | AA113: 0 | AB113: 0 | AC113: 0 | AD113: 0 | AE113: 0 | AF113: 0 | AG113: 0 | AH113: 0 | AJ113: 0 | AK113: 0
B114: 97 | S114: 0 | T114: 0 | U114: 0 | V114: 0 | W114: 0 | X114: 0 | Y114: 0 | Z114: 0 | AA114: 0 | AB114: 0 | AC114: 0 | AD114: 0 | AE114: 0 | AF114: 0 | AG114: 0 | AH114: 0 | AJ114: 0 | AK114: 0
B115: 98 | S115: 0 | T115: 0 | U115: 0 | V115: 0 | W115: 0 | X115: 0 | Y115: 0 | Z115: 0 | AA115: 0 | AB115: 0 | AC115: 0 | AD115: 0 | AE115: 0 | AF115: 0 | AG115: 0 | AH115: 0 | AJ115: 0 | AK115: 0
B116: 99 | S116: 0 | T116: 0 | U116: 0 | V116: 0 | W116: 0 | X116: 0 | Y116: 0 | Z116: 0 | AA116: 0 | AB116: 0 | AC116: 0 | AD116: 0 | AE116: 0 | AF116: 0 | AG116: 0 | AH116: 0 | AJ116: 0 | AK116: 0
B117: 100 | S117: 0 | T117: 0 | U117: 0 | V117: 0 | W117: 0 | X117: 0 | Y117: 0 | Z117: 0 | AA117: 0 | AB117: 0 | AC117: 0 | AD117: 0 | AE117: 0 | AF117: 0 | AG117: 0 | AH117: 0 | AJ117: 0 | AK117: 0

Sheet HE_Input_3
A1: 12 | B1: Produktegruppe 1 (Flex): Inputdaten
B5: SST-Stichtag | C5: ="01.01."& current_year -> 01.01.2024
B7: Verwaltungskosten (%) | C7: =HE_Inputparam_VWK!C73 -> 0
B12: Produktegruppe 1 - Stationäre Produkte: Flex | AJ12: Für Analysezwecke
B13: Effektivalter | C13: Anzahl Verträge je Alter per 01.01.2024 (Aktuelles Jahr) | E13: Prämien pro Vertrag und je Alter nach Behandlungsjahr (Aktuelles Jahr) | G13: Anzahl Verträge je Alter per 31.12. 2023 (Vorjahr) | I13: Anzahl Verträge je Alter per 31.12. 2022 (Vorjahr-1) | K13: Anzahl Verträge je Alter per 31.12. 2021 (Vorjahr-2) | M13: Leistungen je Alter nach Behandlungsjahr 2023 (Vorjahr) | O13: Leistungen je Alter nach Behandlungsjahr 2022 (Vorjahr-1) | Q13: Leistungen je Alter nach Behandlungsjahr 2021 (Vorjahr-2) | S13: Leistungen pro Vertrag und je Alter nach Behandlungsjahr 2023 (Vorjahr) | U13: Leistungen pro Vertrag und je Alter nach Behandlungsjahr 2022 (Vorjahr-1) | W13: Leistungen pro Vertrag und je Alter nach Behandlungsjahr 2021 (Vorjahr-2) | Y13: Inflationierte Leistungen pro Vertrag und je Alter nach Behandlungsjahr 2023 (Vorjahr) | AA13: Inflationierte Leistungen pro Vertrag und je Alter nach Behandlungsjahr 2022 (Vorjahr-1) | AC13: Inflationierte Leistungen pro Vertrag und je Alter nach Behandlungsjahr 2021 (Vorjahr-2) | AE13: Leistungen pro Vertrag und je Alter | AG13: Prämien pro Vertrag und je Alter (Aktuelles Jahr) | AJ13: Leistungen pro Vertrag und je Alter (geglättet)
C14: Total (positive Werte) | E14: (positiv, CHF) | G14: (positiv, CHF) | I14: (positiv, CHF) | K14: (positiv, CHF) | M14: (positiv, CHF) | O14: (positiv, CHF) | Q14: (positiv, CHF) | S14: (positiv, CHF) | U14: (positiv, CHF) | W14: (positiv, CHF) | Y14: (positiv, CHF) | AA14: (positiv, CHF) | AC14: (positiv, CHF) | AE14: (positiv, CHF) | AG14: (positiv, CHF) | AJ14: (positiv, CHF)
C15: Männer | D15: Frauen | E15: Männer | F15: Frauen | G15: Männer | H15: Frauen | I15: Männer | J15: Frauen | K15: Männer | L15: Frauen | M15: Männer | N15: Frauen | O15: Männer | P15: Frauen | Q15: Männer | R15: Frauen | S15: Männer | T15: Frauen | U15: Männer | V15: Frauen | W15: Männer | X15: Frauen | Y15: Männer | Z15: Frauen | AA15: Männer | AB15: Frauen | AC15: Männer | AD15: Frauen | AE15: Männer | AF15: Frauen | AG15: Männer | AH15: Frauen | AJ15: Männer | AK15: Frauen
C16: =SUM(_MP3) -> 0 | D16: =SUM(_FP3) -> 0 | E16: =IF(C16=0,0,SUMPRODUCT(E17:E117,_MP3)/C16) -> 0 | F16: =IF(D16=0,0,SUMPRODUCT(F17:F117,_FP3)/D16) -> 0 | G16: =SUM(G17:G117) -> 0 | H16: 0 | I16: 0 | J16: 0 | K16: 0 | L16: 0 | M16: 0 | N16: 0 | O16: 0 | P16: 0 | Q16: 0 | R16: 0
B17: 0 | S17: =IFERROR(M17/G17,0) -> 0 | T17: 0 | U17: 0 | V17: 0 | W17: 0 | X17: 0 | Y17: =IF(S17=0,0,S17) -> 0 | Z17: 0 | AA17: 0 | AB17: 0 | AC17: 0 | AD17: 0 | AE17: =IFERROR((G17*Y17+I17*AA17+K17*AC17)/(G17+I17+K17), 0)*nur_L -> 0 | AF17: =IFERROR((H17*Z17+J17*AB17+L17*AD17)/(H17+J17+L17), 0)*nur_L -> 0 | AG17: =IF(E17="",0,E17) -> 0 | AH17: =IF(F17="",0,F17) -> 0 | AJ17: =IFERROR(AVERAGE(AE17,AE18),0) -> 0 | AK17: =IFERROR(AVERAGE(AF17,AF18),0) -> 0
B18: 1 | S18: =IFERROR(M18/G18,0) -> 0 | T18: =IFERROR(N18/H18,0) -> 0 | U18: =IFERROR(O18/I18,0) -> 0 | V18: =IFERROR(P18/J18,0) -> 0 | W18: =IFERROR(Q18/K18,0) -> 0 | X18: =IFERROR(R18/L18,0) -> 0 | Y18: 0 | Z18: 0 | AA18: 0 | AB18: 0 | AC18: 0 | AD18: 0 | AE18: 0 | AF18: 0 | AG18: 0 | AH18: 0 | AJ18: =IFERROR(AVERAGE(AE17:AE19),0) -> 0 | AK18: =IFERROR(AVERAGE(AF17:AF19),0) -> 0
B19: 2 | S19: 0 | T19: 0 | U19: 0 | V19: 0 | W19: 0 | X19: 0 | Y19: 0 | Z19: 0 | AA19: 0 | AB19: 0 | AC19: 0 | AD19: 0 | AE19: 0 | AF19: 0 | AG19: 0 | AH19: 0 | AJ19: =IFERROR(AVERAGE(AE18:AE20),0) -> 0 | AK19: 0
B20: 3 | S20: 0 | T20: 0 | U20: 0 | V20: 0 | W20: 0 | X20: 0 | Y20: 0 | Z20: 0 | AA20: 0 | AB20: 0 | AC20: 0 | AD20: 0 | AE20: 0 | AF20: 0 | AG20: 0 | AH20: 0 | AJ20: 0 | AK20: 0
B21: 4 | S21: 0 | T21: 0 | U21: 0 | V21: 0 | W21: 0 | X21: 0 | Y21: 0 | Z21: 0 | AA21: 0 | AB21: 0 | AC21: 0 | AD21: 0 | AE21: 0 | AF21: 0 | AG21: 0 | AH21: 0 | AJ21: 0 | AK21: 0
B22: 5 | S22: 0 | T22: 0 | U22: 0 | V22: 0 | W22: 0 | X22: 0 | Y22: 0 | Z22: 0 | AA22: 0 | AB22: 0 | AC22: 0 | AD22: 0 | AE22: 0 | AF22: 0 | AG22: 0 | AH22: 0 | AJ22: 0 | AK22: 0
B23: 6 | S23: 0 | T23: 0 | U23: 0 | V23: 0 | W23: 0 | X23: 0 | Y23: 0 | Z23: 0 | AA23: 0 | AB23: 0 | AC23: 0 | AD23: 0 | AE23: 0 | AF23: 0 | AG23: 0 | AH23: 0 | AJ23: 0 | AK23: 0
B24: 7 | S24: 0 | T24: 0 | U24: 0 | V24: 0 | W24: 0 | X24: 0 | Y24: 0 | Z24: 0 | AA24: 0 | AB24: 0 | AC24: 0 | AD24: 0 | AE24: 0 | AF24: 0 | AG24: 0 | AH24: 0 | AJ24: 0 | AK24: 0
B25: 8 | S25: 0 | T25: 0 | U25: 0 | V25: 0 | W25: 0 | X25: 0 | Y25: 0 | Z25: 0 | AA25: 0 | AB25: 0 | AC25: 0 | AD25: 0 | AE25: 0 | AF25: 0 | AG25: 0 | AH25: 0 | AJ25: 0 | AK25: 0
B26: 9 | S26: 0 | T26: 0 | U26: 0 | V26: 0 | W26: 0 | X26: 0 | Y26: 0 | Z26: 0 | AA26: 0 | AB26: 0 | AC26: 0 | AD26: 0 | AE26: 0 | AF26: 0 | AG26: 0 | AH26: 0 | AJ26: 0 | AK26: 0
B27: 10 | S27: 0 | T27: 0 | U27: 0 | V27: 0 | W27: 0 | X27: 0 | Y27: 0 | Z27: 0 | AA27: 0 | AB27: 0 | AC27: 0 | AD27: 0 | AE27: 0 | AF27: 0 | AG27: 0 | AH27: 0 | AJ27: 0 | AK27: 0
B28: 11 | S28: 0 | T28: 0 | U28: 0 | V28: 0 | W28: 0 | X28: 0 | Y28: 0 | Z28: 0 | AA28: 0 | AB28: 0 | AC28: 0 | AD28: 0 | AE28: 0 | AF28: 0 | AG28: 0 | AH28: 0 | AJ28: 0 | AK28: 0
B29: 12 | S29: 0 | T29: 0 | U29: 0 | V29: 0 | W29: 0 | X29: 0 | Y29: 0 | Z29: 0 | AA29: 0 | AB29: 0 | AC29: 0 | AD29: 0 | AE29: 0 | AF29: 0 | AG29: 0 | AH29: 0 | AJ29: 0 | AK29: 0
B30: 13 | S30: 0 | T30: 0 | U30: 0 | V30: 0 | W30: 0 | X30: 0 | Y30: 0 | Z30: 0 | AA30: 0 | AB30: 0 | AC30: 0 | AD30: 0 | AE30: 0 | AF30: 0 | AG30: 0 | AH30: 0 | AJ30: 0 | AK30: 0
B31: 14 | S31: 0 | T31: 0 | U31: 0 | V31: 0 | W31: 0 | X31: 0 | Y31: 0 | Z31: 0 | AA31: 0 | AB31: 0 | AC31: 0 | AD31: 0 | AE31: 0 | AF31: 0 | AG31: 0 | AH31: 0 | AJ31: 0 | AK31: 0
B32: 15 | S32: 0 | T32: 0 | U32: 0 | V32: 0 | W32: 0 | X32: 0 | Y32: 0 | Z32: 0 | AA32: 0 | AB32: 0 | AC32: 0 | AD32: 0 | AE32: 0 | AF32: 0 | AG32: 0 | AH32: 0 | AJ32: 0 | AK32: 0
B33: 16 | S33: 0 | T33: 0 | U33: 0 | V33: 0 | W33: 0 | X33: 0 | Y33: =IF(S33=0,0,S33) -> 0 | Z33: 0 | AA33: 0 | AB33: 0 | AC33: 0 | AD33: 0 | AE33: 0 | AF33: 0 | AG33: 0 | AH33: 0 | AJ33: 0 | AK33: 0
B34: 17 | S34: 0 | T34: 0 | U34: 0 | V34: 0 | W34: 0 | X34: 0 | Y34: 0 | Z34: 0 | AA34: 0 | AB34: 0 | AC34: 0 | AD34: 0 | AE34: 0 | AF34: 0 | AG34: 0 | AH34: 0 | AJ34: 0 | AK34: 0
B35: 18 | S35: 0 | T35: 0 | U35: 0 | V35: 0 | W35: 0 | X35: 0 | Y35: 0 | Z35: 0 | AA35: 0 | AB35: 0 | AC35: 0 | AD35: 0 | AE35: 0 | AF35: 0 | AG35: 0 | AH35: 0 | AJ35: 0 | AK35: 0
B36: 19 | S36: 0 | T36: 0 | U36: 0 | V36: 0 | W36: 0 | X36: 0 | Y36: 0 | Z36: 0 | AA36: 0 | AB36: 0 | AC36: 0 | AD36: 0 | AE36: 0 | AF36: 0 | AG36: 0 | AH36: 0 | AJ36: 0 | AK36: 0
B37: 20 | S37: 0 | T37: 0 | U37: 0 | V37: 0 | W37: 0 | X37: 0 | Y37: 0 | Z37: 0 | AA37: 0 | AB37: 0 | AC37: 0 | AD37: 0 | AE37: 0 | AF37: 0 | AG37: 0 | AH37: 0 | AJ37: 0 | AK37: 0
B38: 21 | S38: 0 | T38: 0 | U38: 0 | V38: 0 | W38: 0 | X38: 0 | Y38: 0 | Z38: 0 | AA38: 0 | AB38: 0 | AC38: 0 | AD38: 0 | AE38: 0 | AF38: 0 | AG38: 0 | AH38: 0 | AJ38: 0 | AK38: 0
B39: 22 | S39: 0 | T39: 0 | U39: 0 | V39: 0 | W39: 0 | X39: 0 | Y39: 0 | Z39: 0 | AA39: 0 | AB39: 0 | AC39: 0 | AD39: 0 | AE39: 0 | AF39: 0 | AG39: 0 | AH39: 0 | AJ39: 0 | AK39: 0
B40: 23 | S40: 0 | T40: 0 | U40: 0 | V40: 0 | W40: 0 | X40: 0 | Y40: 0 | Z40: 0 | AA40: 0 | AB40: 0 | AC40: 0 | AD40: 0 | AE40: 0 | AF40: 0 | AG40: 0 | AH40: 0 | AJ40: 0 | AK40: 0
B41: 24 | S41: 0 | T41: 0 | U41: 0 | V41: 0 | W41: 0 | X41: 0 | Y41: 0 | Z41: 0 | AA41: 0 | AB41: 0 | AC41: 0 | AD41: 0 | AE41: 0 | AF41: 0 | AG41: 0 | AH41: 0 | AJ41: 0 | AK41: 0
B42: 25 | S42: 0 | T42: 0 | U42: 0 | V42: 0 | W42: 0 | X42: 0 | Y42: 0 | Z42: 0 | AA42: 0 | AB42: 0 | AC42: 0 | AD42: 0 | AE42: 0 | AF42: 0 | AG42: 0 | AH42: 0 | AJ42: 0 | AK42: 0
B43: 26 | S43: 0 | T43: 0 | U43: 0 | V43: 0 | W43: 0 | X43: 0 | Y43: 0 | Z43: 0 | AA43: 0 | AB43: 0 | AC43: 0 | AD43: 0 | AE43: 0 | AF43: 0 | AG43: 0 | AH43: 0 | AJ43: 0 | AK43: 0
B44: 27 | S44: 0 | T44: 0 | U44: 0 | V44: 0 | W44: 0 | X44: 0 | Y44: 0 | Z44: 0 | AA44: 0 | AB44: 0 | AC44: 0 | AD44: 0 | AE44: 0 | AF44: 0 | AG44: 0 | AH44: 0 | AJ44: 0 | AK44: 0
B45: 28 | S45: 0 | T45: 0 | U45: 0 | V45: 0 | W45: 0 | X45: 0 | Y45: 0 | Z45: 0 | AA45: 0 | AB45: 0 | AC45: 0 | AD45: 0 | AE45: 0 | AF45: 0 | AG45: 0 | AH45: 0 | AJ45: 0 | AK45: 0
B46: 29 | S46: 0 | T46: 0 | U46: 0 | V46: 0 | W46: 0 | X46: 0 | Y46: 0 | Z46: 0 | AA46: 0 | AB46: 0 | AC46: 0 | AD46: 0 | AE46: 0 | AF46: 0 | AG46: 0 | AH46: 0 | AJ46: 0 | AK46: 0
B47: 30 | S47: 0 | T47: 0 | U47: 0 | V47: 0 | W47: 0 | X47: 0 | Y47: 0 | Z47: 0 | AA47: 0 | AB47: 0 | AC47: 0 | AD47: 0 | AE47: 0 | AF47: 0 | AG47: 0 | AH47: 0 | AJ47: 0 | AK47: 0
B48: 31 | S48: 0 | T48: 0 | U48: 0 | V48: 0 | W48: 0 | X48: 0 | Y48: 0 | Z48: 0 | AA48: 0 | AB48: 0 | AC48: 0 | AD48: 0 | AE48: 0 | AF48: 0 | AG48: 0 | AH48: 0 | AJ48: 0 | AK48: 0
B49: 32 | S49: 0 | T49: 0 | U49: 0 | V49: 0 | W49: 0 | X49: 0 | Y49: 0 | Z49: 0 | AA49: 0 | AB49: 0 | AC49: 0 | AD49: 0 | AE49: =IFERROR((G49*Y49+I49*AA49+K49*AC49)/(G49+I49+K49), 0)*nur_L -> 0 | AF49: =IFERROR((H49*Z49+J49*AB49+L49*AD49)/(H49+J49+L49), 0)*nur_L -> 0 | AG49: =IF(E49="",0,E49) -> 0 | AH49: =IF(F49="",0,F49) -> 0 | AJ49: 0 | AK49: 0
B50: 33 | S50: 0 | T50: 0 | U50: 0 | V50: 0 | W50: 0 | X50: 0 | Y50: 0 | Z50: 0 | AA50: 0 | AB50: 0 | AC50: 0 | AD50: 0 | AE50: 0 | AF50: 0 | AG50: 0 | AH50: 0 | AJ50: 0 | AK50: 0
B51: 34 | S51: 0 | T51: 0 | U51: 0 | V51: 0 | W51: 0 | X51: 0 | Y51: 0 | Z51: 0 | AA51: 0 | AB51: 0 | AC51: 0 | AD51: 0 | AE51: 0 | AF51: 0 | AG51: 0 | AH51: 0 | AJ51: 0 | AK51: 0
B52: 35 | S52: 0 | T52: 0 | U52: 0 | V52: 0 | W52: 0 | X52: 0 | Y52: 0 | Z52: 0 | AA52: 0 | AB52: 0 | AC52: 0 | AD52: 0 | AE52: 0 | AF52: 0 | AG52: 0 | AH52: 0 | AJ52: 0 | AK52: 0
B53: 36 | S53: 0 | T53: 0 | U53: 0 | V53: 0 | W53: 0 | X53: 0 | Y53: 0 | Z53: 0 | AA53: 0 | AB53: 0 | AC53: 0 | AD53: 0 | AE53: 0 | AF53: 0 | AG53: 0 | AH53: 0 | AJ53: 0 | AK53: 0
B54: 37 | S54: 0 | T54: 0 | U54: 0 | V54: 0 | W54: 0 | X54: 0 | Y54: 0 | Z54: 0 | AA54: 0 | AB54: 0 | AC54: 0 | AD54: 0 | AE54: 0 | AF54: 0 | AG54: 0 | AH54: 0 | AJ54: 0 | AK54: 0
B55: 38 | S55: 0 | T55: 0 | U55: 0 | V55: 0 | W55: 0 | X55: 0 | Y55: 0 | Z55: 0 | AA55: 0 | AB55: 0 | AC55: 0 | AD55: 0 | AE55: 0 | AF55: 0 | AG55: 0 | AH55: 0 | AJ55: 0 | AK55: 0
B56: 39 | S56: 0 | T56: 0 | U56: 0 | V56: 0 | W56: 0 | X56: 0 | Y56: 0 | Z56: 0 | AA56: 0 | AB56: 0 | AC56: 0 | AD56: 0 | AE56: 0 | AF56: 0 | AG56: 0 | AH56: 0 | AJ56: 0 | AK56: 0
B57: 40 | S57: 0 | T57: 0 | U57: 0 | V57: 0 | W57: 0 | X57: 0 | Y57: 0 | Z57: 0 | AA57: 0 | AB57: 0 | AC57: 0 | AD57: 0 | AE57: 0 | AF57: 0 | AG57: 0 | AH57: 0 | AJ57: 0 | AK57: 0
B58: 41 | S58: 0 | T58: 0 | U58: 0 | V58: 0 | W58: 0 | X58: 0 | Y58: 0 | Z58: 0 | AA58: 0 | AB58: 0 | AC58: 0 | AD58: 0 | AE58: 0 | AF58: 0 | AG58: 0 | AH58: 0 | AJ58: 0 | AK58: 0
B59: 42 | S59: 0 | T59: 0 | U59: 0 | V59: 0 | W59: 0 | X59: 0 | Y59: 0 | Z59: 0 | AA59: 0 | AB59: 0 | AC59: 0 | AD59: 0 | AE59: 0 | AF59: 0 | AG59: 0 | AH59: 0 | AJ59: 0 | AK59: 0
B60: 43 | S60: 0 | T60: 0 | U60: 0 | V60: 0 | W60: 0 | X60: 0 | Y60: 0 | Z60: 0 | AA60: 0 | AB60: 0 | AC60: 0 | AD60: 0 | AE60: 0 | AF60: 0 | AG60: 0 | AH60: 0 | AJ60: 0 | AK60: 0
B61: 44 | S61: 0 | T61: 0 | U61: 0 | V61: 0 | W61: 0 | X61: 0 | Y61: 0 | Z61: 0 | AA61: 0 | AB61: 0 | AC61: 0 | AD61: 0 | AE61: 0 | AF61: 0 | AG61: 0 | AH61: 0 | AJ61: 0 | AK61: 0
B62: 45 | S62: 0 | T62: 0 | U62: 0 | V62: 0 | W62: 0 | X62: 0 | Y62: 0 | Z62: 0 | AA62: 0 | AB62: 0 | AC62: 0 | AD62: 0 | AE62: 0 | AF62: 0 | AG62: 0 | AH62: 0 | AJ62: 0 | AK62: 0
B63: 46 | S63: 0 | T63: 0 | U63: 0 | V63: 0 | W63: 0 | X63: 0 | Y63: 0 | Z63: 0 | AA63: 0 | AB63: 0 | AC63: 0 | AD63: 0 | AE63: 0 | AF63: 0 | AG63: 0 | AH63: 0 | AJ63: 0 | AK63: 0
B64: 47 | S64: 0 | T64: 0 | U64: 0 | V64: 0 | W64: 0 | X64: 0 | Y64: 0 | Z64: 0 | AA64: 0 | AB64: 0 | AC64: 0 | AD64: 0 | AE64: 0 | AF64: 0 | AG64: 0 | AH64: 0 | AJ64: 0 | AK64: 0
B65: 48 | S65: 0 | T65: 0 | U65: 0 | V65: 0 | W65: 0 | X65: 0 | Y65: 0 | Z65: 0 | AA65: 0 | AB65: 0 | AC65: 0 | AD65: 0 | AE65: 0 | AF65: 0 | AG65: 0 | AH65: 0 | AJ65: 0 | AK65: 0
B66: 49 | S66: 0 | T66: 0 | U66: 0 | V66: 0 | W66: 0 | X66: 0 | Y66: 0 | Z66: 0 | AA66: 0 | AB66: 0 | AC66: 0 | AD66: 0 | AE66: 0 | AF66: 0 | AG66: 0 | AH66: 0 | AJ66: 0 | AK66: 0
B67: 50 | S67: 0 | T67: 0 | U67: 0 | V67: 0 | W67: 0 | X67: 0 | Y67: 0 | Z67: 0 | AA67: 0 | AB67: 0 | AC67: 0 | AD67: 0 | AE67: 0 | AF67: 0 | AG67: 0 | AH67: 0 | AJ67: 0 | AK67: 0
B68: 51 | S68: 0 | T68: 0 | U68: 0 | V68: 0 | W68: 0 | X68: 0 | Y68: 0 | Z68: 0 | AA68: 0 | AB68: 0 | AC68: 0 | AD68: 0 | AE68: 0 | AF68: 0 | AG68: 0 | AH68: 0 | AJ68: 0 | AK68: 0
B69: 52 | S69: 0 | T69: 0 | U69: 0 | V69: 0 | W69: 0 | X69: 0 | Y69: 0 | Z69: 0 | AA69: 0 | AB69: 0 | AC69: 0 | AD69: 0 | AE69: 0 | AF69: 0 | AG69: 0 | AH69: 0 | AJ69: 0 | AK69: 0
B70: 53 | S70: 0 | T70: 0 | U70: 0 | V70: 0 | W70: 0 | X70: 0 | Y70: 0 | Z70: 0 | AA70: 0 | AB70: 0 | AC70: 0 | AD70: 0 | AE70: 0 | AF70: 0 | AG70: 0 | AH70: 0 | AJ70: 0 | AK70: 0
B71: 54 | S71: 0 | T71: 0 | U71: 0 | V71: 0 | W71: 0 | X71: 0 | Y71: 0 | Z71: 0 | AA71: 0 | AB71: 0 | AC71: 0 | AD71: 0 | AE71: 0 | AF71: 0 | AG71: 0 | AH71: 0 | AJ71: 0 | AK71: 0
B72: 55 | S72: 0 | T72: 0 | U72: 0 | V72: 0 | W72: 0 | X72: 0 | Y72: 0 | Z72: 0 | AA72: 0 | AB72: 0 | AC72: 0 | AD72: 0 | AE72: 0 | AF72: 0 | AG72: 0 | AH72: 0 | AJ72: 0 | AK72: 0
B73: 56 | S73: 0 | T73: 0 | U73: 0 | V73: 0 | W73: 0 | X73: 0 | Y73: 0 | Z73: 0 | AA73: 0 | AB73: 0 | AC73: 0 | AD73: 0 | AE73: 0 | AF73: 0 | AG73: 0 | AH73: 0 | AJ73: 0 | AK73: 0
B74: 57 | S74: 0 | T74: 0 | U74: 0 | V74: 0 | W74: 0 | X74: 0 | Y74: 0 | Z74: 0 | AA74: 0 | AB74: 0 | AC74: 0 | AD74: 0 | AE74: 0 | AF74: 0 | AG74: 0 | AH74: 0 | AJ74: 0 | AK74: 0
B75: 58 | S75: 0 | T75: 0 | U75: 0 | V75: 0 | W75: 0 | X75: 0 | Y75: 0 | Z75: 0 | AA75: 0 | AB75: =IF(V75=0,0,V75) -> 0 | AC75: 0 | AD75: 0 | AE75: 0 | AF75: 0 | AG75: 0 | AH75: 0 | AJ75: 0 | AK75: 0
B76: 59 | S76: 0 | T76: 0 | U76: 0 | V76: 0 | W76: 0 | X76: 0 | Y76: =IF(S76=0,0,S76) -> 0 | Z76: 0 | AA76: 0 | AB76: 0 | AC76: 0 | AD76: 0 | AE76: 0 | AF76: 0 | AG76: 0 | AH76: 0 | AJ76: 0 | AK76: 0
B77: 60 | S77: 0 | T77: 0 | U77: 0 | V77: 0 | W77: 0 | X77: 0 | Y77: 0 | Z77: 0 | AA77: 0 | AB77: 0 | AC77: 0 | AD77: 0 | AE77: 0 | AF77: 0 | AG77: 0 | AH77: 0 | AJ77: 0 | AK77: 0
B78: 61 | S78: 0 | T78: 0 | U78: 0 | V78: 0 | W78: 0 | X78: 0 | Y78: 0 | Z78: 0 | AA78: 0 | AB78: 0 | AC78: 0 | AD78: 0 | AE78: 0 | AF78: 0 | AG78: 0 | AH78: 0 | AJ78: 0 | AK78: 0
B79: 62 | S79: 0 | T79: 0 | U79: 0 | V79: 0 | W79: 0 | X79: 0 | Y79: 0 | Z79: 0 | AA79: 0 | AB79: 0 | AC79: 0 | AD79: 0 | AE79: 0 | AF79: 0 | AG79: 0 | AH79: 0 | AJ79: 0 | AK79: 0
B80: 63 | S80: 0 | T80: 0 | U80: 0 | V80: 0 | W80: 0 | X80: 0 | Y80: 0 | Z80: 0 | AA80: 0 | AB80: 0 | AC80: 0 | AD80: 0 | AE80: 0 | AF80: 0 | AG80: 0 | AH80: 0 | AJ80: 0 | AK80: 0
B81: 64 | S81: 0 | T81: 0 | U81: 0 | V81: 0 | W81: 0 | X81: 0 | Y81: 0 | Z81: 0 | AA81: 0 | AB81: 0 | AC81: 0 | AD81: 0 | AE81: =IFERROR((G81*Y81+I81*AA81+K81*AC81)/(G81+I81+K81), 0)*nur_L -> 0 | AF81: =IFERROR((H81*Z81+J81*AB81+L81*AD81)/(H81+J81+L81), 0)*nur_L -> 0 | AG81: =IF(E81="",0,E81) -> 0 | AH81: =IF(F81="",0,F81) -> 0 | AJ81: 0 | AK81: 0
B82: 65 | S82: =IFERROR(M82/G82,0) -> 0 | T82: =IFERROR(N82/H82,0) -> 0 | U82: =IFERROR(O82/I82,0) -> 0 | V82: =IFERROR(P82/J82,0) -> 0 | W82: =IFERROR(Q82/K82,0) -> 0 | X82: =IFERROR(R82/L82,0) -> 0 | Y82: 0 | Z82: 0 | AA82: 0 | AB82: 0 | AC82: 0 | AD82: 0 | AE82: 0 | AF82: 0 | AG82: 0 | AH82: 0 | AJ82: 0 | AK82: 0
B83: 66 | S83: 0 | T83: 0 | U83: 0 | V83: 0 | W83: 0 | X83: 0 | Y83: 0 | Z83: 0 | AA83: 0 | AB83: 0 | AC83: 0 | AD83: 0 | AE83: 0 | AF83: 0 | AG83: 0 | AH83: 0 | AJ83: =IFERROR(AVERAGE(AE82:AE84),0) -> 0 | AK83: 0
B84: 67 | S84: 0 | T84: 0 | U84: 0 | V84: 0 | W84: 0 | X84: 0 | Y84: 0 | Z84: 0 | AA84: 0 | AB84: 0 | AC84: 0 | AD84: 0 | AE84: 0 | AF84: 0 | AG84: 0 | AH84: 0 | AJ84: 0 | AK84: 0
B85: 68 | S85: 0 | T85: 0 | U85: 0 | V85: 0 | W85: 0 | X85: 0 | Y85: 0 | Z85: 0 | AA85: 0 | AB85: 0 | AC85: 0 | AD85: 0 | AE85: 0 | AF85: 0 | AG85: 0 | AH85: 0 | AJ85: 0 | AK85: 0
B86: 69 | S86: 0 | T86: 0 | U86: 0 | V86: 0 | W86: 0 | X86: 0 | Y86: 0 | Z86: 0 | AA86: 0 | AB86: 0 | AC86: 0 | AD86: 0 | AE86: 0 | AF86: 0 | AG86: 0 | AH86: 0 | AJ86: 0 | AK86: 0
B87: 70 | S87: 0 | T87: 0 | U87: 0 | V87: 0 | W87: 0 | X87: 0 | Y87: 0 | Z87: 0 | AA87: 0 | AB87: 0 | AC87: 0 | AD87: 0 | AE87: 0 | AF87: 0 | AG87: 0 | AH87: 0 | AJ87: 0 | AK87: 0
B88: 71 | S88: 0 | T88: 0 | U88: 0 | V88: 0 | W88: 0 | X88: 0 | Y88: 0 | Z88: 0 | AA88: 0 | AB88: 0 | AC88: 0 | AD88: 0 | AE88: 0 | AF88: 0 | AG88: 0 | AH88: 0 | AJ88: 0 | AK88: 0
B89: 72 | S89: 0 | T89: 0 | U89: 0 | V89: 0 | W89: 0 | X89: 0 | Y89: 0 | Z89: 0 | AA89: 0 | AB89: 0 | AC89: 0 | AD89: 0 | AE89: 0 | AF89: 0 | AG89: 0 | AH89: 0 | AJ89: 0 | AK89: 0
B90: 73 | S90: 0 | T90: 0 | U90: 0 | V90: 0 | W90: 0 | X90: 0 | Y90: 0 | Z90: 0 | AA90: 0 | AB90: 0 | AC90: 0 | AD90: 0 | AE90: 0 | AF90: 0 | AG90: 0 | AH90: 0 | AJ90: 0 | AK90: 0
B91: 74 | S91: 0 | T91: 0 | U91: 0 | V91: 0 | W91: 0 | X91: 0 | Y91: 0 | Z91: 0 | AA91: 0 | AB91: 0 | AC91: 0 | AD91: 0 | AE91: 0 | AF91: 0 | AG91: 0 | AH91: 0 | AJ91: 0 | AK91: 0
B92: 75 | S92: 0 | T92: 0 | U92: 0 | V92: 0 | W92: 0 | X92: 0 | Y92: 0 | Z92: 0 | AA92: 0 | AB92: 0 | AC92: 0 | AD92: 0 | AE92: 0 | AF92: 0 | AG92: 0 | AH92: 0 | AJ92: 0 | AK92: 0
B93: 76 | S93: 0 | T93: 0 | U93: 0 | V93: 0 | W93: 0 | X93: 0 | Y93: 0 | Z93: 0 | AA93: 0 | AB93: 0 | AC93: 0 | AD93: 0 | AE93: 0 | AF93: 0 | AG93: 0 | AH93: 0 | AJ93: 0 | AK93: 0
B94: 77 | S94: 0 | T94: 0 | U94: 0 | V94: 0 | W94: 0 | X94: 0 | Y94: 0 | Z94: 0 | AA94: 0 | AB94: 0 | AC94: 0 | AD94: 0 | AE94: 0 | AF94: 0 | AG94: 0 | AH94: 0 | AJ94: 0 | AK94: 0
B95: 78 | S95: 0 | T95: 0 | U95: 0 | V95: 0 | W95: 0 | X95: 0 | Y95: 0 | Z95: 0 | AA95: 0 | AB95: 0 | AC95: 0 | AD95: 0 | AE95: 0 | AF95: 0 | AG95: 0 | AH95: 0 | AJ95: 0 | AK95: 0
B96: 79 | S96: 0 | T96: 0 | U96: 0 | V96: 0 | W96: 0 | X96: 0 | Y96: 0 | Z96: 0 | AA96: 0 | AB96: 0 | AC96: 0 | AD96: 0 | AE96: 0 | AF96: 0 | AG96: 0 | AH96: 0 | AJ96: 0 | AK96: 0
B97: 80 | S97: 0 | T97: 0 | U97: 0 | V97: 0 | W97: 0 | X97: 0 | Y97: 0 | Z97: 0 | AA97: 0 | AB97: 0 | AC97: 0 | AD97: 0 | AE97: 0 | AF97: 0 | AG97: 0 | AH97: 0 | AJ97: 0 | AK97: 0
B98: 81 | S98: 0 | T98: 0 | U98: 0 | V98: 0 | W98: 0 | X98: 0 | Y98: 0 | Z98: 0 | AA98: 0 | AB98: 0 | AC98: 0 | AD98: 0 | AE98: 0 | AF98: 0 | AG98: 0 | AH98: 0 | AJ98: 0 | AK98: 0
B99: 82 | S99: 0 | T99: 0 | U99: 0 | V99: 0 | W99: 0 | X99: 0 | Y99: 0 | Z99: 0 | AA99: 0 | AB99: 0 | AC99: 0 | AD99: 0 | AE99: 0 | AF99: 0 | AG99: 0 | AH99: 0 | AJ99: 0 | AK99: 0
B100: 83 | S100: 0 | T100: 0 | U100: 0 | V100: 0 | W100: 0 | X100: 0 | Y100: 0 | Z100: 0 | AA100: 0 | AB100: 0 | AC100: 0 | AD100: 0 | AE100: 0 | AF100: 0 | AG100: 0 | AH100: 0 | AJ100: 0 | AK100: 0
B101: 84 | S101: 0 | T101: 0 | U101: 0 | V101: 0 | W101: 0 | X101: 0 | Y101: 0 | Z101: 0 | AA101: 0 | AB101: 0 | AC101: 0 | AD101: 0 | AE101: 0 | AF101: 0 | AG101: 0 | AH101: 0 | AJ101: 0 | AK101: 0
B102: 85 | S102: 0 | T102: 0 | U102: 0 | V102: 0 | W102: 0 | X102: 0 | Y102: 0 | Z102: 0 | AA102: 0 | AB102: 0 | AC102: 0 | AD102: 0 | AE102: 0 | AF102: 0 | AG102: 0 | AH102: 0 | AJ102: 0 | AK102: 0
B103: 86 | S103: 0 | T103: 0 | U103: 0 | V103: 0 | W103: 0 | X103: 0 | Y103: 0 | Z103: 0 | AA103: 0 | AB103: 0 | AC103: 0 | AD103: 0 | AE103: 0 | AF103: 0 | AG103: 0 | AH103: 0 | AJ103: 0 | AK103: 0
B104: 87 | S104: 0 | T104: 0 | U104: 0 | V104: 0 | W104: 0 | X104: 0 | Y104: 0 | Z104: 0 | AA104: 0 | AB104: 0 | AC104: 0 | AD104: 0 | AE104: 0 | AF104: 0 | AG104: 0 | AH104: 0 | AJ104: 0 | AK104: 0
B105: 88 | S105: 0 | T105: 0 | U105: 0 | V105: 0 | W105: 0 | X105: 0 | Y105: 0 | Z105: 0 | AA105: 0 | AB105: 0 | AC105: 0 | AD105: 0 | AE105: 0 | AF105: 0 | AG105: 0 | AH105: 0 | AJ105: 0 | AK105: 0
B106: 89 | S106: 0 | T106: 0 | U106: 0 | V106: 0 | W106: 0 | X106: 0 | Y106: 0 | Z106: 0 | AA106: 0 | AB106: 0 | AC106: 0 | AD106: 0 | AE106: 0 | AF106: 0 | AG106: 0 | AH106: 0 | AJ106: 0 | AK106: 0
B107: 90 | S107: 0 | T107: 0 | U107: 0 | V107: 0 | W107: 0 | X107: 0 | Y107: 0 | Z107: 0 | AA107: 0 | AB107: 0 | AC107: 0 | AD107: 0 | AE107: 0 | AF107: 0 | AG107: 0 | AH107: 0 | AJ107: 0 | AK107: 0
B108: 91 | S108: 0 | T108: 0 | U108: 0 | V108: 0 | W108: 0 | X108: 0 | Y108: 0 | Z108: 0 | AA108: 0 | AB108: 0 | AC108: 0 | AD108: 0 | AE108: 0 | AF108: 0 | AG108: 0 | AH108: 0 | AJ108: =IFERROR(SUMPRODUCT(C$108:C$117,AE$108:AE$117)/SUM(C$108:C$117),0) -> 0 | AK108: =IFERROR(SUMPRODUCT(D$108:D$117,AF$108:AF$117)/SUM(D$108:D$117),0) -> 0
B109: 92 | S109: 0 | T109: 0 | U109: 0 | V109: 0 | W109: 0 | X109: 0 | Y109: 0 | Z109: 0 | AA109: 0 | AB109: 0 | AC109: 0 | AD109: 0 | AE109: 0 | AF109: 0 | AG109: 0 | AH109: 0 | AJ109: 0 | AK109: 0
B110: 93 | S110: 0 | T110: 0 | U110: 0 | V110: 0 | W110: 0 | X110: 0 | Y110: 0 | Z110: 0 | AA110: 0 | AB110: 0 | AC110: 0 | AD110: 0 | AE110: 0 | AF110: 0 | AG110: 0 | AH110: 0 | AJ110: 0 | AK110: 0
B111: 94 | S111: 0 | T111: 0 | U111: 0 | V111: 0 | W111: 0 | X111: 0 | Y111: 0 | Z111: 0 | AA111: 0 | AB111: 0 | AC111: 0 | AD111: 0 | AE111: 0 | AF111: 0 | AG111: 0 | AH111: 0 | AJ111: 0 | AK111: 0
B112: 95 | S112: 0 | T112: 0 | U112: 0 | V112: 0 | W112: 0 | X112: 0 | Y112: 0 | Z112: 0 | AA112: 0 | AB112: 0 | AC112: 0 | AD112: 0 | AE112: 0 | AF112: 0 | AG112: 0 | AH112: 0 | AJ112: 0 | AK112: 0
B113: 96 | S113: 0 | T113: 0 | U113: 0 | V113: 0 | W113: 0 | X113: 0 | Y113: 0 | Z113: 0 | AA113: 0 | AB113: 0 | AC113: 0 | AD113: 0 | AE113: 0 | AF113: 0 | AG113: 0 | AH113: 0 | AJ113: 0 | AK113: 0
B114: 97 | S114: 0 | T114: 0 | U114: 0 | V114: 0 | W114: 0 | X114: 0 | Y114: 0 | Z114: 0 | AA114: 0 | AB114: 0 | AC114: 0 | AD114: 0 | AE114: 0 | AF114: 0 | AG114: 0 | AH114: 0 | AJ114: 0 | AK114: 0
B115: 98 | S115: 0 | T115: 0 | U115: 0 | V115: 0 | W115: 0 | X115: 0 | Y115: 0 | Z115: 0 | AA115: 0 | AB115: 0 | AC115: 0 | AD115: 0 | AE115: 0 | AF115: 0 | AG115: 0 | AH115: 0 | AJ115: 0 | AK115: 0
B116: 99 | S116: 0 | T116: 0 | U116: 0 | V116: 0 | W116: 0 | X116: 0 | Y116: 0 | Z116: 0 | AA116: 0 | AB116: 0 | AC116: 0 | AD116: 0 | AE116: 0 | AF116: 0 | AG116: 0 | AH116: 0 | AJ116: 0 | AK116: 0
B117: 100 | S117: 0 | T117: 0 | U117: 0 | V117: 0 | W117: 0 | X117: 0 | Y117: 0 | Z117: 0 | AA117: 0 | AB117: 0 | AC117: 0 | AD117: 0 | AE117: 0 | AF117: 0 | AG117: 0 | AH117: 0 | AJ117: 0 | AK117: 0

Sheet HE_Input_4
A1: 13 | B1: Produktegruppe 2: Inputdaten
B5: SST-Stichtag | C5: ="01.01."& current_year -> 01.01.2024
B7: Verwaltungskosten (%) | C7: =HE_Inputparam_VWK!C74 -> 0
B12: Produktegruppe 2 - Übrige Stationäre Produkte: Allgemien, Spitaltaggeld usw. | AJ12: Für Analysezwecke
B13: Effektivalter | C13: Anzahl Verträge je Alter per 01.01.2024 (Aktuelles Jahr) | E13: Prämien pro Vertrag und je Alter nach Behandlungsjahr (Aktuelles Jahr) | G13: Anzahl Verträge je Alter per 31.12. 2023 (Vorjahr) | I13: Anzahl Verträge je Alter per 31.12. 2022 (Vorjahr-1) | K13: Anzahl Verträge je Alter per 31.12. 2021 (Vorjahr-2) | M13: Leistungen je Alter nach Behandlungsjahr 2023 (Vorjahr) | O13: Leistungen je Alter nach Behandlungsjahr 2022 (Vorjahr-1) | Q13: Leistungen je Alter nach Behandlungsjahr 2021 (Vorjahr-2) | S13: Leistungen pro Vertrag und je Alter nach Behandlungsjahr 2023 (Vorjahr) | U13: Leistungen pro Vertrag und je Alter nach Behandlungsjahr 2022 (Vorjahr-1) | W13: Leistungen pro Vertrag und je Alter nach Behandlungsjahr 2021 (Vorjahr-2) | Y13: Inflationierte Leistungen pro Vertrag und je Alter nach Behandlungsjahr 2023 (Vorjahr) | AA13: Inflationierte Leistungen pro Vertrag und je Alter nach Behandlungsjahr 2022 (Vorjahr-1) | AC13: Inflationierte Leistungen pro Vertrag und je Alter nach Behandlungsjahr 2021 (Vorjahr-2) | AE13: Leistungen pro Vertrag und je Alter | AG13: Prämien pro Vertrag und je Alter (Aktuelles Jahr) | AJ13: Leistungen pro Vertrag und je Alter (geglättet)
C14: Total (positive Werte) | E14: (positiv, CHF) | G14: (positiv, CHF) | I14: (positiv, CHF) | K14: (positiv, CHF) | M14: (positiv, CHF) | O14: (positiv, CHF) | Q14: (positiv, CHF) | S14: (positiv, CHF) | U14: (positiv, CHF) | W14: (positiv, CHF) | Y14: (positiv, CHF) | AA14: (positiv, CHF) | AC14: (positiv, CHF) | AE14: (positiv, CHF) | AG14: (positiv, CHF) | AJ14: (positiv, CHF)
C15: Männer | D15: Frauen | E15: Männer | F15: Frauen | G15: Männer | H15: Frauen | I15: Männer | J15: Frauen | K15: Männer | L15: Frauen | M15: Männer | N15: Frauen | O15: Männer | P15: Frauen | Q15: Männer | R15: Frauen | S15: Männer | T15: Frauen | U15: Männer | V15: Frauen | W15: Männer | X15: Frauen | Y15: Männer | Z15: Frauen | AA15: Männer | AB15: Frauen | AC15: Männer | AD15: Frauen | AE15: Männer | AF15: Frauen | AG15: Männer | AH15: Frauen | AJ15: Männer | AK15: Frauen
C16: =SUM(_MP4) -> 0 | D16: =SUM(_FP4) -> 0 | E16: =IF(C16=0,0,SUMPRODUCT(E17:E117,_MP4)/C16) -> 0 | F16: =IF(D16=0,0,SUMPRODUCT(F17:F117,_FP4)/D16) -> 0 | G16: =SUM(G17:G117) -> 0 | H16: 0 | I16: 0 | J16: 0 | K16: 0 | L16: 0 | M16: 0 | N16: 0 | O16: 0 | P16: 0 | Q16: 0 | R16: 0
B17: 0 | S17: =IFERROR(M17/G17,0) -> 0 | T17: 0 | U17: 0 | V17: 0 | W17: 0 | X17: 0 | Y17: =IF(S17=0,0,S17) -> 0 | Z17: 0 | AA17: 0 | AB17: 0 | AC17: 0 | AD17: 0 | AE17: =IFERROR((G17*Y17+I17*AA17+K17*AC17)/(G17+I17+K17), 0)*nur_L -> 0 | AF17: =IFERROR((H17*Z17+J17*AB17+L17*AD17)/(H17+J17+L17), 0)*nur_L -> 0 | AG17: =IF(E17="",0,E17) -> 0 | AH17: =IF(F17="",0,F17) -> 0 | AJ17: =IFERROR(AVERAGE(AE17,AE18),0) -> 0 | AK17: =IFERROR(AVERAGE(AF17,AF18),0) -> 0
B18: 1 | S18: =IFERROR(M18/G18,0) -> 0 | T18: =IFERROR(N18/H18,0) -> 0 | U18: =IFERROR(O18/I18,0) -> 0 | V18: =IFERROR(P18/J18,0) -> 0 | W18: =IFERROR(Q18/K18,0) -> 0 | X18: =IFERROR(R18/L18,0) -> 0 | Y18: 0 | Z18: 0 | AA18: 0 | AB18: 0 | AC18: 0 | AD18: 0 | AE18: 0 | AF18: 0 | AG18: 0 | AH18: 0 | AJ18: =IFERROR(AVERAGE(AE17:AE19),0) -> 0 | AK18: =IFERROR(AVERAGE(AF17:AF19),0) -> 0
B19: 2 | S19: 0 | T19: 0 | U19: 0 | V19: 0 | W19: 0 | X19: 0 | Y19: 0 | Z19: 0 | AA19: 0 | AB19: 0 | AC19: 0 | AD19: 0 | AE19: 0 | AF19: 0 | AG19: 0 | AH19: 0 | AJ19: =IFERROR(AVERAGE(AE18:AE20),0) -> 0 | AK19: 0
B20: 3 | S20: 0 | T20: 0 | U20: 0 | V20: 0 | W20: 0 | X20: 0 | Y20: 0 | Z20: 0 | AA20: 0 | AB20: 0 | AC20: 0 | AD20: 0 | AE20: 0 | AF20: 0 | AG20: 0 | AH20: 0 | AJ20: 0 | AK20: 0
B21: 4 | S21: 0 | T21: 0 | U21: 0 | V21: 0 | W21: 0 | X21: 0 | Y21: 0 | Z21: 0 | AA21: 0 | AB21: 0 | AC21: 0 | AD21: 0 | AE21: 0 | AF21: 0 | AG21: 0 | AH21: 0 | AJ21: 0 | AK21: 0
B22: 5 | S22: 0 | T22: 0 | U22: 0 | V22: 0 | W22: 0 | X22: 0 | Y22: 0 | Z22: 0 | AA22: 0 | AB22: 0 | AC22: 0 | AD22: 0 | AE22: 0 | AF22: 0 | AG22: 0 | AH22: 0 | AJ22: 0 | AK22: 0
B23: 6 | S23: 0 | T23: 0 | U23: 0 | V23: 0 | W23: 0 | X23: 0 | Y23: 0 | Z23: 0 | AA23: 0 | AB23: 0 | AC23: 0 | AD23: 0 | AE23: 0 | AF23: 0 | AG23: 0 | AH23: 0 | AJ23: 0 | AK23: 0
B24: 7 | S24: 0 | T24: 0 | U24: 0 | V24: 0 | W24: 0 | X24: 0 | Y24: 0 | Z24: 0 | AA24: 0 | AB24: 0 | AC24: 0 | AD24: 0 | AE24: 0 | AF24: 0 | AG24: 0 | AH24: 0 | AJ24: 0 | AK24: 0
B25: 8 | S25: 0 | T25: 0 | U25: 0 | V25: 0 | W25: 0 | X25: 0 | Y25: 0 | Z25: 0 | AA25: 0 | AB25: 0 | AC25: 0 | AD25: 0 | AE25: 0 | AF25: 0 | AG25: 0 | AH25: 0 | AJ25: 0 | AK25: 0
B26: 9 | S26: 0 | T26: 0 | U26: 0 | V26: 0 | W26: 0 | X26: 0 | Y26: 0 | Z26: 0 | AA26: 0 | AB26: 0 | AC26: 0 | AD26: 0 | AE26: 0 | AF26: 0 | AG26: 0 | AH26: 0 | AJ26: 0 | AK26: 0
B27: 10 | S27: 0 | T27: 0 | U27: 0 | V27: 0 | W27: 0 | X27: 0 | Y27: 0 | Z27: 0 | AA27: 0 | AB27: 0 | AC27: 0 | AD27: 0 | AE27: 0 | AF27: 0 | AG27: 0 | AH27: 0 | AJ27: 0 | AK27: 0
B28: 11 | S28: 0 | T28: 0 | U28: 0 | V28: 0 | W28: 0 | X28: 0 | Y28: 0 | Z28: 0 | AA28: 0 | AB28: 0 | AC28: 0 | AD28: 0 | AE28: 0 | AF28: 0 | AG28: 0 | AH28: 0 | AJ28: 0 | AK28: 0
B29: 12 | S29: 0 | T29: 0 | U29: 0 | V29: 0 | W29: 0 | X29: 0 | Y29: 0 | Z29: 0 | AA29: 0 | AB29: 0 | AC29: 0 | AD29: 0 | AE29: 0 | AF29: 0 | AG29: 0 | AH29: 0 | AJ29: 0 | AK29: 0
B30: 13 | S30: 0 | T30: 0 | U30: 0 | V30: 0 | W30: 0 | X30: 0 | Y30: 0 | Z30: 0 | AA30: 0 | AB30: 0 | AC30: 0 | AD30: 0 | AE30: 0 | AF30: 0 | AG30: 0 | AH30: 0 | AJ30: 0 | AK30: 0
B31: 14 | S31: 0 | T31: 0 | U31: 0 | V31: 0 | W31: 0 | X31: 0 | Y31: 0 | Z31: 0 | AA31: 0 | AB31: 0 | AC31: 0 | AD31: 0 | AE31: 0 | AF31: 0 | AG31: 0 | AH31: 0 | AJ31: 0 | AK31: 0
B32: 15 | S32: 0 | T32: 0 | U32: 0 | V32: 0 | W32: 0 | X32: 0 | Y32: 0 | Z32: 0 | AA32: 0 | AB32: 0 | AC32: 0 | AD32: 0 | AE32: 0 | AF32: 0 | AG32: 0 | AH32: 0 | AJ32: 0 | AK32: 0
B33: 16 | S33: 0 | T33: 0 | U33: 0 | V33: 0 | W33: 0 | X33: 0 | Y33: =IF(S33=0,0,S33) -> 0 | Z33: 0 | AA33: 0 | AB33: 0 | AC33: 0 | AD33: 0 | AE33: 0 | AF33: 0 | AG33: 0 | AH33: 0 | AJ33: 0 | AK33: 0
B34: 17 | S34: 0 | T34: 0 | U34: 0 | V34: 0 | W34: 0 | X34: 0 | Y34: 0 | Z34: 0 | AA34: 0 | AB34: 0 | AC34: 0 | AD34: 0 | AE34: 0 | AF34: 0 | AG34: 0 | AH34: 0 | AJ34: 0 | AK34: 0
B35: 18 | S35: 0 | T35: 0 | U35: 0 | V35: 0 | W35: 0 | X35: 0 | Y35: 0 | Z35: 0 | AA35: 0 | AB35: 0 | AC35: 0 | AD35: 0 | AE35: 0 | AF35: 0 | AG35: 0 | AH35: 0 | AJ35: 0 | AK35: 0
B36: 19 | S36: 0 | T36: 0 | U36: 0 | V36: 0 | W36: 0 | X36: 0 | Y36: 0 | Z36: 0 | AA36: 0 | AB36: 0 | AC36: 0 | AD36: 0 | AE36: 0 | AF36: 0 | AG36: 0 | AH36: 0 | AJ36: 0 | AK36: 0
B37: 20 | S37: 0 | T37: 0 | U37: 0 | V37: 0 | W37: 0 | X37: 0 | Y37: 0 | Z37: 0 | AA37: 0 | AB37: 0 | AC37: 0 | AD37: 0 | AE37: 0 | AF37: 0 | AG37: 0 | AH37: 0 | AJ37: 0 | AK37: 0
B38: 21 | S38: 0 | T38: 0 | U38: 0 | V38: 0 | W38: 0 | X38: 0 | Y38: 0 | Z38: 0 | AA38: 0 | AB38: 0 | AC38: 0 | AD38: 0 | AE38: 0 | AF38: 0 | AG38: 0 | AH38: 0 | AJ38: 0 | AK38: 0
B39: 22 | S39: 0 | T39: 0 | U39: 0 | V39: 0 | W39: 0 | X39: 0 | Y39: 0 | Z39: 0 | AA39: 0 | AB39: 0 | AC39: 0 | AD39: 0 | AE39: 0 | AF39: 0 | AG39: 0 | AH39: 0 | AJ39: 0 | AK39: 0
B40: 23 | S40: 0 | T40: 0 | U40: 0 | V40: 0 | W40: 0 | X40: 0 | Y40: 0 | Z40: 0 | AA40: 0 | AB40: 0 | AC40: 0 | AD40: 0 | AE40: 0 | AF40: 0 | AG40: 0 | AH40: 0 | AJ40: 0 | AK40: 0
B41: 24 | S41: 0 | T41: 0 | U41: 0 | V41: 0 | W41: 0 | X41: 0 | Y41: 0 | Z41: 0 | AA41: 0 | AB41: 0 | AC41: 0 | AD41: 0 | AE41: 0 | AF41: 0 | AG41: 0 | AH41: 0 | AJ41: 0 | AK41: 0
B42: 25 | S42: 0 | T42: 0 | U42: 0 | V42: 0 | W42: 0 | X42: 0 | Y42: 0 | Z42: 0 | AA42: 0 | AB42: 0 | AC42: 0 | AD42: 0 | AE42: 0 | AF42: 0 | AG42: 0 | AH42: 0 | AJ42: 0 | AK42: 0
B43: 26 | S43: 0 | T43: 0 | U43: 0 | V43: 0 | W43: 0 | X43: 0 | Y43: 0 | Z43: 0 | AA43: 0 | AB43: 0 | AC43: 0 | AD43: 0 | AE43: 0 | AF43: 0 | AG43: 0 | AH43: 0 | AJ43: 0 | AK43: 0
B44: 27 | S44: 0 | T44: 0 | U44: 0 | V44: 0 | W44: 0 | X44: 0 | Y44: 0 | Z44: 0 | AA44: 0 | AB44: 0 | AC44: 0 | AD44: 0 | AE44: 0 | AF44: 0 | AG44: 0 | AH44: 0 | AJ44: 0 | AK44: 0
B45: 28 | S45: 0 | T45: 0 | U45: 0 | V45: 0 | W45: 0 | X45: 0 | Y45: 0 | Z45: 0 | AA45: 0 | AB45: 0 | AC45: 0 | AD45: 0 | AE45: 0 | AF45: 0 | AG45: 0 | AH45: 0 | AJ45: 0 | AK45: 0
B46: 29 | S46: 0 | T46: 0 | U46: 0 | V46: 0 | W46: 0 | X46: 0 | Y46: 0 | Z46: 0 | AA46: 0 | AB46: 0 | AC46: 0 | AD46: 0 | AE46: 0 | AF46: 0 | AG46: 0 | AH46: 0 | AJ46: 0 | AK46: 0
B47: 30 | S47: 0 | T47: 0 | U47: 0 | V47: 0 | W47: 0 | X47: 0 | Y47: 0 | Z47: 0 | AA47: 0 | AB47: 0 | AC47: 0 | AD47: 0 | AE47: 0 | AF47: 0 | AG47: 0 | AH47: 0 | AJ47: 0 | AK47: 0
B48: 31 | S48: 0 | T48: 0 | U48: 0 | V48: 0 | W48: 0 | X48: 0 | Y48: 0 | Z48: 0 | AA48: 0 | AB48: 0 | AC48: 0 | AD48: 0 | AE48: 0 | AF48: 0 | AG48: 0 | AH48: 0 | AJ48: 0 | AK48: 0
B49: 32 | S49: 0 | T49: 0 | U49: 0 | V49: 0 | W49: 0 | X49: 0 | Y49: 0 | Z49: 0 | AA49: 0 | AB49: 0 | AC49: 0 | AD49: 0 | AE49: =IFERROR((G49*Y49+I49*AA49+K49*AC49)/(G49+I49+K49), 0)*nur_L -> 0 | AF49: =IFERROR((H49*Z49+J49*AB49+L49*AD49)/(H49+J49+L49), 0)*nur_L -> 0 | AG49: =IF(E49="",0,E49) -> 0 | AH49: =IF(F49="",0,F49) -> 0 | AJ49: 0 | AK49: 0
B50: 33 | S50: 0 | T50: 0 | U50: 0 | V50: 0 | W50: 0 | X50: 0 | Y50: 0 | Z50: 0 | AA50: 0 | AB50: 0 | AC50: 0 | AD50: 0 | AE50: 0 | AF50: 0 | AG50: 0 | AH50: 0 | AJ50: 0 | AK50: 0
B51: 34 | S51: 0 | T51: 0 | U51: 0 | V51: 0 | W51: 0 | X51: 0 | Y51: 0 | Z51: 0 | AA51: 0 | AB51: 0 | AC51: 0 | AD51: 0 | AE51: 0 | AF51: 0 | AG51: 0 | AH51: 0 | AJ51: 0 | AK51: 0
B52: 35 | S52: 0 | T52: 0 | U52: 0 | V52: 0 | W52: 0 | X52: 0 | Y52: 0 | Z52: 0 | AA52: 0 | AB52: 0 | AC52: 0 | AD52: 0 | AE52: 0 | AF52: 0 | AG52: 0 | AH52: 0 | AJ52: 0 | AK52: 0
B53: 36 | S53: 0 | T53: 0 | U53: 0 | V53: 0 | W53: 0 | X53: 0 | Y53: 0 | Z53: 0 | AA53: 0 | AB53: 0 | AC53: 0 | AD53: 0 | AE53: 0 | AF53: 0 | AG53: 0 | AH53: 0 | AJ53: 0 | AK53: 0
B54: 37 | S54: 0 | T54: 0 | U54: 0 | V54: 0 | W54: 0 | X54: 0 | Y54: 0 | Z54: 0 | AA54: 0 | AB54: 0 | AC54: 0 | AD54: 0 | AE54: 0 | AF54: 0 | AG54: 0 | AH54: 0 | AJ54: 0 | AK54: 0
B55: 38 | S55: 0 | T55: 0 | U55: 0 | V55: 0 | W55: 0 | X55: 0 | Y55: 0 | Z55: 0 | AA55: 0 | AB55: 0 | AC55: 0 | AD55: 0 | AE55: 0 | AF55: 0 | AG55: 0 | AH55: 0 | AJ55: 0 | AK55: 0
B56: 39 | S56: 0 | T56: 0 | U56: 0 | V56: 0 | W56: 0 | X56: 0 | Y56: 0 | Z56: 0 | AA56: 0 | AB56: 0 | AC56: 0 | AD56: 0 | AE56: 0 | AF56: 0 | AG56: 0 | AH56: 0 | AJ56: 0 | AK56: 0
B57: 40 | S57: 0 | T57: 0 | U57: 0 | V57: 0 | W57: 0 | X57: 0 | Y57: 0 | Z57: 0 | AA57: 0 | AB57: 0 | AC57: 0 | AD57: 0 | AE57: 0 | AF57: 0 | AG57: 0 | AH57: 0 | AJ57: 0 | AK57: 0
B58: 41 | S58: 0 | T58: 0 | U58: 0 | V58: 0 | W58: 0 | X58: 0 | Y58: 0 | Z58: 0 | AA58: 0 | AB58: 0 | AC58: 0 | AD58: 0 | AE58: 0 | AF58: 0 | AG58: 0 | AH58: 0 | AJ58: 0 | AK58: 0
B59: 42 | S59: 0 | T59: 0 | U59: 0 | V59: 0 | W59: 0 | X59: 0 | Y59: 0 | Z59: 0 | AA59: 0 | AB59: 0 | AC59: 0 | AD59: 0 | AE59: 0 | AF59: 0 | AG59: 0 | AH59: 0 | AJ59: 0 | AK59: 0
B60: 43 | S60: 0 | T60: 0 | U60: 0 | V60: 0 | W60: 0 | X60: 0 | Y60: 0 | Z60: 0 | AA60: 0 | AB60: 0 | AC60: 0 | AD60: 0 | AE60: 0 | AF60: 0 | AG60: 0 | AH60: 0 | AJ60: 0 | AK60: 0
B61: 44 | S61: 0 | T61: 0 | U61: 0 | V61: 0 | W61: 0 | X61: 0 | Y61: 0 | Z61: 0 | AA61: 0 | AB61: 0 | AC61: 0 | AD61: 0 | AE61: 0 | AF61: 0 | AG61: 0 | AH61: 0 | AJ61: 0 | AK61: 0
B62: 45 | S62: 0 | T62: 0 | U62: 0 | V62: 0 | W62: 0 | X62: 0 | Y62: 0 | Z62: 0 | AA62: 0 | AB62: 0 | AC62: 0 | AD62: 0 | AE62: 0 | AF62: 0 | AG62: 0 | AH62: 0 | AJ62: 0 | AK62: 0
B63: 46 | S63: 0 | T63: 0 | U63: 0 | V63: 0 | W63: 0 | X63: 0 | Y63: 0 | Z63: 0 | AA63: 0 | AB63: 0 | AC63: 0 | AD63: 0 | AE63: 0 | AF63: 0 | AG63: 0 | AH63: 0 | AJ63: 0 | AK63: 0
B64: 47 | S64: 0 | T64: 0 | U64: 0 | V64: 0 | W64: 0 | X64: 0 | Y64: 0 | Z64: 0 | AA64: 0 | AB64: 0 | AC64: 0 | AD64: 0 | AE64: 0 | AF64: 0 | AG64: 0 | AH64: 0 | AJ64: 0 | AK64: 0
B65: 48 | S65: 0 | T65: 0 | U65: 0 | V65: 0 | W65: 0 | X65: 0 | Y65: 0 | Z65: 0 | AA65: 0 | AB65: 0 | AC65: 0 | AD65: 0 | AE65: 0 | AF65: 0 | AG65: 0 | AH65: 0 | AJ65: 0 | AK65: 0
B66: 49 | S66: 0 | T66: 0 | U66: 0 | V66: 0 | W66: 0 | X66: 0 | Y66: 0 | Z66: 0 | AA66: 0 | AB66: 0 | AC66: 0 | AD66: 0 | AE66: 0 | AF66: 0 | AG66: 0 | AH66: 0 | AJ66: 0 | AK66: 0
B67: 50 | S67: 0 | T67: 0 | U67: 0 | V67: 0 | W67: 0 | X67: 0 | Y67: 0 | Z67: 0 | AA67: 0 | AB67: 0 | AC67: 0 | AD67: 0 | AE67: 0 | AF67: 0 | AG67: 0 | AH67: 0 | AJ67: 0 | AK67: 0
B68: 51 | S68: 0 | T68: 0 | U68: 0 | V68: 0 | W68: 0 | X68: 0 | Y68: 0 | Z68: 0 | AA68: 0 | AB68: 0 | AC68: 0 | AD68: 0 | AE68: 0 | AF68: 0 | AG68: 0 | AH68: 0 | AJ68: 0 | AK68: 0
B69: 52 | S69: 0 | T69: 0 | U69: 0 | V69: 0 | W69: 0 | X69: 0 | Y69: 0 | Z69: 0 | AA69: 0 | AB69: 0 | AC69: 0 | AD69: 0 | AE69: 0 | AF69: 0 | AG69: 0 | AH69: 0 | AJ69: 0 | AK69: 0
B70: 53 | S70: 0 | T70: 0 | U70: 0 | V70: 0 | W70: 0 | X70: 0 | Y70: 0 | Z70: 0 | AA70: 0 | AB70: 0 | AC70: 0 | AD70: 0 | AE70: 0 | AF70: 0 | AG70: 0 | AH70: 0 | AJ70: 0 | AK70: 0
B71: 54 | S71: 0 | T71: 0 | U71: 0 | V71: 0 | W71: 0 | X71: 0 | Y71: 0 | Z71: 0 | AA71: 0 | AB71: 0 | AC71: 0 | AD71: 0 | AE71: 0 | AF71: 0 | AG71: 0 | AH71: 0 | AJ71: 0 | AK71: 0
B72: 55 | S72: 0 | T72: 0 | U72: 0 | V72: 0 | W72: 0 | X72: 0 | Y72: 0 | Z72: 0 | AA72: 0 | AB72: 0 | AC72: 0 | AD72: 0 | AE72: 0 | AF72: 0 | AG72: 0 | AH72: 0 | AJ72: 0 | AK72: 0
B73: 56 | S73: 0 | T73: 0 | U73: 0 | V73: 0 | W73: 0 | X73: 0 | Y73: 0 | Z73: 0 | AA73: 0 | AB73: 0 | AC73: 0 | AD73: 0 | AE73: 0 | AF73: 0 | AG73: 0 | AH73: 0 | AJ73: 0 | AK73: 0
B74: 57 | S74: 0 | T74: 0 | U74: 0 | V74: 0 | W74: 0 | X74: 0 | Y74: 0 | Z74: 0 | AA74: 0 | AB74: 0 | AC74: 0 | AD74: 0 | AE74: 0 | AF74: 0 | AG74: 0 | AH74: 0 | AJ74: 0 | AK74: 0
B75: 58 | S75: 0 | T75: 0 | U75: 0 | V75: 0 | W75: 0 | X75: 0 | Y75: 0 | Z75: 0 | AA75: 0 | AB75: =IF(V75=0,0,V75) -> 0 | AC75: 0 | AD75: 0 | AE75: 0 | AF75: 0 | AG75: 0 | AH75: 0 | AJ75: 0 | AK75: 0
B76: 59 | S76: 0 | T76: 0 | U76: 0 | V76: 0 | W76: 0 | X76: 0 | Y76: =IF(S76=0,0,S76) -> 0 | Z76: 0 | AA76: 0 | AB76: 0 | AC76: 0 | AD76: 0 | AE76: 0 | AF76: 0 | AG76: 0 | AH76: 0 | AJ76: 0 | AK76: 0
B77: 60 | S77: 0 | T77: 0 | U77: 0 | V77: 0 | W77: 0 | X77: 0 | Y77: 0 | Z77: 0 | AA77: 0 | AB77: 0 | AC77: 0 | AD77: 0 | AE77: 0 | AF77: 0 | AG77: 0 | AH77: 0 | AJ77: 0 | AK77: 0
B78: 61 | S78: 0 | T78: 0 | U78: 0 | V78: 0 | W78: 0 | X78: 0 | Y78: 0 | Z78: 0 | AA78: 0 | AB78: 0 | AC78: 0 | AD78: 0 | AE78: 0 | AF78: 0 | AG78: 0 | AH78: 0 | AJ78: 0 | AK78: 0
B79: 62 | S79: 0 | T79: 0 | U79: 0 | V79: 0 | W79: 0 | X79: 0 | Y79: 0 | Z79: 0 | AA79: 0 | AB79: 0 | AC79: 0 | AD79: 0 | AE79: 0 | AF79: 0 | AG79: 0 | AH79: 0 | AJ79: 0 | AK79: 0
B80: 63 | S80: 0 | T80: 0 | U80: 0 | V80: 0 | W80: 0 | X80: 0 | Y80: 0 | Z80: 0 | AA80: 0 | AB80: 0 | AC80: 0 | AD80: 0 | AE80: 0 | AF80: 0 | AG80: 0 | AH80: 0 | AJ80: 0 | AK80: 0
B81: 64 | S81: 0 | T81: 0 | U81: 0 | V81: 0 | W81: 0 | X81: 0 | Y81: 0 | Z81: 0 | AA81: 0 | AB81: 0 | AC81: 0 | AD81: 0 | AE81: =IFERROR((G81*Y81+I81*AA81+K81*AC81)/(G81+I81+K81), 0)*nur_L -> 0 | AF81: =IFERROR((H81*Z81+J81*AB81+L81*AD81)/(H81+J81+L81), 0)*nur_L -> 0 | AG81: =IF(E81="",0,E81) -> 0 | AH81: =IF(F81="",0,F81) -> 0 | AJ81: 0 | AK81: 0
B82: 65 | S82: =IFERROR(M82/G82,0) -> 0 | T82: =IFERROR(N82/H82,0) -> 0 | U82: =IFERROR(O82/I82,0) -> 0 | V82: =IFERROR(P82/J82,0) -> 0 | W82: =IFERROR(Q82/K82,0) -> 0 | X82: =IFERROR(R82/L82,0) -> 0 | Y82: 0 | Z82: 0 | AA82: 0 | AB82: 0 | AC82: 0 | AD82: 0 | AE82: 0 | AF82: 0 | AG82: 0 | AH82: 0 | AJ82: 0 | AK82: 0
B83: 66 | S83: 0 | T83: 0 | U83: 0 | V83: 0 | W83: 0 | X83: 0 | Y83: 0 | Z83: 0 | AA83: 0 | AB83: 0 | AC83: 0 | AD83: 0 | AE83: 0 | AF83: 0 | AG83: 0 | AH83: 0 | AJ83: =IFERROR(AVERAGE(AE82:AE84),0) -> 0 | AK83: 0
B84: 67 | S84: 0 | T84: 0 | U84: 0 | V84: 0 | W84: 0 | X84: 0 | Y84: 0 | Z84: 0 | AA84: 0 | AB84: 0 | AC84: 0 | AD84: 0 | AE84: 0 | AF84: 0 | AG84: 0 | AH84: 0 | AJ84: 0 | AK84: 0
B85: 68 | S85: 0 | T85: 0 | U85: 0 | V85: 0 | W85: 0 | X85: 0 | Y85: 0 | Z85: 0 | AA85: 0 | AB85: 0 | AC85: 0 | AD85: 0 | AE85: 0 | AF85: 0 | AG85: 0 | AH85: 0 | AJ85: 0 | AK85: 0
B86: 69 | S86: 0 | T86: 0 | U86: 0 | V86: 0 | W86: 0 | X86: 0 | Y86: 0 | Z86: 0 | AA86: 0 | AB86: 0 | AC86: 0 | AD86: 0 | AE86: 0 | AF86: 0 | AG86: 0 | AH86: 0 | AJ86: 0 | AK86: 0
B87: 70 | S87: 0 | T87: 0 | U87: 0 | V87: 0 | W87: 0 | X87: 0 | Y87: 0 | Z87: 0 | AA87: 0 | AB87: 0 | AC87: 0 | AD87: 0 | AE87: 0 | AF87: 0 | AG87: 0 | AH87: 0 | AJ87: 0 | AK87: 0
B88: 71 | S88: 0 | T88: 0 | U88: 0 | V88: 0 | W88: 0 | X88: 0 | Y88: 0 | Z88: 0 | AA88: 0 | AB88: 0 | AC88: 0 | AD88: 0 | AE88: 0 | AF88: 0 | AG88: 0 | AH88: 0 | AJ88: 0 | AK88: 0
B89: 72 | S89: 0 | T89: 0 | U89: 0 | V89: 0 | W89: 0 | X89: 0 | Y89: 0 | Z89: 0 | AA89: 0 | AB89: 0 | AC89: 0 | AD89: 0 | AE89: 0 | AF89: 0 | AG89: 0 | AH89: 0 | AJ89: 0 | AK89: 0
B90: 73 | S90: 0 | T90: 0 | U90: 0 | V90: 0 | W90: 0 | X90: 0 | Y90: 0 | Z90: 0 | AA90: 0 | AB90: 0 | AC90: 0 | AD90: 0 | AE90: 0 | AF90: 0 | AG90: 0 | AH90: 0 | AJ90: 0 | AK90: 0
B91: 74 | S91: 0 | T91: 0 | U91: 0 | V91: 0 | W91: 0 | X91: 0 | Y91: 0 | Z91: 0 | AA91: 0 | AB91: 0 | AC91: 0 | AD91: 0 | AE91: 0 | AF91: 0 | AG91: 0 | AH91: 0 | AJ91: 0 | AK91: 0
B92: 75 | S92: 0 | T92: 0 | U92: 0 | V92: 0 | W92: 0 | X92: 0 | Y92: 0 | Z92: 0 | AA92: 0 | AB92: 0 | AC92: 0 | AD92: 0 | AE92: 0 | AF92: 0 | AG92: 0 | AH92: 0 | AJ92: 0 | AK92: 0
B93: 76 | S93: 0 | T93: 0 | U93: 0 | V93: 0 | W93: 0 | X93: 0 | Y93: 0 | Z93: 0 | AA93: 0 | AB93: 0 | AC93: 0 | AD93: 0 | AE93: 0 | AF93: 0 | AG93: 0 | AH93: 0 | AJ93: 0 | AK93: 0
B94: 77 | S94: 0 | T94: 0 | U94: 0 | V94: 0 | W94: 0 | X94: 0 | Y94: 0 | Z94: 0 | AA94: 0 | AB94: 0 | AC94: 0 | AD94: 0 | AE94: 0 | AF94: 0 | AG94: 0 | AH94: 0 | AJ94: 0 | AK94: 0
B95: 78 | S95: 0 | T95: 0 | U95: 0 | V95: 0 | W95: 0 | X95: 0 | Y95: 0 | Z95: 0 | AA95: 0 | AB95: 0 | AC95: 0 | AD95: 0 | AE95: 0 | AF95: 0 | AG95: 0 | AH95: 0 | AJ95: 0 | AK95: 0
B96: 79 | S96: 0 | T96: 0 | U96: 0 | V96: 0 | W96: 0 | X96: 0 | Y96: 0 | Z96: 0 | AA96: 0 | AB96: 0 | AC96: 0 | AD96: 0 | AE96: 0 | AF96: 0 | AG96: 0 | AH96: 0 | AJ96: 0 | AK96: 0
B97: 80 | S97: 0 | T97: 0 | U97: 0 | V97: 0 | W97: 0 | X97: 0 | Y97: 0 | Z97: 0 | AA97: 0 | AB97: 0 | AC97: 0 | AD97: 0 | AE97: 0 | AF97: 0 | AG97: 0 | AH97: 0 | AJ97: 0 | AK97: 0
B98: 81 | S98: 0 | T98: 0 | U98: 0 | V98: 0 | W98: 0 | X98: 0 | Y98: 0 | Z98: 0 | AA98: 0 | AB98: 0 | AC98: 0 | AD98: 0 | AE98: 0 | AF98: 0 | AG98: 0 | AH98: 0 | AJ98: 0 | AK98: 0
B99: 82 | S99: 0 | T99: 0 | U99: 0 | V99: 0 | W99: 0 | X99: 0 | Y99: 0 | Z99: 0 | AA99: 0 | AB99: 0 | AC99: 0 | AD99: 0 | AE99: 0 | AF99: 0 | AG99: 0 | AH99: 0 | AJ99: 0 | AK99: 0
B100: 83 | S100: 0 | T100: 0 | U100: 0 | V100: 0 | W100: 0 | X100: 0 | Y100: 0 | Z100: 0 | AA100: 0 | AB100: 0 | AC100: 0 | AD100: 0 | AE100: 0 | AF100: 0 | AG100: 0 | AH100: 0 | AJ100: 0 | AK100: 0
B101: 84 | S101: 0 | T101: 0 | U101: 0 | V101: 0 | W101: 0 | X101: 0 | Y101: 0 | Z101: 0 | AA101: 0 | AB101: 0 | AC101: 0 | AD101: 0 | AE101: 0 | AF101: 0 | AG101: 0 | AH101: 0 | AJ101: 0 | AK101: 0
B102: 85 | S102: 0 | T102: 0 | U102: 0 | V102: 0 | W102: 0 | X102: 0 | Y102: 0 | Z102: 0 | AA102: 0 | AB102: 0 | AC102: 0 | AD102: 0 | AE102: 0 | AF102: 0 | AG102: 0 | AH102: 0 | AJ102: 0 | AK102: 0
B103: 86 | S103: 0 | T103: 0 | U103: 0 | V103: 0 | W103: 0 | X103: 0 | Y103: 0 | Z103: 0 | AA103: 0 | AB103: 0 | AC103: 0 | AD103: 0 | AE103: 0 | AF103: 0 | AG103: 0 | AH103: 0 | AJ103: 0 | AK103: 0
B104: 87 | S104: 0 | T104: 0 | U104: 0 | V104: 0 | W104: 0 | X104: 0 | Y104: 0 | Z104: 0 | AA104: 0 | AB104: 0 | AC104: 0 | AD104: 0 | AE104: 0 | AF104: 0 | AG104: 0 | AH104: 0 | AJ104: 0 | AK104: 0
B105: 88 | S105: 0 | T105: 0 | U105: 0 | V105: 0 | W105: 0 | X105: 0 | Y105: 0 | Z105: 0 | AA105: 0 | AB105: 0 | AC105: 0 | AD105: 0 | AE105: 0 | AF105: 0 | AG105: 0 | AH105: 0 | AJ105: 0 | AK105: 0
B106: 89 | S106: 0 | T106: 0 | U106: 0 | V106: 0 | W106: 0 | X106: 0 | Y106: 0 | Z106: 0 | AA106: 0 | AB106: 0 | AC106: 0 | AD106: 0 | AE106: 0 | AF106: 0 | AG106: 0 | AH106: 0 | AJ106: 0 | AK106: 0
B107: 90 | S107: 0 | T107: 0 | U107: 0 | V107: 0 | W107: 0 | X107: 0 | Y107: 0 | Z107: 0 | AA107: 0 | AB107: 0 | AC107: 0 | AD107: 0 | AE107: 0 | AF107: 0 | AG107: 0 | AH107: 0 | AJ107: 0 | AK107: 0
B108: 91 | S108: 0 | T108: 0 | U108: 0 | V108: 0 | W108: 0 | X108: 0 | Y108: 0 | Z108: 0 | AA108: 0 | AB108: 0 | AC108: 0 | AD108: 0 | AE108: 0 | AF108: 0 | AG108: 0 | AH108: 0 | AJ108: =IFERROR(SUMPRODUCT(C$108:C$117,AE$108:AE$117)/SUM(C$108:C$117),0) -> 0 | AK108: =IFERROR(SUMPRODUCT(D$108:D$117,AF$108:AF$117)/SUM(D$108:D$117),0) -> 0
B109: 92 | S109: 0 | T109: 0 | U109: 0 | V109: 0 | W109: 0 | X109: 0 | Y109: 0 | Z109: 0 | AA109: 0 | AB109: 0 | AC109: 0 | AD109: 0 | AE109: 0 | AF109: 0 | AG109: 0 | AH109: 0 | AJ109: 0 | AK109: 0
B110: 93 | S110: 0 | T110: 0 | U110: 0 | V110: 0 | W110: 0 | X110: 0 | Y110: 0 | Z110: 0 | AA110: 0 | AB110: 0 | AC110: 0 | AD110: 0 | AE110: 0 | AF110: 0 | AG110: 0 | AH110: 0 | AJ110: 0 | AK110: 0
B111: 94 | S111: 0 | T111: 0 | U111: 0 | V111: 0 | W111: 0 | X111: 0 | Y111: 0 | Z111: 0 | AA111: 0 | AB111: 0 | AC111: 0 | AD111: 0 | AE111: 0 | AF111: 0 | AG111: 0 | AH111: 0 | AJ111: 0 | AK111: 0
B112: 95 | S112: 0 | T112: 0 | U112: 0 | V112: 0 | W112: 0 | X112: 0 | Y112: 0 | Z112: 0 | AA112: 0 | AB112: 0 | AC112: 0 | AD112: 0 | AE112: 0 | AF112: 0 | AG112: 0 | AH112: 0 | AJ112: 0 | AK112: 0
B113: 96 | S113: 0 | T113: 0 | U113: 0 | V113: 0 | W113: 0 | X113: 0 | Y113: 0 | Z113: 0 | AA113: 0 | AB113: 0 | AC113: 0 | AD113: 0 | AE113: 0 | AF113: 0 | AG113: 0 | AH113: 0 | AJ113: 0 | AK113: 0
B114: 97 | S114: 0 | T114: 0 | U114: 0 | V114: 0 | W114: 0 | X114: 0 | Y114: 0 | Z114: 0 | AA114: 0 | AB114: 0 | AC114: 0 | AD114: 0 | AE114: 0 | AF114: 0 | AG114: 0 | AH114: 0 | AJ114: 0 | AK114: 0
B115: 98 | S115: 0 | T115: 0 | U115: 0 | V115: 0 | W115: 0 | X115: 0 | Y115: 0 | Z115: 0 | AA115: 0 | AB115: 0 | AC115: 0 | AD115: 0 | AE115: 0 | AF115: 0 | AG115: 0 | AH115: 0 | AJ115: 0 | AK115: 0
B116: 99 | S116: 0 | T116: 0 | U116: 0 | V116: 0 | W116: 0 | X116: 0 | Y116: 0 | Z116: 0 | AA116: 0 | AB116: 0 | AC116: 0 | AD116: 0 | AE116: 0 | AF116: 0 | AG116: 0 | AH116: 0 | AJ116: 0 | AK116: 0
B117: 100 | S117: 0 | T117: 0 | U117: 0 | V117: 0 | W117: 0 | X117: 0 | Y117: 0 | Z117: 0 | AA117: 0 | AB117: 0 | AC117: 0 | AD117: 0 | AE117: 0 | AF117: 0 | AG117: 0 | AH117: 0 | AJ117: 0 | AK117: 0

Sheet HE_Input_5
A1: 14 | B1: Produktegruppe 3: Inputdaten
B5: SST-Stichtag | C5: ="01.01."& current_year -> 01.01.2024
B7: Verwaltungskosten (%) | C7: =HE_Inputparam_VWK!C75 -> 0
B12: Produktegruppe 3 - Ambulante Produkte | AJ12: Für Analysezwecke
B13: Effektivalter | C13: Anzahl Verträge je Alter per 01.01.2024 (Aktuelles Jahr) | E13: Prämien pro Vertrag und je Alter nach Behandlungsjahr (Aktuelles Jahr) | G13: Anzahl Verträge je Alter per 31.12. 2023 (Vorjahr) | I13: Anzahl Verträge je Alter per 31.12. 2022 (Vorjahr-1) | K13: Anzahl Verträge je Alter per 31.12. 2021 (Vorjahr-2) | M13: Leistungen je Alter nach Behandlungsjahr 2023 (Vorjahr) | O13: Leistungen je Alter nach Behandlungsjahr 2022 (Vorjahr-1) | Q13: Leistungen je Alter nach Behandlungsjahr 2021 (Vorjahr-2) | S13: Leistungen pro Vertrag und je Alter nach Behandlungsjahr 2023 (Vorjahr) | U13: Leistungen pro Vertrag und je Alter nach Behandlungsjahr 2022 (Vorjahr-1) | W13: Leistungen pro Vertrag und je Alter nach Behandlungsjahr 2021 (Vorjahr-2) | Y13: Inflationierte Leistungen pro Vertrag und je Alter nach Behandlungsjahr 2023 (Vorjahr) | AA13: Inflationierte Leistungen pro Vertrag und je Alter nach Behandlungsjahr 2022 (Vorjahr-1) | AC13: Inflationierte Leistungen pro Vertrag und je Alter nach Behandlungsjahr 2021 (Vorjahr-2) | AE13: Leistungen pro Vertrag und je Alter | AG13: Prämien pro Vertrag und je Alter (Aktuelles Jahr) | AJ13: Leistungen pro Vertrag und je Alter (geglättet)
C14: Total (positive Werte) | E14: (positiv, CHF) | G14: (positiv, CHF) | I14: (positiv, CHF) | K14: (positiv, CHF) | M14: (positiv, CHF) | O14: (positiv, CHF) | Q14: (positiv, CHF) | S14: (positiv, CHF) | U14: (positiv, CHF) | W14: (positiv, CHF) | Y14: (positiv, CHF) | AA14: (positiv, CHF) | AC14: (positiv, CHF) | AE14: (positiv, CHF) | AG14: (positiv, CHF) | AJ14: (positiv, CHF)
C15: Männer | D15: Frauen | E15: Männer | F15: Frauen | G15: Männer | H15: Frauen | I15: Männer | J15: Frauen | K15: Männer | L15: Frauen | M15: Männer | N15: Frauen | O15: Männer | P15: Frauen | Q15: Männer | R15: Frauen | S15: Männer | T15: Frauen | U15: Männer | V15: Frauen | W15: Männer | X15: Frauen | Y15: Männer | Z15: Frauen | AA15: Männer | AB15: Frauen | AC15: Männer | AD15: Frauen | AE15: Männer | AF15: Frauen | AG15: Männer | AH15: Frauen | AJ15: Männer | AK15: Frauen
C16: =SUM(_MP5) -> 0 | D16: =SUM(_FP5) -> 0 | E16: =IF(C16=0,0,SUMPRODUCT(E17:E117,_MP5)/C16) -> 0 | F16: =IF(D16=0,0,SUMPRODUCT(F17:F117,_FP5)/D16) -> 0 | G16: =SUM(G17:G117) -> 0 | H16: 0 | I16: 0 | J16: 0 | K16: 0 | L16: 0 | M16: 0 | N16: 0 | O16: 0 | P16: 0 | Q16: 0 | R16: 0
B17: 0 | S17: =IFERROR(M17/G17,0) -> 0 | T17: 0 | U17: 0 | V17: 0 | W17: 0 | X17: 0 | Y17: =IF(S17=0,0,S17*(1+Korrekturvektor_Inflation!$H$8)) -> 0 | Z17: =IF(T17=0,0,T17*(1+Korrekturvektor_Inflation!$H$8)) -> 0 | AA17: =IF(U17=0,0,U17*(1+Korrekturvektor_Inflation!$I$8)^2) -> 0 | AB17: =IF(V17=0,0,V17*(1+Korrekturvektor_Inflation!$I$8)^2) -> 0 | AC17: =IF(W17=0,0,W17*(1+Korrekturvektor_Inflation!$J$8)^3) -> 0 | AD17: =IF(X17=0,0,X17*(1+Korrekturvektor_Inflation!$J$8)^3) -> 0 | AE17: =IFERROR((G17*Y17+I17*AA17+K17*AC17)/(G17+I17+K17), 0)*nur_L -> 0 | AF17: =IFERROR((H17*Z17+J17*AB17+L17*AD17)/(H17+J17+L17), 0)*nur_L -> 0 | AG17: =IF(E17="",0,E17) -> 0 | AH17: =IF(F17="",0,F17) -> 0 | AJ17: =IFERROR(AVERAGE(AE17,AE18),0) -> 0 | AK17: =IFERROR(AVERAGE(AF17,AF18),0) -> 0
B18: 1 | S18: =IFERROR(M18/G18,0) -> 0 | T18: =IFERROR(N18/H18,0) -> 0 | U18: =IFERROR(O18/I18,0) -> 0 | V18: =IFERROR(P18/J18,0) -> 0 | W18: =IFERROR(Q18/K18,0) -> 0 | X18: =IFERROR(R18/L18,0) -> 0 | Y18: =IF(S18=0,0,S18*(1+Korrekturvektor_Inflation!$H$8)) -> 0 | Z18: =IF(T18=0,0,T18*(1+Korrekturvektor_Inflation!$H$8)) -> 0 | AA18: =IF(U18=0,0,U18*(1+Korrekturvektor_Inflation!$I$8)^2) -> 0 | AB18: =IF(V18=0,0,V18*(1+Korrekturvektor_Inflation!$I$8)^2) -> 0 | AC18: =IF(W18=0,0,W18*(1+Korrekturvektor_Inflation!$J$8)^3) -> 0 | AD18: =IF(X18=0,0,X18*(1+Korrekturvektor_Inflation!$J$8)^3) -> 0 | AE18: 0 | AF18: 0 | AG18: 0 | AH18: 0 | AJ18: =IFERROR(AVERAGE(AE17:AE19),0) -> 0 | AK18: =IFERROR(AVERAGE(AF17:AF19),0) -> 0
B19: 2 | S19: 0 | T19: 0 | U19: 0 | V19: 0 | W19: 0 | X19: 0 | Y19: =IF(S19=0,0,S19*(1+Korrekturvektor_Inflation!$H$8)) -> 0 | Z19: =IF(T19=0,0,T19*(1+Korrekturvektor_Inflation!$H$8)) -> 0 | AA19: =IF(U19=0,0,U19*(1+Korrekturvektor_Inflation!$I$8)^2) -> 0 | AB19: =IF(V19=0,0,V19*(1+Korrekturvektor_Inflation!$I$8)^2) -> 0 | AC19: =IF(W19=0,0,W19*(1+Korrekturvektor_Inflation!$J$8)^3) -> 0 | AD19: =IF(X19=0,0,X19*(1+Korrekturvektor_Inflation!$J$8)^3) -> 0 | AE19: 0 | AF19: 0 | AG19: 0 | AH19: 0 | AJ19: =IFERROR(AVERAGE(AE18:AE20),0) -> 0 | AK19: 0
B20: 3 | S20: 0 | T20: 0 | U20: 0 | V20: 0 | W20: 0 | X20: 0 | Y20: =IF(S20=0,0,S20*(1+Korrekturvektor_Inflation!$H$8)) -> 0 | Z20: =IF(T20=0,0,T20*(1+Korrekturvektor_Inflation!$H$8)) -> 0 | AA20: =IF(U20=0,0,U20*(1+Korrekturvektor_Inflation!$I$8)^2) -> 0 | AB20: =IF(V20=0,0,V20*(1+Korrekturvektor_Inflation!$I$8)^2) -> 0 | AC20: =IF(W20=0,0,W20*(1+Korrekturvektor_Inflation!$J$8)^3) -> 0 | AD20: =IF(X20=0,0,X20*(1+Korrekturvektor_Inflation!$J$8)^3) -> 0 | AE20: 0 | AF20: 0 | AG20: 0 | AH20: 0 | AJ20: 0 | AK20: 0
B21: 4 | S21: 0 | T21: 0 | U21: 0 | V21: 0 | W21: 0 | X21: 0 | Y21: =IF(S21=0,0,S21*(1+Korrekturvektor_Inflation!$H$8)) -> 0 | Z21: =IF(T21=0,0,T21*(1+Korrekturvektor_Inflation!$H$8)) -> 0 | AA21: =IF(U21=0,0,U21*(1+Korrekturvektor_Inflation!$I$8)^2) -> 0 | AB21: =IF(V21=0,0,V21*(1+Korrekturvektor_Inflation!$I$8)^2) -> 0 | AC21: =IF(W21=0,0,W21*(1+Korrekturvektor_Inflation!$J$8)^3) -> 0 | AD21: =IF(X21=0,0,X21*(1+Korrekturvektor_Inflation!$J$8)^3) -> 0 | AE21: 0 | AF21: 0 | AG21: 0 | AH21: 0 | AJ21: 0 | AK21: 0
B22: 5 | S22: 0 | T22: 0 | U22: 0 | V22: 0 | W22: 0 | X22: 0 | Y22: =IF(S22=0,0,S22*(1+Korrekturvektor_Inflation!$H$8)) -> 0 | Z22: =IF(T22=0,0,T22*(1+Korrekturvektor_Inflation!$H$8)) -> 0 | AA22: =IF(U22=0,0,U22*(1+Korrekturvektor_Inflation!$I$8)^2) -> 0 | AB22: =IF(V22=0,0,V22*(1+Korrekturvektor_Inflation!$I$8)^2) -> 0 | AC22: =IF(W22=0,0,W22*(1+Korrekturvektor_Inflation!$J$8)^3) -> 0 | AD22: =IF(X22=0,0,X22*(1+Korrekturvektor_Inflation!$J$8)^3) -> 0 | AE22: 0 | AF22: 0 | AG22: 0 | AH22: 0 | AJ22: 0 | AK22: 0
B23: 6 | S23: 0 | T23: 0 | U23: 0 | V23: 0 | W23: 0 | X23: 0 | Y23: =IF(S23=0,0,S23*(1+Korrekturvektor_Inflation!$H$8)) -> 0 | Z23: =IF(T23=0,0,T23*(1+Korrekturvektor_Inflation!$H$8)) -> 0 | AA23: =IF(U23=0,0,U23*(1+Korrekturvektor_Inflation!$I$8)^2) -> 0 | AB23: =IF(V23=0,0,V23*(1+Korrekturvektor_Inflation!$I$8)^2) -> 0 | AC23: =IF(W23=0,0,W23*(1+Korrekturvektor_Inflation!$J$8)^3) -> 0 | AD23: =IF(X23=0,0,X23*(1+Korrekturvektor_Inflation!$J$8)^3) -> 0 | AE23: 0 | AF23: 0 | AG23: 0 | AH23: 0 | AJ23: 0 | AK23: 0
B24: 7 | S24: 0 | T24: 0 | U24: 0 | V24: 0 | W24: 0 | X24: 0 | Y24: =IF(S24=0,0,S24*(1+Korrekturvektor_Inflation!$H$8)) -> 0 | Z24: =IF(T24=0,0,T24*(1+Korrekturvektor_Inflation!$H$8)) -> 0 | AA24: =IF(U24=0,0,U24*(1+Korrekturvektor_Inflation!$I$8)^2) -> 0 | AB24: =IF(V24=0,0,V24*(1+Korrekturvektor_Inflation!$I$8)^2) -> 0 | AC24: =IF(W24=0,0,W24*(1+Korrekturvektor_Inflation!$J$8)^3) -> 0 | AD24: =IF(X24=0,0,X24*(1+Korrekturvektor_Inflation!$J$8)^3) -> 0 | AE24: 0 | AF24: 0 | AG24: 0 | AH24: 0 | AJ24: 0 | AK24: 0
B25: 8 | S25: 0 | T25: 0 | U25: 0 | V25: 0 | W25: 0 | X25: 0 | Y25: =IF(S25=0,0,S25*(1+Korrekturvektor_Inflation!$H$8)) -> 0 | Z25: =IF(T25=0,0,T25*(1+Korrekturvektor_Inflation!$H$8)) -> 0 | AA25: =IF(U25=0,0,U25*(1+Korrekturvektor_Inflation!$I$8)^2) -> 0 | AB25: =IF(V25=0,0,V25*(1+Korrekturvektor_Inflation!$I$8)^2) -> 0 | AC25: =IF(W25=0,0,W25*(1+Korrekturvektor_Inflation!$J$8)^3) -> 0 | AD25: =IF(X25=0,0,X25*(1+Korrekturvektor_Inflation!$J$8)^3) -> 0 | AE25: 0 | AF25: 0 | AG25: 0 | AH25: 0 | AJ25: 0 | AK25: 0
B26: 9 | S26: 0 | T26: 0 | U26: 0 | V26: 0 | W26: 0 | X26: 0 | Y26: =IF(S26=0,0,S26*(1+Korrekturvektor_Inflation!$H$8)) -> 0 | Z26: =IF(T26=0,0,T26*(1+Korrekturvektor_Inflation!$H$8)) -> 0 | AA26: =IF(U26=0,0,U26*(1+Korrekturvektor_Inflation!$I$8)^2) -> 0 | AB26: =IF(V26=0,0,V26*(1+Korrekturvektor_Inflation!$I$8)^2) -> 0 | AC26: =IF(W26=0,0,W26*(1+Korrekturvektor_Inflation!$J$8)^3) -> 0 | AD26: =IF(X26=0,0,X26*(1+Korrekturvektor_Inflation!$J$8)^3) -> 0 | AE26: 0 | AF26: 0 | AG26: 0 | AH26: 0 | AJ26: 0 | AK26: 0
B27: 10 | S27: 0 | T27: 0 | U27: 0 | V27: 0 | W27: 0 | X27: 0 | Y27: =IF(S27=0,0,S27*(1+Korrekturvektor_Inflation!$H$8)) -> 0 | Z27: =IF(T27=0,0,T27*(1+Korrekturvektor_Inflation!$H$8)) -> 0 | AA27: =IF(U27=0,0,U27*(1+Korrekturvektor_Inflation!$I$8)^2) -> 0 | AB27: =IF(V27=0,0,V27*(1+Korrekturvektor_Inflation!$I$8)^2) -> 0 | AC27: =IF(W27=0,0,W27*(1+Korrekturvektor_Inflation!$J$8)^3) -> 0 | AD27: =IF(X27=0,0,X27*(1+Korrekturvektor_Inflation!$J$8)^3) -> 0 | AE27: 0 | AF27: 0 | AG27: 0 | AH27: 0 | AJ27: 0 | AK27: 0
B28: 11 | S28: 0 | T28: 0 | U28: 0 | V28: 0 | W28: 0 | X28: 0 | Y28: =IF(S28=0,0,S28*(1+Korrekturvektor_Inflation!$H$8)) -> 0 | Z28: =IF(T28=0,0,T28*(1+Korrekturvektor_Inflation!$H$8)) -> 0 | AA28: =IF(U28=0,0,U28*(1+Korrekturvektor_Inflation!$I$8)^2) -> 0 | AB28: =IF(V28=0,0,V28*(1+Korrekturvektor_Inflation!$I$8)^2) -> 0 | AC28: =IF(W28=0,0,W28*(1+Korrekturvektor_Inflation!$J$8)^3) -> 0 | AD28: =IF(X28=0,0,X28*(1+Korrekturvektor_Inflation!$J$8)^3) -> 0 | AE28: 0 | AF28: 0 | AG28: 0 | AH28: 0 | AJ28: 0 | AK28: 0
B29: 12 | S29: 0 | T29: 0 | U29: 0 | V29: 0 | W29: 0 | X29: 0 | Y29: =IF(S29=0,0,S29*(1+Korrekturvektor_Inflation!$H$8)) -> 0 | Z29: =IF(T29=0,0,T29*(1+Korrekturvektor_Inflation!$H$8)) -> 0 | AA29: =IF(U29=0,0,U29*(1+Korrekturvektor_Inflation!$I$8)^2) -> 0 | AB29: =IF(V29=0,0,V29*(1+Korrekturvektor_Inflation!$I$8)^2) -> 0 | AC29: =IF(W29=0,0,W29*(1+Korrekturvektor_Inflation!$J$8)^3) -> 0 | AD29: =IF(X29=0,0,X29*(1+Korrekturvektor_Inflation!$J$8)^3) -> 0 | AE29: 0 | AF29: 0 | AG29: 0 | AH29: 0 | AJ29: 0 | AK29: 0
B30: 13 | S30: 0 | T30: 0 | U30: 0 | V30: 0 | W30: 0 | X30: 0 | Y30: =IF(S30=0,0,S30*(1+Korrekturvektor_Inflation!$H$8)) -> 0 | Z30: =IF(T30=0,0,T30*(1+Korrekturvektor_Inflation!$H$8)) -> 0 | AA30: =IF(U30=0,0,U30*(1+Korrekturvektor_Inflation!$I$8)^2) -> 0 | AB30: =IF(V30=0,0,V30*(1+Korrekturvektor_Inflation!$I$8)^2) -> 0 | AC30: =IF(W30=0,0,W30*(1+Korrekturvektor_Inflation!$J$8)^3) -> 0 | AD30: =IF(X30=0,0,X30*(1+Korrekturvektor_Inflation!$J$8)^3) -> 0 | AE30: 0 | AF30: 0 | AG30: 0 | AH30: 0 | AJ30: 0 | AK30: 0
B31: 14 | S31: 0 | T31: 0 | U31: 0 | V31: 0 | W31: 0 | X31: 0 | Y31: =IF(S31=0,0,S31*(1+Korrekturvektor_Inflation!$H$8)) -> 0 | Z31: =IF(T31=0,0,T31*(1+Korrekturvektor_Inflation!$H$8)) -> 0 | AA31: =IF(U31=0,0,U31*(1+Korrekturvektor_Inflation!$I$8)^2) -> 0 | AB31: =IF(V31=0,0,V31*(1+Korrekturvektor_Inflation!$I$8)^2) -> 0 | AC31: =IF(W31=0,0,W31*(1+Korrekturvektor_Inflation!$J$8)^3) -> 0 | AD31: =IF(X31=0,0,X31*(1+Korrekturvektor_Inflation!$J$8)^3) -> 0 | AE31: 0 | AF31: 0 | AG31: 0 | AH31: 0 | AJ31: 0 | AK31: 0
B32: 15 | S32: 0 | T32: 0 | U32: 0 | V32: 0 | W32: 0 | X32: 0 | Y32: =IF(S32=0,0,S32*(1+Korrekturvektor_Inflation!$H$8)) -> 0 | Z32: =IF(T32=0,0,T32*(1+Korrekturvektor_Inflation!$H$8)) -> 0 | AA32: =IF(U32=0,0,U32*(1+Korrekturvektor_Inflation!$I$8)^2) -> 0 | AB32: =IF(V32=0,0,V32*(1+Korrekturvektor_Inflation!$I$8)^2) -> 0 | AC32: =IF(W32=0,0,W32*(1+Korrekturvektor_Inflation!$J$8)^3) -> 0 | AD32: =IF(X32=0,0,X32*(1+Korrekturvektor_Inflation!$J$8)^3) -> 0 | AE32: 0 | AF32: 0 | AG32: 0 | AH32: 0 | AJ32: 0 | AK32: 0
B33: 16 | S33: 0 | T33: 0 | U33: 0 | V33: 0 | W33: 0 | X33: 0 | Y33: =IF(S33=0,0,S33*(1+Korrekturvektor_Inflation!$H$8)) -> 0 | Z33: =IF(T33=0,0,T33*(1+Korrekturvektor_Inflation!$H$8)) -> 0 | AA33: =IF(U33=0,0,U33*(1+Korrekturvektor_Inflation!$I$8)^2) -> 0 | AB33: =IF(V33=0,0,V33*(1+Korrekturvektor_Inflation!$I$8)^2) -> 0 | AC33: =IF(W33=0,0,W33*(1+Korrekturvektor_Inflation!$J$8)^3) -> 0 | AD33: =IF(X33=0,0,X33*(1+Korrekturvektor_Inflation!$J$8)^3) -> 0 | AE33: 0 | AF33: 0 | AG33: 0 | AH33: 0 | AJ33: 0 | AK33: 0
B34: 17 | S34: 0 | T34: 0 | U34: 0 | V34: 0 | W34: 0 | X34: 0 | Y34: =IF(S34=0,0,S34*(1+Korrekturvektor_Inflation!$H$8)) -> 0 | Z34: =IF(T34=0,0,T34*(1+Korrekturvektor_Inflation!$H$8)) -> 0 | AA34: =IF(U34=0,0,U34*(1+Korrekturvektor_Inflation!$I$8)^2) -> 0 | AB34: =IF(V34=0,0,V34*(1+Korrekturvektor_Inflation!$I$8)^2) -> 0 | AC34: =IF(W34=0,0,W34*(1+Korrekturvektor_Inflation!$J$8)^3) -> 0 | AD34: =IF(X34=0,0,X34*(1+Korrekturvektor_Inflation!$J$8)^3) -> 0 | AE34: 0 | AF34: 0 | AG34: 0 | AH34: 0 | AJ34: 0 | AK34: 0
B35: 18 | S35: 0 | T35: 0 | U35: 0 | V35: 0 | W35: 0 | X35: 0 | Y35: =IF(S35=0,0,S35*(1+Korrekturvektor_Inflation!$H$8)) -> 0 | Z35: =IF(T35=0,0,T35*(1+Korrekturvektor_Inflation!$H$8)) -> 0 | AA35: =IF(U35=0,0,U35*(1+Korrekturvektor_Inflation!$I$8)^2) -> 0 | AB35: =IF(V35=0,0,V35*(1+Korrekturvektor_Inflation!$I$8)^2) -> 0 | AC35: =IF(W35=0,0,W35*(1+Korrekturvektor_Inflation!$J$8)^3) -> 0 | AD35: =IF(X35=0,0,X35*(1+Korrekturvektor_Inflation!$J$8)^3) -> 0 | AE35: 0 | AF35: 0 | AG35: 0 | AH35: 0 | AJ35: 0 | AK35: 0
B36: 19 | S36: 0 | T36: 0 | U36: 0 | V36: 0 | W36: 0 | X36: 0 | Y36: =IF(S36=0,0,S36*(1+Korrekturvektor_Inflation!$H$8)) -> 0 | Z36: =IF(T36=0,0,T36*(1+Korrekturvektor_Inflation!$H$8)) -> 0 | AA36: =IF(U36=0,0,U36*(1+Korrekturvektor_Inflation!$I$8)^2) -> 0 | AB36: =IF(V36=0,0,V36*(1+Korrekturvektor_Inflation!$I$8)^2) -> 0 | AC36: =IF(W36=0,0,W36*(1+Korrekturvektor_Inflation!$J$8)^3) -> 0 | AD36: =IF(X36=0,0,X36*(1+Korrekturvektor_Inflation!$J$8)^3) -> 0 | AE36: 0 | AF36: 0 | AG36: 0 | AH36: 0 | AJ36: 0 | AK36: 0
B37: 20 | S37: 0 | T37: 0 | U37: 0 | V37: 0 | W37: 0 | X37: 0 | Y37: =IF(S37=0,0,S37*(1+Korrekturvektor_Inflation!$H$8)) -> 0 | Z37: =IF(T37=0,0,T37*(1+Korrekturvektor_Inflation!$H$8)) -> 0 | AA37: =IF(U37=0,0,U37*(1+Korrekturvektor_Inflation!$I$8)^2) -> 0 | AB37: =IF(V37=0,0,V37*(1+Korrekturvektor_Inflation!$I$8)^2) -> 0 | AC37: =IF(W37=0,0,W37*(1+Korrekturvektor_Inflation!$J$8)^3) -> 0 | AD37: =IF(X37=0,0,X37*(1+Korrekturvektor_Inflation!$J$8)^3) -> 0 | AE37: 0 | AF37: 0 | AG37: 0 | AH37: 0 | AJ37: 0 | AK37: 0
B38: 21 | S38: 0 | T38: 0 | U38: 0 | V38: 0 | W38: 0 | X38: 0 | Y38: =IF(S38=0,0,S38*(1+Korrekturvektor_Inflation!$H$8)) -> 0 | Z38: =IF(T38=0,0,T38*(1+Korrekturvektor_Inflation!$H$8)) -> 0 | AA38: =IF(U38=0,0,U38*(1+Korrekturvektor_Inflation!$I$8)^2) -> 0 | AB38: =IF(V38=0,0,V38*(1+Korrekturvektor_Inflation!$I$8)^2) -> 0 | AC38: =IF(W38=0,0,W38*(1+Korrekturvektor_Inflation!$J$8)^3) -> 0 | AD38: =IF(X38=0,0,X38*(1+Korrekturvektor_Inflation!$J$8)^3) -> 0 | AE38: 0 | AF38: 0 | AG38: 0 | AH38: 0 | AJ38: 0 | AK38: 0
B39: 22 | S39: 0 | T39: 0 | U39: 0 | V39: 0 | W39: 0 | X39: 0 | Y39: =IF(S39=0,0,S39*(1+Korrekturvektor_Inflation!$H$8)) -> 0 | Z39: =IF(T39=0,0,T39*(1+Korrekturvektor_Inflation!$H$8)) -> 0 | AA39: =IF(U39=0,0,U39*(1+Korrekturvektor_Inflation!$I$8)^2) -> 0 | AB39: =IF(V39=0,0,V39*(1+Korrekturvektor_Inflation!$I$8)^2) -> 0 | AC39: =IF(W39=0,0,W39*(1+Korrekturvektor_Inflation!$J$8)^3) -> 0 | AD39: =IF(X39=0,0,X39*(1+Korrekturvektor_Inflation!$J$8)^3) -> 0 | AE39: 0 | AF39: 0 | AG39: 0 | AH39: 0 | AJ39: 0 | AK39: 0
B40: 23 | S40: 0 | T40: 0 | U40: 0 | V40: 0 | W40: 0 | X40: 0 | Y40: =IF(S40=0,0,S40*(1+Korrekturvektor_Inflation!$H$8)) -> 0 | Z40: =IF(T40=0,0,T40*(1+Korrekturvektor_Inflation!$H$8)) -> 0 | AA40: =IF(U40=0,0,U40*(1+Korrekturvektor_Inflation!$I$8)^2) -> 0 | AB40: =IF(V40=0,0,V40*(1+Korrekturvektor_Inflation!$I$8)^2) -> 0 | AC40: =IF(W40=0,0,W40*(1+Korrekturvektor_Inflation!$J$8)^3) -> 0 | AD40: =IF(X40=0,0,X40*(1+Korrekturvektor_Inflation!$J$8)^3) -> 0 | AE40: 0 | AF40: 0 | AG40: 0 | AH40: 0 | AJ40: 0 | AK40: 0
B41: 24 | S41: 0 | T41: 0 | U41: 0 | V41: 0 | W41: 0 | X41: 0 | Y41: =IF(S41=0,0,S41*(1+Korrekturvektor_Inflation!$H$8)) -> 0 | Z41: =IF(T41=0,0,T41*(1+Korrekturvektor_Inflation!$H$8)) -> 0 | AA41: =IF(U41=0,0,U41*(1+Korrekturvektor_Inflation!$I$8)^2) -> 0 | AB41: =IF(V41=0,0,V41*(1+Korrekturvektor_Inflation!$I$8)^2) -> 0 | AC41: =IF(W41=0,0,W41*(1+Korrekturvektor_Inflation!$J$8)^3) -> 0 | AD41: =IF(X41=0,0,X41*(1+Korrekturvektor_Inflation!$J$8)^3) -> 0 | AE41: 0 | AF41: 0 | AG41: 0 | AH41: 0 | AJ41: 0 | AK41: 0
B42: 25 | S42: 0 | T42: 0 | U42: 0 | V42: 0 | W42: 0 | X42: 0 | Y42: =IF(S42=0,0,S42*(1+Korrekturvektor_Inflation!$H$8)) -> 0 | Z42: =IF(T42=0,0,T42*(1+Korrekturvektor_Inflation!$H$8)) -> 0 | AA42: =IF(U42=0,0,U42*(1+Korrekturvektor_Inflation!$I$8)^2) -> 0 | AB42: =IF(V42=0,0,V42*(1+Korrekturvektor_Inflation!$I$8)^2) -> 0 | AC42: =IF(W42=0,0,W42*(1+Korrekturvektor_Inflation!$J$8)^3) -> 0 | AD42: =IF(X42=0,0,X42*(1+Korrekturvektor_Inflation!$J$8)^3) -> 0 | AE42: 0 | AF42: 0 | AG42: 0 | AH42: 0 | AJ42: 0 | AK42: 0
B43: 26 | S43: 0 | T43: 0 | U43: 0 | V43: 0 | W43: 0 | X43: 0 | Y43: =IF(S43=0,0,S43*(1+Korrekturvektor_Inflation!$H$8)) -> 0 | Z43: =IF(T43=0,0,T43*(1+Korrekturvektor_Inflation!$H$8)) -> 0 | AA43: =IF(U43=0,0,U43*(1+Korrekturvektor_Inflation!$I$8)^2) -> 0 | AB43: =IF(V43=0,0,V43*(1+Korrekturvektor_Inflation!$I$8)^2) -> 0 | AC43: =IF(W43=0,0,W43*(1+Korrekturvektor_Inflation!$J$8)^3) -> 0 | AD43: =IF(X43=0,0,X43*(1+Korrekturvektor_Inflation!$J$8)^3) -> 0 | AE43: 0 | AF43: 0 | AG43: 0 | AH43: 0 | AJ43: 0 | AK43: 0
B44: 27 | S44: 0 | T44: 0 | U44: 0 | V44: 0 | W44: 0 | X44: 0 | Y44: =IF(S44=0,0,S44*(1+Korrekturvektor_Inflation!$H$8)) -> 0 | Z44: =IF(T44=0,0,T44*(1+Korrekturvektor_Inflation!$H$8)) -> 0 | AA44: =IF(U44=0,0,U44*(1+Korrekturvektor_Inflation!$I$8)^2) -> 0 | AB44: =IF(V44=0,0,V44*(1+Korrekturvektor_Inflation!$I$8)^2) -> 0 | AC44: =IF(W44=0,0,W44*(1+Korrekturvektor_Inflation!$J$8)^3) -> 0 | AD44: =IF(X44=0,0,X44*(1+Korrekturvektor_Inflation!$J$8)^3) -> 0 | AE44: 0 | AF44: 0 | AG44: 0 | AH44: 0 | AJ44: 0 | AK44: 0
B45: 28 | S45: 0 | T45: 0 | U45: 0 | V45: 0 | W45: 0 | X45: 0 | Y45: =IF(S45=0,0,S45*(1+Korrekturvektor_Inflation!$H$8)) -> 0 | Z45: =IF(T45=0,0,T45*(1+Korrekturvektor_Inflation!$H$8)) -> 0 | AA45: =IF(U45=0,0,U45*(1+Korrekturvektor_Inflation!$I$8)^2) -> 0 | AB45: =IF(V45=0,0,V45*(1+Korrekturvektor_Inflation!$I$8)^2) -> 0 | AC45: =IF(W45=0,0,W45*(1+Korrekturvektor_Inflation!$J$8)^3) -> 0 | AD45: =IF(X45=0,0,X45*(1+Korrekturvektor_Inflation!$J$8)^3) -> 0 | AE45: 0 | AF45: 0 | AG45: 0 | AH45: 0 | AJ45: 0 | AK45: 0
B46: 29 | S46: 0 | T46: 0 | U46: 0 | V46: 0 | W46: 0 | X46: 0 | Y46: =IF(S46=0,0,S46*(1+Korrekturvektor_Inflation!$H$8)) -> 0 | Z46: =IF(T46=0,0,T46*(1+Korrekturvektor_Inflation!$H$8)) -> 0 | AA46: =IF(U46=0,0,U46*(1+Korrekturvektor_Inflation!$I$8)^2) -> 0 | AB46: =IF(V46=0,0,V46*(1+Korrekturvektor_Inflation!$I$8)^2) -> 0 | AC46: =IF(W46=0,0,W46*(1+Korrekturvektor_Inflation!$J$8)^3) -> 0 | AD46: =IF(X46=0,0,X46*(1+Korrekturvektor_Inflation!$J$8)^3) -> 0 | AE46: 0 | AF46: 0 | AG46: 0 | AH46: 0 | AJ46: 0 | AK46: 0
B47: 30 | S47: 0 | T47: 0 | U47: 0 | V47: 0 | W47: 0 | X47: 0 | Y47: =IF(S47=0,0,S47*(1+Korrekturvektor_Inflation!$H$8)) -> 0 | Z47: =IF(T47=0,0,T47*(1+Korrekturvektor_Inflation!$H$8)) -> 0 | AA47: =IF(U47=0,0,U47*(1+Korrekturvektor_Inflation!$I$8)^2) -> 0 | AB47: =IF(V47=0,0,V47*(1+Korrekturvektor_Inflation!$I$8)^2) -> 0 | AC47: =IF(W47=0,0,W47*(1+Korrekturvektor_Inflation!$J$8)^3) -> 0 | AD47: =IF(X47=0,0,X47*(1+Korrekturvektor_Inflation!$J$8)^3) -> 0 | AE47: 0 | AF47: 0 | AG47: 0 | AH47: 0 | AJ47: 0 | AK47: 0
B48: 31 | S48: 0 | T48: 0 | U48: 0 | V48: 0 | W48: 0 | X48: 0 | Y48: =IF(S48=0,0,S48*(1+Korrekturvektor_Inflation!$H$8)) -> 0 | Z48: =IF(T48=0,0,T48*(1+Korrekturvektor_Inflation!$H$8)) -> 0 | AA48: =IF(U48=0,0,U48*(1+Korrekturvektor_Inflation!$I$8)^2) -> 0 | AB48: =IF(V48=0,0,V48*(1+Korrekturvektor_Inflation!$I$8)^2) -> 0 | AC48: =IF(W48=0,0,W48*(1+Korrekturvektor_Inflation!$J$8)^3) -> 0 | AD48: =IF(X48=0,0,X48*(1+Korrekturvektor_Inflation!$J$8)^3) -> 0 | AE48: 0 | AF48: 0 | AG48: 0 | AH48: 0 | AJ48: 0 | AK48: 0
B49: 32 | S49: 0 | T49: 0 | U49: 0 | V49: 0 | W49: 0 | X49: 0 | Y49: =IF(S49=0,0,S49*(1+Korrekturvektor_Inflation!$H$8)) -> 0 | Z49: =IF(T49=0,0,T49*(1+Korrekturvektor_Inflation!$H$8)) -> 0 | AA49: =IF(U49=0,0,U49*(1+Korrekturvektor_Inflation!$I$8)^2) -> 0 | AB49: =IF(V49=0,0,V49*(1+Korrekturvektor_Inflation!$I$8)^2) -> 0 | AC49: =IF(W49=0,0,W49*(1+Korrekturvektor_Inflation!$J$8)^3) -> 0 | AD49: =IF(X49=0,0,X49*(1+Korrekturvektor_Inflation!$J$8)^3) -> 0 | AE49: =IFERROR((G49*Y49+I49*AA49+K49*AC49)/(G49+I49+K49), 0)*nur_L -> 0 | AF49: =IFERROR((H49*Z49+J49*AB49+L49*AD49)/(H49+J49+L49), 0)*nur_L -> 0 | AG49: =IF(E49="",0,E49) -> 0 | AH49: =IF(F49="",0,F49) -> 0 | AJ49: 0 | AK49: 0
B50: 33 | S50: 0 | T50: 0 | U50: 0 | V50: 0 | W50: 0 | X50: 0 | Y50: =IF(S50=0,0,S50*(1+Korrekturvektor_Inflation!$H$8)) -> 0 | Z50: =IF(T50=0,0,T50*(1+Korrekturvektor_Inflation!$H$8)) -> 0 | AA50: =IF(U50=0,0,U50*(1+Korrekturvektor_Inflation!$I$8)^2) -> 0 | AB50: =IF(V50=0,0,V50*(1+Korrekturvektor_Inflation!$I$8)^2) -> 0 | AC50: =IF(W50=0,0,W50*(1+Korrekturvektor_Inflation!$J$8)^3) -> 0 | AD50: =IF(X50=0,0,X50*(1+Korrekturvektor_Inflation!$J$8)^3) -> 0 | AE50: 0 | AF50: 0 | AG50: 0 | AH50: 0 | AJ50: 0 | AK50: 0
B51: 34 | S51: 0 | T51: 0 | U51: 0 | V51: 0 | W51: 0 | X51: 0 | Y51: =IF(S51=0,0,S51*(1+Korrekturvektor_Inflation!$H$8)) -> 0 | Z51: =IF(T51=0,0,T51*(1+Korrekturvektor_Inflation!$H$8)) -> 0 | AA51: =IF(U51=0,0,U51*(1+Korrekturvektor_Inflation!$I$8)^2) -> 0 | AB51: =IF(V51=0,0,V51*(1+Korrekturvektor_Inflation!$I$8)^2) -> 0 | AC51: =IF(W51=0,0,W51*(1+Korrekturvektor_Inflation!$J$8)^3) -> 0 | AD51: =IF(X51=0,0,X51*(1+Korrekturvektor_Inflation!$J$8)^3) -> 0 | AE51: 0 | AF51: 0 | AG51: 0 | AH51: 0 | AJ51: 0 | AK51: 0
B52: 35 | S52: 0 | T52: 0 | U52: 0 | V52: 0 | W52: 0 | X52: 0 | Y52: =IF(S52=0,0,S52*(1+Korrekturvektor_Inflation!$H$8)) -> 0 | Z52: =IF(T52=0,0,T52*(1+Korrekturvektor_Inflation!$H$8)) -> 0 | AA52: =IF(U52=0,0,U52*(1+Korrekturvektor_Inflation!$I$8)^2) -> 0 | AB52: =IF(V52=0,0,V52*(1+Korrekturvektor_Inflation!$I$8)^2) -> 0 | AC52: =IF(W52=0,0,W52*(1+Korrekturvektor_Inflation!$J$8)^3) -> 0 | AD52: =IF(X52=0,0,X52*(1+Korrekturvektor_Inflation!$J$8)^3) -> 0 | AE52: 0 | AF52: 0 | AG52: 0 | AH52: 0 | AJ52: 0 | AK52: 0
B53: 36 | S53: 0 | T53: 0 | U53: 0 | V53: 0 | W53: 0 | X53: 0 | Y53: =IF(S53=0,0,S53*(1+Korrekturvektor_Inflation!$H$8)) -> 0 | Z53: =IF(T53=0,0,T53*(1+Korrekturvektor_Inflation!$H$8)) -> 0 | AA53: =IF(U53=0,0,U53*(1+Korrekturvektor_Inflation!$I$8)^2) -> 0 | AB53: =IF(V53=0,0,V53*(1+Korrekturvektor_Inflation!$I$8)^2) -> 0 | AC53: =IF(W53=0,0,W53*(1+Korrekturvektor_Inflation!$J$8)^3) -> 0 | AD53: =IF(X53=0,0,X53*(1+Korrekturvektor_Inflation!$J$8)^3) -> 0 | AE53: 0 | AF53: 0 | AG53: 0 | AH53: 0 | AJ53: 0 | AK53: 0
B54: 37 | S54: 0 | T54: 0 | U54: 0 | V54: 0 | W54: 0 | X54: 0 | Y54: =IF(S54=0,0,S54*(1+Korrekturvektor_Inflation!$H$8)) -> 0 | Z54: =IF(T54=0,0,T54*(1+Korrekturvektor_Inflation!$H$8)) -> 0 | AA54: =IF(U54=0,0,U54*(1+Korrekturvektor_Inflation!$I$8)^2) -> 0 | AB54: =IF(V54=0,0,V54*(1+Korrekturvektor_Inflation!$I$8)^2) -> 0 | AC54: =IF(W54=0,0,W54*(1+Korrekturvektor_Inflation!$J$8)^3) -> 0 | AD54: =IF(X54=0,0,X54*(1+Korrekturvektor_Inflation!$J$8)^3) -> 0 | AE54: 0 | AF54: 0 | AG54: 0 | AH54: 0 | AJ54: 0 | AK54: 0
B55: 38 | S55: 0 | T55: 0 | U55: 0 | V55: 0 | W55: 0 | X55: 0 | Y55: =IF(S55=0,0,S55*(1+Korrekturvektor_Inflation!$H$8)) -> 0 | Z55: =IF(T55=0,0,T55*(1+Korrekturvektor_Inflation!$H$8)) -> 0 | AA55: =IF(U55=0,0,U55*(1+Korrekturvektor_Inflation!$I$8)^2) -> 0 | AB55: =IF(V55=0,0,V55*(1+Korrekturvektor_Inflation!$I$8)^2) -> 0 | AC55: =IF(W55=0,0,W55*(1+Korrekturvektor_Inflation!$J$8)^3) -> 0 | AD55: =IF(X55=0,0,X55*(1+Korrekturvektor_Inflation!$J$8)^3) -> 0 | AE55: 0 | AF55: 0 | AG55: 0 | AH55: 0 | AJ55: 0 | AK55: 0
B56: 39 | S56: 0 | T56: 0 | U56: 0 | V56: 0 | W56: 0 | X56: 0 | Y56: =IF(S56=0,0,S56*(1+Korrekturvektor_Inflation!$H$8)) -> 0 | Z56: =IF(T56=0,0,T56*(1+Korrekturvektor_Inflation!$H$8)) -> 0 | AA56: =IF(U56=0,0,U56*(1+Korrekturvektor_Inflation!$I$8)^2) -> 0 | AB56: =IF(V56=0,0,V56*(1+Korrekturvektor_Inflation!$I$8)^2) -> 0 | AC56: =IF(W56=0,0,W56*(1+Korrekturvektor_Inflation!$J$8)^3) -> 0 | AD56: =IF(X56=0,0,X56*(1+Korrekturvektor_Inflation!$J$8)^3) -> 0 | AE56: 0 | AF56: 0 | AG56: 0 | AH56: 0 | AJ56: 0 | AK56: 0
B57: 40 | S57: 0 | T57: 0 | U57: 0 | V57: 0 | W57: 0 | X57: 0 | Y57: =IF(S57=0,0,S57*(1+Korrekturvektor_Inflation!$H$8)) -> 0 | Z57: =IF(T57=0,0,T57*(1+Korrekturvektor_Inflation!$H$8)) -> 0 | AA57: =IF(U57=0,0,U57*(1+Korrekturvektor_Inflation!$I$8)^2) -> 0 | AB57: =IF(V57=0,0,V57*(1+Korrekturvektor_Inflation!$I$8)^2) -> 0 | AC57: =IF(W57=0,0,W57*(1+Korrekturvektor_Inflation!$J$8)^3) -> 0 | AD57: =IF(X57=0,0,X57*(1+Korrekturvektor_Inflation!$J$8)^3) -> 0 | AE57: 0 | AF57: 0 | AG57: 0 | AH57: 0 | AJ57: 0 | AK57: 0
B58: 41 | S58: 0 | T58: 0 | U58: 0 | V58: 0 | W58: 0 | X58: 0 | Y58: =IF(S58=0,0,S58*(1+Korrekturvektor_Inflation!$H$8)) -> 0 | Z58: =IF(T58=0,0,T58*(1+Korrekturvektor_Inflation!$H$8)) -> 0 | AA58: =IF(U58=0,0,U58*(1+Korrekturvektor_Inflation!$I$8)^2) -> 0 | AB58: =IF(V58=0,0,V58*(1+Korrekturvektor_Inflation!$I$8)^2) -> 0 | AC58: =IF(W58=0,0,W58*(1+Korrekturvektor_Inflation!$J$8)^3) -> 0 | AD58: =IF(X58=0,0,X58*(1+Korrekturvektor_Inflation!$J$8)^3) -> 0 | AE58: 0 | AF58: 0 | AG58: 0 | AH58: 0 | AJ58: 0 | AK58: 0
B59: 42 | S59: 0 | T59: 0 | U59: 0 | V59: 0 | W59: 0 | X59: 0 | Y59: =IF(S59=0,0,S59*(1+Korrekturvektor_Inflation!$H$8)) -> 0 | Z59: =IF(T59=0,0,T59*(1+Korrekturvektor_Inflation!$H$8)) -> 0 | AA59: =IF(U59=0,0,U59*(1+Korrekturvektor_Inflation!$I$8)^2) -> 0 | AB59: =IF(V59=0,0,V59*(1+Korrekturvektor_Inflation!$I$8)^2) -> 0 | AC59: =IF(W59=0,0,W59*(1+Korrekturvektor_Inflation!$J$8)^3) -> 0 | AD59: =IF(X59=0,0,X59*(1+Korrekturvektor_Inflation!$J$8)^3) -> 0 | AE59: 0 | AF59: 0 | AG59: 0 | AH59: 0 | AJ59: 0 | AK59: 0
B60: 43 | S60: 0 | T60: 0 | U60: 0 | V60: 0 | W60: 0 | X60: 0 | Y60: =IF(S60=0,0,S60*(1+Korrekturvektor_Inflation!$H$8)) -> 0 | Z60: =IF(T60=0,0,T60*(1+Korrekturvektor_Inflation!$H$8)) -> 0 | AA60: =IF(U60=0,0,U60*(1+Korrekturvektor_Inflation!$I$8)^2) -> 0 | AB60: =IF(V60=0,0,V60*(1+Korrekturvektor_Inflation!$I$8)^2) -> 0 | AC60: =IF(W60=0,0,W60*(1+Korrekturvektor_Inflation!$J$8)^3) -> 0 | AD60: =IF(X60=0,0,X60*(1+Korrekturvektor_Inflation!$J$8)^3) -> 0 | AE60: 0 | AF60: 0 | AG60: 0 | AH60: 0 | AJ60: 0 | AK60: 0
B61: 44 | S61: 0 | T61: 0 | U61: 0 | V61: 0 | W61: 0 | X61: 0 | Y61: =IF(S61=0,0,S61*(1+Korrekturvektor_Inflation!$H$8)) -> 0 | Z61: =IF(T61=0,0,T61*(1+Korrekturvektor_Inflation!$H$8)) -> 0 | AA61: =IF(U61=0,0,U61*(1+Korrekturvektor_Inflation!$I$8)^2) -> 0 | AB61: =IF(V61=0,0,V61*(1+Korrekturvektor_Inflation!$I$8)^2) -> 0 | AC61: =IF(W61=0,0,W61*(1+Korrekturvektor_Inflation!$J$8)^3) -> 0 | AD61: =IF(X61=0,0,X61*(1+Korrekturvektor_Inflation!$J$8)^3) -> 0 | AE61: 0 | AF61: 0 | AG61: 0 | AH61: 0 | AJ61: 0 | AK61: 0
B62: 45 | S62: 0 | T62: 0 | U62: 0 | V62: 0 | W62: 0 | X62: 0 | Y62: =IF(S62=0,0,S62*(1+Korrekturvektor_Inflation!$H$8)) -> 0 | Z62: =IF(T62=0,0,T62*(1+Korrekturvektor_Inflation!$H$8)) -> 0 | AA62: =IF(U62=0,0,U62*(1+Korrekturvektor_Inflation!$I$8)^2) -> 0 | AB62: =IF(V62=0,0,V62*(1+Korrekturvektor_Inflation!$I$8)^2) -> 0 | AC62: =IF(W62=0,0,W62*(1+Korrekturvektor_Inflation!$J$8)^3) -> 0 | AD62: =IF(X62=0,0,X62*(1+Korrekturvektor_Inflation!$J$8)^3) -> 0 | AE62: 0 | AF62: 0 | AG62: 0 | AH62: 0 | AJ62: 0 | AK62: 0
B63: 46 | S63: 0 | T63: 0 | U63: 0 | V63: 0 | W63: 0 | X63: 0 | Y63: =IF(S63=0,0,S63*(1+Korrekturvektor_Inflation!$H$8)) -> 0 | Z63: =IF(T63=0,0,T63*(1+Korrekturvektor_Inflation!$H$8)) -> 0 | AA63: =IF(U63=0,0,U63*(1+Korrekturvektor_Inflation!$I$8)^2) -> 0 | AB63: =IF(V63=0,0,V63*(1+Korrekturvektor_Inflation!$I$8)^2) -> 0 | AC63: =IF(W63=0,0,W63*(1+Korrekturvektor_Inflation!$J$8)^3) -> 0 | AD63: =IF(X63=0,0,X63*(1+Korrekturvektor_Inflation!$J$8)^3) -> 0 | AE63: 0 | AF63: 0 | AG63: 0 | AH63: 0 | AJ63: 0 | AK63: 0
B64: 47 | S64: 0 | T64: 0 | U64: 0 | V64: 0 | W64: 0 | X64: 0 | Y64: =IF(S64=0,0,S64*(1+Korrekturvektor_Inflation!$H$8)) -> 0 | Z64: =IF(T64=0,0,T64*(1+Korrekturvektor_Inflation!$H$8)) -> 0 | AA64: =IF(U64=0,0,U64*(1+Korrekturvektor_Inflation!$I$8)^2) -> 0 | AB64: =IF(V64=0,0,V64*(1+Korrekturvektor_Inflation!$I$8)^2) -> 0 | AC64: =IF(W64=0,0,W64*(1+Korrekturvektor_Inflation!$J$8)^3) -> 0 | AD64: =IF(X64=0,0,X64*(1+Korrekturvektor_Inflation!$J$8)^3) -> 0 | AE64: 0 | AF64: 0 | AG64: 0 | AH64: 0 | AJ64: 0 | AK64: 0
B65: 48 | S65: 0 | T65: 0 | U65: 0 | V65: 0 | W65: 0 | X65: 0 | Y65: =IF(S65=0,0,S65*(1+Korrekturvektor_Inflation!$H$8)) -> 0 | Z65: =IF(T65=0,0,T65*(1+Korrekturvektor_Inflation!$H$8)) -> 0 | AA65: =IF(U65=0,0,U65*(1+Korrekturvektor_Inflation!$I$8)^2) -> 0 | AB65: =IF(V65=0,0,V65*(1+Korrekturvektor_Inflation!$I$8)^2) -> 0 | AC65: =IF(W65=0,0,W65*(1+Korrekturvektor_Inflation!$J$8)^3) -> 0 | AD65: =IF(X65=0,0,X65*(1+Korrekturvektor_Inflation!$J$8)^3) -> 0 | AE65: 0 | AF65: 0 | AG65: 0 | AH65: 0 | AJ65: 0 | AK65: 0
B66: 49 | S66: 0 | T66: 0 | U66: 0 | V66: 0 | W66: 0 | X66: 0 | Y66: =IF(S66=0,0,S66*(1+Korrekturvektor_Inflation!$H$8)) -> 0 | Z66: =IF(T66=0,0,T66*(1+Korrekturvektor_Inflation!$H$8)) -> 0 | AA66: =IF(U66=0,0,U66*(1+Korrekturvektor_Inflation!$I$8)^2) -> 0 | AB66: =IF(V66=0,0,V66*(1+Korrekturvektor_Inflation!$I$8)^2) -> 0 | AC66: =IF(W66=0,0,W66*(1+Korrekturvektor_Inflation!$J$8)^3) -> 0 | AD66: =IF(X66=0,0,X66*(1+Korrekturvektor_Inflation!$J$8)^3) -> 0 | AE66: 0 | AF66: 0 | AG66: 0 | AH66: 0 | AJ66: 0 | AK66: 0
B67: 50 | S67: 0 | T67: 0 | U67: 0 | V67: 0 | W67: 0 | X67: 0 | Y67: =IF(S67=0,0,S67*(1+Korrekturvektor_Inflation!$H$8)) -> 0 | Z67: =IF(T67=0,0,T67*(1+Korrekturvektor_Inflation!$H$8)) -> 0 | AA67: =IF(U67=0,0,U67*(1+Korrekturvektor_Inflation!$I$8)^2) -> 0 | AB67: =IF(V67=0,0,V67*(1+Korrekturvektor_Inflation!$I$8)^2) -> 0 | AC67: =IF(W67=0,0,W67*(1+Korrekturvektor_Inflation!$J$8)^3) -> 0 | AD67: =IF(X67=0,0,X67*(1+Korrekturvektor_Inflation!$J$8)^3) -> 0 | AE67: 0 | AF67: 0 | AG67: 0 | AH67: 0 | AJ67: 0 | AK67: 0
B68: 51 | S68: 0 | T68: 0 | U68: 0 | V68: 0 | W68: 0 | X68: 0 | Y68: =IF(S68=0,0,S68*(1+Korrekturvektor_Inflation!$H$8)) -> 0 | Z68: =IF(T68=0,0,T68*(1+Korrekturvektor_Inflation!$H$8)) -> 0 | AA68: =IF(U68=0,0,U68*(1+Korrekturvektor_Inflation!$I$8)^2) -> 0 | AB68: =IF(V68=0,0,V68*(1+Korrekturvektor_Inflation!$I$8)^2) -> 0 | AC68: =IF(W68=0,0,W68*(1+Korrekturvektor_Inflation!$J$8)^3) -> 0 | AD68: =IF(X68=0,0,X68*(1+Korrekturvektor_Inflation!$J$8)^3) -> 0 | AE68: 0 | AF68: 0 | AG68: 0 | AH68: 0 | AJ68: 0 | AK68: 0
B69: 52 | S69: 0 | T69: 0 | U69: 0 | V69: 0 | W69: 0 | X69: 0 | Y69: =IF(S69=0,0,S69*(1+Korrekturvektor_Inflation!$H$8)) -> 0 | Z69: =IF(T69=0,0,T69*(1+Korrekturvektor_Inflation!$H$8)) -> 0 | AA69: =IF(U69=0,0,U69*(1+Korrekturvektor_Inflation!$I$8)^2) -> 0 | AB69: =IF(V69=0,0,V69*(1+Korrekturvektor_Inflation!$I$8)^2) -> 0 | AC69: =IF(W69=0,0,W69*(1+Korrekturvektor_Inflation!$J$8)^3) -> 0 | AD69: =IF(X69=0,0,X69*(1+Korrekturvektor_Inflation!$J$8)^3) -> 0 | AE69: 0 | AF69: 0 | AG69: 0 | AH69: 0 | AJ69: 0 | AK69: 0
B70: 53 | S70: 0 | T70: 0 | U70: 0 | V70: 0 | W70: 0 | X70: 0 | Y70: =IF(S70=0,0,S70*(1+Korrekturvektor_Inflation!$H$8)) -> 0 | Z70: =IF(T70=0,0,T70*(1+Korrekturvektor_Inflation!$H$8)) -> 0 | AA70: =IF(U70=0,0,U70*(1+Korrekturvektor_Inflation!$I$8)^2) -> 0 | AB70: =IF(V70=0,0,V70*(1+Korrekturvektor_Inflation!$I$8)^2) -> 0 | AC70: =IF(W70=0,0,W70*(1+Korrekturvektor_Inflation!$J$8)^3) -> 0 | AD70: =IF(X70=0,0,X70*(1+Korrekturvektor_Inflation!$J$8)^3) -> 0 | AE70: 0 | AF70: 0 | AG70: 0 | AH70: 0 | AJ70: 0 | AK70: 0
B71: 54 | S71: 0 | T71: 0 | U71: 0 | V71: 0 | W71: 0 | X71: 0 | Y71: =IF(S71=0,0,S71*(1+Korrekturvektor_Inflation!$H$8)) -> 0 | Z71: =IF(T71=0,0,T71*(1+Korrekturvektor_Inflation!$H$8)) -> 0 | AA71: =IF(U71=0,0,U71*(1+Korrekturvektor_Inflation!$I$8)^2) -> 0 | AB71: =IF(V71=0,0,V71*(1+Korrekturvektor_Inflation!$I$8)^2) -> 0 | AC71: =IF(W71=0,0,W71*(1+Korrekturvektor_Inflation!$J$8)^3) -> 0 | AD71: =IF(X71=0,0,X71*(1+Korrekturvektor_Inflation!$J$8)^3) -> 0 | AE71: 0 | AF71: 0 | AG71: 0 | AH71: 0 | AJ71: 0 | AK71: 0
B72: 55 | S72: 0 | T72: 0 | U72: 0 | V72: 0 | W72: 0 | X72: 0 | Y72: =IF(S72=0,0,S72*(1+Korrekturvektor_Inflation!$H$8)) -> 0 | Z72: =IF(T72=0,0,T72*(1+Korrekturvektor_Inflation!$H$8)) -> 0 | AA72: =IF(U72=0,0,U72*(1+Korrekturvektor_Inflation!$I$8)^2) -> 0 | AB72: =IF(V72=0,0,V72*(1+Korrekturvektor_Inflation!$I$8)^2) -> 0 | AC72: =IF(W72=0,0,W72*(1+Korrekturvektor_Inflation!$J$8)^3) -> 0 | AD72: =IF(X72=0,0,X72*(1+Korrekturvektor_Inflation!$J$8)^3) -> 0 | AE72: 0 | AF72: 0 | AG72: 0 | AH72: 0 | AJ72: 0 | AK72: 0
B73: 56 | S73: 0 | T73: 0 | U73: 0 | V73: 0 | W73: 0 | X73: 0 | Y73: =IF(S73=0,0,S73*(1+Korrekturvektor_Inflation!$H$8)) -> 0 | Z73: =IF(T73=0,0,T73*(1+Korrekturvektor_Inflation!$H$8)) -> 0 | AA73: =IF(U73=0,0,U73*(1+Korrekturvektor_Inflation!$I$8)^2) -> 0 | AB73: =IF(V73=0,0,V73*(1+Korrekturvektor_Inflation!$I$8)^2) -> 0 | AC73: =IF(W73=0,0,W73*(1+Korrekturvektor_Inflation!$J$8)^3) -> 0 | AD73: =IF(X73=0,0,X73*(1+Korrekturvektor_Inflation!$J$8)^3) -> 0 | AE73: 0 | AF73: 0 | AG73: 0 | AH73: 0 | AJ73: 0 | AK73: 0
B74: 57 | S74: 0 | T74: 0 | U74: 0 | V74: 0 | W74: 0 | X74: 0 | Y74: =IF(S74=0,0,S74*(1+Korrekturvektor_Inflation!$H$8)) -> 0 | Z74: =IF(T74=0,0,T74*(1+Korrekturvektor_Inflation!$H$8)) -> 0 | AA74: =IF(U74=0,0,U74*(1+Korrekturvektor_Inflation!$I$8)^2) -> 0 | AB74: =IF(V74=0,0,V74*(1+Korrekturvektor_Inflation!$I$8)^2) -> 0 | AC74: =IF(W74=0,0,W74*(1+Korrekturvektor_Inflation!$J$8)^3) -> 0 | AD74: =IF(X74=0,0,X74*(1+Korrekturvektor_Inflation!$J$8)^3) -> 0 | AE74: 0 | AF74: 0 | AG74: 0 | AH74: 0 | AJ74: 0 | AK74: 0
B75: 58 | S75: 0 | T75: 0 | U75: 0 | V75: 0 | W75: 0 | X75: 0 | Y75: =IF(S75=0,0,S75*(1+Korrekturvektor_Inflation!$H$8)) -> 0 | Z75: =IF(T75=0,0,T75*(1+Korrekturvektor_Inflation!$H$8)) -> 0 | AA75: =IF(U75=0,0,U75*(1+Korrekturvektor_Inflation!$I$8)^2) -> 0 | AB75: =IF(V75=0,0,V75*(1+Korrekturvektor_Inflation!$I$8)^2) -> 0 | AC75: =IF(W75=0,0,W75*(1+Korrekturvektor_Inflation!$J$8)^3) -> 0 | AD75: =IF(X75=0,0,X75*(1+Korrekturvektor_Inflation!$J$8)^3) -> 0 | AE75: 0 | AF75: 0 | AG75: 0 | AH75: 0 | AJ75: 0 | AK75: 0
B76: 59 | S76: 0 | T76: 0 | U76: 0 | V76: 0 | W76: 0 | X76: 0 | Y76: =IF(S76=0,0,S76*(1+Korrekturvektor_Inflation!$H$8)) -> 0 | Z76: =IF(T76=0,0,T76*(1+Korrekturvektor_Inflation!$H$8)) -> 0 | AA76: =IF(U76=0,0,U76*(1+Korrekturvektor_Inflation!$I$8)^2) -> 0 | AB76: =IF(V76=0,0,V76*(1+Korrekturvektor_Inflation!$I$8)^2) -> 0 | AC76: =IF(W76=0,0,W76*(1+Korrekturvektor_Inflation!$J$8)^3) -> 0 | AD76: =IF(X76=0,0,X76*(1+Korrekturvektor_Inflation!$J$8)^3) -> 0 | AE76: 0 | AF76: 0 | AG76: 0 | AH76: 0 | AJ76: 0 | AK76: 0
B77: 60 | S77: 0 | T77: 0 | U77: 0 | V77: 0 | W77: 0 | X77: 0 | Y77: =IF(S77=0,0,S77*(1+Korrekturvektor_Inflation!$H$8)) -> 0 | Z77: =IF(T77=0,0,T77*(1+Korrekturvektor_Inflation!$H$8)) -> 0 | AA77: =IF(U77=0,0,U77*(1+Korrekturvektor_Inflation!$I$8)^2) -> 0 | AB77: =IF(V77=0,0,V77*(1+Korrekturvektor_Inflation!$I$8)^2) -> 0 | AC77: =IF(W77=0,0,W77*(1+Korrekturvektor_Inflation!$J$8)^3) -> 0 | AD77: =IF(X77=0,0,X77*(1+Korrekturvektor_Inflation!$J$8)^3) -> 0 | AE77: 0 | AF77: 0 | AG77: 0 | AH77: 0 | AJ77: 0 | AK77: 0
B78: 61 | S78: 0 | T78: 0 | U78: 0 | V78: 0 | W78: 0 | X78: 0 | Y78: =IF(S78=0,0,S78*(1+Korrekturvektor_Inflation!$H$8)) -> 0 | Z78: =IF(T78=0,0,T78*(1+Korrekturvektor_Inflation!$H$8)) -> 0 | AA78: =IF(U78=0,0,U78*(1+Korrekturvektor_Inflation!$I$8)^2) -> 0 | AB78: =IF(V78=0,0,V78*(1+Korrekturvektor_Inflation!$I$8)^2) -> 0 | AC78: =IF(W78=0,0,W78*(1+Korrekturvektor_Inflation!$J$8)^3) -> 0 | AD78: =IF(X78=0,0,X78*(1+Korrekturvektor_Inflation!$J$8)^3) -> 0 | AE78: 0 | AF78: 0 | AG78: 0 | AH78: 0 | AJ78: 0 | AK78: 0
B79: 62 | S79: 0 | T79: 0 | U79: 0 | V79: 0 | W79: 0 | X79: 0 | Y79: =IF(S79=0,0,S79*(1+Korrekturvektor_Inflation!$H$8)) -> 0 | Z79: =IF(T79=0,0,T79*(1+Korrekturvektor_Inflation!$H$8)) -> 0 | AA79: =IF(U79=0,0,U79*(1+Korrekturvektor_Inflation!$I$8)^2) -> 0 | AB79: =IF(V79=0,0,V79*(1+Korrekturvektor_Inflation!$I$8)^2) -> 0 | AC79: =IF(W79=0,0,W79*(1+Korrekturvektor_Inflation!$J$8)^3) -> 0 | AD79: =IF(X79=0,0,X79*(1+Korrekturvektor_Inflation!$J$8)^3) -> 0 | AE79: 0 | AF79: 0 | AG79: 0 | AH79: 0 | AJ79: 0 | AK79: 0
B80: 63 | S80: 0 | T80: 0 | U80: 0 | V80: 0 | W80: 0 | X80: 0 | Y80: =IF(S80=0,0,S80*(1+Korrekturvektor_Inflation!$H$8)) -> 0 | Z80: =IF(T80=0,0,T80*(1+Korrekturvektor_Inflation!$H$8)) -> 0 | AA80: =IF(U80=0,0,U80*(1+Korrekturvektor_Inflation!$I$8)^2) -> 0 | AB80: =IF(V80=0,0,V80*(1+Korrekturvektor_Inflation!$I$8)^2) -> 0 | AC80: =IF(W80=0,0,W80*(1+Korrekturvektor_Inflation!$J$8)^3) -> 0 | AD80: =IF(X80=0,0,X80*(1+Korrekturvektor_Inflation!$J$8)^3) -> 0 | AE80: 0 | AF80: 0 | AG80: 0 | AH80: 0 | AJ80: 0 | AK80: 0
B81: 64 | S81: 0 | T81: 0 | U81: 0 | V81: 0 | W81: 0 | X81: 0 | Y81: =IF(S81=0,0,S81*(1+Korrekturvektor_Inflation!$H$8)) -> 0 | Z81: =IF(T81=0,0,T81*(1+Korrekturvektor_Inflation!$H$8)) -> 0 | AA81: =IF(U81=0,0,U81*(1+Korrekturvektor_Inflation!$I$8)^2) -> 0 | AB81: =IF(V81=0,0,V81*(1+Korrekturvektor_Inflation!$I$8)^2) -> 0 | AC81: =IF(W81=0,0,W81*(1+Korrekturvektor_Inflation!$J$8)^3) -> 0 | AD81: =IF(X81=0,0,X81*(1+Korrekturvektor_Inflation!$J$8)^3) -> 0 | AE81: =IFERROR((G81*Y81+I81*AA81+K81*AC81)/(G81+I81+K81), 0)*nur_L -> 0 | AF81: =IFERROR((H81*Z81+J81*AB81+L81*AD81)/(H81+J81+L81), 0)*nur_L -> 0 | AG81: =IF(E81="",0,E81) -> 0 | AH81: =IF(F81="",0,F81) -> 0 | AJ81: 0 | AK81: 0
B82: 65 | S82: =IFERROR(M82/G82,0) -> 0 | T82: =IFERROR(N82/H82,0) -> 0 | U82: =IFERROR(O82/I82,0) -> 0 | V82: =IFERROR(P82/J82,0) -> 0 | W82: =IFERROR(Q82/K82,0) -> 0 | X82: =IFERROR(R82/L82,0) -> 0 | Y82: =IF(S82=0,0,S82*(1+Korrekturvektor_Inflation!$H$8)) -> 0 | Z82: =IF(T82=0,0,T82*(1+Korrekturvektor_Inflation!$H$8)) -> 0 | AA82: =IF(U82=0,0,U82*(1+Korrekturvektor_Inflation!$I$8)^2) -> 0 | AB82: =IF(V82=0,0,V82*(1+Korrekturvektor_Inflation!$I$8)^2) -> 0 | AC82: =IF(W82=0,0,W82*(1+Korrekturvektor_Inflation!$J$8)^3) -> 0 | AD82: =IF(X82=0,0,X82*(1+Korrekturvektor_Inflation!$J$8)^3) -> 0 | AE82: 0 | AF82: 0 | AG82: 0 | AH82: 0 | AJ82: 0 | AK82: 0
B83: 66 | S83: 0 | T83: 0 | U83: 0 | V83: 0 | W83: 0 | X83: 0 | Y83: =IF(S83=0,0,S83*(1+Korrekturvektor_Inflation!$H$8)) -> 0 | Z83: =IF(T83=0,0,T83*(1+Korrekturvektor_Inflation!$H$8)) -> 0 | AA83: =IF(U83=0,0,U83*(1+Korrekturvektor_Inflation!$I$8)^2) -> 0 | AB83: =IF(V83=0,0,V83*(1+Korrekturvektor_Inflation!$I$8)^2) -> 0 | AC83: =IF(W83=0,0,W83*(1+Korrekturvektor_Inflation!$J$8)^3) -> 0 | AD83: =IF(X83=0,0,X83*(1+Korrekturvektor_Inflation!$J$8)^3) -> 0 | AE83: 0 | AF83: 0 | AG83: 0 | AH83: 0 | AJ83: =IFERROR(AVERAGE(AE82:AE84),0) -> 0 | AK83: 0
B84: 67 | S84: 0 | T84: 0 | U84: 0 | V84: 0 | W84: 0 | X84: 0 | Y84: =IF(S84=0,0,S84*(1+Korrekturvektor_Inflation!$H$8)) -> 0 | Z84: =IF(T84=0,0,T84*(1+Korrekturvektor_Inflation!$H$8)) -> 0 | AA84: =IF(U84=0,0,U84*(1+Korrekturvektor_Inflation!$I$8)^2) -> 0 | AB84: =IF(V84=0,0,V84*(1+Korrekturvektor_Inflation!$I$8)^2) -> 0 | AC84: =IF(W84=0,0,W84*(1+Korrekturvektor_Inflation!$J$8)^3) -> 0 | AD84: =IF(X84=0,0,X84*(1+Korrekturvektor_Inflation!$J$8)^3) -> 0 | AE84: 0 | AF84: 0 | AG84: 0 | AH84: 0 | AJ84: 0 | AK84: 0
B85: 68 | S85: 0 | T85: 0 | U85: 0 | V85: 0 | W85: 0 | X85: 0 | Y85: =IF(S85=0,0,S85*(1+Korrekturvektor_Inflation!$H$8)) -> 0 | Z85: =IF(T85=0,0,T85*(1+Korrekturvektor_Inflation!$H$8)) -> 0 | AA85: =IF(U85=0,0,U85*(1+Korrekturvektor_Inflation!$I$8)^2) -> 0 | AB85: =IF(V85=0,0,V85*(1+Korrekturvektor_Inflation!$I$8)^2) -> 0 | AC85: =IF(W85=0,0,W85*(1+Korrekturvektor_Inflation!$J$8)^3) -> 0 | AD85: =IF(X85=0,0,X85*(1+Korrekturvektor_Inflation!$J$8)^3) -> 0 | AE85: 0 | AF85: 0 | AG85: 0 | AH85: 0 | AJ85: 0 | AK85: 0
B86: 69 | S86: 0 | T86: 0 | U86: 0 | V86: 0 | W86: 0 | X86: 0 | Y86: =IF(S86=0,0,S86*(1+Korrekturvektor_Inflation!$H$8)) -> 0 | Z86: =IF(T86=0,0,T86*(1+Korrekturvektor_Inflation!$H$8)) -> 0 | AA86: =IF(U86=0,0,U86*(1+Korrekturvektor_Inflation!$I$8)^2) -> 0 | AB86: =IF(V86=0,0,V86*(1+Korrekturvektor_Inflation!$I$8)^2) -> 0 | AC86: =IF(W86=0,0,W86*(1+Korrekturvektor_Inflation!$J$8)^3) -> 0 | AD86: =IF(X86=0,0,X86*(1+Korrekturvektor_Inflation!$J$8)^3) -> 0 | AE86: 0 | AF86: 0 | AG86: 0 | AH86: 0 | AJ86: 0 | AK86: 0
B87: 70 | S87: 0 | T87: 0 | U87: 0 | V87: 0 | W87: 0 | X87: 0 | Y87: =IF(S87=0,0,S87*(1+Korrekturvektor_Inflation!$H$8)) -> 0 | Z87: =IF(T87=0,0,T87*(1+Korrekturvektor_Inflation!$H$8)) -> 0 | AA87: =IF(U87=0,0,U87*(1+Korrekturvektor_Inflation!$I$8)^2) -> 0 | AB87: =IF(V87=0,0,V87*(1+Korrekturvektor_Inflation!$I$8)^2) -> 0 | AC87: =IF(W87=0,0,W87*(1+Korrekturvektor_Inflation!$J$8)^3) -> 0 | AD87: =IF(X87=0,0,X87*(1+Korrekturvektor_Inflation!$J$8)^3) -> 0 | AE87: 0 | AF87: 0 | AG87: 0 | AH87: 0 | AJ87: 0 | AK87: 0
B88: 71 | S88: 0 | T88: 0 | U88: 0 | V88: 0 | W88: 0 | X88: 0 | Y88: =IF(S88=0,0,S88*(1+Korrekturvektor_Inflation!$H$8)) -> 0 | Z88: =IF(T88=0,0,T88*(1+Korrekturvektor_Inflation!$H$8)) -> 0 | AA88: =IF(U88=0,0,U88*(1+Korrekturvektor_Inflation!$I$8)^2) -> 0 | AB88: =IF(V88=0,0,V88*(1+Korrekturvektor_Inflation!$I$8)^2) -> 0 | AC88: =IF(W88=0,0,W88*(1+Korrekturvektor_Inflation!$J$8)^3) -> 0 | AD88: =IF(X88=0,0,X88*(1+Korrekturvektor_Inflation!$J$8)^3) -> 0 | AE88: 0 | AF88: 0 | AG88: 0 | AH88: 0 | AJ88: 0 | AK88: 0
B89: 72 | S89: 0 | T89: 0 | U89: 0 | V89: 0 | W89: 0 | X89: 0 | Y89: =IF(S89=0,0,S89*(1+Korrekturvektor_Inflation!$H$8)) -> 0 | Z89: =IF(T89=0,0,T89*(1+Korrekturvektor_Inflation!$H$8)) -> 0 | AA89: =IF(U89=0,0,U89*(1+Korrekturvektor_Inflation!$I$8)^2) -> 0 | AB89: =IF(V89=0,0,V89*(1+Korrekturvektor_Inflation!$I$8)^2) -> 0 | AC89: =IF(W89=0,0,W89*(1+Korrekturvektor_Inflation!$J$8)^3) -> 0 | AD89: =IF(X89=0,0,X89*(1+Korrekturvektor_Inflation!$J$8)^3) -> 0 | AE89: 0 | AF89: 0 | AG89: 0 | AH89: 0 | AJ89: 0 | AK89: 0
B90: 73 | S90: 0 | T90: 0 | U90: 0 | V90: 0 | W90: 0 | X90: 0 | Y90: =IF(S90=0,0,S90*(1+Korrekturvektor_Inflation!$H$8)) -> 0 | Z90: =IF(T90=0,0,T90*(1+Korrekturvektor_Inflation!$H$8)) -> 0 | AA90: =IF(U90=0,0,U90*(1+Korrekturvektor_Inflation!$I$8)^2) -> 0 | AB90: =IF(V90=0,0,V90*(1+Korrekturvektor_Inflation!$I$8)^2) -> 0 | AC90: =IF(W90=0,0,W90*(1+Korrekturvektor_Inflation!$J$8)^3) -> 0 | AD90: =IF(X90=0,0,X90*(1+Korrekturvektor_Inflation!$J$8)^3) -> 0 | AE90: 0 | AF90: 0 | AG90: 0 | AH90: 0 | AJ90: 0 | AK90: 0
B91: 74 | S91: 0 | T91: 0 | U91: 0 | V91: 0 | W91: 0 | X91: 0 | Y91: =IF(S91=0,0,S91*(1+Korrekturvektor_Inflation!$H$8)) -> 0 | Z91: =IF(T91=0,0,T91*(1+Korrekturvektor_Inflation!$H$8)) -> 0 | AA91: =IF(U91=0,0,U91*(1+Korrekturvektor_Inflation!$I$8)^2) -> 0 | AB91: =IF(V91=0,0,V91*(1+Korrekturvektor_Inflation!$I$8)^2) -> 0 | AC91: =IF(W91=0,0,W91*(1+Korrekturvektor_Inflation!$J$8)^3) -> 0 | AD91: =IF(X91=0,0,X91*(1+Korrekturvektor_Inflation!$J$8)^3) -> 0 | AE91: 0 | AF91: 0 | AG91: 0 | AH91: 0 | AJ91: 0 | AK91: 0
B92: 75 | S92: 0 | T92: 0 | U92: 0 | V92: 0 | W92: 0 | X92: 0 | Y92: =IF(S92=0,0,S92*(1+Korrekturvektor_Inflation!$H$8)) -> 0 | Z92: =IF(T92=0,0,T92*(1+Korrekturvektor_Inflation!$H$8)) -> 0 | AA92: =IF(U92=0,0,U92*(1+Korrekturvektor_Inflation!$I$8)^2) -> 0 | AB92: =IF(V92=0,0,V92*(1+Korrekturvektor_Inflation!$I$8)^2) -> 0 | AC92: =IF(W92=0,0,W92*(1+Korrekturvektor_Inflation!$J$8)^3) -> 0 | AD92: =IF(X92=0,0,X92*(1+Korrekturvektor_Inflation!$J$8)^3) -> 0 | AE92: 0 | AF92: 0 | AG92: 0 | AH92: 0 | AJ92: 0 | AK92: 0
B93: 76 | S93: 0 | T93: 0 | U93: 0 | V93: 0 | W93: 0 | X93: 0 | Y93: =IF(S93=0,0,S93*(1+Korrekturvektor_Inflation!$H$8)) -> 0 | Z93: =IF(T93=0,0,T93*(1+Korrekturvektor_Inflation!$H$8)) -> 0 | AA93: =IF(U93=0,0,U93*(1+Korrekturvektor_Inflation!$I$8)^2) -> 0 | AB93: =IF(V93=0,0,V93*(1+Korrekturvektor_Inflation!$I$8)^2) -> 0 | AC93: =IF(W93=0,0,W93*(1+Korrekturvektor_Inflation!$J$8)^3) -> 0 | AD93: =IF(X93=0,0,X93*(1+Korrekturvektor_Inflation!$J$8)^3) -> 0 | AE93: 0 | AF93: 0 | AG93: 0 | AH93: 0 | AJ93: 0 | AK93: 0
B94: 77 | S94: 0 | T94: 0 | U94: 0 | V94: 0 | W94: 0 | X94: 0 | Y94: =IF(S94=0,0,S94*(1+Korrekturvektor_Inflation!$H$8)) -> 0 | Z94: =IF(T94=0,0,T94*(1+Korrekturvektor_Inflation!$H$8)) -> 0 | AA94: =IF(U94=0,0,U94*(1+Korrekturvektor_Inflation!$I$8)^2) -> 0 | AB94: =IF(V94=0,0,V94*(1+Korrekturvektor_Inflation!$I$8)^2) -> 0 | AC94: =IF(W94=0,0,W94*(1+Korrekturvektor_Inflation!$J$8)^3) -> 0 | AD94: =IF(X94=0,0,X94*(1+Korrekturvektor_Inflation!$J$8)^3) -> 0 | AE94: 0 | AF94: 0 | AG94: 0 | AH94: 0 | AJ94: 0 | AK94: 0
B95: 78 | S95: 0 | T95: 0 | U95: 0 | V95: 0 | W95: 0 | X95: 0 | Y95: =IF(S95=0,0,S95*(1+Korrekturvektor_Inflation!$H$8)) -> 0 | Z95: =IF(T95=0,0,T95*(1+Korrekturvektor_Inflation!$H$8)) -> 0 | AA95: =IF(U95=0,0,U95*(1+Korrekturvektor_Inflation!$I$8)^2) -> 0 | AB95: =IF(V95=0,0,V95*(1+Korrekturvektor_Inflation!$I$8)^2) -> 0 | AC95: =IF(W95=0,0,W95*(1+Korrekturvektor_Inflation!$J$8)^3) -> 0 | AD95: =IF(X95=0,0,X95*(1+Korrekturvektor_Inflation!$J$8)^3) -> 0 | AE95: 0 | AF95: 0 | AG95: 0 | AH95: 0 | AJ95: 0 | AK95: 0
B96: 79 | S96: 0 | T96: 0 | U96: 0 | V96: 0 | W96: 0 | X96: 0 | Y96: =IF(S96=0,0,S96*(1+Korrekturvektor_Inflation!$H$8)) -> 0 | Z96: =IF(T96=0,0,T96*(1+Korrekturvektor_Inflation!$H$8)) -> 0 | AA96: =IF(U96=0,0,U96*(1+Korrekturvektor_Inflation!$I$8)^2) -> 0 | AB96: =IF(V96=0,0,V96*(1+Korrekturvektor_Inflation!$I$8)^2) -> 0 | AC96: =IF(W96=0,0,W96*(1+Korrekturvektor_Inflation!$J$8)^3) -> 0 | AD96: =IF(X96=0,0,X96*(1+Korrekturvektor_Inflation!$J$8)^3) -> 0 | AE96: 0 | AF96: 0 | AG96: 0 | AH96: 0 | AJ96: 0 | AK96: 0
B97: 80 | S97: 0 | T97: 0 | U97: 0 | V97: 0 | W97: 0 | X97: 0 | Y97: =IF(S97=0,0,S97*(1+Korrekturvektor_Inflation!$H$8)) -> 0 | Z97: =IF(T97=0,0,T97*(1+Korrekturvektor_Inflation!$H$8)) -> 0 | AA97: =IF(U97=0,0,U97*(1+Korrekturvektor_Inflation!$I$8)^2) -> 0 | AB97: =IF(V97=0,0,V97*(1+Korrekturvektor_Inflation!$I$8)^2) -> 0 | AC97: =IF(W97=0,0,W97*(1+Korrekturvektor_Inflation!$J$8)^3) -> 0 | AD97: =IF(X97=0,0,X97*(1+Korrekturvektor_Inflation!$J$8)^3) -> 0 | AE97: 0 | AF97: 0 | AG97: 0 | AH97: 0 | AJ97: 0 | AK97: 0
B98: 81 | S98: 0 | T98: 0 | U98: 0 | V98: 0 | W98: 0 | X98: 0 | Y98: =IF(S98=0,0,S98*(1+Korrekturvektor_Inflation!$H$8)) -> 0 | Z98: =IF(T98=0,0,T98*(1+Korrekturvektor_Inflation!$H$8)) -> 0 | AA98: =IF(U98=0,0,U98*(1+Korrekturvektor_Inflation!$I$8)^2) -> 0 | AB98: =IF(V98=0,0,V98*(1+Korrekturvektor_Inflation!$I$8)^2) -> 0 | AC98: =IF(W98=0,0,W98*(1+Korrekturvektor_Inflation!$J$8)^3) -> 0 | AD98: =IF(X98=0,0,X98*(1+Korrekturvektor_Inflation!$J$8)^3) -> 0 | AE98: 0 | AF98: 0 | AG98: 0 | AH98: 0 | AJ98: 0 | AK98: 0
B99: 82 | S99: 0 | T99: 0 | U99: 0 | V99: 0 | W99: 0 | X99: 0 | Y99: =IF(S99=0,0,S99*(1+Korrekturvektor_Inflation!$H$8)) -> 0 | Z99: =IF(T99=0,0,T99*(1+Korrekturvektor_Inflation!$H$8)) -> 0 | AA99: =IF(U99=0,0,U99*(1+Korrekturvektor_Inflation!$I$8)^2) -> 0 | AB99: =IF(V99=0,0,V99*(1+Korrekturvektor_Inflation!$I$8)^2) -> 0 | AC99: =IF(W99=0,0,W99*(1+Korrekturvektor_Inflation!$J$8)^3) -> 0 | AD99: =IF(X99=0,0,X99*(1+Korrekturvektor_Inflation!$J$8)^3) -> 0 | AE99: 0 | AF99: 0 | AG99: 0 | AH99: 0 | AJ99: 0 | AK99: 0
B100: 83 | S100: 0 | T100: 0 | U100: 0 | V100: 0 | W100: 0 | X100: 0 | Y100: =IF(S100=0,0,S100*(1+Korrekturvektor_Inflation!$H$8)) -> 0 | Z100: =IF(T100=0,0,T100*(1+Korrekturvektor_Inflation!$H$8)) -> 0 | AA100: =IF(U100=0,0,U100*(1+Korrekturvektor_Inflation!$I$8)^2) -> 0 | AB100: =IF(V100=0,0,V100*(1+Korrekturvektor_Inflation!$I$8)^2) -> 0 | AC100: =IF(W100=0,0,W100*(1+Korrekturvektor_Inflation!$J$8)^3) -> 0 | AD100: =IF(X100=0,0,X100*(1+Korrekturvektor_Inflation!$J$8)^3) -> 0 | AE100: 0 | AF100: 0 | AG100: 0 | AH100: 0 | AJ100: 0 | AK100: 0
B101: 84 | S101: 0 | T101: 0 | U101: 0 | V101: 0 | W101: 0 | X101: 0 | Y101: =IF(S101=0,0,S101*(1+Korrekturvektor_Inflation!$H$8)) -> 0 | Z101: =IF(T101=0,0,T101*(1+Korrekturvektor_Inflation!$H$8)) -> 0 | AA101: =IF(U101=0,0,U101*(1+Korrekturvektor_Inflation!$I$8)^2) -> 0 | AB101: =IF(V101=0,0,V101*(1+Korrekturvektor_Inflation!$I$8)^2) -> 0 | AC101: =IF(W101=0,0,W101*(1+Korrekturvektor_Inflation!$J$8)^3) -> 0 | AD101: =IF(X101=0,0,X101*(1+Korrekturvektor_Inflation!$J$8)^3) -> 0 | AE101: 0 | AF101: 0 | AG101: 0 | AH101: 0 | AJ101: 0 | AK101: 0
B102: 85 | S102: 0 | T102: 0 | U102: 0 | V102: 0 | W102: 0 | X102: 0 | Y102: =IF(S102=0,0,S102*(1+Korrekturvektor_Inflation!$H$8)) -> 0 | Z102: =IF(T102=0,0,T102*(1+Korrekturvektor_Inflation!$H$8)) -> 0 | AA102: =IF(U102=0,0,U102*(1+Korrekturvektor_Inflation!$I$8)^2) -> 0 | AB102: =IF(V102=0,0,V102*(1+Korrekturvektor_Inflation!$I$8)^2) -> 0 | AC102: =IF(W102=0,0,W102*(1+Korrekturvektor_Inflation!$J$8)^3) -> 0 | AD102: =IF(X102=0,0,X102*(1+Korrekturvektor_Inflation!$J$8)^3) -> 0 | AE102: 0 | AF102: 0 | AG102: 0 | AH102: 0 | AJ102: 0 | AK102: 0
B103: 86 | S103: 0 | T103: 0 | U103: 0 | V103: 0 | W103: 0 | X103: 0 | Y103: =IF(S103=0,0,S103*(1+Korrekturvektor_Inflation!$H$8)) -> 0 | Z103: =IF(T103=0,0,T103*(1+Korrekturvektor_Inflation!$H$8)) -> 0 | AA103: =IF(U103=0,0,U103*(1+Korrekturvektor_Inflation!$I$8)^2) -> 0 | AB103: =IF(V103=0,0,V103*(1+Korrekturvektor_Inflation!$I$8)^2) -> 0 | AC103: =IF(W103=0,0,W103*(1+Korrekturvektor_Inflation!$J$8)^3) -> 0 | AD103: =IF(X103=0,0,X103*(1+Korrekturvektor_Inflation!$J$8)^3) -> 0 | AE103: 0 | AF103: 0 | AG103: 0 | AH103: 0 | AJ103: 0 | AK103: 0
B104: 87 | S104: 0 | T104: 0 | U104: 0 | V104: 0 | W104: 0 | X104: 0 | Y104: =IF(S104=0,0,S104*(1+Korrekturvektor_Inflation!$H$8)) -> 0 | Z104: =IF(T104=0,0,T104*(1+Korrekturvektor_Inflation!$H$8)) -> 0 | AA104: =IF(U104=0,0,U104*(1+Korrekturvektor_Inflation!$I$8)^2) -> 0 | AB104: =IF(V104=0,0,V104*(1+Korrekturvektor_Inflation!$I$8)^2) -> 0 | AC104: =IF(W104=0,0,W104*(1+Korrekturvektor_Inflation!$J$8)^3) -> 0 | AD104: =IF(X104=0,0,X104*(1+Korrekturvektor_Inflation!$J$8)^3) -> 0 | AE104: 0 | AF104: 0 | AG104: 0 | AH104: 0 | AJ104: 0 | AK104: 0
B105: 88 | S105: 0 | T105: 0 | U105: 0 | V105: 0 | W105: 0 | X105: 0 | Y105: =IF(S105=0,0,S105*(1+Korrekturvektor_Inflation!$H$8)) -> 0 | Z105: =IF(T105=0,0,T105*(1+Korrekturvektor_Inflation!$H$8)) -> 0 | AA105: =IF(U105=0,0,U105*(1+Korrekturvektor_Inflation!$I$8)^2) -> 0 | AB105: =IF(V105=0,0,V105*(1+Korrekturvektor_Inflation!$I$8)^2) -> 0 | AC105: =IF(W105=0,0,W105*(1+Korrekturvektor_Inflation!$J$8)^3) -> 0 | AD105: =IF(X105=0,0,X105*(1+Korrekturvektor_Inflation!$J$8)^3) -> 0 | AE105: 0 | AF105: 0 | AG105: 0 | AH105: 0 | AJ105: 0 | AK105: 0
B106: 89 | S106: 0 | T106: 0 | U106: 0 | V106: 0 | W106: 0 | X106: 0 | Y106: =IF(S106=0,0,S106*(1+Korrekturvektor_Inflation!$H$8)) -> 0 | Z106: =IF(T106=0,0,T106*(1+Korrekturvektor_Inflation!$H$8)) -> 0 | AA106: =IF(U106=0,0,U106*(1+Korrekturvektor_Inflation!$I$8)^2) -> 0 | AB106: =IF(V106=0,0,V106*(1+Korrekturvektor_Inflation!$I$8)^2) -> 0 | AC106: =IF(W106=0,0,W106*(1+Korrekturvektor_Inflation!$J$8)^3) -> 0 | AD106: =IF(X106=0,0,X106*(1+Korrekturvektor_Inflation!$J$8)^3) -> 0 | AE106: 0 | AF106: 0 | AG106: 0 | AH106: 0 | AJ106: 0 | AK106: 0
B107: 90 | S107: 0 | T107: 0 | U107: 0 | V107: 0 | W107: 0 | X107: 0 | Y107: =IF(S107=0,0,S107*(1+Korrekturvektor_Inflation!$H$8)) -> 0 | Z107: =IF(T107=0,0,T107*(1+Korrekturvektor_Inflation!$H$8)) -> 0 | AA107: =IF(U107=0,0,U107*(1+Korrekturvektor_Inflation!$I$8)^2) -> 0 | AB107: =IF(V107=0,0,V107*(1+Korrekturvektor_Inflation!$I$8)^2) -> 0 | AC107: =IF(W107=0,0,W107*(1+Korrekturvektor_Inflation!$J$8)^3) -> 0 | AD107: =IF(X107=0,0,X107*(1+Korrekturvektor_Inflation!$J$8)^3) -> 0 | AE107: 0 | AF107: 0 | AG107: 0 | AH107: 0 | AJ107: 0 | AK107: 0
B108: 91 | S108: 0 | T108: 0 | U108: 0 | V108: 0 | W108: 0 | X108: 0 | Y108: =IF(S108=0,0,S108*(1+Korrekturvektor_Inflation!$H$8)) -> 0 | Z108: =IF(T108=0,0,T108*(1+Korrekturvektor_Inflation!$H$8)) -> 0 | AA108: =IF(U108=0,0,U108*(1+Korrekturvektor_Inflation!$I$8)^2) -> 0 | AB108: =IF(V108=0,0,V108*(1+Korrekturvektor_Inflation!$I$8)^2) -> 0 | AC108: =IF(W108=0,0,W108*(1+Korrekturvektor_Inflation!$J$8)^3) -> 0 | AD108: =IF(X108=0,0,X108*(1+Korrekturvektor_Inflation!$J$8)^3) -> 0 | AE108: 0 | AF108: 0 | AG108: 0 | AH108: 0 | AJ108: =IFERROR(SUMPRODUCT(C$108:C$117,AE$108:AE$117)/SUM(C$108:C$117),0) -> 0 | AK108: =IFERROR(SUMPRODUCT(D$108:D$117,AF$108:AF$117)/SUM(D$108:D$117),0) -> 0
B109: 92 | S109: 0 | T109: 0 | U109: 0 | V109: 0 | W109: 0 | X109: 0 | Y109: =IF(S109=0,0,S109*(1+Korrekturvektor_Inflation!$H$8)) -> 0 | Z109: =IF(T109=0,0,T109*(1+Korrekturvektor_Inflation!$H$8)) -> 0 | AA109: =IF(U109=0,0,U109*(1+Korrekturvektor_Inflation!$I$8)^2) -> 0 | AB109: =IF(V109=0,0,V109*(1+Korrekturvektor_Inflation!$I$8)^2) -> 0 | AC109: =IF(W109=0,0,W109*(1+Korrekturvektor_Inflation!$J$8)^3) -> 0 | AD109: =IF(X109=0,0,X109*(1+Korrekturvektor_Inflation!$J$8)^3) -> 0 | AE109: 0 | AF109: 0 | AG109: 0 | AH109: 0 | AJ109: 0 | AK109: 0
B110: 93 | S110: 0 | T110: 0 | U110: 0 | V110: 0 | W110: 0 | X110: 0 | Y110: =IF(S110=0,0,S110*(1+Korrekturvektor_Inflation!$H$8)) -> 0 | Z110: =IF(T110=0,0,T110*(1+Korrekturvektor_Inflation!$H$8)) -> 0 | AA110: =IF(U110=0,0,U110*(1+Korrekturvektor_Inflation!$I$8)^2) -> 0 | AB110: =IF(V110=0,0,V110*(1+Korrekturvektor_Inflation!$I$8)^2) -> 0 | AC110: =IF(W110=0,0,W110*(1+Korrekturvektor_Inflation!$J$8)^3) -> 0 | AD110: =IF(X110=0,0,X110*(1+Korrekturvektor_Inflation!$J$8)^3) -> 0 | AE110: 0 | AF110: 0 | AG110: 0 | AH110: 0 | AJ110: 0 | AK110: 0
B111: 94 | S111: 0 | T111: 0 | U111: 0 | V111: 0 | W111: 0 | X111: 0 | Y111: =IF(S111=0,0,S111*(1+Korrekturvektor_Inflation!$H$8)) -> 0 | Z111: =IF(T111=0,0,T111*(1+Korrekturvektor_Inflation!$H$8)) -> 0 | AA111: =IF(U111=0,0,U111*(1+Korrekturvektor_Inflation!$I$8)^2) -> 0 | AB111: =IF(V111=0,0,V111*(1+Korrekturvektor_Inflation!$I$8)^2) -> 0 | AC111: =IF(W111=0,0,W111*(1+Korrekturvektor_Inflation!$J$8)^3) -> 0 | AD111: =IF(X111=0,0,X111*(1+Korrekturvektor_Inflation!$J$8)^3) -> 0 | AE111: 0 | AF111: 0 | AG111: 0 | AH111: 0 | AJ111: 0 | AK111: 0
B112: 95 | S112: 0 | T112: 0 | U112: 0 | V112: 0 | W112: 0 | X112: 0 | Y112: =IF(S112=0,0,S112*(1+Korrekturvektor_Inflation!$H$8)) -> 0 | Z112: =IF(T112=0,0,T112*(1+Korrekturvektor_Inflation!$H$8)) -> 0 | AA112: =IF(U112=0,0,U112*(1+Korrekturvektor_Inflation!$I$8)^2) -> 0 | AB112: =IF(V112=0,0,V112*(1+Korrekturvektor_Inflation!$I$8)^2) -> 0 | AC112: =IF(W112=0,0,W112*(1+Korrekturvektor_Inflation!$J$8)^3) -> 0 | AD112: =IF(X112=0,0,X112*(1+Korrekturvektor_Inflation!$J$8)^3) -> 0 | AE112: 0 | AF112: 0 | AG112: 0 | AH112: 0 | AJ112: 0 | AK112: 0
B113: 96 | S113: 0 | T113: 0 | U113: 0 | V113: 0 | W113: 0 | X113: 0 | Y113: =IF(S113=0,0,S113*(1+Korrekturvektor_Inflation!$H$8)) -> 0 | Z113: =IF(T113=0,0,T113*(1+Korrekturvektor_Inflation!$H$8)) -> 0 | AA113: =IF(U113=0,0,U113*(1+Korrekturvektor_Inflation!$I$8)^2) -> 0 | AB113: =IF(V113=0,0,V113*(1+Korrekturvektor_Inflation!$I$8)^2) -> 0 | AC113: =IF(W113=0,0,W113*(1+Korrekturvektor_Inflation!$J$8)^3) -> 0 | AD113: =IF(X113=0,0,X113*(1+Korrekturvektor_Inflation!$J$8)^3) -> 0 | AE113: 0 | AF113: 0 | AG113: 0 | AH113: 0 | AJ113: 0 | AK113: 0
B114: 97 | S114: 0 | T114: 0 | U114: 0 | V114: 0 | W114: 0 | X114: 0 | Y114: =IF(S114=0,0,S114*(1+Korrekturvektor_Inflation!$H$8)) -> 0 | Z114: =IF(T114=0,0,T114*(1+Korrekturvektor_Inflation!$H$8)) -> 0 | AA114: =IF(U114=0,0,U114*(1+Korrekturvektor_Inflation!$I$8)^2) -> 0 | AB114: =IF(V114=0,0,V114*(1+Korrekturvektor_Inflation!$I$8)^2) -> 0 | AC114: =IF(W114=0,0,W114*(1+Korrekturvektor_Inflation!$J$8)^3) -> 0 | AD114: =IF(X114=0,0,X114*(1+Korrekturvektor_Inflation!$J$8)^3) -> 0 | AE114: 0 | AF114: 0 | AG114: 0 | AH114: 0 | AJ114: 0 | AK114: 0
B115: 98 | S115: 0 | T115: 0 | U115: 0 | V115: 0 | W115: 0 | X115: 0 | Y115: =IF(S115=0,0,S115*(1+Korrekturvektor_Inflation!$H$8)) -> 0 | Z115: =IF(T115=0,0,T115*(1+Korrekturvektor_Inflation!$H$8)) -> 0 | AA115: =IF(U115=0,0,U115*(1+Korrekturvektor_Inflation!$I$8)^2) -> 0 | AB115: =IF(V115=0,0,V115*(1+Korrekturvektor_Inflation!$I$8)^2) -> 0 | AC115: =IF(W115=0,0,W115*(1+Korrekturvektor_Inflation!$J$8)^3) -> 0 | AD115: =IF(X115=0,0,X115*(1+Korrekturvektor_Inflation!$J$8)^3) -> 0 | AE115: 0 | AF115: 0 | AG115: 0 | AH115: 0 | AJ115: 0 | AK115: 0
B116: 99 | S116: 0 | T116: 0 | U116: 0 | V116: 0 | W116: 0 | X116: 0 | Y116: =IF(S116=0,0,S116*(1+Korrekturvektor_Inflation!$H$8)) -> 0 | Z116: =IF(T116=0,0,T116*(1+Korrekturvektor_Inflation!$H$8)) -> 0 | AA116: =IF(U116=0,0,U116*(1+Korrekturvektor_Inflation!$I$8)^2) -> 0 | AB116: =IF(V116=0,0,V116*(1+Korrekturvektor_Inflation!$I$8)^2) -> 0 | AC116: =IF(W116=0,0,W116*(1+Korrekturvektor_Inflation!$J$8)^3) -> 0 | AD116: =IF(X116=0,0,X116*(1+Korrekturvektor_Inflation!$J$8)^3) -> 0 | AE116: 0 | AF116: 0 | AG116: 0 | AH116: 0 | AJ116: 0 | AK116: 0
B117: 100 | S117: 0 | T117: 0 | U117: 0 | V117: 0 | W117: 0 | X117: 0 | Y117: =IF(S117=0,0,S117*(1+Korrekturvektor_Inflation!$H$8)) -> 0 | Z117: =IF(T117=0,0,T117*(1+Korrekturvektor_Inflation!$H$8)) -> 0 | AA117: =IF(U117=0,0,U117*(1+Korrekturvektor_Inflation!$I$8)^2) -> 0 | AB117: =IF(V117=0,0,V117*(1+Korrekturvektor_Inflation!$I$8)^2) -> 0 | AC117: =IF(W117=0,0,W117*(1+Korrekturvektor_Inflation!$J$8)^3) -> 0 | AD117: =IF(X117=0,0,X117*(1+Korrekturvektor_Inflation!$J$8)^3) -> 0 | AE117: 0 | AF117: 0 | AG117: 0 | AH117: 0 | AJ117: 0 | AK117: 0

Sheet HE_Input_6
A1: 15 | B1: Produktegruppe 4: Inputdaten
B5: SST-Stichtag | C5: ="01.01."& current_year -> 01.01.2024
B7: Verwaltungskosten (%) | C7: =HE_Inputparam_VWK!C76 -> 0
B12: Produktegruppe 4 - Langzeitpflege | AJ12: Für Analysezwecke
B13: Effektivalter | C13: Anzahl Verträge je Alter per 01.01.2024 (Aktuelles Jahr) | E13: Prämien pro Vertrag und je Alter nach Behandlungsjahr (Aktuelles Jahr) | G13: Anzahl Verträge je Alter per 31.12. 2023 (Vorjahr) | I13: Anzahl Verträge je Alter per 31.12. 2022 (Vorjahr-1) | K13: Anzahl Verträge je Alter per 31.12. 2021 (Vorjahr-2) | M13: Leistungen je Alter nach Behandlungsjahr 2023 (Vorjahr) | O13: Leistungen je Alter nach Behandlungsjahr 2022 (Vorjahr-1) | Q13: Leistungen je Alter nach Behandlungsjahr 2021 (Vorjahr-2) | S13: Leistungen pro Vertrag und je Alter nach Behandlungsjahr 2023 (Vorjahr) | U13: Leistungen pro Vertrag und je Alter nach Behandlungsjahr 2022 (Vorjahr-1) | W13: Leistungen pro Vertrag und je Alter nach Behandlungsjahr 2021 (Vorjahr-2) | Y13: Inflationierte Leistungen pro Vertrag und je Alter nach Behandlungsjahr 2023 (Vorjahr) | AA13: Inflationierte Leistungen pro Vertrag und je Alter nach Behandlungsjahr 2022 (Vorjahr-1) | AC13: Inflationierte Leistungen pro Vertrag und je Alter nach Behandlungsjahr 2021 (Vorjahr-2) | AE13: Leistungen pro Vertrag und je Alter | AG13: Prämien pro Vertrag und je Alter (Aktuelles Jahr) | AJ13: Leistungen pro Vertrag und je Alter (geglättet)
C14: Total (positive Werte) | E14: (positiv, CHF) | G14: (positiv, CHF) | I14: (positiv, CHF) | K14: (positiv, CHF) | M14: (positiv, CHF) | O14: (positiv, CHF) | Q14: (positiv, CHF) | S14: (positiv, CHF) | U14: (positiv, CHF) | W14: (positiv, CHF) | Y14: (positiv, CHF) | AA14: (positiv, CHF) | AC14: (positiv, CHF) | AE14: (positiv, CHF) | AG14: (positiv, CHF) | AJ14: (positiv, CHF)
C15: Männer | D15: Frauen | E15: Männer | F15: Frauen | G15: Männer | H15: Frauen | I15: Männer | J15: Frauen | K15: Männer | L15: Frauen | M15: Männer | N15: Frauen | O15: Männer | P15: Frauen | Q15: Männer | R15: Frauen | S15: Männer | T15: Frauen | U15: Männer | V15: Frauen | W15: Männer | X15: Frauen | Y15: Männer | Z15: Frauen | AA15: Männer | AB15: Frauen | AC15: Männer | AD15: Frauen | AE15: Männer | AF15: Frauen | AG15: Männer | AH15: Frauen | AJ15: Männer | AK15: Frauen
C16: =SUM(_MP6) -> 0 | D16: =SUM(_FP6) -> 0 | E16: =IF(C16=0,0,SUMPRODUCT(E17:E117,_MP6)/C16) -> 0 | F16: =IF(D16=0,0,SUMPRODUCT(F17:F117,_FP6)/D16) -> 0 | G16: =SUM(G17:G117) -> 0 | H16: 0 | I16: 0 | J16: 0 | K16: 0 | L16: 0 | M16: 0 | N16: 0 | O16: 0 | P16: 0 | Q16: 0 | R16: 0
B17: 0 | S17: =IFERROR(M17/G17,0) -> 0 | T17: 0 | U17: 0 | V17: 0 | W17: 0 | X17: 0 | Y17: =IF(S17=0,0,S17) -> 0 | Z17: 0 | AA17: 0 | AB17: 0 | AC17: 0 | AD17: 0 | AE17: =IFERROR((G17*Y17+I17*AA17+K17*AC17)/(G17+I17+K17), 0)*nur_L -> 0 | AF17: =IFERROR((H17*Z17+J17*AB17+L17*AD17)/(H17+J17+L17), 0)*nur_L -> 0 | AG17: =IF(E17="",0,E17) -> 0 | AH17: =IF(F17="",0,F17) -> 0 | AJ17: =IFERROR(AVERAGE(AE17,AE18),0) -> 0 | AK17: =IFERROR(AVERAGE(AF17,AF18),0) -> 0
B18: 1 | S18: =IFERROR(M18/G18,0) -> 0 | T18: =IFERROR(N18/H18,0) -> 0 | U18: =IFERROR(O18/I18,0) -> 0 | V18: =IFERROR(P18/J18,0) -> 0 | W18: =IFERROR(Q18/K18,0) -> 0 | X18: =IFERROR(R18/L18,0) -> 0 | Y18: 0 | Z18: 0 | AA18: 0 | AB18: 0 | AC18: 0 | AD18: 0 | AE18: 0 | AF18: 0 | AG18: 0 | AH18: 0 | AJ18: =IFERROR(AVERAGE(AE17:AE19),0) -> 0 | AK18: =IFERROR(AVERAGE(AF17:AF19),0) -> 0
B19: 2 | S19: 0 | T19: 0 | U19: 0 | V19: 0 | W19: 0 | X19: 0 | Y19: 0 | Z19: 0 | AA19: 0 | AB19: 0 | AC19: 0 | AD19: 0 | AE19: 0 | AF19: 0 | AG19: 0 | AH19: 0 | AJ19: =IFERROR(AVERAGE(AE18:AE20),0) -> 0 | AK19: 0
B20: 3 | S20: 0 | T20: 0 | U20: 0 | V20: 0 | W20: 0 | X20: 0 | Y20: 0 | Z20: 0 | AA20: 0 | AB20: 0 | AC20: 0 | AD20: 0 | AE20: 0 | AF20: 0 | AG20: 0 | AH20: 0 | AJ20: 0 | AK20: 0
B21: 4 | S21: 0 | T21: 0 | U21: 0 | V21: 0 | W21: 0 | X21: 0 | Y21: 0 | Z21: 0 | AA21: 0 | AB21: 0 | AC21: 0 | AD21: 0 | AE21: 0 | AF21: 0 | AG21: 0 | AH21: 0 | AJ21: 0 | AK21: 0
B22: 5 | S22: 0 | T22: 0 | U22: 0 | V22: 0 | W22: 0 | X22: 0 | Y22: 0 | Z22: 0 | AA22: 0 | AB22: 0 | AC22: 0 | AD22: 0 | AE22: 0 | AF22: 0 | AG22: 0 | AH22: 0 | AJ22: 0 | AK22: 0
B23: 6 | S23: 0 | T23: 0 | U23: 0 | V23: 0 | W23: 0 | X23: 0 | Y23: 0 | Z23: 0 | AA23: 0 | AB23: 0 | AC23: 0 | AD23: 0 | AE23: 0 | AF23: 0 | AG23: 0 | AH23: 0 | AJ23: 0 | AK23: 0
B24: 7 | S24: 0 | T24: 0 | U24: 0 | V24: 0 | W24: 0 | X24: 0 | Y24: 0 | Z24: 0 | AA24: 0 | AB24: 0 | AC24: 0 | AD24: 0 | AE24: 0 | AF24: 0 | AG24: 0 | AH24: 0 | AJ24: 0 | AK24: 0
B25: 8 | S25: 0 | T25: 0 | U25: 0 | V25: 0 | W25: 0 | X25: 0 | Y25: 0 | Z25: 0 | AA25: 0 | AB25: 0 | AC25: 0 | AD25: 0 | AE25: 0 | AF25: 0 | AG25: 0 | AH25: 0 | AJ25: 0 | AK25: 0
B26: 9 | S26: 0 | T26: 0 | U26: 0 | V26: 0 | W26: 0 | X26: 0 | Y26: 0 | Z26: 0 | AA26: 0 | AB26: 0 | AC26: 0 | AD26: 0 | AE26: 0 | AF26: 0 | AG26: 0 | AH26: 0 | AJ26: 0 | AK26: 0
B27: 10 | S27: 0 | T27: 0 | U27: 0 | V27: 0 | W27: 0 | X27: 0 | Y27: 0 | Z27: 0 | AA27: 0 | AB27: 0 | AC27: 0 | AD27: 0 | AE27: 0 | AF27: 0 | AG27: 0 | AH27: 0 | AJ27: 0 | AK27: 0
B28: 11 | S28: 0 | T28: 0 | U28: 0 | V28: 0 | W28: 0 | X28: 0 | Y28: 0 | Z28: 0 | AA28: 0 | AB28: 0 | AC28: 0 | AD28: 0 | AE28: 0 | AF28: 0 | AG28: 0 | AH28: 0 | AJ28: 0 | AK28: 0
B29: 12 | S29: 0 | T29: 0 | U29: 0 | V29: 0 | W29: 0 | X29: 0 | Y29: 0 | Z29: 0 | AA29: 0 | AB29: 0 | AC29: 0 | AD29: 0 | AE29: 0 | AF29: 0 | AG29: 0 | AH29: 0 | AJ29: 0 | AK29: 0
B30: 13 | S30: 0 | T30: 0 | U30: 0 | V30: 0 | W30: 0 | X30: 0 | Y30: 0 | Z30: 0 | AA30: 0 | AB30: 0 | AC30: 0 | AD30: 0 | AE30: 0 | AF30: 0 | AG30: 0 | AH30: 0 | AJ30: 0 | AK30: 0
B31: 14 | S31: 0 | T31: 0 | U31: 0 | V31: 0 | W31: 0 | X31: 0 | Y31: 0 | Z31: 0 | AA31: 0 | AB31: 0 | AC31: 0 | AD31: 0 | AE31: 0 | AF31: 0 | AG31: 0 | AH31: 0 | AJ31: 0 | AK31: 0
B32: 15 | S32: 0 | T32: 0 | U32: 0 | V32: 0 | W32: 0 | X32: 0 | Y32: 0 | Z32: 0 | AA32: 0 | AB32: 0 | AC32: 0 | AD32: 0 | AE32: 0 | AF32: 0 | AG32: 0 | AH32: 0 | AJ32: 0 | AK32: 0
B33: 16 | S33: 0 | T33: 0 | U33: 0 | V33: 0 | W33: 0 | X33: 0 | Y33: =IF(S33=0,0,S33) -> 0 | Z33: 0 | AA33: 0 | AB33: 0 | AC33: 0 | AD33: 0 | AE33: 0 | AF33: 0 | AG33: 0 | AH33: 0 | AJ33: 0 | AK33: 0
B34: 17 | S34: 0 | T34: 0 | U34: 0 | V34: 0 | W34: 0 | X34: 0 | Y34: 0 | Z34: 0 | AA34: 0 | AB34: 0 | AC34: 0 | AD34: 0 | AE34: 0 | AF34: 0 | AG34: 0 | AH34: 0 | AJ34: 0 | AK34: 0
B35: 18 | S35: 0 | T35: 0 | U35: 0 | V35: 0 | W35: 0 | X35: 0 | Y35: 0 | Z35: 0 | AA35: 0 | AB35: 0 | AC35: 0 | AD35: 0 | AE35: 0 | AF35: 0 | AG35: 0 | AH35: 0 | AJ35: 0 | AK35: 0
B36: 19 | S36: 0 | T36: 0 | U36: 0 | V36: 0 | W36: 0 | X36: 0 | Y36: 0 | Z36: 0 | AA36: 0 | AB36: 0 | AC36: 0 | AD36: 0 | AE36: 0 | AF36: 0 | AG36: 0 | AH36: 0 | AJ36: 0 | AK36: 0
B37: 20 | S37: 0 | T37: 0 | U37: 0 | V37: 0 | W37: 0 | X37: 0 | Y37: 0 | Z37: 0 | AA37: 0 | AB37: 0 | AC37: 0 | AD37: 0 | AE37: 0 | AF37: 0 | AG37: 0 | AH37: 0 | AJ37: 0 | AK37: 0
B38: 21 | S38: 0 | T38: 0 | U38: 0 | V38: 0 | W38: 0 | X38: 0 | Y38: 0 | Z38: 0 | AA38: 0 | AB38: 0 | AC38: 0 | AD38: 0 | AE38: 0 | AF38: 0 | AG38: 0 | AH38: 0 | AJ38: 0 | AK38: 0
B39: 22 | S39: 0 | T39: 0 | U39: 0 | V39: 0 | W39: 0 | X39: 0 | Y39: 0 | Z39: 0 | AA39: 0 | AB39: 0 | AC39: 0 | AD39: 0 | AE39: 0 | AF39: 0 | AG39: 0 | AH39: 0 | AJ39: 0 | AK39: 0
B40: 23 | S40: 0 | T40: 0 | U40: 0 | V40: 0 | W40: 0 | X40: 0 | Y40: 0 | Z40: 0 | AA40: 0 | AB40: 0 | AC40: 0 | AD40: 0 | AE40: 0 | AF40: 0 | AG40: 0 | AH40: 0 | AJ40: 0 | AK40: 0
B41: 24 | S41: 0 | T41: 0 | U41: 0 | V41: 0 | W41: 0 | X41: 0 | Y41: 0 | Z41: 0 | AA41: 0 | AB41: 0 | AC41: 0 | AD41: 0 | AE41: 0 | AF41: 0 | AG41: 0 | AH41: 0 | AJ41: 0 | AK41: 0
B42: 25 | S42: 0 | T42: 0 | U42: 0 | V42: 0 | W42: 0 | X42: 0 | Y42: 0 | Z42: 0 | AA42: 0 | AB42: 0 | AC42: 0 | AD42: 0 | AE42: 0 | AF42: 0 | AG42: 0 | AH42: 0 | AJ42: 0 | AK42: 0
B43: 26 | S43: 0 | T43: 0 | U43: 0 | V43: 0 | W43: 0 | X43: 0 | Y43: 0 | Z43: 0 | AA43: 0 | AB43: 0 | AC43: 0 | AD43: 0 | AE43: 0 | AF43: 0 | AG43: 0 | AH43: 0 | AJ43: 0 | AK43: 0
B44: 27 | S44: 0 | T44: 0 | U44: 0 | V44: 0 | W44: 0 | X44: 0 | Y44: 0 | Z44: 0 | AA44: 0 | AB44: 0 | AC44: 0 | AD44: 0 | AE44: 0 | AF44: 0 | AG44: 0 | AH44: 0 | AJ44: 0 | AK44: 0
B45: 28 | S45: 0 | T45: 0 | U45: 0 | V45: 0 | W45: 0 | X45: 0 | Y45: 0 | Z45: 0 | AA45: 0 | AB45: 0 | AC45: 0 | AD45: 0 | AE45: 0 | AF45: 0 | AG45: 0 | AH45: 0 | AJ45: 0 | AK45: 0
B46: 29 | S46: 0 | T46: 0 | U46: 0 | V46: 0 | W46: 0 | X46: 0 | Y46: 0 | Z46: 0 | AA46: 0 | AB46: 0 | AC46: 0 | AD46: 0 | AE46: 0 | AF46: 0 | AG46: 0 | AH46: 0 | AJ46: 0 | AK46: 0
B47: 30 | S47: 0 | T47: 0 | U47: 0 | V47: 0 | W47: 0 | X47: 0 | Y47: 0 | Z47: 0 | AA47: 0 | AB47: 0 | AC47: 0 | AD47: 0 | AE47: 0 | AF47: 0 | AG47: 0 | AH47: 0 | AJ47: 0 | AK47: 0
B48: 31 | S48: 0 | T48: 0 | U48: 0 | V48: 0 | W48: 0 | X48: 0 | Y48: 0 | Z48: 0 | AA48: 0 | AB48: 0 | AC48: 0 | AD48: 0 | AE48: 0 | AF48: 0 | AG48: 0 | AH48: 0 | AJ48: 0 | AK48: 0
B49: 32 | S49: 0 | T49: 0 | U49: 0 | V49: 0 | W49: 0 | X49: 0 | Y49: 0 | Z49: 0 | AA49: 0 | AB49: 0 | AC49: 0 | AD49: 0 | AE49: =IFERROR((G49*Y49+I49*AA49+K49*AC49)/(G49+I49+K49), 0)*nur_L -> 0 | AF49: =IFERROR((H49*Z49+J49*AB49+L49*AD49)/(H49+J49+L49), 0)*nur_L -> 0 | AG49: =IF(E49="",0,E49) -> 0 | AH49: =IF(F49="",0,F49) -> 0 | AJ49: 0 | AK49: 0
B50: 33 | S50: 0 | T50: 0 | U50: 0 | V50: 0 | W50: 0 | X50: 0 | Y50: 0 | Z50: 0 | AA50: 0 | AB50: 0 | AC50: 0 | AD50: 0 | AE50: 0 | AF50: 0 | AG50: 0 | AH50: 0 | AJ50: 0 | AK50: 0
B51: 34 | S51: 0 | T51: 0 | U51: 0 | V51: 0 | W51: 0 | X51: 0 | Y51: 0 | Z51: 0 | AA51: 0 | AB51: 0 | AC51: 0 | AD51: 0 | AE51: 0 | AF51: 0 | AG51: 0 | AH51: 0 | AJ51: 0 | AK51: 0
B52: 35 | S52: 0 | T52: 0 | U52: 0 | V52: 0 | W52: 0 | X52: 0 | Y52: 0 | Z52: 0 | AA52: 0 | AB52: 0 | AC52: 0 | AD52: 0 | AE52: 0 | AF52: 0 | AG52: 0 | AH52: 0 | AJ52: 0 | AK52: 0
B53: 36 | S53: 0 | T53: 0 | U53: 0 | V53: 0 | W53: 0 | X53: 0 | Y53: 0 | Z53: 0 | AA53: 0 | AB53: 0 | AC53: 0 | AD53: 0 | AE53: 0 | AF53: 0 | AG53: 0 | AH53: 0 | AJ53: 0 | AK53: 0
B54: 37 | S54: 0 | T54: 0 | U54: 0 | V54: 0 | W54: 0 | X54: 0 | Y54: 0 | Z54: 0 | AA54: 0 | AB54: 0 | AC54: 0 | AD54: 0 | AE54: 0 | AF54: 0 | AG54: 0 | AH54: 0 | AJ54: 0 | AK54: 0
B55: 38 | S55: 0 | T55: 0 | U55: 0 | V55: 0 | W55: 0 | X55: 0 | Y55: 0 | Z55: 0 | AA55: 0 | AB55: 0 | AC55: 0 | AD55: 0 | AE55: 0 | AF55: 0 | AG55: 0 | AH55: 0 | AJ55: 0 | AK55: 0
B56: 39 | S56: 0 | T56: 0 | U56: 0 | V56: 0 | W56: 0 | X56: 0 | Y56: 0 | Z56: 0 | AA56: 0 | AB56: 0 | AC56: 0 | AD56: 0 | AE56: 0 | AF56: 0 | AG56: 0 | AH56: 0 | AJ56: 0 | AK56: 0
B57: 40 | S57: 0 | T57: 0 | U57: 0 | V57: 0 | W57: 0 | X57: 0 | Y57: 0 | Z57: 0 | AA57: 0 | AB57: 0 | AC57: 0 | AD57: 0 | AE57: 0 | AF57: 0 | AG57: 0 | AH57: 0 | AJ57: 0 | AK57: 0
B58: 41 | S58: 0 | T58: 0 | U58: 0 | V58: 0 | W58: 0 | X58: 0 | Y58: 0 | Z58: 0 | AA58: 0 | AB58: 0 | AC58: 0 | AD58: 0 | AE58: 0 | AF58: 0 | AG58: 0 | AH58: 0 | AJ58: 0 | AK58: 0
B59: 42 | S59: 0 | T59: 0 | U59: 0 | V59: 0 | W59: 0 | X59: 0 | Y59: 0 | Z59: 0 | AA59: 0 | AB59: 0 | AC59: 0 | AD59: 0 | AE59: 0 | AF59: 0 | AG59: 0 | AH59: 0 | AJ59: 0 | AK59: 0
B60: 43 | S60: 0 | T60: 0 | U60: 0 | V60: 0 | W60: 0 | X60: 0 | Y60: 0 | Z60: 0 | AA60: 0 | AB60: 0 | AC60: 0 | AD60: 0 | AE60: 0 | AF60: 0 | AG60: 0 | AH60: 0 | AJ60: 0 | AK60: 0
B61: 44 | S61: 0 | T61: 0 | U61: 0 | V61: 0 | W61: 0 | X61: 0 | Y61: 0 | Z61: 0 | AA61: 0 | AB61: 0 | AC61: 0 | AD61: 0 | AE61: 0 | AF61: 0 | AG61: 0 | AH61: 0 | AJ61: 0 | AK61: 0
B62: 45 | S62: 0 | T62: 0 | U62: 0 | V62: 0 | W62: 0 | X62: 0 | Y62: 0 | Z62: 0 | AA62: 0 | AB62: 0 | AC62: 0 | AD62: 0 | AE62: 0 | AF62: 0 | AG62: 0 | AH62: 0 | AJ62: 0 | AK62: 0
B63: 46 | S63: 0 | T63: 0 | U63: 0 | V63: 0 | W63: 0 | X63: 0 | Y63: 0 | Z63: 0 | AA63: 0 | AB63: 0 | AC63: 0 | AD63: 0 | AE63: 0 | AF63: 0 | AG63: 0 | AH63: 0 | AJ63: 0 | AK63: 0
B64: 47 | S64: 0 | T64: 0 | U64: 0 | V64: 0 | W64: 0 | X64: 0 | Y64: 0 | Z64: 0 | AA64: 0 | AB64: 0 | AC64: 0 | AD64: 0 | AE64: 0 | AF64: 0 | AG64: 0 | AH64: 0 | AJ64: 0 | AK64: 0
B65: 48 | S65: 0 | T65: 0 | U65: 0 | V65: 0 | W65: 0 | X65: 0 | Y65: 0 | Z65: 0 | AA65: 0 | AB65: 0 | AC65: 0 | AD65: 0 | AE65: 0 | AF65: 0 | AG65: 0 | AH65: 0 | AJ65: 0 | AK65: 0
B66: 49 | S66: 0 | T66: 0 | U66: 0 | V66: 0 | W66: 0 | X66: 0 | Y66: 0 | Z66: 0 | AA66: 0 | AB66: 0 | AC66: 0 | AD66: 0 | AE66: 0 | AF66: 0 | AG66: 0 | AH66: 0 | AJ66: 0 | AK66: 0
B67: 50 | S67: 0 | T67: 0 | U67: 0 | V67: 0 | W67: 0 | X67: 0 | Y67: 0 | Z67: 0 | AA67: 0 | AB67: 0 | AC67: 0 | AD67: 0 | AE67: 0 | AF67: 0 | AG67: 0 | AH67: 0 | AJ67: 0 | AK67: 0
B68: 51 | S68: 0 | T68: 0 | U68: 0 | V68: 0 | W68: 0 | X68: 0 | Y68: 0 | Z68: 0 | AA68: 0 | AB68: 0 | AC68: 0 | AD68: 0 | AE68: 0 | AF68: 0 | AG68: 0 | AH68: 0 | AJ68: 0 | AK68: 0
B69: 52 | S69: 0 | T69: 0 | U69: 0 | V69: 0 | W69: 0 | X69: 0 | Y69: 0 | Z69: 0 | AA69: 0 | AB69: 0 | AC69: 0 | AD69: 0 | AE69: 0 | AF69: 0 | AG69: 0 | AH69: 0 | AJ69: 0 | AK69: 0
B70: 53 | S70: 0 | T70: 0 | U70: 0 | V70: 0 | W70: 0 | X70: 0 | Y70: 0 | Z70: 0 | AA70: 0 | AB70: 0 | AC70: 0 | AD70: 0 | AE70: 0 | AF70: 0 | AG70: 0 | AH70: 0 | AJ70: 0 | AK70: 0
B71: 54 | S71: 0 | T71: 0 | U71: 0 | V71: 0 | W71: 0 | X71: 0 | Y71: 0 | Z71: 0 | AA71: 0 | AB71: 0 | AC71: 0 | AD71: 0 | AE71: 0 | AF71: 0 | AG71: 0 | AH71: 0 | AJ71: 0 | AK71: 0
B72: 55 | S72: 0 | T72: 0 | U72: 0 | V72: 0 | W72: 0 | X72: 0 | Y72: 0 | Z72: 0 | AA72: 0 | AB72: 0 | AC72: 0 | AD72: 0 | AE72: 0 | AF72: 0 | AG72: 0 | AH72: 0 | AJ72: 0 | AK72: 0
B73: 56 | S73: 0 | T73: 0 | U73: 0 | V73: 0 | W73: 0 | X73: 0 | Y73: 0 | Z73: 0 | AA73: 0 | AB73: 0 | AC73: 0 | AD73: 0 | AE73: 0 | AF73: 0 | AG73: 0 | AH73: 0 | AJ73: 0 | AK73: 0
B74: 57 | S74: 0 | T74: 0 | U74: 0 | V74: 0 | W74: 0 | X74: 0 | Y74: 0 | Z74: 0 | AA74: 0 | AB74: 0 | AC74: 0 | AD74: 0 | AE74: 0 | AF74: 0 | AG74: 0 | AH74: 0 | AJ74: 0 | AK74: 0
B75: 58 | S75: 0 | T75: 0 | U75: 0 | V75: 0 | W75: 0 | X75: 0 | Y75: 0 | Z75: 0 | AA75: 0 | AB75: =IF(V75=0,0,V75) -> 0 | AC75: 0 | AD75: 0 | AE75: 0 | AF75: 0 | AG75: 0 | AH75: 0 | AJ75: 0 | AK75: 0
B76: 59 | S76: 0 | T76: 0 | U76: 0 | V76: 0 | W76: 0 | X76: 0 | Y76: =IF(S76=0,0,S76) -> 0 | Z76: 0 | AA76: 0 | AB76: 0 | AC76: 0 | AD76: 0 | AE76: 0 | AF76: 0 | AG76: 0 | AH76: 0 | AJ76: 0 | AK76: 0
B77: 60 | S77: 0 | T77: 0 | U77: 0 | V77: 0 | W77: 0 | X77: 0 | Y77: 0 | Z77: 0 | AA77: 0 | AB77: 0 | AC77: 0 | AD77: 0 | AE77: 0 | AF77: 0 | AG77: 0 | AH77: 0 | AJ77: 0 | AK77: 0
B78: 61 | S78: 0 | T78: 0 | U78: 0 | V78: 0 | W78: 0 | X78: 0 | Y78: 0 | Z78: 0 | AA78: 0 | AB78: 0 | AC78: 0 | AD78: 0 | AE78: 0 | AF78: 0 | AG78: 0 | AH78: 0 | AJ78: 0 | AK78: 0
B79: 62 | S79: 0 | T79: 0 | U79: 0 | V79: 0 | W79: 0 | X79: 0 | Y79: 0 | Z79: 0 | AA79: 0 | AB79: 0 | AC79: 0 | AD79: 0 | AE79: 0 | AF79: 0 | AG79: 0 | AH79: 0 | AJ79: 0 | AK79: 0
B80: 63 | S80: 0 | T80: 0 | U80: 0 | V80: 0 | W80: 0 | X80: 0 | Y80: 0 | Z80: 0 | AA80: 0 | AB80: 0 | AC80: 0 | AD80: 0 | AE80: 0 | AF80: 0 | AG80: 0 | AH80: 0 | AJ80: 0 | AK80: 0
B81: 64 | S81: 0 | T81: 0 | U81: 0 | V81: 0 | W81: 0 | X81: 0 | Y81: 0 | Z81: 0 | AA81: 0 | AB81: 0 | AC81: 0 | AD81: 0 | AE81: =IFERROR((G81*Y81+I81*AA81+K81*AC81)/(G81+I81+K81), 0)*nur_L -> 0 | AF81: =IFERROR((H81*Z81+J81*AB81+L81*AD81)/(H81+J81+L81), 0)*nur_L -> 0 | AG81: =IF(E81="",0,E81) -> 0 | AH81: =IF(F81="",0,F81) -> 0 | AJ81: 0 | AK81: 0
B82: 65 | S82: =IFERROR(M82/G82,0) -> 0 | T82: =IFERROR(N82/H82,0) -> 0 | U82: =IFERROR(O82/I82,0) -> 0 | V82: =IFERROR(P82/J82,0) -> 0 | W82: =IFERROR(Q82/K82,0) -> 0 | X82: =IFERROR(R82/L82,0) -> 0 | Y82: 0 | Z82: 0 | AA82: 0 | AB82: 0 | AC82: 0 | AD82: 0 | AE82: 0 | AF82: 0 | AG82: 0 | AH82: 0 | AJ82: 0 | AK82: 0
B83: 66 | S83: 0 | T83: 0 | U83: 0 | V83: 0 | W83: 0 | X83: 0 | Y83: 0 | Z83: 0 | AA83: 0 | AB83: 0 | AC83: 0 | AD83: 0 | AE83: 0 | AF83: 0 | AG83: 0 | AH83: 0 | AJ83: =IFERROR(AVERAGE(AE82:AE84),0) -> 0 | AK83: 0
B84: 67 | S84: 0 | T84: 0 | U84: 0 | V84: 0 | W84: 0 | X84: 0 | Y84: 0 | Z84: 0 | AA84: 0 | AB84: 0 | AC84: 0 | AD84: 0 | AE84: 0 | AF84: 0 | AG84: 0 | AH84: 0 | AJ84: 0 | AK84: 0
B85: 68 | S85: 0 | T85: 0 | U85: 0 | V85: 0 | W85: 0 | X85: 0 | Y85: 0 | Z85: 0 | AA85: 0 | AB85: 0 | AC85: 0 | AD85: 0 | AE85: 0 | AF85: 0 | AG85: 0 | AH85: 0 | AJ85: 0 | AK85: 0
B86: 69 | S86: 0 | T86: 0 | U86: 0 | V86: 0 | W86: 0 | X86: 0 | Y86: 0 | Z86: 0 | AA86: 0 | AB86: 0 | AC86: 0 | AD86: 0 | AE86: 0 | AF86: 0 | AG86: 0 | AH86: 0 | AJ86: 0 | AK86: 0
B87: 70 | S87: 0 | T87: 0 | U87: 0 | V87: 0 | W87: 0 | X87: 0 | Y87: 0 | Z87: 0 | AA87: 0 | AB87: 0 | AC87: 0 | AD87: 0 | AE87: 0 | AF87: 0 | AG87: 0 | AH87: 0 | AJ87: 0 | AK87: 0
B88: 71 | S88: 0 | T88: 0 | U88: 0 | V88: 0 | W88: 0 | X88: 0 | Y88: 0 | Z88: 0 | AA88: 0 | AB88: 0 | AC88: 0 | AD88: 0 | AE88: 0 | AF88: 0 | AG88: 0 | AH88: 0 | AJ88: 0 | AK88: 0
B89: 72 | S89: 0 | T89: 0 | U89: 0 | V89: 0 | W89: 0 | X89: 0 | Y89: 0 | Z89: 0 | AA89: 0 | AB89: 0 | AC89: 0 | AD89: 0 | AE89: 0 | AF89: 0 | AG89: 0 | AH89: 0 | AJ89: 0 | AK89: 0
B90: 73 | S90: 0 | T90: 0 | U90: 0 | V90: 0 | W90: 0 | X90: 0 | Y90: 0 | Z90: 0 | AA90: 0 | AB90: 0 | AC90: 0 | AD90: 0 | AE90: 0 | AF90: 0 | AG90: 0 | AH90: 0 | AJ90: 0 | AK90: 0
B91: 74 | S91: 0 | T91: 0 | U91: 0 | V91: 0 | W91: 0 | X91: 0 | Y91: 0 | Z91: 0 | AA91: 0 | AB91: 0 | AC91: 0 | AD91: 0 | AE91: 0 | AF91: 0 | AG91: 0 | AH91: 0 | AJ91: 0 | AK91: 0
B92: 75 | S92: 0 | T92: 0 | U92: 0 | V92: 0 | W92: 0 | X92: 0 | Y92: 0 | Z92: 0 | AA92: 0 | AB92: 0 | AC92: 0 | AD92: 0 | AE92: 0 | AF92: 0 | AG92: 0 | AH92: 0 | AJ92: 0 | AK92: 0
B93: 76 | S93: 0 | T93: 0 | U93: 0 | V93: 0 | W93: 0 | X93: 0 | Y93: 0 | Z93: 0 | AA93: 0 | AB93: 0 | AC93: 0 | AD93: 0 | AE93: 0 | AF93: 0 | AG93: 0 | AH93: 0 | AJ93: 0 | AK93: 0
B94: 77 | S94: 0 | T94: 0 | U94: 0 | V94: 0 | W94: 0 | X94: 0 | Y94: 0 | Z94: 0 | AA94: 0 | AB94: 0 | AC94: 0 | AD94: 0 | AE94: 0 | AF94: 0 | AG94: 0 | AH94: 0 | AJ94: 0 | AK94: 0
B95: 78 | S95: 0 | T95: 0 | U95: 0 | V95: 0 | W95: 0 | X95: 0 | Y95: 0 | Z95: 0 | AA95: 0 | AB95: 0 | AC95: 0 | AD95: 0 | AE95: 0 | AF95: 0 | AG95: 0 | AH95: 0 | AJ95: 0 | AK95: 0
B96: 79 | S96: 0 | T96: 0 | U96: 0 | V96: 0 | W96: 0 | X96: 0 | Y96: 0 | Z96: 0 | AA96: 0 | AB96: 0 | AC96: 0 | AD96: 0 | AE96: 0 | AF96: 0 | AG96: 0 | AH96: 0 | AJ96: 0 | AK96: 0
B97: 80 | S97: 0 | T97: 0 | U97: 0 | V97: 0 | W97: 0 | X97: 0 | Y97: 0 | Z97: 0 | AA97: 0 | AB97: 0 | AC97: 0 | AD97: 0 | AE97: 0 | AF97: 0 | AG97: 0 | AH97: 0 | AJ97: 0 | AK97: 0
B98: 81 | S98: 0 | T98: 0 | U98: 0 | V98: 0 | W98: 0 | X98: 0 | Y98: 0 | Z98: 0 | AA98: 0 | AB98: 0 | AC98: 0 | AD98: 0 | AE98: 0 | AF98: 0 | AG98: 0 | AH98: 0 | AJ98: 0 | AK98: 0
B99: 82 | S99: 0 | T99: 0 | U99: 0 | V99: 0 | W99: 0 | X99: 0 | Y99: 0 | Z99: 0 | AA99: 0 | AB99: 0 | AC99: 0 | AD99: 0 | AE99: 0 | AF99: 0 | AG99: 0 | AH99: 0 | AJ99: 0 | AK99: 0
B100: 83 | S100: 0 | T100: 0 | U100: 0 | V100: 0 | W100: 0 | X100: 0 | Y100: 0 | Z100: 0 | AA100: 0 | AB100: 0 | AC100: 0 | AD100: 0 | AE100: 0 | AF100: 0 | AG100: 0 | AH100: 0 | AJ100: 0 | AK100: 0
B101: 84 | S101: 0 | T101: 0 | U101: 0 | V101: 0 | W101: 0 | X101: 0 | Y101: 0 | Z101: 0 | AA101: 0 | AB101: 0 | AC101: 0 | AD101: 0 | AE101: 0 | AF101: 0 | AG101: 0 | AH101: 0 | AJ101: 0 | AK101: 0
B102: 85 | S102: 0 | T102: 0 | U102: 0 | V102: 0 | W102: 0 | X102: 0 | Y102: 0 | Z102: 0 | AA102: 0 | AB102: 0 | AC102: 0 | AD102: 0 | AE102: 0 | AF102: 0 | AG102: 0 | AH102: 0 | AJ102: 0 | AK102: 0
B103: 86 | S103: 0 | T103: 0 | U103: 0 | V103: 0 | W103: 0 | X103: 0 | Y103: 0 | Z103: 0 | AA103: 0 | AB103: 0 | AC103: 0 | AD103: 0 | AE103: 0 | AF103: 0 | AG103: 0 | AH103: 0 | AJ103: 0 | AK103: 0
B104: 87 | S104: 0 | T104: 0 | U104: 0 | V104: 0 | W104: 0 | X104: 0 | Y104: 0 | Z104: 0 | AA104: 0 | AB104: 0 | AC104: 0 | AD104: 0 | AE104: 0 | AF104: 0 | AG104: 0 | AH104: 0 | AJ104: 0 | AK104: 0
B105: 88 | S105: 0 | T105: 0 | U105: 0 | V105: 0 | W105: 0 | X105: 0 | Y105: 0 | Z105: 0 | AA105: 0 | AB105: 0 | AC105: 0 | AD105: 0 | AE105: 0 | AF105: 0 | AG105: 0 | AH105: 0 | AJ105: 0 | AK105: 0
B106: 89 | S106: 0 | T106: 0 | U106: 0 | V106: 0 | W106: 0 | X106: 0 | Y106: 0 | Z106: 0 | AA106: 0 | AB106: 0 | AC106: 0 | AD106: 0 | AE106: 0 | AF106: 0 | AG106: 0 | AH106: 0 | AJ106: 0 | AK106: 0
B107: 90 | S107: 0 | T107: 0 | U107: 0 | V107: 0 | W107: 0 | X107: 0 | Y107: 0 | Z107: 0 | AA107: 0 | AB107: 0 | AC107: 0 | AD107: 0 | AE107: 0 | AF107: 0 | AG107: 0 | AH107: 0 | AJ107: 0 | AK107: 0
B108: 91 | S108: 0 | T108: 0 | U108: 0 | V108: 0 | W108: 0 | X108: 0 | Y108: 0 | Z108: 0 | AA108: 0 | AB108: 0 | AC108: 0 | AD108: 0 | AE108: 0 | AF108: 0 | AG108: 0 | AH108: 0 | AJ108: =IFERROR(SUMPRODUCT(C$108:C$117,AE$108:AE$117)/SUM(C$108:C$117),0) -> 0 | AK108: =IFERROR(SUMPRODUCT(D$108:D$117,AF$108:AF$117)/SUM(D$108:D$117),0) -> 0
B109: 92 | S109: 0 | T109: 0 | U109: 0 | V109: 0 | W109: 0 | X109: 0 | Y109: 0 | Z109: 0 | AA109: 0 | AB109: 0 | AC109: 0 | AD109: 0 | AE109: 0 | AF109: 0 | AG109: 0 | AH109: 0 | AJ109: 0 | AK109: 0
B110: 93 | S110: 0 | T110: 0 | U110: 0 | V110: 0 | W110: 0 | X110: 0 | Y110: 0 | Z110: 0 | AA110: 0 | AB110: 0 | AC110: 0 | AD110: 0 | AE110: 0 | AF110: 0 | AG110: 0 | AH110: 0 | AJ110: 0 | AK110: 0
B111: 94 | S111: 0 | T111: 0 | U111: 0 | V111: 0 | W111: 0 | X111: 0 | Y111: 0 | Z111: 0 | AA111: 0 | AB111: 0 | AC111: 0 | AD111: 0 | AE111: 0 | AF111: 0 | AG111: 0 | AH111: 0 | AJ111: 0 | AK111: 0
B112: 95 | S112: 0 | T112: 0 | U112: 0 | V112: 0 | W112: 0 | X112: 0 | Y112: 0 | Z112: 0 | AA112: 0 | AB112: 0 | AC112: 0 | AD112: 0 | AE112: 0 | AF112: 0 | AG112: 0 | AH112: 0 | AJ112: 0 | AK112: 0
B113: 96 | S113: 0 | T113: 0 | U113: 0 | V113: 0 | W113: 0 | X113: 0 | Y113: 0 | Z113: 0 | AA113: 0 | AB113: 0 | AC113: 0 | AD113: 0 | AE113: 0 | AF113: 0 | AG113: 0 | AH113: 0 | AJ113: 0 | AK113: 0
B114: 97 | S114: 0 | T114: 0 | U114: 0 | V114: 0 | W114: 0 | X114: 0 | Y114: 0 | Z114: 0 | AA114: 0 | AB114: 0 | AC114: 0 | AD114: 0 | AE114: 0 | AF114: 0 | AG114: 0 | AH114: 0 | AJ114: 0 | AK114: 0
B115: 98 | S115: 0 | T115: 0 | U115: 0 | V115: 0 | W115: 0 | X115: 0 | Y115: 0 | Z115: 0 | AA115: 0 | AB115: 0 | AC115: 0 | AD115: 0 | AE115: 0 | AF115: 0 | AG115: 0 | AH115: 0 | AJ115: 0 | AK115: 0
B116: 99 | S116: 0 | T116: 0 | U116: 0 | V116: 0 | W116: 0 | X116: 0 | Y116: 0 | Z116: 0 | AA116: 0 | AB116: 0 | AC116: 0 | AD116: 0 | AE116: 0 | AF116: 0 | AG116: 0 | AH116: 0 | AJ116: 0 | AK116: 0
B117: 100 | S117: 0 | T117: 0 | U117: 0 | V117: 0 | W117: 0 | X117: 0 | Y117: 0 | Z117: 0 | AA117: 0 | AB117: 0 | AC117: 0 | AD117: 0 | AE117: 0 | AF117: 0 | AG117: 0 | AH117: 0 | AJ117: 0 | AK117: 0

Sheet HE_Input_7
A1: 16 | B1: Produktegruppe 5: Inputdaten
B5: SST-Stichtag | C5: ="01.01."& current_year -> 01.01.2024
B7: Verwaltungskosten (%) | C7: =HE_Inputparam_VWK!C77 -> 0
B12: Produktegruppe 5 - Einzeltaggeld | AJ12: Für Analysezwecke
B13: Effektivalter | C13: Anzahl Verträge je Alter per 01.01.2024 (Aktuelles Jahr) | E13: Prämien pro Vertrag und je Alter nach Behandlungsjahr (Aktuelles Jahr) | G13: Anzahl Verträge je Alter per 31.12. 2023 (Vorjahr) | I13: Anzahl Verträge je Alter per 31.12. 2022 (Vorjahr-1) | K13: Anzahl Verträge je Alter per 31.12. 2021 (Vorjahr-2) | M13: Leistungen je Alter nach Behandlungsjahr 2023 (Vorjahr) | O13: Leistungen je Alter nach Behandlungsjahr 2022 (Vorjahr-1) | Q13: Leistungen je Alter nach Behandlungsjahr 2021 (Vorjahr-2) | S13: Leistungen pro Vertrag und je Alter nach Behandlungsjahr 2023 (Vorjahr) | U13: Leistungen pro Vertrag und je Alter nach Behandlungsjahr 2022 (Vorjahr-1) | W13: Leistungen pro Vertrag und je Alter nach Behandlungsjahr 2021 (Vorjahr-2) | Y13: Inflationierte Leistungen pro Vertrag und je Alter nach Behandlungsjahr 2023 (Vorjahr) | AA13: Inflationierte Leistungen pro Vertrag und je Alter nach Behandlungsjahr 2022 (Vorjahr-1) | AC13: Inflationierte Leistungen pro Vertrag und je Alter nach Behandlungsjahr 2021 (Vorjahr-2) | AE13: Leistungen pro Vertrag und je Alter | AG13: Prämien pro Vertrag und je Alter (Aktuelles Jahr) | AJ13: Leistungen pro Vertrag und je Alter (geglättet)
C14: Total (positive Werte) | E14: (positiv, CHF) | G14: (positiv, CHF) | I14: (positiv, CHF) | K14: (positiv, CHF) | M14: (positiv, CHF) | O14: (positiv, CHF) | Q14: (positiv, CHF) | S14: (positiv, CHF) | U14: (positiv, CHF) | W14: (positiv, CHF) | Y14: (positiv, CHF) | AA14: (positiv, CHF) | AC14: (positiv, CHF) | AE14: (positiv, CHF) | AG14: (positiv, CHF) | AJ14: (positiv, CHF)
C15: Männer | D15: Frauen | E15: Männer | F15: Frauen | G15: Männer | H15: Frauen | I15: Männer | J15: Frauen | K15: Männer | L15: Frauen | M15: Männer | N15: Frauen | O15: Männer | P15: Frauen | Q15: Männer | R15: Frauen | S15: Männer | T15: Frauen | U15: Männer | V15: Frauen | W15: Männer | X15: Frauen | Y15: Männer | Z15: Frauen | AA15: Männer | AB15: Frauen | AC15: Männer | AD15: Frauen | AE15: Männer | AF15: Frauen | AG15: Männer | AH15: Frauen | AJ15: Männer | AK15: Frauen
C16: =SUM(_MP7) -> 0 | D16: =SUM(_FP7) -> 0 | E16: =IF(C16=0,0,SUMPRODUCT(E17:E117,_MP7)/C16) -> 0 | F16: =IF(D16=0,0,SUMPRODUCT(F17:F117,_FP7)/D16) -> 0 | G16: =SUM(G17:G117) -> 0 | H16: 0 | I16: 0 | J16: 0 | K16: 0 | L16: 0 | M16: 0 | N16: 0 | O16: 0 | P16: 0 | Q16: 0 | R16: 0
B17: 0 | S17: =IFERROR(M17/G17,0) -> 0 | T17: 0 | U17: 0 | V17: 0 | W17: 0 | X17: 0 | Y17: =IF(S17=0,0,S17) -> 0 | Z17: 0 | AA17: 0 | AB17: 0 | AC17: 0 | AD17: 0 | AE17: =IFERROR((G17*Y17+I17*AA17+K17*AC17)/(G17+I17+K17), 0)*nur_L -> 0 | AF17: =IFERROR((H17*Z17+J17*AB17+L17*AD17)/(H17+J17+L17), 0)*nur_L -> 0 | AG17: =IF(E17="",0,E17) -> 0 | AH17: =IF(F17="",0,F17) -> 0 | AJ17: =IFERROR(AVERAGE(AE17,AE18),0) -> 0 | AK17: =IFERROR(AVERAGE(AF17,AF18),0) -> 0
B18: 1 | S18: =IFERROR(M18/G18,0) -> 0 | T18: =IFERROR(N18/H18,0) -> 0 | U18: =IFERROR(O18/I18,0) -> 0 | V18: =IFERROR(P18/J18,0) -> 0 | W18: =IFERROR(Q18/K18,0) -> 0 | X18: =IFERROR(R18/L18,0) -> 0 | Y18: 0 | Z18: 0 | AA18: 0 | AB18: 0 | AC18: 0 | AD18: 0 | AE18: 0 | AF18: 0 | AG18: 0 | AH18: 0 | AJ18: =IFERROR(AVERAGE(AE17:AE19),0) -> 0 | AK18: =IFERROR(AVERAGE(AF17:AF19),0) -> 0
B19: 2 | S19: 0 | T19: 0 | U19: 0 | V19: 0 | W19: 0 | X19: 0 | Y19: 0 | Z19: 0 | AA19: 0 | AB19: 0 | AC19: 0 | AD19: 0 | AE19: 0 | AF19: 0 | AG19: 0 | AH19: 0 | AJ19: =IFERROR(AVERAGE(AE18:AE20),0) -> 0 | AK19: 0
B20: 3 | S20: 0 | T20: 0 | U20: 0 | V20: 0 | W20: 0 | X20: 0 | Y20: 0 | Z20: 0 | AA20: 0 | AB20: 0 | AC20: 0 | AD20: 0 | AE20: 0 | AF20: 0 | AG20: 0 | AH20: 0 | AJ20: 0 | AK20: 0
B21: 4 | S21: 0 | T21: 0 | U21: 0 | V21: 0 | W21: 0 | X21: 0 | Y21: 0 | Z21: 0 | AA21: 0 | AB21: 0 | AC21: 0 | AD21: 0 | AE21: 0 | AF21: 0 | AG21: 0 | AH21: 0 | AJ21: 0 | AK21: 0
B22: 5 | S22: 0 | T22: 0 | U22: 0 | V22: 0 | W22: 0 | X22: 0 | Y22: 0 | Z22: 0 | AA22: 0 | AB22: 0 | AC22: 0 | AD22: 0 | AE22: 0 | AF22: 0 | AG22: 0 | AH22: 0 | AJ22: 0 | AK22: 0
B23: 6 | S23: 0 | T23: 0 | U23: 0 | V23: 0 | W23: 0 | X23: 0 | Y23: 0 | Z23: 0 | AA23: 0 | AB23: 0 | AC23: 0 | AD23: 0 | AE23: 0 | AF23: 0 | AG23: 0 | AH23: 0 | AJ23: 0 | AK23: 0
B24: 7 | S24: 0 | T24: 0 | U24: 0 | V24: 0 | W24: 0 | X24: 0 | Y24: 0 | Z24: 0 | AA24: 0 | AB24: 0 | AC24: 0 | AD24: 0 | AE24: 0 | AF24: 0 | AG24: 0 | AH24: 0 | AJ24: 0 | AK24: 0
B25: 8 | S25: 0 | T25: 0 | U25: 0 | V25: 0 | W25: 0 | X25: 0 | Y25: 0 | Z25: 0 | AA25: 0 | AB25: 0 | AC25: 0 | AD25: 0 | AE25: 0 | AF25: 0 | AG25: 0 | AH25: 0 | AJ25: 0 | AK25: 0
B26: 9 | S26: 0 | T26: 0 | U26: 0 | V26: 0 | W26: 0 | X26: 0 | Y26: 0 | Z26: 0 | AA26: 0 | AB26: 0 | AC26: 0 | AD26: 0 | AE26: 0 | AF26: 0 | AG26: 0 | AH26: 0 | AJ26: 0 | AK26: 0
B27: 10 | S27: 0 | T27: 0 | U27: 0 | V27: 0 | W27: 0 | X27: 0 | Y27: 0 | Z27: 0 | AA27: 0 | AB27: 0 | AC27: 0 | AD27: 0 | AE27: 0 | AF27: 0 | AG27: 0 | AH27: 0 | AJ27: 0 | AK27: 0
B28: 11 | S28: 0 | T28: 0 | U28: 0 | V28: 0 | W28: 0 | X28: 0 | Y28: 0 | Z28: 0 | AA28: 0 | AB28: 0 | AC28: 0 | AD28: 0 | AE28: 0 | AF28: 0 | AG28: 0 | AH28: 0 | AJ28: 0 | AK28: 0
B29: 12 | S29: 0 | T29: 0 | U29: 0 | V29: 0 | W29: 0 | X29: 0 | Y29: 0 | Z29: 0 | AA29: 0 | AB29: 0 | AC29: 0 | AD29: 0 | AE29: 0 | AF29: 0 | AG29: 0 | AH29: 0 | AJ29: 0 | AK29: 0
B30: 13 | S30: 0 | T30: 0 | U30: 0 | V30: 0 | W30: 0 | X30: 0 | Y30: 0 | Z30: 0 | AA30: 0 | AB30: 0 | AC30: 0 | AD30: 0 | AE30: 0 | AF30: 0 | AG30: 0 | AH30: 0 | AJ30: 0 | AK30: 0
B31: 14 | S31: 0 | T31: 0 | U31: 0 | V31: 0 | W31: 0 | X31: 0 | Y31: 0 | Z31: 0 | AA31: 0 | AB31: 0 | AC31: 0 | AD31: 0 | AE31: 0 | AF31: 0 | AG31: 0 | AH31: 0 | AJ31: 0 | AK31: 0
B32: 15 | S32: 0 | T32: 0 | U32: 0 | V32: 0 | W32: 0 | X32: 0 | Y32: 0 | Z32: 0 | AA32: 0 | AB32: 0 | AC32: 0 | AD32: 0 | AE32: 0 | AF32: 0 | AG32: 0 | AH32: 0 | AJ32: 0 | AK32: 0
B33: 16 | S33: 0 | T33: 0 | U33: 0 | V33: 0 | W33: 0 | X33: 0 | Y33: =IF(S33=0,0,S33) -> 0 | Z33: 0 | AA33: 0 | AB33: 0 | AC33: 0 | AD33: 0 | AE33: 0 | AF33: 0 | AG33: 0 | AH33: 0 | AJ33: 0 | AK33: 0
B34: 17 | S34: 0 | T34: 0 | U34: 0 | V34: 0 | W34: 0 | X34: 0 | Y34: 0 | Z34: 0 | AA34: 0 | AB34: 0 | AC34: 0 | AD34: 0 | AE34: 0 | AF34: 0 | AG34: 0 | AH34: 0 | AJ34: 0 | AK34: 0
B35: 18 | S35: 0 | T35: 0 | U35: 0 | V35: 0 | W35: 0 | X35: 0 | Y35: 0 | Z35: 0 | AA35: 0 | AB35: 0 | AC35: 0 | AD35: 0 | AE35: 0 | AF35: 0 | AG35: 0 | AH35: 0 | AJ35: 0 | AK35: 0
B36: 19 | S36: 0 | T36: 0 | U36: 0 | V36: 0 | W36: 0 | X36: 0 | Y36: 0 | Z36: 0 | AA36: 0 | AB36: 0 | AC36: 0 | AD36: 0 | AE36: 0 | AF36: 0 | AG36: 0 | AH36: 0 | AJ36: 0 | AK36: 0
B37: 20 | S37: 0 | T37: 0 | U37: 0 | V37: 0 | W37: 0 | X37: 0 | Y37: 0 | Z37: 0 | AA37: 0 | AB37: 0 | AC37: 0 | AD37: 0 | AE37: 0 | AF37: 0 | AG37: 0 | AH37: 0 | AJ37: 0 | AK37: 0
B38: 21 | S38: 0 | T38: 0 | U38: 0 | V38: 0 | W38: 0 | X38: 0 | Y38: 0 | Z38: 0 | AA38: 0 | AB38: 0 | AC38: 0 | AD38: 0 | AE38: 0 | AF38: 0 | AG38: 0 | AH38: 0 | AJ38: 0 | AK38: 0
B39: 22 | S39: 0 | T39: 0 | U39: 0 | V39: 0 | W39: 0 | X39: 0 | Y39: 0 | Z39: 0 | AA39: 0 | AB39: 0 | AC39: 0 | AD39: 0 | AE39: 0 | AF39: 0 | AG39: 0 | AH39: 0 | AJ39: 0 | AK39: 0
B40: 23 | S40: 0 | T40: 0 | U40: 0 | V40: 0 | W40: 0 | X40: 0 | Y40: 0 | Z40: 0 | AA40: 0 | AB40: 0 | AC40: 0 | AD40: 0 | AE40: 0 | AF40: 0 | AG40: 0 | AH40: 0 | AJ40: 0 | AK40: 0
B41: 24 | S41: 0 | T41: 0 | U41: 0 | V41: 0 | W41: 0 | X41: 0 | Y41: 0 | Z41: 0 | AA41: 0 | AB41: 0 | AC41: 0 | AD41: 0 | AE41: 0 | AF41: 0 | AG41: 0 | AH41: 0 | AJ41: 0 | AK41: 0
B42: 25 | S42: 0 | T42: 0 | U42: 0 | V42: 0 | W42: 0 | X42: 0 | Y42: 0 | Z42: 0 | AA42: 0 | AB42: 0 | AC42: 0 | AD42: 0 | AE42: 0 | AF42: 0 | AG42: 0 | AH42: 0 | AJ42: 0 | AK42: 0
B43: 26 | S43: 0 | T43: 0 | U43: 0 | V43: 0 | W43: 0 | X43: 0 | Y43: 0 | Z43: 0 | AA43: 0 | AB43: 0 | AC43: 0 | AD43: 0 | AE43: 0 | AF43: 0 | AG43: 0 | AH43: 0 | AJ43: 0 | AK43: 0
B44: 27 | S44: 0 | T44: 0 | U44: 0 | V44: 0 | W44: 0 | X44: 0 | Y44: 0 | Z44: 0 | AA44: 0 | AB44: 0 | AC44: 0 | AD44: 0 | AE44: 0 | AF44: 0 | AG44: 0 | AH44: 0 | AJ44: 0 | AK44: 0
B45: 28 | S45: 0 | T45: 0 | U45: 0 | V45: 0 | W45: 0 | X45: 0 | Y45: 0 | Z45: 0 | AA45: 0 | AB45: 0 | AC45: 0 | AD45: 0 | AE45: 0 | AF45: 0 | AG45: 0 | AH45: 0 | AJ45: 0 | AK45: 0
B46: 29 | S46: 0 | T46: 0 | U46: 0 | V46: 0 | W46: 0 | X46: 0 | Y46: 0 | Z46: 0 | AA46: 0 | AB46: 0 | AC46: 0 | AD46: 0 | AE46: 0 | AF46: 0 | AG46: 0 | AH46: 0 | AJ46: 0 | AK46: 0
B47: 30 | S47: 0 | T47: 0 | U47: 0 | V47: 0 | W47: 0 | X47: 0 | Y47: 0 | Z47: 0 | AA47: 0 | AB47: 0 | AC47: 0 | AD47: 0 | AE47: 0 | AF47: 0 | AG47: 0 | AH47: 0 | AJ47: 0 | AK47: 0
B48: 31 | S48: 0 | T48: 0 | U48: 0 | V48: 0 | W48: 0 | X48: 0 | Y48: 0 | Z48: 0 | AA48: 0 | AB48: 0 | AC48: 0 | AD48: 0 | AE48: 0 | AF48: 0 | AG48: 0 | AH48: 0 | AJ48: 0 | AK48: 0
B49: 32 | S49: 0 | T49: 0 | U49: 0 | V49: 0 | W49: 0 | X49: 0 | Y49: 0 | Z49: 0 | AA49: 0 | AB49: 0 | AC49: 0 | AD49: 0 | AE49: =IFERROR((G49*Y49+I49*AA49+K49*AC49)/(G49+I49+K49), 0)*nur_L -> 0 | AF49: =IFERROR((H49*Z49+J49*AB49+L49*AD49)/(H49+J49+L49), 0)*nur_L -> 0 | AG49: =IF(E49="",0,E49) -> 0 | AH49: =IF(F49="",0,F49) -> 0 | AJ49: 0 | AK49: 0
B50: 33 | S50: 0 | T50: 0 | U50: 0 | V50: 0 | W50: 0 | X50: 0 | Y50: 0 | Z50: 0 | AA50: 0 | AB50: 0 | AC50: 0 | AD50: 0 | AE50: 0 | AF50: 0 | AG50: 0 | AH50: 0 | AJ50: 0 | AK50: 0
B51: 34 | S51: 0 | T51: 0 | U51: 0 | V51: 0 | W51: 0 | X51: 0 | Y51: 0 | Z51: 0 | AA51: 0 | AB51: 0 | AC51: 0 | AD51: 0 | AE51: 0 | AF51: 0 | AG51: 0 | AH51: 0 | AJ51: 0 | AK51: 0
B52: 35 | S52: 0 | T52: 0 | U52: 0 | V52: 0 | W52: 0 | X52: 0 | Y52: 0 | Z52: 0 | AA52: 0 | AB52: 0 | AC52: 0 | AD52: 0 | AE52: 0 | AF52: 0 | AG52: 0 | AH52: 0 | AJ52: 0 | AK52: 0
B53: 36 | S53: 0 | T53: 0 | U53: 0 | V53: 0 | W53: 0 | X53: 0 | Y53: 0 | Z53: 0 | AA53: 0 | AB53: 0 | AC53: 0 | AD53: 0 | AE53: 0 | AF53: 0 | AG53: 0 | AH53: 0 | AJ53: 0 | AK53: 0
B54: 37 | S54: 0 | T54: 0 | U54: 0 | V54: 0 | W54: 0 | X54: 0 | Y54: 0 | Z54: 0 | AA54: 0 | AB54: 0 | AC54: 0 | AD54: 0 | AE54: 0 | AF54: 0 | AG54: 0 | AH54: 0 | AJ54: 0 | AK54: 0
B55: 38 | S55: 0 | T55: 0 | U55: 0 | V55: 0 | W55: 0 | X55: 0 | Y55: 0 | Z55: 0 | AA55: 0 | AB55: 0 | AC55: 0 | AD55: 0 | AE55: 0 | AF55: 0 | AG55: 0 | AH55: 0 | AJ55: 0 | AK55: 0
B56: 39 | S56: 0 | T56: 0 | U56: 0 | V56: 0 | W56: 0 | X56: 0 | Y56: 0 | Z56: 0 | AA56: 0 | AB56: 0 | AC56: 0 | AD56: 0 | AE56: 0 | AF56: 0 | AG56: 0 | AH56: 0 | AJ56: 0 | AK56: 0
B57: 40 | S57: 0 | T57: 0 | U57: 0 | V57: 0 | W57: 0 | X57: 0 | Y57: 0 | Z57: 0 | AA57: 0 | AB57: 0 | AC57: 0 | AD57: 0 | AE57: 0 | AF57: 0 | AG57: 0 | AH57: 0 | AJ57: 0 | AK57: 0
B58: 41 | S58: 0 | T58: 0 | U58: 0 | V58: 0 | W58: 0 | X58: 0 | Y58: 0 | Z58: 0 | AA58: 0 | AB58: 0 | AC58: 0 | AD58: 0 | AE58: 0 | AF58: 0 | AG58: 0 | AH58: 0 | AJ58: 0 | AK58: 0
B59: 42 | S59: 0 | T59: 0 | U59: 0 | V59: 0 | W59: 0 | X59: 0 | Y59: 0 | Z59: 0 | AA59: 0 | AB59: 0 | AC59: 0 | AD59: 0 | AE59: 0 | AF59: 0 | AG59: 0 | AH59: 0 | AJ59: 0 | AK59: 0
B60: 43 | S60: 0 | T60: 0 | U60: 0 | V60: 0 | W60: 0 | X60: 0 | Y60: 0 | Z60: 0 | AA60: 0 | AB60: 0 | AC60: 0 | AD60: 0 | AE60: 0 | AF60: 0 | AG60: 0 | AH60: 0 | AJ60: 0 | AK60: 0
B61: 44 | S61: 0 | T61: 0 | U61: 0 | V61: 0 | W61: 0 | X61: 0 | Y61: 0 | Z61: 0 | AA61: 0 | AB61: 0 | AC61: 0 | AD61: 0 | AE61: 0 | AF61: 0 | AG61: 0 | AH61: 0 | AJ61: 0 | AK61: 0
B62: 45 | S62: 0 | T62: 0 | U62: 0 | V62: 0 | W62: 0 | X62: 0 | Y62: 0 | Z62: 0 | AA62: 0 | AB62: 0 | AC62: 0 | AD62: 0 | AE62: 0 | AF62: 0 | AG62: 0 | AH62: 0 | AJ62: 0 | AK62: 0
B63: 46 | S63: 0 | T63: 0 | U63: 0 | V63: 0 | W63: 0 | X63: 0 | Y63: 0 | Z63: 0 | AA63: 0 | AB63: 0 | AC63: 0 | AD63: 0 | AE63: 0 | AF63: 0 | AG63: 0 | AH63: 0 | AJ63: 0 | AK63: 0
B64: 47 | S64: 0 | T64: 0 | U64: 0 | V64: 0 | W64: 0 | X64: 0 | Y64: 0 | Z64: 0 | AA64: 0 | AB64: 0 | AC64: 0 | AD64: 0 | AE64: 0 | AF64: 0 | AG64: 0 | AH64: 0 | AJ64: 0 | AK64: 0
B65: 48 | S65: 0 | T65: 0 | U65: 0 | V65: 0 | W65: 0 | X65: 0 | Y65: 0 | Z65: 0 | AA65: 0 | AB65: 0 | AC65: 0 | AD65: 0 | AE65: 0 | AF65: 0 | AG65: 0 | AH65: 0 | AJ65: 0 | AK65: 0
B66: 49 | S66: 0 | T66: 0 | U66: 0 | V66: 0 | W66: 0 | X66: 0 | Y66: 0 | Z66: 0 | AA66: 0 | AB66: 0 | AC66: 0 | AD66: 0 | AE66: 0 | AF66: 0 | AG66: 0 | AH66: 0 | AJ66: 0 | AK66: 0
B67: 50 | S67: 0 | T67: 0 | U67: 0 | V67: 0 | W67: 0 | X67: 0 | Y67: 0 | Z67: 0 | AA67: 0 | AB67: 0 | AC67: 0 | AD67: 0 | AE67: 0 | AF67: 0 | AG67: 0 | AH67: 0 | AJ67: 0 | AK67: 0
B68: 51 | S68: 0 | T68: 0 | U68: 0 | V68: 0 | W68: 0 | X68: 0 | Y68: 0 | Z68: 0 | AA68: 0 | AB68: 0 | AC68: 0 | AD68: 0 | AE68: 0 | AF68: 0 | AG68: 0 | AH68: 0 | AJ68: 0 | AK68: 0
B69: 52 | S69: 0 | T69: 0 | U69: 0 | V69: 0 | W69: 0 | X69: 0 | Y69: 0 | Z69: 0 | AA69: 0 | AB69: 0 | AC69: 0 | AD69: 0 | AE69: 0 | AF69: 0 | AG69: 0 | AH69: 0 | AJ69: 0 | AK69: 0
B70: 53 | S70: 0 | T70: 0 | U70: 0 | V70: 0 | W70: 0 | X70: 0 | Y70: 0 | Z70: 0 | AA70: 0 | AB70: 0 | AC70: 0 | AD70: 0 | AE70: 0 | AF70: 0 | AG70: 0 | AH70: 0 | AJ70: 0 | AK70: 0
B71: 54 | S71: 0 | T71: 0 | U71: 0 | V71: 0 | W71: 0 | X71: 0 | Y71: 0 | Z71: 0 | AA71: 0 | AB71: 0 | AC71: 0 | AD71: 0 | AE71: 0 | AF71: 0 | AG71: 0 | AH71: 0 | AJ71: 0 | AK71: 0
B72: 55 | S72: 0 | T72: 0 | U72: 0 | V72: 0 | W72: 0 | X72: 0 | Y72: 0 | Z72: 0 | AA72: 0 | AB72: 0 | AC72: 0 | AD72: 0 | AE72: 0 | AF72: 0 | AG72: 0 | AH72: 0 | AJ72: 0 | AK72: 0
B73: 56 | S73: 0 | T73: 0 | U73: 0 | V73: 0 | W73: 0 | X73: 0 | Y73: 0 | Z73: 0 | AA73: 0 | AB73: 0 | AC73: 0 | AD73: 0 | AE73: 0 | AF73: 0 | AG73: 0 | AH73: 0 | AJ73: 0 | AK73: 0
B74: 57 | S74: 0 | T74: 0 | U74: 0 | V74: 0 | W74: 0 | X74: 0 | Y74: 0 | Z74: 0 | AA74: 0 | AB74: 0 | AC74: 0 | AD74: 0 | AE74: 0 | AF74: 0 | AG74: 0 | AH74: 0 | AJ74: 0 | AK74: 0
B75: 58 | S75: 0 | T75: 0 | U75: 0 | V75: 0 | W75: 0 | X75: 0 | Y75: 0 | Z75: 0 | AA75: 0 | AB75: =IF(V75=0,0,V75) -> 0 | AC75: 0 | AD75: 0 | AE75: 0 | AF75: 0 | AG75: 0 | AH75: 0 | AJ75: 0 | AK75: 0
B76: 59 | S76: 0 | T76: 0 | U76: 0 | V76: 0 | W76: 0 | X76: 0 | Y76: =IF(S76=0,0,S76) -> 0 | Z76: 0 | AA76: 0 | AB76: 0 | AC76: 0 | AD76: 0 | AE76: 0 | AF76: 0 | AG76: 0 | AH76: 0 | AJ76: 0 | AK76: 0
B77: 60 | S77: 0 | T77: 0 | U77: 0 | V77: 0 | W77: 0 | X77: 0 | Y77: 0 | Z77: 0 | AA77: 0 | AB77: 0 | AC77: 0 | AD77: 0 | AE77: 0 | AF77: 0 | AG77: 0 | AH77: 0 | AJ77: 0 | AK77: 0
B78: 61 | S78: 0 | T78: 0 | U78: 0 | V78: 0 | W78: 0 | X78: 0 | Y78: 0 | Z78: 0 | AA78: 0 | AB78: 0 | AC78: 0 | AD78: 0 | AE78: 0 | AF78: 0 | AG78: 0 | AH78: 0 | AJ78: 0 | AK78: 0
B79: 62 | S79: 0 | T79: 0 | U79: 0 | V79: 0 | W79: 0 | X79: 0 | Y79: 0 | Z79: 0 | AA79: 0 | AB79: 0 | AC79: 0 | AD79: 0 | AE79: 0 | AF79: 0 | AG79: 0 | AH79: 0 | AJ79: 0 | AK79: 0
B80: 63 | S80: 0 | T80: 0 | U80: 0 | V80: 0 | W80: 0 | X80: 0 | Y80: 0 | Z80: 0 | AA80: 0 | AB80: 0 | AC80: 0 | AD80: 0 | AE80: 0 | AF80: 0 | AG80: 0 | AH80: 0 | AJ80: 0 | AK80: 0
B81: 64 | S81: 0 | T81: 0 | U81: 0 | V81: 0 | W81: 0 | X81: 0 | Y81: 0 | Z81: 0 | AA81: 0 | AB81: 0 | AC81: 0 | AD81: 0 | AE81: =IFERROR((G81*Y81+I81*AA81+K81*AC81)/(G81+I81+K81), 0)*nur_L -> 0 | AF81: =IFERROR((H81*Z81+J81*AB81+L81*AD81)/(H81+J81+L81), 0)*nur_L -> 0 | AG81: =IF(E81="",0,E81) -> 0 | AH81: =IF(F81="",0,F81) -> 0 | AJ81: 0 | AK81: 0
B82: 65 | S82: =IFERROR(M82/G82,0) -> 0 | T82: =IFERROR(N82/H82,0) -> 0 | U82: =IFERROR(O82/I82,0) -> 0 | V82: =IFERROR(P82/J82,0) -> 0 | W82: =IFERROR(Q82/K82,0) -> 0 | X82: =IFERROR(R82/L82,0) -> 0 | Y82: 0 | Z82: 0 | AA82: 0 | AB82: 0 | AC82: 0 | AD82: 0 | AE82: 0 | AF82: 0 | AG82: 0 | AH82: 0 | AJ82: 0 | AK82: 0
B83: 66 | S83: 0 | T83: 0 | U83: 0 | V83: 0 | W83: 0 | X83: 0 | Y83: 0 | Z83: 0 | AA83: 0 | AB83: 0 | AC83: 0 | AD83: 0 | AE83: 0 | AF83: 0 | AG83: 0 | AH83: 0 | AJ83: =IFERROR(AVERAGE(AE82:AE84),0) -> 0 | AK83: 0
B84: 67 | S84: 0 | T84: 0 | U84: 0 | V84: 0 | W84: 0 | X84: 0 | Y84: 0 | Z84: 0 | AA84: 0 | AB84: 0 | AC84: 0 | AD84: 0 | AE84: 0 | AF84: 0 | AG84: 0 | AH84: 0 | AJ84: 0 | AK84: 0
B85: 68 | S85: 0 | T85: 0 | U85: 0 | V85: 0 | W85: 0 | X85: 0 | Y85: 0 | Z85: 0 | AA85: 0 | AB85: 0 | AC85: 0 | AD85: 0 | AE85: 0 | AF85: 0 | AG85: 0 | AH85: 0 | AJ85: 0 | AK85: 0
B86: 69 | S86: 0 | T86: 0 | U86: 0 | V86: 0 | W86: 0 | X86: 0 | Y86: 0 | Z86: 0 | AA86: 0 | AB86: 0 | AC86: 0 | AD86: 0 | AE86: 0 | AF86: 0 | AG86: 0 | AH86: 0 | AJ86: 0 | AK86: 0
B87: 70 | S87: 0 | T87: 0 | U87: 0 | V87: 0 | W87: 0 | X87: 0 | Y87: 0 | Z87: 0 | AA87: 0 | AB87: 0 | AC87: 0 | AD87: 0 | AE87: 0 | AF87: 0 | AG87: 0 | AH87: 0 | AJ87: 0 | AK87: 0
B88: 71 | S88: 0 | T88: 0 | U88: 0 | V88: 0 | W88: 0 | X88: 0 | Y88: 0 | Z88: 0 | AA88: 0 | AB88: 0 | AC88: 0 | AD88: 0 | AE88: 0 | AF88: 0 | AG88: 0 | AH88: 0 | AJ88: 0 | AK88: 0
B89: 72 | S89: 0 | T89: 0 | U89: 0 | V89: 0 | W89: 0 | X89: 0 | Y89: 0 | Z89: 0 | AA89: 0 | AB89: 0 | AC89: 0 | AD89: 0 | AE89: 0 | AF89: 0 | AG89: 0 | AH89: 0 | AJ89: 0 | AK89: 0
B90: 73 | S90: 0 | T90: 0 | U90: 0 | V90: 0 | W90: 0 | X90: 0 | Y90: 0 | Z90: 0 | AA90: 0 | AB90: 0 | AC90: 0 | AD90: 0 | AE90: 0 | AF90: 0 | AG90: 0 | AH90: 0 | AJ90: 0 | AK90: 0
B91: 74 | S91: 0 | T91: 0 | U91: 0 | V91: 0 | W91: 0 | X91: 0 | Y91: 0 | Z91: 0 | AA91: 0 | AB91: 0 | AC91: 0 | AD91: 0 | AE91: 0 | AF91: 0 | AG91: 0 | AH91: 0 | AJ91: 0 | AK91: 0
B92: 75 | S92: 0 | T92: 0 | U92: 0 | V92: 0 | W92: 0 | X92: 0 | Y92: 0 | Z92: 0 | AA92: 0 | AB92: 0 | AC92: 0 | AD92: 0 | AE92: 0 | AF92: 0 | AG92: 0 | AH92: 0 | AJ92: 0 | AK92: 0
B93: 76 | S93: 0 | T93: 0 | U93: 0 | V93: 0 | W93: 0 | X93: 0 | Y93: 0 | Z93: 0 | AA93: 0 | AB93: 0 | AC93: 0 | AD93: 0 | AE93: 0 | AF93: 0 | AG93: 0 | AH93: 0 | AJ93: 0 | AK93: 0
B94: 77 | S94: 0 | T94: 0 | U94: 0 | V94: 0 | W94: 0 | X94: 0 | Y94: 0 | Z94: 0 | AA94: 0 | AB94: 0 | AC94: 0 | AD94: 0 | AE94: 0 | AF94: 0 | AG94: 0 | AH94: 0 | AJ94: 0 | AK94: 0
B95: 78 | S95: 0 | T95: 0 | U95: 0 | V95: 0 | W95: 0 | X95: 0 | Y95: 0 | Z95: 0 | AA95: 0 | AB95: 0 | AC95: 0 | AD95: 0 | AE95: 0 | AF95: 0 | AG95: 0 | AH95: 0 | AJ95: 0 | AK95: 0
B96: 79 | S96: 0 | T96: 0 | U96: 0 | V96: 0 | W96: 0 | X96: 0 | Y96: 0 | Z96: 0 | AA96: 0 | AB96: 0 | AC96: 0 | AD96: 0 | AE96: 0 | AF96: 0 | AG96: 0 | AH96: 0 | AJ96: 0 | AK96: 0
B97: 80 | S97: 0 | T97: 0 | U97: 0 | V97: 0 | W97: 0 | X97: 0 | Y97: 0 | Z97: 0 | AA97: 0 | AB97: 0 | AC97: 0 | AD97: 0 | AE97: 0 | AF97: 0 | AG97: 0 | AH97: 0 | AJ97: 0 | AK97: 0
B98: 81 | S98: 0 | T98: 0 | U98: 0 | V98: 0 | W98: 0 | X98: 0 | Y98: 0 | Z98: 0 | AA98: 0 | AB98: 0 | AC98: 0 | AD98: 0 | AE98: 0 | AF98: 0 | AG98: 0 | AH98: 0 | AJ98: 0 | AK98: 0
B99: 82 | S99: 0 | T99: 0 | U99: 0 | V99: 0 | W99: 0 | X99: 0 | Y99: 0 | Z99: 0 | AA99: 0 | AB99: 0 | AC99: 0 | AD99: 0 | AE99: 0 | AF99: 0 | AG99: 0 | AH99: 0 | AJ99: 0 | AK99: 0
B100: 83 | S100: 0 | T100: 0 | U100: 0 | V100: 0 | W100: 0 | X100: 0 | Y100: 0 | Z100: 0 | AA100: 0 | AB100: 0 | AC100: 0 | AD100: 0 | AE100: 0 | AF100: 0 | AG100: 0 | AH100: 0 | AJ100: 0 | AK100: 0
B101: 84 | S101: 0 | T101: 0 | U101: 0 | V101: 0 | W101: 0 | X101: 0 | Y101: 0 | Z101: 0 | AA101: 0 | AB101: 0 | AC101: 0 | AD101: 0 | AE101: 0 | AF101: 0 | AG101: 0 | AH101: 0 | AJ101: 0 | AK101: 0
B102: 85 | S102: 0 | T102: 0 | U102: 0 | V102: 0 | W102: 0 | X102: 0 | Y102: 0 | Z102: 0 | AA102: 0 | AB102: 0 | AC102: 0 | AD102: 0 | AE102: 0 | AF102: 0 | AG102: 0 | AH102: 0 | AJ102: 0 | AK102: 0
B103: 86 | S103: 0 | T103: 0 | U103: 0 | V103: 0 | W103: 0 | X103: 0 | Y103: 0 | Z103: 0 | AA103: 0 | AB103: 0 | AC103: 0 | AD103: 0 | AE103: 0 | AF103: 0 | AG103: 0 | AH103: 0 | AJ103: 0 | AK103: 0
B104: 87 | S104: 0 | T104: 0 | U104: 0 | V104: 0 | W104: 0 | X104: 0 | Y104: 0 | Z104: 0 | AA104: 0 | AB104: 0 | AC104: 0 | AD104: 0 | AE104: 0 | AF104: 0 | AG104: 0 | AH104: 0 | AJ104: 0 | AK104: 0
B105: 88 | S105: 0 | T105: 0 | U105: 0 | V105: 0 | W105: 0 | X105: 0 | Y105: 0 | Z105: 0 | AA105: 0 | AB105: 0 | AC105: 0 | AD105: 0 | AE105: 0 | AF105: 0 | AG105: 0 | AH105: 0 | AJ105: 0 | AK105: 0
B106: 89 | S106: 0 | T106: 0 | U106: 0 | V106: 0 | W106: 0 | X106: 0 | Y106: 0 | Z106: 0 | AA106: 0 | AB106: 0 | AC106: 0 | AD106: 0 | AE106: 0 | AF106: 0 | AG106: 0 | AH106: 0 | AJ106: 0 | AK106: 0
B107: 90 | S107: 0 | T107: 0 | U107: 0 | V107: 0 | W107: 0 | X107: 0 | Y107: 0 | Z107: 0 | AA107: 0 | AB107: 0 | AC107: 0 | AD107: 0 | AE107: 0 | AF107: 0 | AG107: 0 | AH107: 0 | AJ107: 0 | AK107: 0
B108: 91 | S108: 0 | T108: 0 | U108: 0 | V108: 0 | W108: 0 | X108: 0 | Y108: 0 | Z108: 0 | AA108: 0 | AB108: 0 | AC108: 0 | AD108: 0 | AE108: 0 | AF108: 0 | AG108: 0 | AH108: 0 | AJ108: =IFERROR(SUMPRODUCT(C$108:C$117,AE$108:AE$117)/SUM(C$108:C$117),0) -> 0 | AK108: =IFERROR(SUMPRODUCT(D$108:D$117,AF$108:AF$117)/SUM(D$108:D$117),0) -> 0
B109: 92 | S109: 0 | T109: 0 | U109: 0 | V109: 0 | W109: 0 | X109: 0 | Y109: 0 | Z109: 0 | AA109: 0 | AB109: 0 | AC109: 0 | AD109: 0 | AE109: 0 | AF109: 0 | AG109: 0 | AH109: 0 | AJ109: 0 | AK109: 0
B110: 93 | S110: 0 | T110: 0 | U110: 0 | V110: 0 | W110: 0 | X110: 0 | Y110: 0 | Z110: 0 | AA110: 0 | AB110: 0 | AC110: 0 | AD110: 0 | AE110: 0 | AF110: 0 | AG110: 0 | AH110: 0 | AJ110: 0 | AK110: 0
B111: 94 | S111: 0 | T111: 0 | U111: 0 | V111: 0 | W111: 0 | X111: 0 | Y111: 0 | Z111: 0 | AA111: 0 | AB111: 0 | AC111: 0 | AD111: 0 | AE111: 0 | AF111: 0 | AG111: 0 | AH111: 0 | AJ111: 0 | AK111: 0
B112: 95 | S112: 0 | T112: 0 | U112: 0 | V112: 0 | W112: 0 | X112: 0 | Y112: 0 | Z112: 0 | AA112: 0 | AB112: 0 | AC112: 0 | AD112: 0 | AE112: 0 | AF112: 0 | AG112: 0 | AH112: 0 | AJ112: 0 | AK112: 0
B113: 96 | S113: 0 | T113: 0 | U113: 0 | V113: 0 | W113: 0 | X113: 0 | Y113: 0 | Z113: 0 | AA113: 0 | AB113: 0 | AC113: 0 | AD113: 0 | AE113: 0 | AF113: 0 | AG113: 0 | AH113: 0 | AJ113: 0 | AK113: 0
B114: 97 | S114: 0 | T114: 0 | U114: 0 | V114: 0 | W114: 0 | X114: 0 | Y114: 0 | Z114: 0 | AA114: 0 | AB114: 0 | AC114: 0 | AD114: 0 | AE114: 0 | AF114: 0 | AG114: 0 | AH114: 0 | AJ114: 0 | AK114: 0
B115: 98 | S115: 0 | T115: 0 | U115: 0 | V115: 0 | W115: 0 | X115: 0 | Y115: 0 | Z115: 0 | AA115: 0 | AB115: 0 | AC115: 0 | AD115: 0 | AE115: 0 | AF115: 0 | AG115: 0 | AH115: 0 | AJ115: 0 | AK115: 0
B116: 99 | S116: 0 | T116: 0 | U116: 0 | V116: 0 | W116: 0 | X116: 0 | Y116: 0 | Z116: 0 | AA116: 0 | AB116: 0 | AC116: 0 | AD116: 0 | AE116: 0 | AF116: 0 | AG116: 0 | AH116: 0 | AJ116: 0 | AK116: 0
B117: 100 | S117: 0 | T117: 0 | U117: 0 | V117: 0 | W117: 0 | X117: 0 | Y117: 0 | Z117: 0 | AA117: 0 | AB117: 0 | AC117: 0 | AD117: 0 | AE117: 0 | AF117: 0 | AG117: 0 | AH117: 0 | AJ117: 0 | AK117: 0

Sheet HE_Cashflow_Resultat
A1: 21 | B1: Individuelle Parameterwahl: Cashflow Resultat (ohne Anwendung des Prämien-Caps)
B4: Übersicht der verwendeten Parameter
B6: Faktor Sterblichkeit (absolut) - Männer (%) | C6: =_sterbM -> 0.895
B7: Faktor Sterblichkeit (absolut) - Frauen (%) | C7: =_sterbF -> 0.887
B9: Faktor Storno (absolut) (%) | C9: =_storno2 -> 1
B11: Verwaltungskosten (absolut) (%) | C11: =_ak2 -> 0
B13: Leistungen korrigieren? ("J" / "N") | C13: =_leistungen -> J
B14: Faktor Leistungen (relativ) (%) | C14: =_leistungenFB -> 0.05
B19: Produktegruppen / Geschlecht | D19: Entwicklungsjahr
D20: =current_year -> 2024 | E20: =D20+1 -> 2025 | F20: =E20+1 -> 2026 | G20: 2027 | H20: 2028 | I20: 2029 | J20: 2030 | K20: 2031 | L20: 2032 | M20: 2033 | N20: 2034 | O20: 2035 | P20: 2036 | Q20: 2037 | R20: 2038 | S20: 2039 | T20: 2040 | U20: 2041 | V20: 2042 | W20: 2043 | X20: 2044 | Y20: 2045 | Z20: 2046 | AA20: 2047 | AB20: 2048 | AC20: 2049 | AD20: 2050 | AE20: 2051 | AF20: 2052 | AG20: 2053 | AH20: 2054 | AI20: 2055 | AJ20: 2056 | AK20: 2057 | AL20: 2058 | AM20: 2059 | AN20: 2060 | AO20: 2061 | AP20: 2062 | AQ20: 2063 | AR20: 2064 | AS20: 2065 | AT20: 2066 | AU20: 2067 | AV20: 2068 | AW20: 2069 | AX20: 2070 | AY20: 2071 | AZ20: 2072 | BA20: 2073
B21: Alle Produktegruppen | C21: Undiskontierter Cashflow (in CHF) | D21: =D22+D25+D28+D31+D34+D37+D40 -> 0 | E21: =E22+E25+E28+E31+E34+E37+E40 -> 0 | F21: 0 | G21: 0 | H21: 0 | I21: 0 | J21: 0 | K21: 0 | L21: 0 | M21: 0 | N21: 0 | O21: 0 | P21: 0 | Q21: 0 | R21: 0 | S21: 0 | T21: 0 | U21: 0 | V21: 0 | W21: 0 | X21: 0 | Y21: 0 | Z21: 0 | AA21: 0 | AB21: 0 | AC21: 0 | AD21: 0 | AE21: 0 | AF21: 0 | AG21: 0 | AH21: 0 | AI21: 0 | AJ21: 0 | AK21: 0 | AL21: 0 | AM21: 0 | AN21: 0 | AO21: 0 | AP21: 0 | AQ21: 0 | AR21: 0 | AS21: 0 | AT21: 0 | AU21: 0 | AV21: 0 | AW21: 0 | AX21: 0 | AY21: 0 | AZ21: 0 | BA21: 0
B22: Total: | C22: Undiskontierter Cashflow (in CHF) | D22: =SUM(D23:D24) -> 0 | E22: 0 | F22: 0 | G22: 0 | H22: 0 | I22: 0 | J22: 0 | K22: 0 | L22: 0 | M22: 0 | N22: 0 | O22: 0 | P22: 0 | Q22: 0 | R22: 0 | S22: 0 | T22: 0 | U22: 0 | V22: 0 | W22: 0 | X22: 0 | Y22: 0 | Z22: 0 | AA22: 0 | AB22: 0 | AC22: 0 | AD22: 0 | AE22: 0 | AF22: 0 | AG22: 0 | AH22: 0 | AI22: 0 | AJ22: =SUM(AJ23:AJ24) -> 0 | AK22: 0 | AL22: 0 | AM22: 0 | AN22: 0 | AO22: 0 | AP22: 0 | AQ22: 0 | AR22: 0 | AS22: 0 | AT22: 0 | AU22: 0 | AV22: 0 | AW22: 0 | AX22: 0 | AY22: 0 | AZ22: 0 | BA22: 0
B23: Stationäre Produkte: Halbprivat / M | C23: Undiskontierter Cashflow (in CHF)
B24: Stationäre Produkte: Halbprivat / F | C24: Undiskontierter Cashflow (in CHF)
B25: Total: | C25: Undiskontierter Cashflow (in CHF) | D25: =SUM(D26:D27) -> 0 | E25: 0 | F25: 0 | G25: 0 | H25: 0 | I25: 0 | J25: 0 | K25: 0 | L25: 0 | M25: 0 | N25: 0 | O25: 0 | P25: 0 | Q25: 0 | R25: 0 | S25: 0 | T25: 0 | U25: 0 | V25: 0 | W25: 0 | X25: 0 | Y25: 0 | Z25: 0 | AA25: 0 | AB25: 0 | AC25: 0 | AD25: 0 | AE25: 0 | AF25: 0 | AG25: 0 | AH25: 0 | AI25: 0 | AJ25: =SUM(AJ26:AJ27) -> 0 | AK25: 0 | AL25: 0 | AM25: 0 | AN25: 0 | AO25: 0 | AP25: 0 | AQ25: 0 | AR25: 0 | AS25: 0 | AT25: 0 | AU25: 0 | AV25: 0 | AW25: 0 | AX25: 0 | AY25: 0 | AZ25: 0 | BA25: 0
B26: Stationäre Produkte: Privat / M | C26: Undiskontierter Cashflow (in CHF)
B27: Stationäre Produkte: Privat / F | C27: Undiskontierter Cashflow (in CHF)
B28: Total: | C28: Undiskontierter Cashflow (in CHF) | D28: =SUM(D29:D30) -> 0 | E28: =SUM(E29:E30) -> 0 | F28: 0 | G28: 0 | H28: 0 | I28: 0 | J28: 0 | K28: 0 | L28: 0 | M28: 0 | N28: 0 | O28: 0 | P28: 0 | Q28: 0 | R28: 0 | S28: 0 | T28: 0 | U28: 0 | V28: 0 | W28: 0 | X28: 0 | Y28: 0 | Z28: 0 | AA28: 0 | AB28: 0 | AC28: 0 | AD28: 0 | AE28: 0 | AF28: 0 | AG28: 0 | AH28: 0 | AI28: 0 | AJ28: =SUM(AJ29:AJ30) -> 0 | AK28: 0 | AL28: 0 | AM28: 0 | AN28: 0 | AO28: 0 | AP28: 0 | AQ28: 0 | AR28: 0 | AS28: 0 | AT28: 0 | AU28: 0 | AV28: 0 | AW28: 0 | AX28: 0 | AY28: 0 | AZ28: 0 | BA28: 0
B29: Stationäre Produkte: Flex / M | C29: Undiskontierter Cashflow (in CHF)
B30: Stationäre Produkte: Flex / F | C30: Undiskontierter Cashflow (in CHF)
B31: Total: | C31: Undiskontierter Cashflow (in CHF) | D31: =SUM(D32:D33) -> 0 | E31: =SUM(E32:E33) -> 0 | F31: 0 | G31: 0 | H31: 0 | I31: 0 | J31: 0 | K31: 0 | L31: 0 | M31: 0 | N31: 0 | O31: 0 | P31: 0 | Q31: 0 | R31: 0 | S31: 0 | T31: 0 | U31: 0 | V31: 0 | W31: 0 | X31: 0 | Y31: 0 | Z31: 0 | AA31: 0 | AB31: 0 | AC31: 0 | AD31: 0 | AE31: 0 | AF31: 0 | AG31: 0 | AH31: 0 | AI31: 0 | AJ31: 0 | AK31: 0 | AL31: 0 | AM31: 0 | AN31: 0 | AO31: 0 | AP31: 0 | AQ31: 0 | AR31: 0 | AS31: 0 | AT31: 0 | AU31: 0 | AV31: 0 | AW31: 0 | AX31: 0 | AY31: 0 | AZ31: 0 | BA31: 0
B32: Übrige Stationäre Produkte: Allgemein, Spitaltaggeld, etc. / M | C32: Undiskontierter Cashflow (in CHF)
B33: Übrige Stationäre Produkte: Allgemein, Spitaltaggeld, etc. / F | C33: Undiskontierter Cashflow (in CHF)
B34: Total: | C34: Undiskontierter Cashflow (in CHF) | D34: =SUM(D35:D36) -> 0 | E34: =SUM(E35:E36) -> 0 | F34: 0 | G34: 0 | H34: 0 | I34: 0 | J34: 0 | K34: 0 | L34: 0 | M34: 0 | N34: 0 | O34: 0 | P34: 0 | Q34: 0 | R34: 0 | S34: 0 | T34: 0 | U34: 0 | V34: 0 | W34: 0 | X34: 0 | Y34: 0 | Z34: 0 | AA34: 0 | AB34: 0 | AC34: 0 | AD34: 0 | AE34: 0 | AF34: 0 | AG34: 0 | AH34: 0 | AI34: 0 | AJ34: 0 | AK34: 0 | AL34: 0 | AM34: 0 | AN34: 0 | AO34: 0 | AP34: 0 | AQ34: 0 | AR34: 0 | AS34: 0 | AT34: 0 | AU34: 0 | AV34: 0 | AW34: 0 | AX34: 0 | AY34: 0 | AZ34: 0 | BA34: 0
B35: Ambulante Produkte / M | C35: Undiskontierter Cashflow (in CHF)
B36: Ambulante Produkte / F | C36: Undiskontierter Cashflow (in CHF)
B37: Total: | C37: Undiskontierter Cashflow (in CHF) | D37: =SUM(D38:D39) -> 0 | E37: =SUM(E38:E39) -> 0 | F37: 0 | G37: 0 | H37: 0 | I37: 0 | J37: 0 | K37: 0 | L37: 0 | M37: 0 | N37: 0 | O37: 0 | P37: 0 | Q37: 0 | R37: 0 | S37: 0 | T37: 0 | U37: 0 | V37: 0 | W37: 0 | X37: 0 | Y37: 0 | Z37: 0 | AA37: 0 | AB37: 0 | AC37: 0 | AD37: 0 | AE37: 0 | AF37: 0 | AG37: 0 | AH37: 0 | AI37: 0 | AJ37: 0 | AK37: 0 | AL37: 0 | AM37: 0 | AN37: 0 | AO37: 0 | AP37: 0 | AQ37: 0 | AR37: 0 | AS37: 0 | AT37: 0 | AU37: 0 | AV37: 0 | AW37: 0 | AX37: 0 | AY37: 0 | AZ37: 0 | BA37: 0
B38: Langzeitpflege / M | C38: Undiskontierter Cashflow (in CHF)
B39: Langzeitpflege / F | C39: Undiskontierter Cashflow (in CHF)
B40: Total: | C40: Undiskontierter Cashflow (in CHF) | D40: =SUM(D41:D42) -> 0 | E40: =SUM(E41:E42) -> 0 | F40: 0 | G40: 0 | H40: 0 | I40: 0 | J40: 0 | K40: 0 | L40: 0 | M40: 0 | N40: 0 | O40: 0 | P40: 0 | Q40: 0 | R40: 0 | S40: 0 | T40: 0 | U40: 0 | V40: 0 | W40: 0 | X40: 0 | Y40: 0 | Z40: 0 | AA40: 0 | AB40: 0 | AC40: 0 | AD40: 0 | AE40: 0 | AF40: 0 | AG40: 0 | AH40: 0 | AI40: 0 | AJ40: 0 | AK40: 0 | AL40: 0 | AM40: 0 | AN40: 0 | AO40: 0 | AP40: 0 | AQ40: 0 | AR40: 0 | AS40: 0 | AT40: 0 | AU40: 0 | AV40: 0 | AW40: 0 | AX40: 0 | AY40: 0 | AZ40: 0 | BA40: 0
B41: Einzeltagegeld / M | C41: Undiskontierter Cashflow (in CHF)
B42: Einzeltagegeld / F | C42: Undiskontierter Cashflow (in CHF)
D45: Entwicklungsjahr
D46: =current_year -> 2024 | E46: =D46+1 -> 2025 | F46: =E46+1 -> 2026 | G46: 2027 | H46: 2028 | I46: 2029 | J46: 2030 | K46: 2031 | L46: 2032 | M46: 2033 | N46: 2034 | O46: 2035 | P46: 2036 | Q46: 2037 | R46: 2038 | S46: 2039 | T46: 2040 | U46: 2041 | V46: 2042 | W46: 2043 | X46: 2044 | Y46: 2045 | Z46: 2046 | AA46: 2047 | AB46: 2048 | AC46: 2049 | AD46: 2050 | AE46: 2051 | AF46: 2052 | AG46: 2053 | AH46: 2054 | AI46: 2055 | AJ46: 2056 | AK46: 2057 | AL46: 2058 | AM46: 2059 | AN46: 2060 | AO46: 2061 | AP46: 2062 | AQ46: 2063 | AR46: 2064 | AS46: 2065 | AT46: 2066 | AU46: 2067 | AV46: 2068 | AW46: 2069 | AX46: 2070 | AY46: 2071 | AZ46: 2072 | BA46: 2073
B47: Alle Produktegruppen | C47: Diskontierter Cashflow (in CHF) | D47: =D21 -> 0 | E47: =E21*Inputparam!C17 -> 0 | F47: =F21*Inputparam!D17 -> 0 | G47: =G21*Inputparam!E17 -> 0 | H47: =H21*Inputparam!F17 -> 0 | I47: =I21*Inputparam!G17 -> 0 | J47: =J21*Inputparam!H17 -> 0 | K47: =K21*Inputparam!I17 -> 0 | L47: =L21*Inputparam!J17 -> 0 | M47: =M21*Inputparam!K17 -> 0 | N47: =N21*Inputparam!L17 -> 0 | O47: =O21*Inputparam!M17 -> 0 | P47: =P21*Inputparam!N17 -> 0 | Q47: =Q21*Inputparam!O17 -> 0 | R47: =R21*Inputparam!P17 -> 0 | S47: =S21*Inputparam!Q17 -> 0 | T47: =T21*Inputparam!R17 -> 0 | U47: =U21*Inputparam!S17 -> 0 | V47: =V21*Inputparam!T17 -> 0 | W47: =W21*Inputparam!U17 -> 0 | X47: =X21*Inputparam!V17 -> 0 | Y47: =Y21*Inputparam!W17 -> 0 | Z47: =Z21*Inputparam!X17 -> 0 | AA47: =AA21*Inputparam!Y17 -> 0 | AB47: =AB21*Inputparam!Z17 -> 0 | AC47: =AC21*Inputparam!AA17 -> 0 | AD47: =AD21*Inputparam!AB17 -> 0 | AE47: =AE21*Inputparam!AC17 -> 0 | AF47: =AF21*Inputparam!AD17 -> 0 | AG47: =AG21*Inputparam!AE17 -> 0 | AH47: =AH21*Inputparam!AF17 -> 0 | AI47: =AI21*Inputparam!AG17 -> 0 | AJ47: =AJ21*Inputparam!AH17 -> 0 | AK47: =AK21*Inputparam!AI17 -> 0 | AL47: =AL21*Inputparam!AJ17 -> 0 | AM47: =AM21*Inputparam!AK17 -> 0 | AN47: =AN21*Inputparam!AL17 -> 0 | AO47: =AO21*Inputparam!AM17 -> 0 | AP47: =AP21*Inputparam!AN17 -> 0 | AQ47: =AQ21*Inputparam!AO17 -> 0 | AR47: =AR21*Inputparam!AP17 -> 0 | AS47: =AS21*Inputparam!AQ17 -> 0 | AT47: =AT21*Inputparam!AR17 -> 0 | AU47: =AU21*Inputparam!AS17 -> 0 | AV47: =AV21*Inputparam!AT17 -> 0 | AW47: =AW21*Inputparam!AU17 -> 0 | AX47: =AX21*Inputparam!AV17 -> 0 | AY47: =AY21*Inputparam!AW17 -> 0 | AZ47: =AZ21*Inputparam!AX17 -> 0 | BA47: =BA21*Inputparam!AY17 -> 0

Sheet HE_Inputdata_pxy
A1: 17 | B1: Bestimmung der Überlebenswahrscheinlichkeiten
B3: Gewähltes Geschlecht | C3: F
B4: Korrekturfaktor (%) | C4: 0.887
B5: Startjahr der Projektion | C5: =current_year -> 2024
D7: Sterbetafel (qx bzw. qy) | E7: Ab Alter 100 mit 1 überschrieben
E8: Geburtsjahr
D9: Alter | E9: =F9-1 -> 1906 | F9: 1907 | G9: 1908 | H9: 1909 | I9: 1910 | J9: 1911 | K9: 1912 | L9: 1913 | M9: 1914 | N9: 1915 | O9: 1916 | P9: 1917 | Q9: 1918 | R9: 1919 | S9: 1920 | T9: 1921 | U9: 1922 | V9: 1923 | W9: 1924 | X9: 1925 | Y9: 1926 | Z9: 1927 | AA9: 1928 | AB9: 1929 | AC9: 1930 | AD9: 1931 | AE9: 1932 | AF9: 1933 | AG9: 1934 | AH9: 1935 | AI9: 1936 | AJ9: 1937 | AK9: 1938 | AL9: 1939 | AM9: 1940 | AN9: 1941 | AO9: 1942 | AP9: 1943 | AQ9: 1944 | AR9: 1945 | AS9: 1946 | AT9: 1947 | AU9: 1948 | AV9: 1949 | AW9: 1950 | AX9: 1951 | AY9: 1952 | AZ9: 1953 | BA9: 1954 | BB9: 1955 | BC9: 1956 | BD9: 1957 | BE9: 1958 | BF9: 1959 | BG9: 1960 | BH9: 1961 | BI9: 1962 | BJ9: 1963 | BK9: 1964 | BL9: 1965 | BM9: 1966 | BN9: 1967 | BO9: 1968 | BP9: 1969 | BQ9: =BR9-1 -> 1970 | BR9: 1971 | BS9: 1972 | BT9: 1973 | BU9: 1974 | BV9: 1975 | BW9: 1976 | BX9: 1977 | BY9: 1978 | BZ9: 1979 | CA9: 1980 | CB9: 1981 | CC9: 1982 | CD9: 1983 | CE9: 1984 | CF9: 1985 | CG9: 1986 | CH9: 1987 | CI9: 1988 | CJ9: 1989 | CK9: 1990 | CL9: 1991 | CM9: 1992 | CN9: 1993 | CO9: 1994 | CP9: 1995 | CQ9: 1996 | CR9: 1997 | CS9: 1998 | CT9: 1999 | CU9: 2000 | CV9: 2001 | CW9: 2002 | CX9: 2003 | CY9: 2004 | CZ9: 2005 | DA9: 2006 | DB9: 2007 | DC9: 2008 | DD9: 2009 | DE9: 2010 | DF9: 2011 | DG9: 2012 | DH9: 2013 | DI9: 2014 | DJ9: 2015 | DK9: 2016 | DL9: 2017 | DM9: 2018 | DN9: 2019 | DO9: 2020 | DP9: 2021 | DQ9: 2022 | DR9: =DS9-1 -> 2023 | DS9: =C5 -> 2024
D10: 0 | E10: =$C$4*((($C$3="M")*qx_m_w!$C18)+ ( ($C$3="F")*qx_m_w!$D18)) -> 0.002800774104 | F10: =$C$4*((($C$3="M")*qx_m_w!$C18)+ ( ($C$3="F")*qx_m_w!$D18)) -> 0.002800774104 | G10: =$C$4*((($C$3="M")*qx_m_w!$C18)+ ( ($C$3="F")*qx_m_w!$D18)) -> 0.002800774104 | H10: =$C$4*((($C$3="M")*qx_m_w!$C18)+ ( ($C$3="F")*qx_m_w!$D18)) -> 0.002800774104 | I10: =$C$4*((($C$3="M")*qx_m_w!$C18)+ ( ($C$3="F")*qx_m_w!$D18)) -> 0.002800774104 | J10: =$C$4*((($C$3="M")*qx_m_w!$C18)+ ( ($C$3="F")*qx_m_w!$D18)) -> 0.002800774104 | K10: =$C$4*((($C$3="M")*qx_m_w!$C18)+ ( ($C$3="F")*qx_m_w!$D18)) -> 0.002800774104 | L10: =$C$4*((($C$3="M")*qx_m_w!$C18)+ ( ($C$3="F")*qx_m_w!$D18)) -> 0.002800774104 | M10: =$C$4*((($C$3="M")*qx_m_w!$C18)+ ( ($C$3="F")*qx_m_w!$D18)) -> 0.002800774104 | N10: =$C$4*((($C$3="M")*qx_m_w!$C18)+ ( ($C$3="F")*qx_m_w!$D18)) -> 0.002800774104 | O10: =$C$4*((($C$3="M")*qx_m_w!$C18)+ ( ($C$3="F")*qx_m_w!$D18)) -> 0.002800774104 | P10: =$C$4*((($C$3="M")*qx_m_w!$C18)+ ( ($C$3="F")*qx_m_w!$D18)) -> 0.002800774104 | Q10: =$C$4*((($C$3="M")*qx_m_w!$C18)+ ( ($C$3="F")*qx_m_w!$D18)) -> 0.002800774104 | R10: =$C$4*((($C$3="M")*qx_m_w!$C18)+ ( ($C$3="F")*qx_m_w!$D18)) -> 0.002800774104 | S10: =$C$4*((($C$3="M")*qx_m_w!$C18)+ ( ($C$3="F")*qx_m_w!$D18)) -> 0.002800774104 | T10: =$C$4*((($C$3="M")*qx_m_w!$C18)+ ( ($C$3="F")*qx_m_w!$D18)) -> 0.002800774104 | U10: =$C$4*((($C$3="M")*qx_m_w!$C18)+ ( ($C$3="F")*qx_m_w!$D18)) -> 0.002800774104 | V10: =$C$4*((($C$3="M")*qx_m_w!$C18)+ ( ($C$3="F")*qx_m_w!$D18)) -> 0.002800774104 | W10: =$C$4*((($C$3="M")*qx_m_w!$C18)+ ( ($C$3="F")*qx_m_w!$D18)) -> 0.002800774104 | X10: =$C$4*((($C$3="M")*qx_m_w!$C18)+ ( ($C$3="F")*qx_m_w!$D18)) -> 0.002800774104 | Y10: =$C$4*((($C$3="M")*qx_m_w!$C18)+ ( ($C$3="F")*qx_m_w!$D18)) -> 0.002800774104 | Z10: =$C$4*((($C$3="M")*qx_m_w!$C18)+ ( ($C$3="F")*qx_m_w!$D18)) -> 0.002800774104 | AA10: =$C$4*((($C$3="M")*qx_m_w!$C18)+ ( ($C$3="F")*qx_m_w!$D18)) -> 0.002800774104 | AB10: =$C$4*((($C$3="M")*qx_m_w!$C18)+ ( ($C$3="F")*qx_m_w!$D18)) -> 0.002800774104 | AC10: =$C$4*((($C$3="M")*qx_m_w!$C18)+ ( ($C$3="F")*qx_m_w!$D18)) -> 0.002800774104 | AD10: =$C$4*((($C$3="M")*qx_m_w!$C18)+ ( ($C$3="F")*qx_m_w!$D18)) -> 0.002800774104 | AE10: =$C$4*((($C$3="M")*qx_m_w!$C18)+ ( ($C$3="F")*qx_m_w!$D18)) -> 0.002800774104 | AF10: =$C$4*((($C$3="M")*qx_m_w!$C18)+ ( ($C$3="F")*qx_m_w!$D18)) -> 0.002800774104 | AG10: =$C$4*((($C$3="M")*qx_m_w!$C18)+ ( ($C$3="F")*qx_m_w!$D18)) -> 0.002800774104 | AH10: =$C$4*((($C$3="M")*qx_m_w!$C18)+ ( ($C$3="F")*qx_m_w!$D18)) -> 0.002800774104 | AI10: =$C$4*((($C$3="M")*qx_m_w!$C18)+ ( ($C$3="F")*qx_m_w!$D18)) -> 0.002800774104 | AJ10: =$C$4*((($C$3="M")*qx_m_w!$C18)+ ( ($C$3="F")*qx_m_w!$D18)) -> 0.002800774104 | AK10: =$C$4*((($C$3="M")*qx_m_w!$C18)+ ( ($C$3="F")*qx_m_w!$D18)) -> 0.002800774104 | AL10: =$C$4*((($C$3="M")*qx_m_w!$C18)+ ( ($C$3="F")*qx_m_w!$D18)) -> 0.002800774104 | AM10: =$C$4*((($C$3="M")*qx_m_w!$C18)+ ( ($C$3="F")*qx_m_w!$D18)) -> 0.002800774104 | AN10: =$C$4*((($C$3="M")*qx_m_w!$C18)+ ( ($C$3="F")*qx_m_w!$D18)) -> 0.002800774104 | AO10: =$C$4*((($C$3="M")*qx_m_w!$C18)+ ( ($C$3="F")*qx_m_w!$D18)) -> 0.002800774104 | AP10: =$C$4*((($C$3="M")*qx_m_w!$C18)+ ( ($C$3="F")*qx_m_w!$D18)) -> 0.002800774104 | AQ10: =$C$4*((($C$3="M")*qx_m_w!$C18)+ ( ($C$3="F")*qx_m_w!$D18)) -> 0.002800774104 | AR10: =$C$4*((($C$3="M")*qx_m_w!$C18)+ ( ($C$3="F")*qx_m_w!$D18)) -> 0.002800774104 | AS10: =$C$4*((($C$3="M")*qx_m_w!$C18)+ ( ($C$3="F")*qx_m_w!$D18)) -> 0.002800774104 | AT10: =$C$4*((($C$3="M")*qx_m_w!$C18)+ ( ($C$3="F")*qx_m_w!$D18)) -> 0.002800774104 | AU10: =$C$4*((($C$3="M")*qx_m_w!$C18)+ ( ($C$3="F")*qx_m_w!$D18)) -> 0.002800774104 | AV10: =$C$4*((($C$3="M")*qx_m_w!$C18)+ ( ($C$3="F")*qx_m_w!$D18)) -> 0.002800774104 | AW10: =$C$4*((($C$3="M")*qx_m_w!$C18)+ ( ($C$3="F")*qx_m_w!$D18)) -> 0.002800774104 | AX10: =$C$4*((($C$3="M")*qx_m_w!$C18)+ ( ($C$3="F")*qx_m_w!$D18)) -> 0.002800774104 | AY10: =$C$4*((($C$3="M")*qx_m_w!$C18)+ ( ($C$3="F")*qx_m_w!$D18)) -> 0.002800774104 | AZ10: =$C$4*((($C$3="M")*qx_m_w!$C18)+ ( ($C$3="F")*qx_m_w!$D18)) -> 0.002800774104 | BA10: =$C$4*((($C$3="M")*qx_m_w!$C18)+ ( ($C$3="F")*qx_m_w!$D18)) -> 0.002800774104 | BB10: =$C$4*((($C$3="M")*qx_m_w!$C18)+ ( ($C$3="F")*qx_m_w!$D18)) -> 0.002800774104 | BC10: =$C$4*((($C$3="M")*qx_m_w!$C18)+ ( ($C$3="F")*qx_m_w!$D18)) -> 0.002800774104 | BD10: =$C$4*((($C$3="M")*qx_m_w!$C18)+ ( ($C$3="F")*qx_m_w!$D18)) -> 0.002800774104 | BE10: =$C$4*((($C$3="M")*qx_m_w!$C18)+ ( ($C$3="F")*qx_m_w!$D18)) -> 0.002800774104 | BF10: =$C$4*((($C$3="M")*qx_m_w!$C18)+ ( ($C$3="F")*qx_m_w!$D18)) -> 0.002800774104 | BG10: =$C$4*((($C$3="M")*qx_m_w!$C18)+ ( ($C$3="F")*qx_m_w!$D18)) -> 0.002800774104 | BH10: =$C$4*((($C$3="M")*qx_m_w!$C18)+ ( ($C$3="F")*qx_m_w!$D18)) -> 0.002800774104 | BI10: =$C$4*((($C$3="M")*qx_m_w!$C18)+ ( ($C$3="F")*qx_m_w!$D18)) -> 0.002800774104 | BJ10: =$C$4*((($C$3="M")*qx_m_w!$C18)+ ( ($C$3="F")*qx_m_w!$D18)) -> 0.002800774104 | BK10: =$C$4*((($C$3="M")*qx_m_w!$C18)+ ( ($C$3="F")*qx_m_w!$D18)) -> 0.002800774104 | BL10: =$C$4*((($C$3="M")*qx_m_w!$C18)+ ( ($C$3="F")*qx_m_w!$D18)) -> 0.002800774104 | BM10: =$C$4*((($C$3="M")*qx_m_w!$C18)+ ( ($C$3="F")*qx_m_w!$D18)) -> 0.002800774104 | BN10: =$C$4*((($C$3="M")*qx_m_w!$C18)+ ( ($C$3="F")*qx_m_w!$D18)) -> 0.002800774104 | BO10: =$C$4*((($C$3="M")*qx_m_w!$C18)+ ( ($C$3="F")*qx_m_w!$D18)) -> 0.002800774104 | BP10: =$C$4*((($C$3="M")*qx_m_w!$C18)+ ( ($C$3="F")*qx_m_w!$D18)) -> 0.002800774104 | BQ10: =$C$4*((($C$3="M")*qx_m_w!$C18)+ ( ($C$3="F")*qx_m_w!$D18)) -> 0.002800774104 | BR10: =$C$4*((($C$3="M")*qx_m_w!$C18)+ ( ($C$3="F")*qx_m_w!$D18)) -> 0.002800774104 | BS10: =$C$4*((($C$3="M")*qx_m_w!$C18)+ ( ($C$3="F")*qx_m_w!$D18)) -> 0.002800774104 | BT10: =$C$4*((($C$3="M")*qx_m_w!$C18)+ ( ($C$3="F")*qx_m_w!$D18)) -> 0.002800774104 | BU10: =$C$4*((($C$3="M")*qx_m_w!$C18)+ ( ($C$3="F")*qx_m_w!$D18)) -> 0.002800774104 | BV10: =$C$4*((($C$3="M")*qx_m_w!$C18)+ ( ($C$3="F")*qx_m_w!$D18)) -> 0.002800774104 | BW10: =$C$4*((($C$3="M")*qx_m_w!$C18)+ ( ($C$3="F")*qx_m_w!$D18)) -> 0.002800774104 | BX10: =$C$4*((($C$3="M")*qx_m_w!$C18)+ ( ($C$3="F")*qx_m_w!$D18)) -> 0.002800774104 | BY10: =$C$4*((($C$3="M")*qx_m_w!$C18)+ ( ($C$3="F")*qx_m_w!$D18)) -> 0.002800774104 | BZ10: =$C$4*((($C$3="M")*qx_m_w!$C18)+ ( ($C$3="F")*qx_m_w!$D18)) -> 0.002800774104 | CA10: =$C$4*((($C$3="M")*qx_m_w!$C18)+ ( ($C$3="F")*qx_m_w!$D18)) -> 0.002800774104 | CB10: =$C$4*((($C$3="M")*qx_m_w!$C18)+ ( ($C$3="F")*qx_m_w!$D18)) -> 0.002800774104 | CC10: =$C$4*((($C$3="M")*qx_m_w!$C18)+ ( ($C$3="F")*qx_m_w!$D18)) -> 0.002800774104 | CD10: =$C$4*((($C$3="M")*qx_m_w!$C18)+ ( ($C$3="F")*qx_m_w!$D18)) -> 0.002800774104 | CE10: =$C$4*((($C$3="M")*qx_m_w!$C18)+ ( ($C$3="F")*qx_m_w!$D18)) -> 0.002800774104 | CF10: =$C$4*((($C$3="M")*qx_m_w!$C18)+ ( ($C$3="F")*qx_m_w!$D18)) -> 0.002800774104 | CG10: =$C$4*((($C$3="M")*qx_m_w!$C18)+ ( ($C$3="F")*qx_m_w!$D18)) -> 0.002800774104 | CH10: =$C$4*((($C$3="M")*qx_m_w!$C18)+ ( ($C$3="F")*qx_m_w!$D18)) -> 0.002800774104 | CI10: =$C$4*((($C$3="M")*qx_m_w!$C18)+ ( ($C$3="F")*qx_m_w!$D18)) -> 0.002800774104 | CJ10: =$C$4*((($C$3="M")*qx_m_w!$C18)+ ( ($C$3="F")*qx_m_w!$D18)) -> 0.002800774104 | CK10: =$C$4*((($C$3="M")*qx_m_w!$C18)+ ( ($C$3="F")*qx_m_w!$D18)) -> 0.002800774104 | CL10: =$C$4*((($C$3="M")*qx_m_w!$C18)+ ( ($C$3="F")*qx_m_w!$D18)) -> 0.002800774104 | CM10: =$C$4*((($C$3="M")*qx_m_w!$C18)+ ( ($C$3="F")*qx_m_w!$D18)) -> 0.002800774104 | CN10: =$C$4*((($C$3="M")*qx_m_w!$C18)+ ( ($C$3="F")*qx_m_w!$D18)) -> 0.002800774104 | CO10: =$C$4*((($C$3="M")*qx_m_w!$C18)+ ( ($C$3="F")*qx_m_w!$D18)) -> 0.002800774104 | CP10: =$C$4*((($C$3="M")*qx_m_w!$C18)+ ( ($C$3="F")*qx_m_w!$D18)) -> 0.002800774104 | CQ10: =$C$4*((($C$3="M")*qx_m_w!$C18)+ ( ($C$3="F")*qx_m_w!$D18)) -> 0.002800774104 | CR10: =$C$4*((($C$3="M")*qx_m_w!$C18)+ ( ($C$3="F")*qx_m_w!$D18)) -> 0.002800774104 | CS10: =$C$4*((($C$3="M")*qx_m_w!$C18)+ ( ($C$3="F")*qx_m_w!$D18)) -> 0.002800774104 | CT10: =$C$4*((($C$3="M")*qx_m_w!$C18)+ ( ($C$3="F")*qx_m_w!$D18)) -> 0.002800774104 | CU10: =$C$4*((($C$3="M")*qx_m_w!$C18)+ ( ($C$3="F")*qx_m_w!$D18)) -> 0.002800774104 | CV10: =$C$4*((($C$3="M")*qx_m_w!$C18)+ ( ($C$3="F")*qx_m_w!$D18)) -> 0.002800774104 | CW10: =$C$4*((($C$3="M")*qx_m_w!$C18)+ ( ($C$3="F")*qx_m_w!$D18)) -> 0.002800774104 | CX10: =$C$4*((($C$3="M")*qx_m_w!$C18)+ ( ($C$3="F")*qx_m_w!$D18)) -> 0.002800774104 | CY10: =$C$4*((($C$3="M")*qx_m_w!$C18)+ ( ($C$3="F")*qx_m_w!$D18)) -> 0.002800774104 | CZ10: =$C$4*((($C$3="M")*qx_m_w!$C18)+ ( ($C$3="F")*qx_m_w!$D18)) -> 0.002800774104 | DA10: =$C$4*((($C$3="M")*qx_m_w!$C18)+ ( ($C$3="F")*qx_m_w!$D18)) -> 0.002800774104 | DB10: =$C$4*((($C$3="M")*qx_m_w!$C18)+ ( ($C$3="F")*qx_m_w!$D18)) -> 0.002800774104 | DC10: =$C$4*((($C$3="M")*qx_m_w!$C18)+ ( ($C$3="F")*qx_m_w!$D18)) -> 0.002800774104 | DD10: =$C$4*((($C$3="M")*qx_m_w!$C18)+ ( ($C$3="F")*qx_m_w!$D18)) -> 0.002800774104 | DE10: =$C$4*((($C$3="M")*qx_m_w!$C18)+ ( ($C$3="F")*qx_m_w!$D18)) -> 0.002800774104 | DF10: =$C$4*((($C$3="M")*qx_m_w!$C18)+ ( ($C$3="F")*qx_m_w!$D18)) -> 0.002800774104 | DG10: =$C$4*((($C$3="M")*qx_m_w!$C18)+ ( ($C$3="F")*qx_m_w!$D18)) -> 0.002800774104 | DH10: =$C$4*((($C$3="M")*qx_m_w!$C18)+ ( ($C$3="F")*qx_m_w!$D18)) -> 0.002800774104 | DI10: =$C$4*((($C$3="M")*qx_m_w!$C18)+ ( ($C$3="F")*qx_m_w!$D18)) -> 0.002800774104 | DJ10: =$C$4*((($C$3="M")*qx_m_w!$C18)+ ( ($C$3="F")*qx_m_w!$D18)) -> 0.002800774104 | DK10: =$C$4*((($C$3="M")*qx_m_w!$C18)+ ( ($C$3="F")*qx_m_w!$D18)) -> 0.002800774104 | DL10: =$C$4*((($C$3="M")*qx_m_w!$C18)+ ( ($C$3="F")*qx_m_w!$D18)) -> 0.002800774104 | DM10: =$C$4*((($C$3="M")*qx_m_w!$C18)+ ( ($C$3="F")*qx_m_w!$D18)) -> 0.002800774104 | DN10: =$C$4*((($C$3="M")*qx_m_w!$C18)+ ( ($C$3="F")*qx_m_w!$D18)) -> 0.002800774104 | DO10: =$C$4*((($C$3="M")*qx_m_w!$C18)+ ( ($C$3="F")*qx_m_w!$D18)) -> 0.002800774104 | DP10: =$C$4*((($C$3="M")*qx_m_w!$C18)+ ( ($C$3="F")*qx_m_w!$D18)) -> 0.002800774104 | DQ10: =$C$4*((($C$3="M")*qx_m_w!$C18)+ ( ($C$3="F")*qx_m_w!$D18)) -> 0.002800774104 | DR10: =$C$4*((($C$3="M")*qx_m_w!$C18)+ ( ($C$3="F")*qx_m_w!$D18)) -> 0.002800774104 | DS10: =$C$4*((($C$3="M")*qx_m_w!$C18)+ ( ($C$3="F")*qx_m_w!$D18)) -> 0.002800774104
D11: 1 | E11: =$C$4*((($C$3="M")*qx_m_w!$C19)+ ( ($C$3="F")*qx_m_w!$D19)) -> 0.000172970473 | F11: =$C$4*((($C$3="M")*qx_m_w!$C19)+ ( ($C$3="F")*qx_m_w!$D19)) -> 0.000172970473 | G11: =$C$4*((($C$3="M")*qx_m_w!$C19)+ ( ($C$3="F")*qx_m_w!$D19)) -> 0.000172970473 | H11: =$C$4*((($C$3="M")*qx_m_w!$C19)+ ( ($C$3="F")*qx_m_w!$D19)) -> 0.000172970473 | I11: =$C$4*((($C$3="M")*qx_m_w!$C19)+ ( ($C$3="F")*qx_m_w!$D19)) -> 0.000172970473 | J11: =$C$4*((($C$3="M")*qx_m_w!$C19)+ ( ($C$3="F")*qx_m_w!$D19)) -> 0.000172970473 | K11: =$C$4*((($C$3="M")*qx_m_w!$C19)+ ( ($C$3="F")*qx_m_w!$D19)) -> 0.000172970473 | L11: =$C$4*((($C$3="M")*qx_m_w!$C19)+ ( ($C$3="F")*qx_m_w!$D19)) -> 0.000172970473 | M11: =$C$4*((($C$3="M")*qx_m_w!$C19)+ ( ($C$3="F")*qx_m_w!$D19)) -> 0.000172970473 | N11: =$C$4*((($C$3="M")*qx_m_w!$C19)+ ( ($C$3="F")*qx_m_w!$D19)) -> 0.000172970473 | O11: =$C$4*((($C$3="M")*qx_m_w!$C19)+ ( ($C$3="F")*qx_m_w!$D19)) -> 0.000172970473 | P11: =$C$4*((($C$3="M")*qx_m_w!$C19)+ ( ($C$3="F")*qx_m_w!$D19)) -> 0.000172970473 | Q11: =$C$4*((($C$3="M")*qx_m_w!$C19)+ ( ($C$3="F")*qx_m_w!$D19)) -> 0.000172970473 | R11: =$C$4*((($C$3="M")*qx_m_w!$C19)+ ( ($C$3="F")*qx_m_w!$D19)) -> 0.000172970473 | S11: =$C$4*((($C$3="M")*qx_m_w!$C19)+ ( ($C$3="F")*qx_m_w!$D19)) -> 0.000172970473 | T11: =$C$4*((($C$3="M")*qx_m_w!$C19)+ ( ($C$3="F")*qx_m_w!$D19)) -> 0.000172970473 | U11: =$C$4*((($C$3="M")*qx_m_w!$C19)+ ( ($C$3="F")*qx_m_w!$D19)) -> 0.000172970473 | V11: =$C$4*((($C$3="M")*qx_m_w!$C19)+ ( ($C$3="F")*qx_m_w!$D19)) -> 0.000172970473 | W11: =$C$4*((($C$3="M")*qx_m_w!$C19)+ ( ($C$3="F")*qx_m_w!$D19)) -> 0.000172970473 | X11: =$C$4*((($C$3="M")*qx_m_w!$C19)+ ( ($C$3="F")*qx_m_w!$D19)) -> 0.000172970473 | Y11: =$C$4*((($C$3="M")*qx_m_w!$C19)+ ( ($C$3="F")*qx_m_w!$D19)) -> 0.000172970473 | Z11: =$C$4*((($C$3="M")*qx_m_w!$C19)+ ( ($C$3="F")*qx_m_w!$D19)) -> 0.000172970473 | AA11: =$C$4*((($C$3="M")*qx_m_w!$C19)+ ( ($C$3="F")*qx_m_w!$D19)) -> 0.000172970473 | AB11: =$C$4*((($C$3="M")*qx_m_w!$C19)+ ( ($C$3="F")*qx_m_w!$D19)) -> 0.000172970473 | AC11: =$C$4*((($C$3="M")*qx_m_w!$C19)+ ( ($C$3="F")*qx_m_w!$D19)) -> 0.000172970473 | AD11: =$C$4*((($C$3="M")*qx_m_w!$C19)+ ( ($C$3="F")*qx_m_w!$D19)) -> 0.000172970473 | AE11: =$C$4*((($C$3="M")*qx_m_w!$C19)+ ( ($C$3="F")*qx_m_w!$D19)) -> 0.000172970473 | AF11: =$C$4*((($C$3="M")*qx_m_w!$C19)+ ( ($C$3="F")*qx_m_w!$D19)) -> 0.000172970473 | AG11: =$C$4*((($C$3="M")*qx_m_w!$C19)+ ( ($C$3="F")*qx_m_w!$D19)) -> 0.000172970473 | AH11: =$C$4*((($C$3="M")*qx_m_w!$C19)+ ( ($C$3="F")*qx_m_w!$D19)) -> 0.000172970473 | AI11: =$C$4*((($C$3="M")*qx_m_w!$C19)+ ( ($C$3="F")*qx_m_w!$D19)) -> 0.000172970473 | AJ11: =$C$4*((($C$3="M")*qx_m_w!$C19)+ ( ($C$3="F")*qx_m_w!$D19)) -> 0.000172970473 | AK11: =$C$4*((($C$3="M")*qx_m_w!$C19)+ ( ($C$3="F")*qx_m_w!$D19)) -> 0.000172970473 | AL11: =$C$4*((($C$3="M")*qx_m_w!$C19)+ ( ($C$3="F")*qx_m_w!$D19)) -> 0.000172970473 | AM11: =$C$4*((($C$3="M")*qx_m_w!$C19)+ ( ($C$3="F")*qx_m_w!$D19)) -> 0.000172970473 | AN11: =$C$4*((($C$3="M")*qx_m_w!$C19)+ ( ($C$3="F")*qx_m_w!$D19)) -> 0.000172970473 | AO11: =$C$4*((($C$3="M")*qx_m_w!$C19)+ ( ($C$3="F")*qx_m_w!$D19)) -> 0.000172970473 | AP11: =$C$4*((($C$3="M")*qx_m_w!$C19)+ ( ($C$3="F")*qx_m_w!$D19)) -> 0.000172970473 | AQ11: =$C$4*((($C$3="M")*qx_m_w!$C19)+ ( ($C$3="F")*qx_m_w!$D19)) -> 0.000172970473 | AR11: =$C$4*((($C$3="M")*qx_m_w!$C19)+ ( ($C$3="F")*qx_m_w!$D19)) -> 0.000172970473 | AS11: =$C$4*((($C$3="M")*qx_m_w!$C19)+ ( ($C$3="F")*qx_m_w!$D19)) -> 0.000172970473 | AT11: =$C$4*((($C$3="M")*qx_m_w!$C19)+ ( ($C$3="F")*qx_m_w!$D19)) -> 0.000172970473 | AU11: =$C$4*((($C$3="M")*qx_m_w!$C19)+ ( ($C$3="F")*qx_m_w!$D19)) -> 0.000172970473 | AV11: =$C$4*((($C$3="M")*qx_m_w!$C19)+ ( ($C$3="F")*qx_m_w!$D19)) -> 0.000172970473 | AW11: =$C$4*((($C$3="M")*qx_m_w!$C19)+ ( ($C$3="F")*qx_m_w!$D19)) -> 0.000172970473 | AX11: =$C$4*((($C$3="M")*qx_m_w!$C19)+ ( ($C$3="F")*qx_m_w!$D19)) -> 0.000172970473 | AY11: =$C$4*((($C$3="M")*qx_m_w!$C19)+ ( ($C$3="F")*qx_m_w!$D19)) -> 0.000172970473 | AZ11: =$C$4*((($C$3="M")*qx_m_w!$C19)+ ( ($C$3="F")*qx_m_w!$D19)) -> 0.000172970473 | BA11: =$C$4*((($C$3="M")*qx_m_w!$C19)+ ( ($C$3="F")*qx_m_w!$D19)) -> 0.000172970473 | BB11: =$C$4*((($C$3="M")*qx_m_w!$C19)+ ( ($C$3="F")*qx_m_w!$D19)) -> 0.000172970473 | BC11: =$C$4*((($C$3="M")*qx_m_w!$C19)+ ( ($C$3="F")*qx_m_w!$D19)) -> 0.000172970473 | BD11: =$C$4*((($C$3="M")*qx_m_w!$C19)+ ( ($C$3="F")*qx_m_w!$D19)) -> 0.000172970473 | BE11: =$C$4*((($C$3="M")*qx_m_w!$C19)+ ( ($C$3="F")*qx_m_w!$D19)) -> 0.000172970473 | BF11: =$C$4*((($C$3="M")*qx_m_w!$C19)+ ( ($C$3="F")*qx_m_w!$D19)) -> 0.000172970473 | BG11: =$C$4*((($C$3="M")*qx_m_w!$C19)+ ( ($C$3="F")*qx_m_w!$D19)) -> 0.000172970473 | BH11: =$C$4*((($C$3="M")*qx_m_w!$C19)+ ( ($C$3="F")*qx_m_w!$D19)) -> 0.000172970473 | BI11: =$C$4*((($C$3="M")*qx_m_w!$C19)+ ( ($C$3="F")*qx_m_w!$D19)) -> 0.000172970473 | BJ11: =$C$4*((($C$3="M")*qx_m_w!$C19)+ ( ($C$3="F")*qx_m_w!$D19)) -> 0.000172970473 | BK11: =$C$4*((($C$3="M")*qx_m_w!$C19)+ ( ($C$3="F")*qx_m_w!$D19)) -> 0.000172970473 | BL11: =$C$4*((($C$3="M")*qx_m_w!$C19)+ ( ($C$3="F")*qx_m_w!$D19)) -> 0.000172970473 | BM11: =$C$4*((($C$3="M")*qx_m_w!$C19)+ ( ($C$3="F")*qx_m_w!$D19)) -> 0.000172970473 | BN11: =$C$4*((($C$3="M")*qx_m_w!$C19)+ ( ($C$3="F")*qx_m_w!$D19)) -> 0.000172970473 | BO11: =$C$4*((($C$3="M")*qx_m_w!$C19)+ ( ($C$3="F")*qx_m_w!$D19)) -> 0.000172970473 | BP11: =$C$4*((($C$3="M")*qx_m_w!$C19)+ ( ($C$3="F")*qx_m_w!$D19)) -> 0.000172970473 | BQ11: =$C$4*((($C$3="M")*qx_m_w!$C19)+ ( ($C$3="F")*qx_m_w!$D19)) -> 0.000172970473 | BR11: =$C$4*((($C$3="M")*qx_m_w!$C19)+ ( ($C$3="F")*qx_m_w!$D19)) -> 0.000172970473 | BS11: =$C$4*((($C$3="M")*qx_m_w!$C19)+ ( ($C$3="F")*qx_m_w!$D19)) -> 0.000172970473 | BT11: =$C$4*((($C$3="M")*qx_m_w!$C19)+ ( ($C$3="F")*qx_m_w!$D19)) -> 0.000172970473 | BU11: =$C$4*((($C$3="M")*qx_m_w!$C19)+ ( ($C$3="F")*qx_m_w!$D19)) -> 0.000172970473 | BV11: =$C$4*((($C$3="M")*qx_m_w!$C19)+ ( ($C$3="F")*qx_m_w!$D19)) -> 0.000172970473 | BW11: =$C$4*((($C$3="M")*qx_m_w!$C19)+ ( ($C$3="F")*qx_m_w!$D19)) -> 0.000172970473 | BX11: =$C$4*((($C$3="M")*qx_m_w!$C19)+ ( ($C$3="F")*qx_m_w!$D19)) -> 0.000172970473 | BY11: =$C$4*((($C$3="M")*qx_m_w!$C19)+ ( ($C$3="F")*qx_m_w!$D19)) -> 0.000172970473 | BZ11: =$C$4*((($C$3="M")*qx_m_w!$C19)+ ( ($C$3="F")*qx_m_w!$D19)) -> 0.000172970473 | CA11: =$C$4*((($C$3="M")*qx_m_w!$C19)+ ( ($C$3="F")*qx_m_w!$D19)) -> 0.000172970473 | CB11: =$C$4*((($C$3="M")*qx_m_w!$C19)+ ( ($C$3="F")*qx_m_w!$D19)) -> 0.000172970473 | CC11: =$C$4*((($C$3="M")*qx_m_w!$C19)+ ( ($C$3="F")*qx_m_w!$D19)) -> 0.000172970473 | CD11: =$C$4*((($C$3="M")*qx_m_w!$C19)+ ( ($C$3="F")*qx_m_w!$D19)) -> 0.000172970473 | CE11: =$C$4*((($C$3="M")*qx_m_w!$C19)+ ( ($C$3="F")*qx_m_w!$D19)) -> 0.000172970473 | CF11: =$C$4*((($C$3="M")*qx_m_w!$C19)+ ( ($C$3="F")*qx_m_w!$D19)) -> 0.000172970473 | CG11: =$C$4*((($C$3="M")*qx_m_w!$C19)+ ( ($C$3="F")*qx_m_w!$D19)) -> 0.000172970473 | CH11: =$C$4*((($C$3="M")*qx_m_w!$C19)+ ( ($C$3="F")*qx_m_w!$D19)) -> 0.000172970473 | CI11: =$C$4*((($C$3="M")*qx_m_w!$C19)+ ( ($C$3="F")*qx_m_w!$D19)) -> 0.000172970473 | CJ11: =$C$4*((($C$3="M")*qx_m_w!$C19)+ ( ($C$3="F")*qx_m_w!$D19)) -> 0.000172970473 | CK11: =$C$4*((($C$3="M")*qx_m_w!$C19)+ ( ($C$3="F")*qx_m_w!$D19)) -> 0.000172970473 | CL11: =$C$4*((($C$3="M")*qx_m_w!$C19)+ ( ($C$3="F")*qx_m_w!$D19)) -> 0.000172970473 | CM11: =$C$4*((($C$3="M")*qx_m_w!$C19)+ ( ($C$3="F")*qx_m_w!$D19)) -> 0.000172970473 | CN11: =$C$4*((($C$3="M")*qx_m_w!$C19)+ ( ($C$3="F")*qx_m_w!$D19)) -> 0.000172970473 | CO11: =$C$4*((($C$3="M")*qx_m_w!$C19)+ ( ($C$3="F")*qx_m_w!$D19)) -> 0.000172970473 | CP11: =$C$4*((($C$3="M")*qx_m_w!$C19)+ ( ($C$3="F")*qx_m_w!$D19)) -> 0.000172970473 | CQ11: =$C$4*((($C$3="M")*qx_m_w!$C19)+ ( ($C$3="F")*qx_m_w!$D19)) -> 0.000172970473 | CR11: =$C$4*((($C$3="M")*qx_m_w!$C19)+ ( ($C$3="F")*qx_m_w!$D19)) -> 0.000172970473 | CS11: =$C$4*((($C$3="M")*qx_m_w!$C19)+ ( ($C$3="F")*qx_m_w!$D19)) -> 0.000172970473 | CT11: =$C$4*((($C$3="M")*qx_m_w!$C19)+ ( ($C$3="F")*qx_m_w!$D19)) -> 0.000172970473 | CU11: =$C$4*((($C$3="M")*qx_m_w!$C19)+ ( ($C$3="F")*qx_m_w!$D19)) -> 0.000172970473 | CV11: =$C$4*((($C$3="M")*qx_m_w!$C19)+ ( ($C$3="F")*qx_m_w!$D19)) -> 0.000172970473 | CW11: =$C$4*((($C$3="M")*qx_m_w!$C19)+ ( ($C$3="F")*qx_m_w!$D19)) -> 0.000172970473 | CX11: =$C$4*((($C$3="M")*qx_m_w!$C19)+ ( ($C$3="F")*qx_m_w!$D19)) -> 0.000172970473 | CY11: =$C$4*((($C$3="M")*qx_m_w!$C19)+ ( ($C$3="F")*qx_m_w!$D19)) -> 0.000172970473 | CZ11: =$C$4*((($C$3="M")*qx_m_w!$C19)+ ( ($C$3="F")*qx_m_w!$D19)) -> 0.000172970473 | DA11: =$C$4*((($C$3="M")*qx_m_w!$C19)+ ( ($C$3="F")*qx_m_w!$D19)) -> 0.000172970473 | DB11: =$C$4*((($C$3="M")*qx_m_w!$C19)+ ( ($C$3="F")*qx_m_w!$D19)) -> 0.000172970473 | DC11: =$C$4*((($C$3="M")*qx_m_w!$C19)+ ( ($C$3="F")*qx_m_w!$D19)) -> 0.000172970473 | DD11: =$C$4*((($C$3="M")*qx_m_w!$C19)+ ( ($C$3="F")*qx_m_w!$D19)) -> 0.000172970473 | DE11: =$C$4*((($C$3="M")*qx_m_w!$C19)+ ( ($C$3="F")*qx_m_w!$D19)) -> 0.000172970473 | DF11: =$C$4*((($C$3="M")*qx_m_w!$C19)+ ( ($C$3="F")*qx_m_w!$D19)) -> 0.000172970473 | DG11: =$C$4*((($C$3="M")*qx_m_w!$C19)+ ( ($C$3="F")*qx_m_w!$D19)) -> 0.000172970473 | DH11: =$C$4*((($C$3="M")*qx_m_w!$C19)+ ( ($C$3="F")*qx_m_w!$D19)) -> 0.000172970473 | DI11: =$C$4*((($C$3="M")*qx_m_w!$C19)+ ( ($C$3="F")*qx_m_w!$D19)) -> 0.000172970473 | DJ11: =$C$4*((($C$3="M")*qx_m_w!$C19)+ ( ($C$3="F")*qx_m_w!$D19)) -> 0.000172970473 | DK11: =$C$4*((($C$3="M")*qx_m_w!$C19)+ ( ($C$3="F")*qx_m_w!$D19)) -> 0.000172970473 | DL11: =$C$4*((($C$3="M")*qx_m_w!$C19)+ ( ($C$3="F")*qx_m_w!$D19)) -> 0.000172970473 | DM11: =$C$4*((($C$3="M")*qx_m_w!$C19)+ ( ($C$3="F")*qx_m_w!$D19)) -> 0.000172970473 | DN11: =$C$4*((($C$3="M")*qx_m_w!$C19)+ ( ($C$3="F")*qx_m_w!$D19)) -> 0.000172970473 | DO11: =$C$4*((($C$3="M")*qx_m_w!$C19)+ ( ($C$3="F")*qx_m_w!$D19)) -> 0.000172970473 | DP11: =$C$4*((($C$3="M")*qx_m_w!$C19)+ ( ($C$3="F")*qx_m_w!$D19)) -> 0.000172970473 | DQ11: =$C$4*((($C$3="M")*qx_m_w!$C19)+ ( ($C$3="F")*qx_m_w!$D19)) -> 0.000172970473 | DR11: =$C$4*((($C$3="M")*qx_m_w!$C19)+ ( ($C$3="F")*qx_m_w!$D19)) -> 0.000172970473 | DS11: =$C$4*((($C$3="M")*qx_m_w!$C19)+ ( ($C$3="F")*qx_m_w!$D19)) -> 0.000172970473
D12: 2 | E12: =$C$4*((($C$3="M")*qx_m_w!$C20)+ ( ($C$3="F")*qx_m_w!$D20)) -> 0.0001036809362 | F12: =$C$4*((($C$3="M")*qx_m_w!$C20)+ ( ($C$3="F")*qx_m_w!$D20)) -> 0.0001036809362 | G12: =$C$4*((($C$3="M")*qx_m_w!$C20)+ ( ($C$3="F")*qx_m_w!$D20)) -> 0.0001036809362 | H12: =$C$4*((($C$3="M")*qx_m_w!$C20)+ ( ($C$3="F")*qx_m_w!$D20)) -> 0.0001036809362 | I12: =$C$4*((($C$3="M")*qx_m_w!$C20)+ ( ($C$3="F")*qx_m_w!$D20)) -> 0.0001036809362 | J12: =$C$4*((($C$3="M")*qx_m_w!$C20)+ ( ($C$3="F")*qx_m_w!$D20)) -> 0.0001036809362 | K12: =$C$4*((($C$3="M")*qx_m_w!$C20)+ ( ($C$3="F")*qx_m_w!$D20)) -> 0.0001036809362 | L12: =$C$4*((($C$3="M")*qx_m_w!$C20)+ ( ($C$3="F")*qx_m_w!$D20)) -> 0.0001036809362 | M12: =$C$4*((($C$3="M")*qx_m_w!$C20)+ ( ($C$3="F")*qx_m_w!$D20)) -> 0.0001036809362 | N12: =$C$4*((($C$3="M")*qx_m_w!$C20)+ ( ($C$3="F")*qx_m_w!$D20)) -> 0.0001036809362 | O12: =$C$4*((($C$3="M")*qx_m_w!$C20)+ ( ($C$3="F")*qx_m_w!$D20)) -> 0.0001036809362 | P12: =$C$4*((($C$3="M")*qx_m_w!$C20)+ ( ($C$3="F")*qx_m_w!$D20)) -> 0.0001036809362 | Q12: =$C$4*((($C$3="M")*qx_m_w!$C20)+ ( ($C$3="F")*qx_m_w!$D20)) -> 0.0001036809362 | R12: =$C$4*((($C$3="M")*qx_m_w!$C20)+ ( ($C$3="F")*qx_m_w!$D20)) -> 0.0001036809362 | S12: =$C$4*((($C$3="M")*qx_m_w!$C20)+ ( ($C$3="F")*qx_m_w!$D20)) -> 0.0001036809362 | T12: =$C$4*((($C$3="M")*qx_m_w!$C20)+ ( ($C$3="F")*qx_m_w!$D20)) -> 0.0001036809362 | U12: =$C$4*((($C$3="M")*qx_m_w!$C20)+ ( ($C$3="F")*qx_m_w!$D20)) -> 0.0001036809362 | V12: =$C$4*((($C$3="M")*qx_m_w!$C20)+ ( ($C$3="F")*qx_m_w!$D20)) -> 0.0001036809362 | W12: =$C$4*((($C$3="M")*qx_m_w!$C20)+ ( ($C$3="F")*qx_m_w!$D20)) -> 0.0001036809362 | X12: =$C$4*((($C$3="M")*qx_m_w!$C20)+ ( ($C$3="F")*qx_m_w!$D20)) -> 0.0001036809362 | Y12: =$C$4*((($C$3="M")*qx_m_w!$C20)+ ( ($C$3="F")*qx_m_w!$D20)) -> 0.0001036809362 | Z12: =$C$4*((($C$3="M")*qx_m_w!$C20)+ ( ($C$3="F")*qx_m_w!$D20)) -> 0.0001036809362 | AA12: =$C$4*((($C$3="M")*qx_m_w!$C20)+ ( ($C$3="F")*qx_m_w!$D20)) -> 0.0001036809362 | AB12: =$C$4*((($C$3="M")*qx_m_w!$C20)+ ( ($C$3="F")*qx_m_w!$D20)) -> 0.0001036809362 | AC12: =$C$4*((($C$3="M")*qx_m_w!$C20)+ ( ($C$3="F")*qx_m_w!$D20)) -> 0.0001036809362 | AD12: =$C$4*((($C$3="M")*qx_m_w!$C20)+ ( ($C$3="F")*qx_m_w!$D20)) -> 0.0001036809362 | AE12: =$C$4*((($C$3="M")*qx_m_w!$C20)+ ( ($C$3="F")*qx_m_w!$D20)) -> 0.0001036809362 | AF12: =$C$4*((($C$3="M")*qx_m_w!$C20)+ ( ($C$3="F")*qx_m_w!$D20)) -> 0.0001036809362 | AG12: =$C$4*((($C$3="M")*qx_m_w!$C20)+ ( ($C$3="F")*qx_m_w!$D20)) -> 0.0001036809362 | AH12: =$C$4*((($C$3="M")*qx_m_w!$C20)+ ( ($C$3="F")*qx_m_w!$D20)) -> 0.0001036809362 | AI12: =$C$4*((($C$3="M")*qx_m_w!$C20)+ ( ($C$3="F")*qx_m_w!$D20)) -> 0.0001036809362 | AJ12: =$C$4*((($C$3="M")*qx_m_w!$C20)+ ( ($C$3="F")*qx_m_w!$D20)) -> 0.0001036809362 | AK12: =$C$4*((($C$3="M")*qx_m_w!$C20)+ ( ($C$3="F")*qx_m_w!$D20)) -> 0.0001036809362 | AL12: =$C$4*((($C$3="M")*qx_m_w!$C20)+ ( ($C$3="F")*qx_m_w!$D20)) -> 0.0001036809362 | AM12: =$C$4*((($C$3="M")*qx_m_w!$C20)+ ( ($C$3="F")*qx_m_w!$D20)) -> 0.0001036809362 | AN12: =$C$4*((($C$3="M")*qx_m_w!$C20)+ ( ($C$3="F")*qx_m_w!$D20)) -> 0.0001036809362 | AO12: =$C$4*((($C$3="M")*qx_m_w!$C20)+ ( ($C$3="F")*qx_m_w!$D20)) -> 0.0001036809362 | AP12: =$C$4*((($C$3="M")*qx_m_w!$C20)+ ( ($C$3="F")*qx_m_w!$D20)) -> 0.0001036809362 | AQ12: =$C$4*((($C$3="M")*qx_m_w!$C20)+ ( ($C$3="F")*qx_m_w!$D20)) -> 0.0001036809362 | AR12: =$C$4*((($C$3="M")*qx_m_w!$C20)+ ( ($C$3="F")*qx_m_w!$D20)) -> 0.0001036809362 | AS12: =$C$4*((($C$3="M")*qx_m_w!$C20)+ ( ($C$3="F")*qx_m_w!$D20)) -> 0.0001036809362 | AT12: =$C$4*((($C$3="M")*qx_m_w!$C20)+ ( ($C$3="F")*qx_m_w!$D20)) -> 0.0001036809362 | AU12: =$C$4*((($C$3="M")*qx_m_w!$C20)+ ( ($C$3="F")*qx_m_w!$D20)) -> 0.0001036809362 | AV12: =$C$4*((($C$3="M")*qx_m_w!$C20)+ ( ($C$3="F")*qx_m_w!$D20)) -> 0.0001036809362 | AW12: =$C$4*((($C$3="M")*qx_m_w!$C20)+ ( ($C$3="F")*qx_m_w!$D20)) -> 0.0001036809362 | AX12: =$C$4*((($C$3="M")*qx_m_w!$C20)+ ( ($C$3="F")*qx_m_w!$D20)) -> 0.0001036809362 | AY12: =$C$4*((($C$3="M")*qx_m_w!$C20)+ ( ($C$3="F")*qx_m_w!$D20)) -> 0.0001036809362 | AZ12: =$C$4*((($C$3="M")*qx_m_w!$C20)+ ( ($C$3="F")*qx_m_w!$D20)) -> 0.0001036809362 | BA12: =$C$4*((($C$3="M")*qx_m_w!$C20)+ ( ($C$3="F")*qx_m_w!$D20)) -> 0.0001036809362 | BB12: =$C$4*((($C$3="M")*qx_m_w!$C20)+ ( ($C$3="F")*qx_m_w!$D20)) -> 0.0001036809362 | BC12: =$C$4*((($C$3="M")*qx_m_w!$C20)+ ( ($C$3="F")*qx_m_w!$D20)) -> 0.0001036809362 | BD12: =$C$4*((($C$3="M")*qx_m_w!$C20)+ ( ($C$3="F")*qx_m_w!$D20)) -> 0.0001036809362 | BE12: =$C$4*((($C$3="M")*qx_m_w!$C20)+ ( ($C$3="F")*qx_m_w!$D20)) -> 0.0001036809362 | BF12: =$C$4*((($C$3="M")*qx_m_w!$C20)+ ( ($C$3="F")*qx_m_w!$D20)) -> 0.0001036809362 | BG12: =$C$4*((($C$3="M")*qx_m_w!$C20)+ ( ($C$3="F")*qx_m_w!$D20)) -> 0.0001036809362 | BH12: =$C$4*((($C$3="M")*qx_m_w!$C20)+ ( ($C$3="F")*qx_m_w!$D20)) -> 0.0001036809362 | BI12: =$C$4*((($C$3="M")*qx_m_w!$C20)+ ( ($C$3="F")*qx_m_w!$D20)) -> 0.0001036809362 | BJ12: =$C$4*((($C$3="M")*qx_m_w!$C20)+ ( ($C$3="F")*qx_m_w!$D20)) -> 0.0001036809362 | BK12: =$C$4*((($C$3="M")*qx_m_w!$C20)+ ( ($C$3="F")*qx_m_w!$D20)) -> 0.0001036809362 | BL12: =$C$4*((($C$3="M")*qx_m_w!$C20)+ ( ($C$3="F")*qx_m_w!$D20)) -> 0.0001036809362 | BM12: =$C$4*((($C$3="M")*qx_m_w!$C20)+ ( ($C$3="F")*qx_m_w!$D20)) -> 0.0001036809362 | BN12: =$C$4*((($C$3="M")*qx_m_w!$C20)+ ( ($C$3="F")*qx_m_w!$D20)) -> 0.0001036809362 | BO12: =$C$4*((($C$3="M")*qx_m_w!$C20)+ ( ($C$3="F")*qx_m_w!$D20)) -> 0.0001036809362 | BP12: =$C$4*((($C$3="M")*qx_m_w!$C20)+ ( ($C$3="F")*qx_m_w!$D20)) -> 0.0001036809362 | BQ12: =$C$4*((($C$3="M")*qx_m_w!$C20)+ ( ($C$3="F")*qx_m_w!$D20)) -> 0.0001036809362 | BR12: =$C$4*((($C$3="M")*qx_m_w!$C20)+ ( ($C$3="F")*qx_m_w!$D20)) -> 0.0001036809362 | BS12: =$C$4*((($C$3="M")*qx_m_w!$C20)+ ( ($C$3="F")*qx_m_w!$D20)) -> 0.0001036809362 | BT12: =$C$4*((($C$3="M")*qx_m_w!$C20)+ ( ($C$3="F")*qx_m_w!$D20)) -> 0.0001036809362 | BU12: =$C$4*((($C$3="M")*qx_m_w!$C20)+ ( ($C$3="F")*qx_m_w!$D20)) -> 0.0001036809362 | BV12: =$C$4*((($C$3="M")*qx_m_w!$C20)+ ( ($C$3="F")*qx_m_w!$D20)) -> 0.0001036809362 | BW12: =$C$4*((($C$3="M")*qx_m_w!$C20)+ ( ($C$3="F")*qx_m_w!$D20)) -> 0.0001036809362 | BX12: =$C$4*((($C$3="M")*qx_m_w!$C20)+ ( ($C$3="F")*qx_m_w!$D20)) -> 0.0001036809362 | BY12: =$C$4*((($C$3="M")*qx_m_w!$C20)+ ( ($C$3="F")*qx_m_w!$D20)) -> 0.0001036809362 | BZ12: =$C$4*((($C$3="M")*qx_m_w!$C20)+ ( ($C$3="F")*qx_m_w!$D20)) -> 0.0001036809362 | CA12: =$C$4*((($C$3="M")*qx_m_w!$C20)+ ( ($C$3="F")*qx_m_w!$D20)) -> 0.0001036809362 | CB12: =$C$4*((($C$3="M")*qx_m_w!$C20)+ ( ($C$3="F")*qx_m_w!$D20)) -> 0.0001036809362 | CC12: =$C$4*((($C$3="M")*qx_m_w!$C20)+ ( ($C$3="F")*qx_m_w!$D20)) -> 0.0001036809362 | CD12: =$C$4*((($C$3="M")*qx_m_w!$C20)+ ( ($C$3="F")*qx_m_w!$D20)) -> 0.0001036809362 | CE12: =$C$4*((($C$3="M")*qx_m_w!$C20)+ ( ($C$3="F")*qx_m_w!$D20)) -> 0.0001036809362 | CF12: =$C$4*((($C$3="M")*qx_m_w!$C20)+ ( ($C$3="F")*qx_m_w!$D20)) -> 0.0001036809362 | CG12: =$C$4*((($C$3="M")*qx_m_w!$C20)+ ( ($C$3="F")*qx_m_w!$D20)) -> 0.0001036809362 | CH12: =$C$4*((($C$3="M")*qx_m_w!$C20)+ ( ($C$3="F")*qx_m_w!$D20)) -> 0.0001036809362 | CI12: =$C$4*((($C$3="M")*qx_m_w!$C20)+ ( ($C$3="F")*qx_m_w!$D20)) -> 0.0001036809362 | CJ12: =$C$4*((($C$3="M")*qx_m_w!$C20)+ ( ($C$3="F")*qx_m_w!$D20)) -> 0.0001036809362 | CK12: =$C$4*((($C$3="M")*qx_m_w!$C20)+ ( ($C$3="F")*qx_m_w!$D20)) -> 0.0001036809362 | CL12: =$C$4*((($C$3="M")*qx_m_w!$C20)+ ( ($C$3="F")*qx_m_w!$D20)) -> 0.0001036809362 | CM12: =$C$4*((($C$3="M")*qx_m_w!$C20)+ ( ($C$3="F")*qx_m_w!$D20)) -> 0.0001036809362 | CN12: =$C$4*((($C$3="M")*qx_m_w!$C20)+ ( ($C$3="F")*qx_m_w!$D20)) -> 0.0001036809362 | CO12: =$C$4*((($C$3="M")*qx_m_w!$C20)+ ( ($C$3="F")*qx_m_w!$D20)) -> 0.0001036809362 | CP12: =$C$4*((($C$3="M")*qx_m_w!$C20)+ ( ($C$3="F")*qx_m_w!$D20)) -> 0.0001036809362 | CQ12: =$C$4*((($C$3="M")*qx_m_w!$C20)+ ( ($C$3="F")*qx_m_w!$D20)) -> 0.0001036809362 | CR12: =$C$4*((($C$3="M")*qx_m_w!$C20)+ ( ($C$3="F")*qx_m_w!$D20)) -> 0.0001036809362 | CS12: =$C$4*((($C$3="M")*qx_m_w!$C20)+ ( ($C$3="F")*qx_m_w!$D20)) -> 0.0001036809362 | CT12: =$C$4*((($C$3="M")*qx_m_w!$C20)+ ( ($C$3="F")*qx_m_w!$D20)) -> 0.0001036809362 | CU12: =$C$4*((($C$3="M")*qx_m_w!$C20)+ ( ($C$3="F")*qx_m_w!$D20)) -> 0.0001036809362 | CV12: =$C$4*((($C$3="M")*qx_m_w!$C20)+ ( ($C$3="F")*qx_m_w!$D20)) -> 0.0001036809362 | CW12: =$C$4*((($C$3="M")*qx_m_w!$C20)+ ( ($C$3="F")*qx_m_w!$D20)) -> 0.0001036809362 | CX12: =$C$4*((($C$3="M")*qx_m_w!$C20)+ ( ($C$3="F")*qx_m_w!$D20)) -> 0.0001036809362 | CY12: =$C$4*((($C$3="M")*qx_m_w!$C20)+ ( ($C$3="F")*qx_m_w!$D20)) -> 0.0001036809362 | CZ12: =$C$4*((($C$3="M")*qx_m_w!$C20)+ ( ($C$3="F")*qx_m_w!$D20)) -> 0.0001036809362 | DA12: =$C$4*((($C$3="M")*qx_m_w!$C20)+ ( ($C$3="F")*qx_m_w!$D20)) -> 0.0001036809362 | DB12: =$C$4*((($C$3="M")*qx_m_w!$C20)+ ( ($C$3="F")*qx_m_w!$D20)) -> 0.0001036809362 | DC12: =$C$4*((($C$3="M")*qx_m_w!$C20)+ ( ($C$3="F")*qx_m_w!$D20)) -> 0.0001036809362 | DD12: =$C$4*((($C$3="M")*qx_m_w!$C20)+ ( ($C$3="F")*qx_m_w!$D20)) -> 0.0001036809362 | DE12: =$C$4*((($C$3="M")*qx_m_w!$C20)+ ( ($C$3="F")*qx_m_w!$D20)) -> 0.0001036809362 | DF12: =$C$4*((($C$3="M")*qx_m_w!$C20)+ ( ($C$3="F")*qx_m_w!$D20)) -> 0.0001036809362 | DG12: =$C$4*((($C$3="M")*qx_m_w!$C20)+ ( ($C$3="F")*qx_m_w!$D20)) -> 0.0001036809362 | DH12: =$C$4*((($C$3="M")*qx_m_w!$C20)+ ( ($C$3="F")*qx_m_w!$D20)) -> 0.0001036809362 | DI12: =$C$4*((($C$3="M")*qx_m_w!$C20)+ ( ($C$3="F")*qx_m_w!$D20)) -> 0.0001036809362 | DJ12: =$C$4*((($C$3="M")*qx_m_w!$C20)+ ( ($C$3="F")*qx_m_w!$D20)) -> 0.0001036809362 | DK12: =$C$4*((($C$3="M")*qx_m_w!$C20)+ ( ($C$3="F")*qx_m_w!$D20)) -> 0.0001036809362 | DL12: =$C$4*((($C$3="M")*qx_m_w!$C20)+ ( ($C$3="F")*qx_m_w!$D20)) -> 0.0001036809362 | DM12: =$C$4*((($C$3="M")*qx_m_w!$C20)+ ( ($C$3="F")*qx_m_w!$D20)) -> 0.0001036809362 | DN12: =$C$4*((($C$3="M")*qx_m_w!$C20)+ ( ($C$3="F")*qx_m_w!$D20)) -> 0.0001036809362 | DO12: =$C$4*((($C$3="M")*qx_m_w!$C20)+ ( ($C$3="F")*qx_m_w!$D20)) -> 0.0001036809362 | DP12: =$C$4*((($C$3="M")*qx_m_w!$C20)+ ( ($C$3="F")*qx_m_w!$D20)) -> 0.0001036809362 | DQ12: =$C$4*((($C$3="M")*qx_m_w!$C20)+ ( ($C$3="F")*qx_m_w!$D20)) -> 0.0001036809362 | DR12: =$C$4*((($C$3="M")*qx_m_w!$C20)+ ( ($C$3="F")*qx_m_w!$D20)) -> 0.0001036809362 | DS12: =$C$4*((($C$3="M")*qx_m_w!$C20)+ ( ($C$3="F")*qx_m_w!$D20)) -> 0.0001036809362
